{"text_format":"1","workbook":"xlsx","n_sheets":19,"sheets":["Prvi_list","Drugi_list","Poročilo_1","Poročilo_2","Poročilo_3","Aglomeracije","Blato","Poročilo_4","Poročilo_5","Poročilo_6","Poročilo_7","Parametri","Priloge","Trajne meritve","Pooblastilo","KČN","Izvajalci_JS","sifrant","Izvajalci_mon"],"not_rendered":{"charts":0,"images":21,"macros":1,"external_links":4,"defined_names":112,"comments":7,"pivot_tables":0},"unopened":[],"bounds":{"document_bytes":16777216,"sheet_cells":100000,"rows_first":2000,"rows_last":500,"rows_between":2000,"halvings":0,"cell_chars":16384,"cell_head_chars":4096},"cells_cut":0,"cells_raw":0,"read":"whole","date_system":"1900"}

{"sheet":"Prvi_list","index":0,"n_rows":24,"n_cols":1,"rows_kept":24,"cut":false,"hidden":false,"merged":[]}
["VERZIJA: 3.1.2024"]
[]
["Izbira obrazca"]
[]
[]
[]
[]
[]
[]
[]
[]
[]
[]
[]
[]
[]
["POROČILO O OBRATOVALNEM MONITORINGU ZA KOMUNALNO ČISTILNO NAPRAVO"]
[]
[{"$f":"Poročilo_3!B3","v":"ČN GOLNIK"}]
[]
[]
[]
[]
[{"$f":"\"Za leto \" & Poročilo_1!B3","v":"Za leto 2023"}]

{"sheet":"Drugi_list","index":1,"n_rows":34,"n_cols":2,"rows_kept":34,"cut":false,"hidden":false,"merged":[]}
["Naslov:\n","POROČILO O OBRATOVALNEM MONITORINGU ZA KOMUNALNO ČISTILNO NAPRAVO"]
["Naslov: ","ČN GOLNIK"]
[]
["Naprava:","ČN GOLNIK"]
[]
["Za leto:",2023]
[]
["Evidenčna oznaka: ","2700-15/28723-24/LP-KR2"]
[]
["Datum:                     ","2024-01-19"]
[]
["Izvajalec:","NLZOH, COZ, OOV"]
[null,"Enota Kranj"]
[null,"Gosposvetska ulica 12"]
[null,"4000 Kranj"]
[]
["Naročnik:","KOMUNALA KRANJ, Javno podjetje, d.o.o."]
[null,"Ulica Mirka Vadnova 1"]
[null,"4000 Kranj"]
[]
["Odgovorna oseba \nizvajalca monitoringa:","dr. Romana Martinčič, direktorica"]
[]
["Vodja kakovosti:","dr. Brigita Tepuš, univ.dipl.inž.kem."]
[]
["Operativno vodenje \nin odgovorna oseba  \nza izdelavo poročila:","Nina Oman, univ.dipl.kem."]
[]
["Vodja oddelka za\nodpadne vode:","Tatjana Jurša, univ. dipl.inž. kem. tehnol."]
[]
["Vzorčenje, meritve \nin izdelava poročila:\n","Karl Zupanc, Nina Oman"]
[]
["Sodelavci:","Nina Oman"]
[null,"Karl Zupanc"]
[null,"Jernej Zupanec"]
[null,"sodelavci Oddelka za za kemijske analize živil, vod in \ndrugih vzorcev okolja Kranj "]

{"sheet":"Poročilo_1","index":2,"n_rows":58,"n_cols":4,"rows_kept":58,"cut":false,"hidden":false,"merged":[]}
["POROČILO O MONITORINGU ODPADNIH VOD"]
[]
["OBČASNE ALI TRAJNE MERITVE ZA LETO",2023]
["PODATKI O UPRAVLJAVCU ČN"]
["Naziv upravljavca: ","KOMUNALA KRANJ, Javno podjetje, d.o.o."]
["Naslov upravljavca"]
["Naselje:","KRANJ"]
["Ulica:","MIRKA VADNOVA "]
["Hišna številka:",1]
["Poštna številka:",4000]
["Ime pošte:","KRANJ"]
["Matična številka upravljavca:",5067731]
["Identifikacijska številka za DDV:",72495421]
["Šifra dejavnosti upravljavca:","37"]
["Kontaktna oseba:","ANA ŠIVIC"]
["telefon:","030 425 451"]
[]
["elektronski naslov:","ana.sivic@komunala-kranj.si"]
[]
["PODATKI O IZVAJALCU MONITORINGA"]
["Naziv izvajalca monitoringa:","NLZOH Kranj"]
["Naslov izvajalca monitoringa"]
["Naselje:"]
["Ulica:","Gosposvetska ulica"]
["Hišna številka:",12]
["Poštna številka:",4000,null,17]
["Ime pošte:","Kranj"]
["Identifikacijska številka za DDV:",19651295]
["Šifra dejavnosti izvajalca monitoringa:","86909"]
["Kontaktna oseba:","NINA OMAN"]
["telefon:","04 20 17 156, 031 697 578"]
[]
["elektronski naslov:","nina.oman@nlzoh.si"]
[]
["PODATKI O IZVAJALCU JAVNE SLUŽBE ODVAJANJA IN ČIŠČENJA ODPADNIH VOD"]
[]
["Naziv izvajalca javne službe: ","KOMUNALA KRANJ, JAVNO PODJETJE, D.O.O."]
["Naslov izvajalca javne službe"]
["Naselje:","KRANJ"]
["Ulica in hišna številka:","ULICA MIRKA VADNOVA 1"]
["Poštna številka:",4000,null,44]
["Ime pošte:","KRANJ"]
["Identifikacijska številka za DDV:",72495421]
["Kontaktna oseba:","Marko Margetič"]
["telefon:","041 343 134"]
[null,"(04)2811301"]
["elektronski naslov:","marko.margetic@komunala-kranj.si"]
[]
["PODATKI O DIGITALNEM PODPISNIKU"]
["Obrazec digitalno podpisal (ime in priimek):","Nina Oman"]
["Serijska št. digitalnega potrdila podpisnika:",2475532416030]
[]
["Kraj:","Kranj,"]
["Datum:","2024-01-19"]
[]
["Ime in priimek zakonitega zastopnika","Ime in priimek zakonitega zastopnika"]
["izvajalca monitoringa","upravljavca čistilne naprave"]
["dr. Romana Martinčič, direktorica","Matjaž Berčon, direktor"]

{"sheet":"Poročilo_2","index":3,"n_rows":47,"n_cols":1,"rows_kept":47,"cut":false,"hidden":false,"merged":[]}
["1. Glavne tehnične značilnosti čistilne naprave"]
["1.1 Opis tehnologije čiščenja \n(tehnološka shema procesa je obvezna priloga in se doda na list Priloge)"]
["Čistilna naprava, ki je v upravljanju Univerzitetne klinike Golnik, je bila zgrajena leta 1957 za obremenitev 800 PE. Kasneje je bila večkrat dopolnjena - rekonstruirana: montiran je bil motorni mešalec blata v primarnem usedalniku, zamenjan je bil precejalnik in postavljena je bila rastlinska greda, površine 100 m2. Trenutna velikost ČN po vseh rekontrukcija ne presega velikosti 1000PE. \nProjektna dokumentacija, ki bi izkazovala dejansko velikost ČN ni na voljo, zato v poročilu ostaja navedena projektirana velikost ČN, ki je 800PE. "]
["Čistilna naprava vsebuje naslednje stopnje čiščenja odpadne vode: \n- primarno čiščenje: grobo mehansko čiščenje z grobimi grabljami in primarnim usedalnikom, fino mehansko čiščenje, \n- sekundarno čiščenje: biološko čiščenje skozi precejalnik ter recikel aktivnega blata iz dna sekundarnega usedalnika v primarni usedalnik."]
["Grobo mehansko čiščenje se izvaja s pomočjo mreže za zadrževanje grobih plavajočih snovi (papir, slama, povoji, embalaža ipd) ter s pomočjo lovilca peska. Mreža je zgrajena iz železnih palic in ima rege. V istem objektu je zgrajen raztežilnik, ki dopušča največ dvakratno povečano pretakanje odpadne vode. Lovilec peska je nameščen v obliki enostavnega bazena oz. jaška s pravokotnim tlorisom in poglobljenim dnom. Grobe plavajoče snovi se dnevno izloča in deponira v kontejner."]
["Fino mehansko čiščenje se izvaja na usedalniku in gnilišču. Usedalnik je nameščen zgoraj, gnilišče spodaj (dvoetažni sistem). Doba sedimentacije je predvidena 1,5h.\nOdpadne vode pritekajo po žlebu v sredino kontrolnega jaška. Skozi rege na obodu žleba padajo v usedalnik in tečejo radialno proti obodu usedalnika. Fine plavajoče snovi se usedajo in drsijo po stožčastem dnu skozi rege v gnilišče. Mehansko očiščene odpadne vode tečejo v obodni žleb in odtekajo v precejalnik. Obe etaži sta ločeni z vodoravnim betonskim vencem, s čemer se prepreči uhajanje fekalnih plinov skozi rege v stožcu v usedalnik, s tem pa se prepreči inficiranje mehansko očiščenih odplak. V kontrolnem jašku se v sredini usedalnika tvori skorja, katero je potrebno večkrat predreti. S tem se omogoči pravilno uhajanje fekalnih plinov v zrak. Kontrolni jašek služi hkrati tudi za dostop v gnilišče v času popravil."]
["Biološko čiščenje odplak se izvaja na precejalniku prostornine 80,4m3. Polnilo je kamen hrapave površine, odporen na preperevanje. Mehansko očiščene odplake so speljane v žleb, ki teče vzdolžno po sredini precejalnika, ki je prečno razvejan. S tem je dosežen dober učinek biološkega čiščenja in odpadna voda se enakomerno porazdeli po površini precejalnika. "]
["Naknadna sedimentacija biološko očiščene odpadne vode je potrebna zaradi vodenega kala, ki se izplakuje iz precejalnika in ga je potrebno zajemati v naknadni sedimentaciji. Usedalnik je izveden z navpičnim vodnim pretokom zaradi kosmičastega kala. V sredini bazena je jašek, v katerem odpadne vode padajo v globino, nato radialno odtekajo k obodu, se prelivajo v obodni zbiralnik in nato očiščene odtekajo v potok. Kal, ki se zbira na dnu lijaka, se prečrpava nazaj v primarni usedalnik. \nPoleg sekundarnega usedalnika stoji zidan objekt, ki služi kot črpališče z dvema črpalkama, ki v času premajhnega pretoka skozi ČN črpa vodo povratno iz sekundarnega usedalnika v primarni usedalnik oz. v prekat za fino mehansko čiščenje odpadne vode. Ob črpališču je pretočni jašek iz sekundarnega usedalnika s plovcem za vklapljanje in izklapljanje črpalk.\n\nZa odstranjevanje grobih delcev je montiran Rotamat (rotacijske grablje) z izpiranjem in ožemanjem. Odpadki padajo v jašek in se odvažajo na CČN Kranj(2018)\n\nDograjeni sta 2 gredi rastlinske ČN za 1/3 dotoka (l. 2018)."]
[]
["1.2 Objekti naprave in njihove prostornine"]
["Voda: mehansko in aerobno čiščenje, sekundarno usedanje (opisano v točki 1.1.).   "]
["Blato: nastaja predvsem v primarnem usedalniku. Zbiranje in odcejanje na sušilni gredi\n(v m3) rešetka, primarni usedalnik (73), precejalnik (80), sekundarni usedalnik (20), greda (50)."]
["Očiščena odpadna voda iz KČN se odvaja v bližnji potok Krivulje, ki teče pod naseljem Golnik. Blato iz dna primarnega usedalnika se občasno prečrpava na odprto sušilno gredo (ca200m3). Del grede je zaraščene s trstičjem, tako da je uporaben volumen grede 50 m3. Blato se tu odceja in suši ter delno presnavlja. Tako sveže - delno pregnito blato se odvaža na CČN Kranj, kjer se dodatno mehansko očisti in anaerobno stabilizira. \n"]
["Na čistilni napravi se čistijo naslednje odpadne vode v skupni količini 53.622 m3:\n- odpadne vode iz Bolnišnice Golnik (odpadne vode iz sanitarij, kopalnic in kuhinje, ki so po sestavi podobne komunalni odpadni vodi iz gospodinjstev),\n- komunalna odpadna voda iz dela naselja Golnik (741 prebivalcev s porabo 100l/dan/osebo),\n- padavinska odpadna voda iz utrjenih površin dela naselja Golnik."]
[]
[]
[]
["1.3 Rekonstrukcija naprave"]
[{"$f":"IF(Poročilo_3!B9<>\"\",\"Rekonstruirana naprava je pričela z obratovanjem v letu \" & Poročilo_3!B9 & \" .\",\"\")","v":"Rekonstruirana naprava je pričela z obratovanjem v letu 1997 ."}]
["Leta 1988 oz. 1997 je bil montiran motorni mešalec blata v primarnem usedalniku, zamenjan je bil precejalnik in postavljena je bila rastlinska greda, površine 100 m2. V l. 2018 sta bili zgrajeni 2 gredi rastlinske ČN za 1/3 dotoka."]
[]
[]
["1.4 Priključena naselja in deli naselij, priključene industrijske naprave in njihov delež v skupni letni količini čiščene odpadne vode"]
["Univerzitetna klinika Golnik: kuhinja, sanitarije in kopalnice ter javna kanalizacija - gospodinjstva; vse komunalna odpadna voda in padavinska iz dela utrjenih površin. Večji nalivi imajo vpliv na normalno obratovanje ČN značilno za obdobje z malo ali brez padavin. "]
[]
[]
[]
[]
["1.5 Opombe"]
["Podatki v zavihku Poročilo 3, vrstice 45 do 48, so podani s strani naročnika in so točni."]
[]
[]
[]
["1.6 Razlog za izvajanje prvih meritev"]
[]
[]
[]
["1.7 Dokumenti"]
["1.7.1 Vodno soglasje (številka in datum)"]
[]
["1.7.2 Okoljevarstveno dovoljenje za emisije v vode (številka in datum)"]
[]
["1.7.3 Strokovna ocena vplivov emisije snovi in toplote pri odvajanju odpadnih voda iz 28. člena Uredbe o emisiji snovi in toplote pri odvajanju odpadnih voda v vode in javno kanalizacijo (Ur. l. RS, št. 64/12, 64/14 in 98/15) (evidenčna številka, datum izdaje in izdelovalec)"]
[]
["1.7.4 Gradbeno dovoljenje (številka, datum izdaje in upravni organ, ki jo je izdal)"]
[]
["1.7.5 Odločba o poskusnem obratovanju (številka, datum izdaje in upravni organ, ki jo je izdal)"]

{"sheet":"Poročilo_3","index":4,"n_rows":52,"n_cols":3,"rows_kept":52,"cut":false,"hidden":false,"merged":[[34,0,34,1],[37,0,37,1],[40,0,40,1],[43,0,43,1],[31,2,31,5],[12,0,12,1],[18,0,18,1],[22,0,22,1],[27,0,27,1],[31,0,31,1]]}
["2. Osnovni podatki o ČN"]
[]
["IME ČN","ČN GOLNIK"]
["Zmogljivost (PE):",800]
["Tip naprave:","KOMUNALNA"]
["Dodatno čiščenje:"]
["Recipient:","potok Krivulje"]
["Leto pričetka obratovanja:",1957]
["Leto začetka obratovanja rekonstruirane naprave:",1997]
["Vrednotenje iztoka odpadne vode:",6]
["Predvideno leto prilagoditve obstoječe ČN:"]
["Hidravlični zadrževalni čas:",6]
["NASLOV:"]
["Ulica:","GOLNIK"]
["Hišna številka:",64]
["Poštna številka:",4204]
["Pošta:","GOLNIK"]
["Občina:","Kranj"]
["KONTAKTNA OSEBA:"]
["Ime in priimek:","ANA ŠIVIC"]
["telefon:","030 425 451"]
["elektronski naslov:","ana.sivic@komunala-kranj.si"]
["PODROČJE, KI GA POKRIVA ČN:"]
["Naselja, deli naselij:","osrednji del naselja Golnik (744) in Univ.klinika Golnik(300)"]
["Vrsta kanalizacije:","mešan (80 % ločen)"]
["Izvor odpadnih vod:","Univ. klinika Golnik: kuhinja, sanitarije in kopalnice, in javna kanalizacija - gospodinjstva"," "]
["Večji nepriključeni onesnaževalci:","/"]
["LOKACIJSKE INFORMACIJE:"]
["Iztok na prispevne površine občutljivih območij zaradi evtrofikacije:","NE"]
["Iztok na občutljivo območje (PRISPEVNO območje kopalnih voda):","NE"]
["Iztok na občutljivo območje (VPLIVNO območje kopalnih voda):","NE"]
["Transverzalna (prečna) Mercatorjeva koordinata iztoka",null,{"$f":" IF(B32=\"NE\",\"Na zavihku Poročilo_4 pojasnite zakaj se trajne meritve pretoka ne izvajajo!\",\"\")","v":""}]
["n:",131383]
["e:",448176]
["Transverzalna (prečna) Mercatorjeva koordinata CENTROIDA čistilne naprave"]
["n:",131410]
["e:",448218]
["Transverzalna (prečna) Mercatorjeva koordinata merilnega mesta na IZTOKU"]
["n:",131397]
["e:",448183]
["Transverzalna (prečna) Mercatorjeva koordinata merilnega mesta na VTOKU"]
["n:",131405]
["e:",448229]
["PODATKI ZA TEKOČE LETO OBRATOVANJA:"]
["Št. priključenih prebivalcev na ČN:",741]
["Št. priključenih prebivalcev na kanalizacijski sistem:",741]
["Število dni normalnega obratovanja:",365]
["Količina čiščene vode (1000 m3):",53.622]
["Čas vzorčenja reprezentativnega vzorca (ure):",2]
["Ali se izvajajo trajne meritve pretoka:","NE"]
["Ali je merilno mesto urejeno:","DA"]
["Pojasilo glede neurejenosti merilnega mesta:","/"]

{"sheet":"Aglomeracije","index":5,"n_rows":3,"n_cols":4,"rows_kept":3,"cut":false,"hidden":false,"merged":[[0,0,0,3]]}
["2.1 Aglomeracije \niz katerih se odvajajo komunalne odpadne vode na ČN"]
["ID aglomeracije","ime aglomeracije","velikost aglomeracije (PE)","Ali je aglomeracija priključena na ČN"]
[3930,"Golnik 2019",1311,"DA"]

{"sheet":"Blato","index":6,"n_rows":58,"n_cols":6,"rows_kept":58,"cut":false,"hidden":false,"merged":[[43,3,44,5],[45,2,45,4],[46,2,46,4],[49,3,50,5],[37,2,37,5],[42,2,42,5],[47,2,48,5],[38,3,39,5],[40,2,40,4],[41,2,41,4],[36,2,36,4],[29,2,29,5],[30,2,30,4],[31,2,32,5],[33,3,34,5],[35,2,35,4]]}
["2.2 BLATO"]
[]
[null,null,"SHEMATIČNI PRIKAZ:"]
[]
["ODPADNE SNOVI IZ GREZNIC, KČN IN MKČN"]
["ali se sprejemajo:","NE"]
["količina (m3):"]
["povpr. suha snov (%):"]
["ali gre za ocenjeni odstotek povpr. suhe snovi:"]
[]
["BIOLOŠKO RAZGRADLJIVI ODPADKI"]
["ali se sprejemajo:","NE"]
["količina (m3):"]
["povpr. suha snov (%):"]
["ali gre za ocenjeni odstotek povpr. suhe snovi:"]
[]
["NASTALO BLATO PRED OBDELAVO"]
["letna količina nastalega blata (m3):",380]
["povpr. suha snov nastalega blata (%):",3.3599999999999998E-2]
["ali gre za ocenjeni odstotek povpr. suhe snovi:","DA"]
["letna količina nastalega blata (tone SS):",{"$f":"B18*B19","v":12.767999999999999}]
[]
["ODVOZ NA DRUGO ČN (neobdelano ali obdelano blato)",null,"ODVOZ na ČN","ODVOZ na ČN","ODVOZ na ČN"]
["količina (m3):",{"$f":"C24+D24+E24","v":380},380]
["povpr. suha snov blata (%):",{"$f":"IF((C24+D24+E24)>0,((C24*C25)+(D24*D25)+(E24*E25))/(C24+D24+E24),0)","v":3.3599999999999998E-2},3.3599999999999998E-2]
["ali gre za ocenjeni odstotek povpr. suhe snovi:",{"$f":"IF(OR(C26=\"DA\",D26=\"DA\",E26=\"DA\"),\"DA\",IF(AND(C26=\"NE\",D26=\"NE\",E26=\"NE\"),\"NE\",IF(AND(C26=\"\",D26=\"\",E26=\"\"),\"\",\"NE\")))","v":"DA"},"DA"]
["količina (tone SS):",{"$f":"B24*B25","v":12.767999999999999},{"$f":"C24*C25","v":12.767999999999999},{"$f":"D24*D25","v":0},{"$f":"E24*E25","v":0}]
["ime ČN na katero se blato odvaža:",{"$f":"IF(OR(C27>0,D27>0,E27>0),IF(E27=MAX(C27:E27),E28,IF(D27=MAX(C27:E27),D28,C28)),\"\")","v":"KRANJ"},"KRANJ","",""]
[]
["OBDELANO BLATO",null,"KONTROLE BILANCE BLATA:"]
["letna količina blata po obdelavi (tone):",null,"1. Iz podanih podatkov sledi, da je količina blata oddanega kot odpadek (celica B46 / celica B32) enaka:",null,null,{"$f":"IF(B32>0,ROUND((B46)/B32,1),0)  & \" ton.\"","v":"0 ton."}]
["povpr. suha snov v blatu (%):",null,"Pozivam vas, da preverite ali se ta količina ujema s količinami, ki jih poročate na evidenčnih listih odpadkov. Če se podatki ne ujemajo ponovno preverite vpisane podatke."]
["ali gre za ocenjeni odstotek povpr. suhe snovi:"]
["letna količina blata (tone SS):",{"$f":"B31*B32","v":0},"POJASNILO za 1. kontrolo:"]
[" ali se izkorišča bioplin:","NE"]
["količina bioplina (1000 m3):",null,"2. Količina nastalega blata (celica B21) je:",null,null,{"$f":"B21 & \" ton SS.\"","v":"12,768 ton SS."}]
["ali se izvaja dehidracija:","NE","Ta se mora ujemati z vsoto količin blata odpeljanega na drugo ČN (celica B27) in količin blata po obdelavi (celica B34), ki pa znaša:",null,null,{"$f":"B27+B34 & \" ton SS.\"","v":"12,768 ton SS."}]
[null,null,"Če se podatki ne ujemajo ponovno preverite vpisane podatke. Zaradi zaokroževanja je dovoljeno malenkostno odstopanje."]
["NADALJNJE RAVNANJE Z BLATOM (odpadkom)",null,"POJASNILO za 2. kontrolo:"]
["na odlagališča (tone SS):"]
["na kmetijske povšine (tone SS):",null,"3. Vsota količin blata po obdelavi (celica B34) in količin blata, ki je ostalo na ČN iz prejšnjih let (celica B50) je:",null,null,{"$f":" B34+B50 & \" ton SS.\"","v":"0 ton SS."}]
["kompostirano in vnešeno na kmetijska zemljišča (tone SS):",null,"Ta se mora ujemati z vsoto količin blata oddanega kot odpadek (celica B46) in blata, ki ostane na ČN (celica B47) kar znaša:",null,null,{"$f":"B46+B47 & \" ton SS.\"","v":"0 ton SS."}]
["odvažanje na sežig (tone SS):",null,"Če se podatki ne ujemajo, ponovno preverite vpisane podatke. Zaradi zaokroževanja je dovoljeno malenkostno odstopanje."]
["drugo (tone SS):",null,"POJASNILO za 3. kontrolo:"]
["Pojasnilo na kakšen način se ravna z blatom \n(v primeru, da ste izponili rubriko \"drugo\" A44):"]
["celotna količina blata oddanega kot odpadek (tone SS): ",{"$f":"SUM(B40:B44)","v":0},"4. Vsota količin blata po obdelavi (celica B34) in blata odpeljanega na drugo ČN (celica B27) znaša:",null,null,{"$f":"B34+B27 & \" ton SS.\"","v":"12,768 ton SS."}]
["ostanek na ČN (tone SS)",null,{"$f":"\"Pri obravnavani ČN s \" & Poročilo_3!B45 & \" priključenih prebivalcev to znese:\"","v":"Pri obravnavani ČN s 741 priključenih prebivalcev to znese:"},null,null,{"$f":"IF(Poročilo_3!B45>0,ROUND((((B34+B27)*1000)/Poročilo_3!B45),1),0) & \" kg SS / preb. / leto.\"","v":"17,2 kg SS / preb. / leto."}]
[null,null,"Povprečje EU je 22,5 kg suhe snovi na enega preb. na leto. V primeru, da vaši podatki niso v okvirju od 10 do 50 kg SS / preb. / leto preverite vpisane podatke."]
["BLATO, KI JE OSTALO NA ČN IZ PREJŠNJIH LET"]
["količina (tone SS):",null,"POJASNILO za 4. kontrolo:"]
[]
[]
[]
["OBDELAVA BLATA"]
["stabilizacija - anaerobna:","NE"]
["stabilizacija - aerobna:","NE"]
["sušenje - zalogovnik:","NE"]
["sušenje - sušilna greda:","NE"]

{"sheet":"Poročilo_4","index":7,"n_rows":30,"n_cols":2,"rows_kept":30,"cut":false,"hidden":false,"merged":[]}
["3. Letna količina čiščene odpadne vode"]
[{"$f":"IF(AND(Poročilo_1!B3<>\"\", Poročilo_3!B48<>\"\"),\"V letu \" & Poročilo_1!B3 & \" se je na čistilni napravi čistilo \" & Poročilo_3!B48*1000 & \" m3 odpadne vode.\",\"\")","v":"V letu 2023 se je na čistilni napravi čistilo 53622 m3 odpadne vode."}]
[]
["4. Obseg in vrsta meritev in analiz"]
[]
["4.1 Nabor parametrov"]
["KČN sodi v skupino malih komunalnih čistilnih naprav pri katerih se spremljata predpisana osnovna parametra: KPK in BPK5, skladno z Uredbo o odvajanju in čiščenju komunalne odpadne vode (Ur. l. RS, št. 98/15, 76/17, 81/19, 194/21 in 44/22 – ZVO-2). "]
["4.2 Frekvenca vzorčenja in čas vzorčenja"]
["Število občasnih meritev odpadne vode in njihov obseg smo določili glede na projektirano in naknadno s sanacijo dvignjeno zmogljivost čiščenja komunalne ČN (1.000 PE) in skladno z določili Pravilnika o prvih meritvah in obratovalnem monitoringu odpadnih voda (Ur. l. RS, št. 94/14, 98/15), ki veljajo za tovrstne ČN z zmogljivostjo >=200PE in <1.000 PE.\n\nV letu 2023 smo tako opravili dve (2) občasni meritvi odpadne vode na iztoku in na vtoku na KČN, vsakič z odvzemom reprezentativnega vzorca v času 2 h v obdobju suhega vremena. "]
["4.3 Meritve pretoka odpadne vode v času vzorčenja"]
[null,true]
[null,false]
[null,false]
["Izvedba odvzemnih mest ne omogoča dobrih meritev pretoka, niti niso predpisane. "]
["4.4 Trajne meritve pretoka odpadne vode"]
[{"$f":"IF(ISBLANK(Poročilo_3!B4),\"\",IF(Poročilo_3!B4<2000,\"Trajne meritve pretoka odpadne vode za ČN manjšo od 2000 PE niso predpisane.\",\"Trajne meritve pretoka odpadne vode za ČN enako ali večjo od 2000 PE so predpisane.\"))","v":"Trajne meritve pretoka odpadne vode za ČN manjšo od 2000 PE niso predpisane."}]
["Trajne meritve pretoka se ne izvajajo, niti niso predpisane."]
[]
["5. Mesto in čas vzorčenja in analiz"]
["Naziv iztoka VTOK na ČN GOLNIK\nGauss-Krüger koordinata vtoka X=130919 Y=448600; Transverzalna (prečna) Mercatorjeva koordinata: n= 131405, e=448229\n\nNaziv iztoka IZTOK IZ ČN GOLNIK\nGauss-Krüger koordinata iztoka X=130897 Y=448547; Transverzalna (prečna) Mercatorjeva koordinata: n= 130911, e=448554\nIztok v vode: DA - potok Krivulje\n"]
["Čas vzorčenja in analiz je razviden iz tabele z rezultati. Mesta vzorčenja so navedena v tabeli Poročilo 3 Osnovni podatki o ČN (merilna mesta)."]
[]
[]
["6. Pojasnilo v zvezi z upoštevanjem hidravličnega zadrževalnega časa (16. člen Pravilnika o prvih meritvah in obratovalnem monitoringu odpadnih voda)"]
["\nDejanski hidravlični zadržavalni čas je (v urah): 6h.  \n\nPri izvajanju vzorčenj na dotoku/iztoku smo upoštevali zadrževalni čas 6 h, ki predstavlja dejanski povprečni zadrževalni čas glede na količino obdelane odpadne vode in sam skupni volumen bazenov ČN. Obremenitev dotočne odpadne vode na ČN je dokaj konstantna, zato upoštevanje zadrževalnega časa ne vpliva na učinek čiščenja."]
[]
[]
[]
["7. Navedite letnico naslednjega monitoringa odpadnih voda"]
[2024]

{"sheet":"Poročilo_5","index":8,"n_rows":24,"n_cols":7,"rows_kept":24,"cut":false,"hidden":false,"merged":[[1,0,1,6],[0,5,0,6]]}
[]
["7. UPORABLJENE MERILNE METODE"]
["Zap. št.","Parameter","Meja zaznavnosti (LOD)","Meja določljivosti (LOQ)","Merilna metoda","Akreditirana metoda (DA/NE)","Ime podizvajalca"]
[1,"Temperatura vode (°C)",null,null,"SIST DIN 38404-4:2000","da"]
[2,"pH",null,null,"SIST EN ISO 10523: 2012","da"]
[3,"Neraztopljene snovi (mg/L)"]
[26,"Amonij (mg/L)"]
[38,"Kemijska potreba po kisiku - KPK (K2Cr2O7) (mg/L)",3,5,"SIST ISO 15705:2010","da"]
[39,"Biokemijska potreba po kisiku (BPK5) (mg/L)",1.7,5,"ISO 5815-1:2019 modificirana","da"]
[33,"Celotni fosfor (mg/L)"]
[60,"Celotni dušik (mg/L)"]
[28,"Nitratni dušik (mg/l)"]
[27,"Nitritni dušik * (mg/l)"]
[61,"Kjeldahlov dušik (mg/l)"]
[4,"Usedljive snovi (ml/L)"]
[200,"Količina vode (popis števca) (m3)"]
[999,"Temperatura aeracijskega bazena (°C)"]
[11,"Baker (mg/L)"]
[11,"Baker (mg/L)"]
[13,"Cink (mg/L)"]
[13,"Cink (mg/L)"]
[43,"Adsorbljivi organski halogeni (AOX) (mg/L)"]
[12002,"shranjevanje vzorcev",null,null,"ISO 5667-3:2012","da"]
[12001,"vzorčenje",null,null,"ISO 5667-10: 1996","da"]

{"sheet":"Poročilo_6","index":9,"n_rows":44,"n_cols":36,"rows_kept":44,"cut":false,"hidden":false,"merged":[[33,16,35,16],[36,16,37,16],[0,30,0,34],[6,34,7,34],[36,0,37,0],[30,0,32,0],[33,0,35,0],[14,0,15,0],[16,0,17,0],[18,0,19,0],[20,0,21,0],[8,16,8,17],[9,16,9,17],[14,16,15,16],[38,16,39,16],[40,16,41,16],[38,0,39,0],[42,0,43,0],[16,16,17,16],[18,16,19,16],[20,16,21,16],[22,0,23,0],[24,0,26,0],[24,16,26,16],[27,0,29,0],[40,0,41,0],[22,16,23,16],[27,16,29,16],[42,16,43,16],[30,16,32,16]]}
[null,null,null,null,null,null,null,null,null,null,null,null,null,null,null,null,null,null,null,null,null,null,null,null,null,null,null,null,null,null,"Mejna vrednost za amonijev in celotni dušik se uporablja pri temperaturi odpadne vode 12°C in več na iztoku aeracijskega bazena. V primeru nižje temperature se mejna vrednost za citirana parametra ne uporablja in se ju ne vrednoti."]
["8. Podatki o meritvah na vtoku in iztoku komunalne ali skupne čistilne naprave",null,null,null,null,null,null,null,null,null,{"$f":"IF(Poročilo_3!B3=\"\",\"\",Poročilo_3!B3)","v":"ČN GOLNIK"},null,null,null,null,null,null,{"$error":"#N/A"}]
["Čas vzorčenja reprezentativnega vzorca (ure): ",null,null,null,{"$f":"IF(Poročilo_3!$B$49=\"\",\"\",Poročilo_3!$B$49)","v":2},"Skupna letna količina odpadne vode na ČN (1000 m3)",null,null,null,null,null,null,{"$f":"IF(Poročilo_3!B48=\"\",\"\",Poročilo_3!B48)","v":53.622}]
["Ali se izvajajo trajne meritve pretoka:",null,null,null,{"$f":"IF(Poročilo_3!B50=\"\",\"\",Poročilo_3!B50)","v":"NE"},"Iztok ČN v (ime vodotoka):",null,null,null,{"$f":"IF(Poročilo_3!B7=\"\",\"\",Poročilo_3!B7)","v":"potok Krivulje"}]
["Število dni obratovanja čistilne naprave (dni):",null,null,null,{"$f":"IF(Poročilo_3!B47=\"\",\"\",Poročilo_3!B47)","v":365},"Velikost naprave (PE):",null,null,{"$f":"IF(Poročilo_3!B4=\"\",\"\",Poročilo_3!B4)","v":800}]
["Po katerem členu uredbe KČN se vrednoti iztok odpadne vode:",null,null,null,null,null,{"$f":"IF(Poročilo_3!B10=\"\",\"\",Poročilo_3!B10)","v":6}]
["Zap. št.","Naziv",null,"Mejna",null,null,null,null,null,"Št. vzorčenja",null,null,null,null,null,null,"Zap. št.","Naziv",null,null,null,null,null,"Št. vzorčenja",null,null,null,null,null,null,"Povprečna","Minim.","Maks.","Vsota","letna količina emisije (kg/leto)"]
["param.","parametra",null,"vrednost",1,2,3,4,5,6,7,8,9,10,11,12,"param.","parametra",13,14,15,16,17,18,19,20,21,22,23,24,"vrednost","vrednost","vrednost"]
["identifikacija vzorca",null,"vtok","/",55643,122440,null,null,null,null,null,null,null,null,null,null,"identifikacija vzorca",null,null,null,null,null,null,null,null,null,null,null,null,null,"/","/","/","/","/"]
["identifikacija vzorca",null,"iztok","/",55642,122439,null,null,null,null,null,null,null,null,null,null,"identifikacija vzorca",null,null,null,null,null,null,null,null,null,null,null,null,null,"/","/","/","/","/"]
[null,"datum vzorč.","vtok","/","01.06.23","15.11.23",null,null,null,null,null,null,null,null,null,null,null,"datum vzorč.",null,null,null,null,null,null,null,null,null,null,null,null,"/","/","/","/","/"]
[null,"(dd.mm.ll)","iztok","/","01.06.23","15.11.23",null,null,null,null,null,null,null,null,null,null,null,"(dd.mm.ll)",null,null,null,null,null,null,null,null,null,null,null,null,"/","/","/","/","/"]
[null,"čas pričetka vzor.","vtok","/","11:25:00","11:33:00",null,null,null,null,null,null,null,null,null,null,null,"čas vzorč.",null,null,null,null,null,null,null,null,null,null,null,null,"/","/","/","/","/"]
[null,"(hh:mm)","iztok","/","11:25:00","11:33:00",null,null,null,null,null,null,null,null,null,null,null,"(hh:mm)",null,null,null,null,null,null,null,null,null,null,null,null,"/","/","/","/","/"]
[200,"Količ. odpad. vode","vtok","/",null,null,null,null,null,null,null,null,null,null,null,null,200,"Količ. odpad. vode",null,null,null,null,null,null,null,null,null,null,null,null,0,"/","/","/","/"]
[null,"v času vzor. (m3)","iztok","/",null,null,null,null,null,null,null,null,null,null,null,null,null,"v času vzor. (m3)",null,null,null,null,null,null,null,null,null,null,null,null,0,"/","/","/","/"]
[1,"Temperatura","vtok","/",14.3,12.3,null,null,null,null,null,null,null,null,null,null,1,"Temperatura",null,null,null,null,null,null,null,null,null,null,null,null,13.3,12.3,14.3,26.6]
[null,null,"iztok",null,16.5,12.3,null,null,null,null,null,null,null,null,null,null,null,null,null,null,null,null,null,null,null,null,null,null,null,null,14.4,12.3,16.5,28.8,{"$f":"IF($M$3=\"\",0,AE18*$M$3)","v":772.15679999999998}]
[2,"pH","vtok","/",7.8,7.8,null,null,null,null,null,null,null,null,null,null,2,"pH",null,null,null,null,null,null,null,null,null,null,null,null,7.8,7.8,7.8,15.6,null," "]
[null,null,"iztok",null,7.5,7.7,null,null,null,null,null,null,null,null,null,null,null,null,null,null,null,null,null,null,null,null,null,null,null,null,7.6,7.5,7.7,15.2,{"$f":"IF($M$3=\"\",0,AE20*$M$3)","v":407.52719999999999}]
[3,"Neraztop. Sn.","vtok","/",null,null,null,null,null,null,null,null,null,null,null,null,3,"Neraztop. Sn.",null,null,null,null,null,null,null,null,null,null,null,null,0,0,0,0]
[null,"(mg/l)","iztok",null,null,null,null,null,null,null,null,null,null,null,null,null,null,"(mg/l)",null,null,null,null,null,null,null,null,null,null,null,null,0,0,0,0,{"$f":"IF($M$3=\"\",0,AE22*$M$3)","v":0}]
[26,"Amonijev dušik","vtok","/",null,null,null,null,null,null,null,null,null,null,null,null,26,"Amonijev dušik",null,null,null,null,null,null,null,null,null,null,null,null,0,0,0,0]
[null,"(mg/l)","iztok",null,null,null,null,null,null,null,null,null,null,null,null,null,null,"(mg/l)",null,null,null,null,null,null,null,null,null,null,null,null,0,0,0,0,{"$f":"IF($M$3=\"\",0,AE24*$M$3)","v":0}]
[38,"KPK","vtok","/",1980,405,null,null,null,null,null,null,null,null,null,null,38,"KPK",null,null,null,null,null,null,null,null,null,null,null,null,1192.5,405,1980,2385]
[null,"(mg/l)","iztok",150,45,41,null,null,null,null,null,null,null,null,null,null,null,"(mg/l)",null,null,null,null,null,null,null,null,null,null,null,null,43,41,45,86,{"$f":"IF($M$3=\"\",0,AE26*$M$3)","v":2305.7460000000001}]
[null,"(%)","učinek",null,97.727272727272734,89.876543209876544,null,null,null,null,null,null,null,null,null,null,null,"(%)",null,null,null,null,null,null,null,null,null,null,null,null,96.39412997903564,0,0,0]
[39,"BPK5","vtok","/",980,200,null,null,null,null,null,null,null,null,null,null,39,"BPK5",null,null,null,null,null,null,null,null,null,null,null,null,590,200,980,1180]
[null,"(mg/l)","iztok",30,6,6,null,null,null,null,null,null,null,null,null,null,null,"(mg/l)",null,null,null,null,null,null,null,null,null,null,null,null,6,6,6,12,{"$f":"IF($M$3=\"\",0,AE29*$M$3)","v":321.73199999999997}]
[null,"(%)","učinek",null,99.387755102040813,97,null,null,null,null,null,null,null,null,null,null,null,"(%)",null,null,null,null,null,null,null,null,null,null,null,null,98.983050847457633,{"$f":"IF(IFERROR(MATCH(\"lod\",S30:AD30,0),0)>0,0,MIN(S30:AD30))","v":0},{"$f":"MAX(E30:P30,S30:AD30)","v":99.387755102040813}]
[33,"Celotni fosfor","vtok","/",null,null,null,null,null,null,null,null,null,null,null,null,0,"Celotni fosfor",null,null,null,null,null,null,null,null,null,null,null,null,0,0,0,0]
[null,"(mg/l)","iztok",null,null,null,null,null,null,null,null,null,null,null,null,null,null,"(mg/l)",null,null,null,null,null,null,null,null,null,null,null,null,0,0,0,0,{"$f":"IF($M$3=\"\",0,AE32*$M$3)","v":0}]
[null,"(%)","učinek",null,null,null,null,null,null,null,null,null,null,null,null,null,null,"(%)",null,null,null,null,null,null,null,null,null,null,null,null,0,{"$f":"IF(IFERROR(MATCH(\"lod\",S33:AD33,0),0)>0,0,MIN(S33:AD33))","v":0},{"$f":"MAX(E33:P33,S33:AD33)","v":0}]
[60,"Celotni dušik","vtok","/",null,null,null,null,null,null,null,null,null,null,null,null,60,"Celotni dušik",null,null,null,null,null,null,null,null,null,null,null,null,0,0,0,0]
[null,"(mg/l)","iztok",null,null,null,null,null,null,null,null,null,null,null,null,null,null,"(mg/l)",null,null,null,null,null,null,null,null,null,null,null,null,0,0,0,0,{"$f":"IF($M$3=\"\",0,AE35*$M$3)","v":0}]
[null,"(%)","učinek",null,null,null,null,null,null,null,null,null,null,null,null,null,null,"(%)",null,null,null,null,null,null,null,null,null,null,null,null,0,{"$f":"IF(IFERROR(MATCH(\"lod\",S36:AD36,0),0)>0,0,MIN(S36:AD36))","v":0},{"$f":"MAX(E36:P36,S36:AD36)","v":0}]
[28,"Nitratni dušik","vtok","/",null,null,null,null,null,null,null,null,null,null,null,null,28,"Nitratni dušik",null,null,null,null,null,null,null,null,null,null,null,null,0,0,0,0]
[null,"(mg/l)","iztok",null,null,null,null,null,null,null,null,null,null,null,null,null,null,"(mg/l)",null,null,null,null,null,null,null,null,null,null,null,null,0,0,0,0,{"$f":"IF($M$3=\"\",0,AE38*$M$3)","v":0}]
[27,"Nitritni dušik","vtok","/",null,null,null,null,null,null,null,null,null,null,null,null,27,"Nitritni dušik",null,null,null,null,null,null,null,null,null,null,null,null,0,0,0,0]
[null,"(mg/l)","iztok",null,null,null,null,null,null,null,null,null,null,null,null,null,null,"(mg/l)",null,null,null,null,null,null,null,null,null,null,null,null,0,0,0,0,{"$f":"IF($M$3=\"\",0,AE40*$M$3)","v":0}]
[61,"Kjeldahlov dušik","vtok","/",null,null,null,null,null,null,null,null,null,null,null,null,61,"Kjeldahlov dušik",null,null,null,null,null,null,null,null,null,null,null,null,0,0,0,0]
[null,"(mg/l)","iztok",null,null,null,null,null,null,null,null,null,null,null,null,null,null,"(mg/l)",null,null,null,null,null,null,null,null,null,null,null,null,0,0,0,0,{"$f":"IF($M$3=\"\",0,AE42*$M$3)","v":0}]
[4,"Usedljive sn.","vtok","/",null,null,null,null,null,null,null,null,null,null,null,null,4,"Usedljive sn.",null,null,null,null,null,null,null,null,null,null,null,null,0,0,0,0]
[null,"(ml/l)","iztok",null,null,null,null,null,null,null,null,null,null,null,null,null,null,"(ml/l)",null,null,null,null,null,null,null,null,null,null,null,null,0,0,0,0,{"$f":"IF($M$3=\"\",0,AE44*$M$3)","v":0}]

{"sheet":"Poročilo_7","index":10,"n_rows":15,"n_cols":2,"rows_kept":15,"cut":false,"hidden":false,"merged":[[14,0,14,4],[13,0,13,4],[0,0,0,1],[8,0,8,4],[9,0,9,4],[12,0,12,4],[10,0,10,4],[11,0,11,4]]}
["Za izračun letnega povprečja čiščenja mora biti vnesen tudi podatek o številu dni obratovanja ČN (na listu Poročilo_3 celica B47)!"]
["Učinek čiščenja ČN (%)","letni povprečni"]
["Po KPK",{"$f":"IF(OR(Poročilo_6!AE27=0,Poročilo_6!E5=\"\"),\"\",Poročilo_6!AE27*Poročilo_6!E5/365)","v":96.39412997903564}]
["Po BPK5",{"$f":"IF(OR(Poročilo_6!AE30=0,Poročilo_6!E5=\"\"),\"\",Poročilo_6!AE30*Poročilo_6!E5/365)","v":98.983050847457633}]
["Po celotnem fosforju",{"$f":"IF(OR(Poročilo_6!AE33=0,Poročilo_6!E5=\"\"),\"\",Poročilo_6!AE33*Poročilo_6!E5/365)","v":""}]
["Po celotnem dušiku",{"$f":"IF(OR(Poročilo_6!AE36=0,Poročilo_6!E5=\"\"),\"\",Poročilo_6!AE36*Poročilo_6!E5/365)","v":""}]
[]
["9. Vrednotenje izmerjene emisije"]
["9.1 Vrednotenje po 10. členu Uredbe o emisiji snovi in toplote pri odvajanju odpadnih voda v vode in javno kanalizacijo (Uradni list RS, št. 64/12, 64/14 in 98/15) (preseganje mejnih vrednosti)"]
["Vrednotenje emisije snovi za komunalno ČN: 10. in 11. člen, Uredbe o emisiji snovi in toplote pri odvajanju odpadnih vod v vode in javno kanalizacijo (Ur. l. RS, št. 64/12, 64/14, 98/15, 44/22 - ZVO-2, 75/22, 157/22).\n\nPri opravljenih meritvah ni bilo ugotovljenih preseganj mejnih vrednosti parametrov male komunalne ČN, ki sta določeni v Uredbi o odvajanju in čiščenju komunalne odpadne vode (Ur. l. RS, št. 98/15, 76/17, 81/19, 194/21 in 44/22 – ZVO-2); KPK in BPK5 za KČN >50PE in <2.000 PE."]
[]
["9.2 Vrednotenje po 11. členu Uredbe o emisiji snovi in toplote pri odvajanju odpadnih voda v vode in javno kanalizacijo (Uradni list RS, št. 64/12, 64/14 in 98/15) (ugotavljanje čezmerne obremenitve)"]
["Na podlagi določil navedenega 11. člena in opravljenih meritev se pri komunalni ČN ne ugotavlja čezmerna obremenitev okolja."]
[]
["Mejna vrednost za amonijev in celotni dušik se uporablja pri temperaturi odpadne vode 12°C in več na iztoku aeracijskega bazena. V primeru nižje temperature se mejna vrednost za citirana parametra ne uporablja in se ju ne vrednoti."]

{"sheet":"Parametri","index":11,"n_rows":470,"n_cols":4,"rows_kept":470,"cut":false,"hidden":true,"merged":[]}
["IDParameter","ImeParametra","Izrazen","Enota"]
[73,"1,1,1 Trikloroetan","Cl","mg/l"]
[875,"1,1,1,2-tetrakloroetan","Cl","mg/l"]
[820,"1,1,1-trikloro-22 bis (p-klorofenik) etan","","mg/l"]
[98,"1,1,2,2 - Tetrakloroetan","Cl","mg/l"]
[874,"1,1,2-trikloroetan","Cl","mg/l"]
[873,"1,1-dikloroetan","Cl","mg/l"]
[3009,"1,1-Dikloroeten","Cl","mg/l"]
[112,"1,2,3,4,5,6 - Heksaklorocikloheksan (HCH)","HCH","mg/l"]
[861,"1,2,3-triklorobenzen","","mg/l"]
[862,"1,2,4-triklorobenzen","","mg/l"]
[186,"1,2,4-trimetilbenzen","","mg/l"]
[879,"1,2-dibromometan","Cl","mg/l"]
[72,"1,2-Dikloroetan","Cl","mg/l"]
[863,"1,3,5-triklorobenzen","","mg/l"]
[187,"1,3,5-trimetilbenzen","","mg/l"]
[179,"1,4-Dioksan","","mg/l"]
[177,"1-Butanol","","mg/l"]
[174,"1-Propanol","","mg/l"]
[845,"2,2',4,4',5,5'-heksaBDE (BDE-153)","","mg/l"]
[846,"2,2',4,4',5,6'-heksaBDE (BDE-154)","","mg/l"]
[844,"2,2',4,4',5-pentaBDE (BDE-99)","","mg/l"]
[847,"2,2',4,4',6-pentaBDE (BDE-100)","","mg/l"]
[843,"2,2',4,4'-tetraBDE (BDE-47)","","mg/l"]
[3012,"2,4 DP (diklorprop)","diklorprop","mg/l"]
[848,"2,4,4'-triBDE (BDE-28)","","mg/l"]
[178,"2-Butanol","","mg/l"]
[197,"2-butanon","","mg/l"]
[175,"2-Propanol","","mg/l"]
[222,"4-(1,1,3,3-tetrametil butil) fenol dietoksilat","","mg/l"]
[221,"4-(1,1,3,3-tetrametil butil) fenol monoetoksilat","","mg/l"]
[220,"4-nonilfenol","","mg/l"]
[219,"4-nonilfenol dietoksilat","","mg/l"]
[218,"4-nonilfenol monoetoksilat","","mg/l"]
[223,"4-tert-oktilfenol","","mg/l"]
[133,"Acenaften","","mg/l"]
[132,"Acenaftilen","","mg/l"]
[173,"Aceton","","mg/l"]
[198,"Acetonitril","","mg/l"]
[43,"Adsorbljivi organski halogeni (AOX)","Cl","mg/l"]
[229,"Aklonifen","","mg/l"]
[828,"Akrilamid","","mg/l"]
[801,"Alaklor","","mg/l"]
[86,"Aldrin","","mg/l"]
[856,"alfa-HCH","","mg/l"]
[9,"Aluminij","Al","mg/l"]
[1090,"Aluminij-faktor(g/t)","Al","g/t"]
[1091,"Aluminij-faktor(kg/t)","Al","kg/t"]
[1093,"Aluminij-količina(g)","Al","g"]
[1092,"Aluminij-količina(kg)","Al","kg"]
[26,"Amonijev dušik","N","mg/l"]
[50,"Antimon","Sb","mg/l"]
[136,"Antracen","","mg/l"]
[1431,"AOX-faktor(g/t)","AOX","g/t"]
[1430,"AOX-faktor(kg/t)","Cl","kg/t"]
[1433,"AOX-količina(g)","AOX","g"]
[1432,"AOX-količina(kg)","Cl","kg"]
[10,"Arzen","As","mg/l"]
[1101,"Arzen-faktor(g/t)","As","g/t"]
[1100,"Arzen-faktor(kg/t)","As","kg/t"]
[1103,"Arzen-količina(g)","As","g"]
[1102,"Arzen-količina(kg)","As","kg"]
[803,"Atrazin","","mg/l"]
[151,"Azbest","","mg/l"]
[11,"Baker","Cu","mg/l"]
[1111,"Baker-faktor(g/t)","Cu","g/t"]
[1112,"Baker-faktor(kg/t)","Cu","kg/t"]
[1113,"Baker-faktor(mg/m2)","Cu","mg/m2"]
[1110,"Baker-faktor(mg/t)","Cu","mg/t"]
[1114,"Baker-količina(g)","Cu","g"]
[1115,"Baker-količina(kg)","Cu","kg"]
[12,"Barij","Ba","mg/l"]
[3010,"Bentazon","","mg/l"]
[420,"Benzen","","mg/l"]
[139,"Benzo(a)antracen","","mg/l"]
[141,"Benzo(a)piren","","mg/l"]
[146,"Benzo(b)fluoronaten","","mg/l"]
[142,"Benzo(g,h,i)perilen","","mg/l"]
[140,"Benzo(k)fluoranten","","mg/l"]
[51,"Berilij","Be","mg/l"]
[857,"beta-HCH","","mg/l"]
[230,"Bifenok","","mg/l"]
[39,"Biokemijska potreba po kisiku (BPK5)","O2","mg/l"]
[7,"Biološka razgradljivost","","%"]
[188,"Bisfenol-A","","mg/l"]
[8,"Bor","B","mg/l"]
[1081,"Bor-faktor(g/t)","B","g/t"]
[1080,"Bor-faktor(kg/t)","B","kg/t"]
[1082,"Bor-količina(g)","B","g"]
[1083,"Bor-količina(kg)","B","kg"]
[1391,"BPK5-faktor(g/t)","O2","g/t"]
[1390,"BPK5-faktor(kg/t)","O2","kg/t"]
[1393,"BPK5-količina(g)","O2","g"]
[1392,"BPK5-količina(kg)","O2","kg"]
[825,"Bromacil","","mg/l"]
[827,"Bromat","","mg/l"]
[170,"Bromirani difenileter (PBDE)","PBDE","mg/l"]
[234,"Bromodiklorometan","Cl","mg/l"]
[877,"bromoklorometan","Cl","mg/l"]
[1420,"BTX-faktor(g/t)","","g/t"]
[1421,"BTX-faktor(kg/t)","","kg/t"]
[1422,"BTX-količina(g)","","g"]
[1423,"BTX-količina(kg)","","kg"]
[196,"Butilacetat","","mg/l"]
[29,"Celotni cianid","CN","mg/l"]
[60,"Celotni dušik","N","mg/l"]
[1600,"Celotni dušik-faktor(g/t)","N","g/t"]
[1601,"Celotni dušik-faktor(kg/t)","N","kg/t"]
[1602,"Celotni dušik-količina(g)","N","g"]
[1603,"Celotni dušik-količina(kg)","N","kg"]
[33,"Celotni fosfor","P","mg/l"]
[1330,"Celotni fosfor-faktor(g/t)","P","g/t"]
[1331,"Celotni fosfor-faktor(kg/t)","P","kg/t"]
[1332,"Celotni fosfor-količina(g)","P","g"]
[1333,"Celotni fosfor-količina(kg)","P","kg"]
[25,"Celotni klor","Cl2","mg/l"]
[17,"Celotni krom","Cr","mg/l"]
[1171,"Celotni krom-faktor(g/t)","Cr","g/t"]
[1174,"Celotni krom-faktor(kg/t)","Cr","kg/t"]
[1170,"Celotni krom-faktor(mg/t)","Cr","mg/t"]
[1172,"Celotni krom-količina(g)","Cr","g"]
[1173,"Celotni krom-količina(kg)","Cr","kg"]
[1410,"Celotni ogljikovod.-faktor(g/t)","","g/t"]
[1411,"Celotni ogljikovod.-faktor(kg/t)","","kg/t"]
[1412,"Celotni ogljikovod.-količina(g)","","g"]
[1413,"Celotni ogljikovod.-količina(kg)","","kg"]
[41,"Celotni ogljikovodiki (mineralna olja)","","mg/l"]
[37,"Celotni organski ogljik (TOC)","C","mg/l"]
[80,"Celotni pesticidi","","mg/l"]
[30,"Cianid - prosti","CN","mg/l"]
[1300,"Cianid prosti-faktor(g/t)","CN","g/t"]
[1301,"Cianid prosti-faktor(kg/t)","CN","kg/t"]
[1302,"Cianid prosti-količina(g)","CN","g"]
[1303,"Cianid prosti-količina(kg)","CN","kg"]
[231,"Cibutrin","","mg/l"]
[850,"ciklodienski pesticidi","","mg/l"]
[13,"Cink","Zn","mg/l"]
[1132,"Cink-faktor(g/kg)","Zn","g/kg"]
[1131,"Cink-faktor(g/t)","Zn","g/t"]
[1133,"Cink-faktor(mg/m2)","Zn","mg/m2"]
[1130,"Cink-faktor(mg/t)","Zn","mg/t"]
[1134,"Cink-količina(g)","Zn","g"]
[1135,"Cink-količina(kg)","Zn","kg"]
[232,"Cipermetrin","","mg/l"]
[869,"cis-1,2-dikloroeten","Cl","mg/l"]
[852,"DDD (p,p)","","mg/l"]
[853,"DDE (p,p)","","mg/l"]
[851,"DDT (o,p)","","mg/l"]
[858,"delta-HCH","","mg/l"]
[830,"Desetil-atrazin","","mg/l"]
[206,"Di(2-etilheksil)ftalat (DEHP)","DEHP","mg/l"]
[143,"Dibenzo(a,h)antracen","","mg/l"]
[878,"dibromoklorometan","Cl","mg/l"]
[876,"dibromometan ","Cl","mg/l"]
[122,"Dibutil kositer oksid","Sn","mg/l"]
[189,"Dibutilftalat","","mg/l"]
[190,"Dibutilkositrov kation","Sn","mg/l"]
[121,"Dibutilkositrove spojine (DBT kation)","DBT kation","mg/l"]
[87,"Dieldrin","","mg/l"]
[867,"Dietilentriaminopentaocetna kislina (DTPA)","","mg/l"]
[880,"difenilkositrove spojine ","","mg/l"]
[76,"Diklorometan","Cl","mg/l"]
[233,"Diklorvos","","mg/l"]
[83,"Dikofol","","mg/l"]
[150,"Dioksini in furani (PCDD/PCDF)","PCDD/PCDF","mg/l"]
[883,"dioktil kositrove spojine","DOT","mg/l"]
[807,"Diuron","","mg/l"]
[12009,"Dnevna proizvodnja (bruto) (t)","bruto","t"]
[12008,"Dnevna proizvodnja (neto) (t)","neto","t"]
[12010,"Dnevna proizvodnja (t)","","t"]
[12011,"Dnevna proizvodnja-faktor(t/m3)","","t/m3"]
[85,"Drini-vsota","","mg/l"]
[61,"Dušik-Kjeldahl","","mg/l"]
[808,"Endosulfan","","mg/l"]
[854,"endosulfan(alfa)","","mg/l"]
[855,"endosulfan(beta)","","mg/l"]
[88,"Endrin","","mg/l"]
[191,"Epiklorhidrin","","mg/l"]
[217,"Escherichia coli","","cfu/100 ml"]
[172,"Etanol","","mg/l"]
[176,"Etilacetat","","mg/l"]
[183,"Etilbenzen","","mg/l"]
[184,"Etilenoksid","","mg/l"]
[135,"Fenantren","","mg/l"]
[818,"Fenilureazni pesticidi","","mg/l"]
[46,"Fenoli","C6H5OH","mg/l"]
[1460,"Fenoli-faktor(g/t)","C6H5OH","g/t"]
[1461,"Fenoli-faktor(kg/t)","C6H5OH","kg/t"]
[1462,"Fenoli-količina(g)","C6H5OH","g"]
[1463,"Fenoli-količina(kg)","C6H5OH","kg"]
[838,"Fenotrin (sumitrin)","","mg/l"]
[821,"Fipronil","","mg/l"]
[137,"Fluoranten","","mg/l"]
[134,"Fluoren","","mg/l"]
[31,"Fluorid","F","mg/l"]
[1310,"Fluorid-faktor(g/t)","F","g/t"]
[1313,"Fluorid-faktor(kg/t)","F","kg/t"]
[1311,"Fluorid-količina(g)","F","g"]
[1312,"Fluorid-količina(kg)","F","kg"]
[180,"Formaldehid","","mg/l"]
[63,"Fosfor-ortofosfatni","P","mg/l"]
[859,"gama-HCH","","mg/l"]
[813,"Glifosat","","mg/l"]
[185,"Heksabromobifenil","","mg/l"]
[227,"Heksabromociklododekan (HBCDD)","HBCDD","mg/l"]
[111,"Heksaklorbenzen (HCB)","HCB","mg/l"]
[11110,"Heksaklorbenzen-faktor(g/t)","HCB","g/t"]
[11111,"Heksaklorbenzen-faktor(kg/t)","HCB","kg/t"]
[11112,"Heksaklorbenzen-količina(g)","HCB","g"]
[11113,"Heksaklorbenzen-količina(kg)","HCB","kg"]
[75,"Heksakloro-1,3-Butadien","Cl","mg/l"]
[192,"Heksakloroetan","","mg/l"]
[94,"Heptaklor","","mg/l"]
[228,"Heptaklor in heptaklorepoksid","","mg/l"]
[93,"Heptaklorepoksid","","mg/l"]
[64,"Hidrazin","","mg/l"]
[144,"Indeno(1,2,3-cd)piren","","mg/l"]
[216,"Intestinalni enterokoki","","cfu/100 ml"]
[195,"Izobutil acetat","","mg/l"]
[89,"Izodrin","","mg/l"]
[809,"Izoproturon","","mg/l"]
[78,"Izpihljivi org. halogeni (POX)","POX","mg/l"]
[14,"Kadmij","Cd","mg/l"]
[1142,"Kadmij-faktor(g/t)","Cd","g/t"]
[1140,"Kadmij-faktor(kg/t)","Cd","kg/t"]
[1141,"Kadmij-faktor(mg/t)","Cd","mg/t"]
[1144,"Kadmij-količina(g)","Cd","g"]
[1143,"Kadmij-količina(kg)","Cd","kg"]
[48,"Kalij","K","mg/l"]
[224,"Kaprolaktam","","mg/l"]
[38,"Kemijska potreba po kisiku (KPK)","O2","mg/l"]
[24,"Klor - prosti","Cl2","mg/l"]
[842,"Klorat","CIO3","mg/l"]
[95,"Klordan","","mg/l"]
[96,"Klordekon","","mg/l"]
[805,"Klorfenvinfos","","mg/l"]
[1321,"Klorid-faktor(g/t)","Cl","g/t"]
[1320,"Klorid-faktor(kg/t)","Cl","kg/t"]
[32,"Kloridi","Cl","mg/l"]
[1322,"Klorid-količina(g)","Cl","g"]
[1323,"Klorid-količina(kg)","Cl","kg"]
[110,"Kloroalkani (C10-C13)","","mg/l"]
[90,"Klorobenzeni","","mg/l"]
[870,"klorodibromometan","Cl","mg/l"]
[812,"Klorotoluron + Desmetil klorotoluron","","mg/l"]
[806,"Klorpirifos","","mg/l"]
[15,"Kobalt","Co","mg/l"]
[12000,"Količina odp. vode-faktor(m3/t)","Q","m3/t"]
[200,"Količina odpadne vode (m3)","","m3"]
[12003,"Količina odpadne vode(1000 m3)","Q","1000 m3"]
[211,"Koliformne bakterije fekalnega izvora","","Število v 100 ml"]
[12013,"Koncentracija v vodi raztopljenega kisika (mg/l)","O2","mg/l"]
[16,"Kositer","Sn","mg/l"]
[1381,"KPK-faktor(g/t)","O2","g/t"]
[1380,"KPK-faktor(kg/t)","O2","kg/t"]
[1383,"KPK-količina(g)","O2","g"]
[1382,"KPK-količina(kg)","O2","kg"]
[841,"Krizen","","mg/l"]
[18,"Krom-šestvalentni","Cr","mg/l"]
[1181,"Krom-šestvalentni-faktor(g/t)","Cr","g/t"]
[1182,"Krom-šestvalentni-faktor(kg/t)","Cr","kg/t"]
[1183,"Krom-šestvalentni-količina(g)","Cr","g"]
[1184,"Krom-šestvalentni-količina(kg)","Cr","kg"]
[422,"Ksilen","","mg/l"]
[226,"Kvinoksifen","","mg/l"]
[91,"Kvintozen","","mg/l"]
[42,"Lahkohlapni aromatski ogljikovodiki (BTX)","BTX","mg/l"]
[44,"Lahkohlapni halogenirani ogljikovodiki (LKCH)","Cl","mg/l"]
[113,"Lindan","","mg/l"]
[193,"Linearni alkilbenzen sulfonati - LAS (C10-C13)","","mg/l"]
[3000,"m,p-Ksilen","","mg/l"]
[865,"m-alkaliteta","",""]
[52,"Mangan","Mn","mg/l"]
[3011,"MCPP mekoprop","","mg/l"]
[1012,"Mejni emisijski delež oddane toplote","",""]
[840,"Metalaksil","","mg/l"]
[833,"Metamitron","","mg/l"]
[171,"Metanol","","mg/l"]
[832,"Metazaklor","","mg/l"]
[802,"Metolaklor","","mg/l"]
[826,"Metribuzin vsota","","mg/l"]
[97,"Mireks","","mg/l"]
[53,"Molibden","Mo","mg/l"]
[1530,"Molibden-faktor(g/t)","Mo","g/t"]
[1531,"Molibden-faktor(kg/t)","Mo","kg/t"]
[1532,"Molibden-količina(g)","Mo","g"]
[1533,"Molibden-količina(kg)","Mo","kg"]
[881,"monobutil kositrove spojine","MBT","mg/l"]
[882,"monooktil kositrove spojine","","mg/l"]
[839,"N, N-dietil-m toluamid","","mg/l"]
[131,"Naftalen","","mg/l"]
[12015,"Nasičenost s kisikom (%O2)","O2","%"]
[3,"Neraztopljene snovi","","mg/l"]
[1031,"Neraztopljene snovi-faktor(g/t)","","g/t"]
[1030,"Neraztopljene snovi-faktor(kg/t)","","kg/t"]
[1033,"Neraztopljene snovi-količina(g)","","g"]
[1032,"Neraztopljene snovi-količina(kg)","","kg"]
[194,"N-heksan","","mg/l"]
[19,"Nikelj","Ni","mg/l"]
[1191,"Nikelj-faktor(g/t)","Ni","g/t"]
[1192,"Nikelj-faktor(kg/t)","Ni","kg/t"]
[1190,"Nikelj-faktor(mg/t)","Ni","mg/t"]
[1193,"Nikelj-količina(g)","Ni","g"]
[1194,"Nikelj-količina(kg)","Ni","kg"]
[28,"Nitratni dušik","N","mg/l"]
[27,"Nitritni dušik","N","mg/l"]
[207,"Nonilfenol","","mg/l"]
[213,"Nonilfenol in nonilfenol etoksilati","","mg/l"]
[860,"nonilfenoli (4-nonilfenol)","","mg/l"]
[500,"Obarvanost pri 436 nm","SAK","m-1"]
[501,"Obarvanost pri 525 nm","SAK","m-1"]
[502,"Obarvanost pri 620 nm","SAK","m-1"]
[3001,"o-Ksilen","","mg/l"]
[208,"Oktilfenol","","mg/l"]
[214,"Oktilfenoli in oktilfenol etoksilati","","mg/l"]
[817,"Organoklorni pesticidi - vsota","","mg/l"]
[120,"Organokositrove spojine","Sn","mg/l"]
[65,"Organski dušik","","mg/l"]
[822,"para-para DDT","","mg/l"]
[103,"PCB-101","","mg/l"]
[108,"PCB-118","","mg/l"]
[104,"PCB-138","","mg/l"]
[105,"PCB-153","","mg/l"]
[106,"PCB-180","","mg/l"]
[107,"PCB-194","","mg/l"]
[101,"PCB-28","","mg/l"]
[102,"PCB-52","","mg/l"]
[814,"Pendimetalin","","mg/l"]
[209,"Pentaklorobenzen","","mg/l"]
[205,"Pentaklorofenol (PCP)","PCP","mg/l"]
[872,"perfluorooktanojska kislina (PFOA)","Cl","mg/l"]
[225,"Perfluorosulfonska kislina in njeni derivati (PFOS)","PFOS","mg/l"]
[834,"Permetrin","","mg/l"]
[824,"Pesticidi fenilurea","","mg/l"]
[829,"Pesticidi fenilurea, bromacil, metribuzin - vsota","","mg/l"]
[1020,"pH-delež vrednosti izven območja MDK(%)","","%"]
[2,"pH-vrednost","",""]
[835,"Piperonil butoksid","","mg/l"]
[138,"Piren","","mg/l"]
[837,"Piretrini-vsota","","mg/l"]
[45,"Polarna organska topila","","mg/l"]
[11300,"Polic. arom. oglj. PAO-faktor(g/t)","PAO","g/t"]
[11301,"Polic. arom. oglj. PAO-faktor(kg/t)","PAO","kg/t"]
[11302,"Polic. arom. oglj. PAO-količina(g)","PAO","g"]
[11303,"Polic. arom. oglj. PAO-količina(kg)","PAO","kg"]
[130,"Policiklični aromatski ogljikovodiki (PAO)","PAO","mg/l"]
[100,"Poliklorirani bifenili (PCB)","PCB","mg/l"]
[12006,"Pretok (l/s)","","l/s"]
[12012,"Pretok vodotoka (m3/s)","","m3/s"]
[12005,"Prevodnost(μS/cm)","","μS/cm"]
[99,"Prometrin","","mg/l"]
[12007,"Raztopljeni kisik","O2","%"]
[54,"Selen","Se","mg/l"]
[12002,"shranjevanje vzorcev","",""]
[804,"Simazin","","mg/l"]
[864,"skupna trdota","",""]
[210,"Skupne koliformne bakterije","","Število v 100 ml"]
[815,"S-metolaklor","","mg/l"]
[20,"Srebro","Ag","mg/l"]
[1200,"Srebro-faktor(g/kg)","Ag","g/kg"]
[1202,"Srebro-faktor(g/t)","Ag","g/t"]
[1201,"Srebro-faktor(mg/m2)","Ag","mg/m2"]
[1203,"Srebro-količina(g)","Ag","g"]
[1204,"Srebro-količina(kg)","Ag","kg"]
[12014,"Srednji pretok vodotoka (m3/s)","","m3/s"]
[423,"Stiren","","mg/l"]
[212,"Streptokoki fekalnega izvora","","Število v 100 ml"]
[12004,"Strokovna ocena","",""]
[601,"Strupenost za alge","SD",""]
[604,"Strupenost za bakterije","SD",""]
[603,"Strupenost za rastline","SD",""]
[602,"Strupenost za ribe in ikre","SD",""]
[6,"Strupenost za vodne bolhe","SD",""]
[34,"Sulfat","SO4","mg/l"]
[35,"Sulfid","S","mg/l"]
[1350,"Sulfid-faktor(g/t)","S","g/t"]
[1351,"Sulfid-faktor(kg/t)","S","kg/t"]
[1352,"Sulfid-količina(g)","S","g"]
[1353,"Sulfid-količina(kg)","S","kg"]
[36,"Sulfit","SO3","mg/l"]
[1360,"Sulfit-faktor(g/t)","SO3","g/t"]
[1361,"Sulfit-faktor(kg/t)","SO3","kg/t"]
[1362,"Sulfit-količina(g)","SO3","g"]
[1363,"Sulfit-količina(kg)","SO3","kg"]
[866,"suspendirane snovi po sušenju","",""]
[21,"Svinec","Pb","mg/l"]
[1212,"Svinec-faktor(g/t)","Pb","g/t"]
[1210,"Svinec-faktor(kg/t)","Pb","kg/t"]
[1211,"Svinec-faktor(mg/t)","Pb","mg/t"]
[1213,"Svinec-količina(g)","Pb","g"]
[1214,"Svinec-količina(kg)","Pb","kg"]
[55,"Talij","Tl","mg/l"]
[92,"Teknazen","","mg/l"]
[56,"Telur","Te","mg/l"]
[1,"Temperatura","","oC"]
[1014,"Temperatura vodotoka-dolvodno (oC)","","oC"]
[1013,"Temperatura vodotoka-gorvodno (oC)","","oC"]
[1016,"Temperatura zraka (oC)","","oC"]
[1015,"Temperatura-aeracijski bazen (oC)","","oC"]
[1011,"Temperatura-delež vrednosti izven območja MDK(%)","","%"]
[1010,"Temperatura-zvišanje (oC)","","oC"]
[470,"Tenzidi-anionski","","mg/l"]
[472,"Tenzidi-kationski","","mg/l"]
[471,"Tenzidi-neionski","","mg/l"]
[816,"Terbutilazin","","mg/l"]
[831,"Terbutrin","","mg/l"]
[123,"Tetrabutil kositrove  spojine","Sn","mg/l"]
[74,"Tetrakloroeten","Cl","mg/l"]
[70,"Tetraklorometan","Cl","mg/l"]
[836,"Tetrametrin","","mg/l"]
[40,"Težkohlapne lipofilne snovi (maščobe, mineralna olja …)","","mg/l"]
[57,"Titan","Ti","mg/l"]
[1371,"TOC-faktor(g/t)","C","g/t"]
[1370,"TOC-faktor(kg/t)","C","kg/t"]
[1373,"TOC-količina(g)","C","g"]
[1372,"TOC-količina(kg)","C","kg"]
[811,"Toksafen","","mg/l"]
[421,"Toluen","","mg/l"]
[868,"trans-1,2-dikloroeten ","Cl","mg/l"]
[819,"Triazinski pesticidi","","mg/l"]
[823,"Triazinski pesticidi in metaboliti - vsota","","mg/l"]
[871,"tribromometan","Cl","mg/l"]
[128,"Tributilkositrove spojine","Sn","mg/l"]
[124,"Tributilkositrove spojine (TBT kation)","TBT kation","mg/l"]
[884,"tricikloheksil kositrove spojine","","mg/l"]
[125,"Trifenilkositrove spojine","Sn","mg/l"]
[129,"Trifenilkositrove spojine (TPT kation)","TPT kation","mg/l"]
[810,"Trifluralin","","mg/l"]
[77,"Triklorobenzen ","","mg/l"]
[79,"Trikloroeten","Cl","mg/l"]
[71,"Triklorometan","Cl","mg/l"]
[204,"Učinek čiščenja po BPK5","%BPK5","%"]
[203,"Učinek čiščenja po KPK","%KPK","%"]
[201,"Učinek čiščenja po N","%N","%"]
[202,"Učinek čiščenja po P","%P","%"]
[215,"Učinek čiščenja po TOC","%TOC","%"]
[4,"Usedljive snovi","","ml/l"]
[58,"Vanadij","V","mg/l"]
[1584,"Vanadij-faktor(g/t)","V","g/t"]
[1581,"Vanadij-faktor(kg/t)","V","kg/t"]
[1580,"Vanadij-faktor(mg/t)","V","mg/t"]
[1582,"Vanadij-količina(g)","V","g"]
[1583,"Vanadij-količina(kg)","V","kg"]
[181,"Vinil klorid","","mg/l"]
[59,"Volfram","W","mg/l"]
[1590,"Volfram-faktor(g/t)","W","g/t"]
[1591,"Volfram-faktor(kg/t)","W","kg/t"]
[1592,"Volfram-količina(g)","W","g"]
[1593,"Volfram-količina(kg)","W","kg"]
[1620,"Vsota amon., nitra. in nitri. N-faktor(g/t)","N","g/t"]
[1621,"Vsota amon., nitra. in nitri. N-faktor(kg/t)","N","kg/t"]
[1622,"Vsota amon., nitra. in nitri. N-količina(g)","N","g"]
[1623,"Vsota amon., nitra. in nitri. N-količina(kg)","N","kg"]
[62,"Vsota amonijevega, nitritnega in nitratnega dušika","N","mg/l"]
[47,"Vsota anionskih in neionskih tenzidov","","mg/l"]
[145,"Vsota Benzo(b)fluoronatena in Benzo(k)fluoronatena","","mg/l"]
[82,"vsota DDT","","mg/l"]
[148,"Vsota Indeno(1,2,3-cd)pirena in Benzo(ghi)perilena","","mg/l"]
[12001,"vzorčenje","",""]
[22,"Železo","Fe","mg/l"]
[1220,"Železo-faktor(g/t)","Fe","g/t"]
[1221,"Železo-faktor(kg/t)","Fe","kg/t"]
[1222,"Železo-količina(g)","Fe","g"]
[1223,"Železo-količina(kg)","Fe","kg"]
[23,"Živo srebro","Hg","mg/l"]
[1231,"Živo srebro-faktor(g/t)","Hg","g/t"]
[1232,"Živo srebro-faktor(kg/t)","Hg","kg/t"]
[1230,"Živo srebro-faktor(mg/t)","Hg","mg/t"]
[1233,"Živo srebro-količina(g)","Hg","g"]
[1234,"Živo srebro-količina(kg)","Hg","kg"]

{"sheet":"Priloge","index":12,"n_rows":5,"n_cols":5,"rows_kept":5,"cut":false,"hidden":false,"merged":[[0,0,0,1]]}
["10. Priloge"]
[]
["Obvezna vsebina priloge je elektronska in pisna oblika tehnološke sheme procesa.",null,null,null,"Tehnološka shema"]
[]
["Orto-foto posnetek lokacije ČN Golnik"]

{"sheet":"Trajne meritve","index":13,"n_rows":58,"n_cols":11,"rows_kept":58,"cut":false,"hidden":false,"merged":[[3,0,4,0],[3,1,3,3],[3,5,3,7],[3,8,3,10]]}
["Trajne meritve se ne izvajajo."]
["PRIMER TABELE TRAJNIH MERITEV PRETOKA, pH VREDNOSTI IN TEMPERATURE NA IZTOKU IZ KČN"]
[]
["Teden","Pretok m3/dan",null,null,"Kumulativa","pH",null,null,"Temperatura oC"]
[null,"Min","Maks","Povpr.","m3","Min","Maks","Povpr.","Min","Maks","Povpr."]
["1.   TEDEN"]
["2.   TEDEN"]
["3.   TEDEN"]
["4.   TEDEN"]
["5.   TEDEN"]
["6.   TEDEN"]
["7.   TEDEN"]
["8.   TEDEN"]
["9.   TEDEN"]
["10. TEDEN"]
["11. TEDEN"]
["12. TEDEN"]
["13. TEDEN"]
["14. TEDEN"]
["15. TEDEN"]
["16. TEDEN"]
["17. TEDEN"]
["18. TEDEN"]
["19. TEDEN"]
["20. TEDEN"]
["21. TEDEN"]
["22. TEDEN"]
["23. TEDEN"]
["24. TEDEN"]
["25. TEDEN"]
["26. TEDEN"]
["27. TEDEN"]
["28. TEDEN"]
["29. TEDEN"]
["30. TEDEN"]
["31. TEDEN"]
["32. TEDEN"]
["33. TEDEN"]
["34. TEDEN"]
["35. TEDEN"]
["36. TEDEN"]
["37. TEDEN"]
["38. TEDEN"]
["39. TEDEN"]
["40. TEDEN"]
["41. TEDEN"]
["42. TEDEN"]
["43. TEDEN"]
["44. TEDEN"]
["45. TEDEN"]
["46. TEDEN"]
["47. TEDEN"]
["48. TEDEN"]
["49. TEDEN"]
["50. TEDEN"]
["51. TEDEN"]
["52. TEDEN"]
["53. TEDEN"]

{"sheet":"Pooblastilo","index":14,"n_rows":0,"n_cols":0,"rows_kept":0,"cut":false,"hidden":false,"merged":[]}

{"sheet":"KČN","index":15,"n_rows":1535,"n_cols":13,"rows_kept":1535,"cut":false,"hidden":true,"merged":[]}
["Ime KČN",null,null,"Ime","AGLO_ID","AGLO_IME","PE_SKUPAJ",null,null,"Dodatno čiščenje",null,"ID občine","Ime občine"]
[]
["AJDOVŠČINA",null,null,"29 - Maribor 2019",29,"Maribor 2019",136133,null,null,"UV dezinfekcija",null,1,"Ajdovščina"]
["APAČE",null,null,"57 - Osluševci – Cvetkovci 2019",57,"Osluševci – Cvetkovci 2019",538,null,null,"Membranska filtracija",null,213,"Ankaran"]
["BISTRICA",null,null,"101 - Sveti Tomaž 2019",101,"Sveti Tomaž 2019",347,null,null,"Ozonizacija",null,195,"Apače"]
["BLED",null,null,"129 - Podgorci – Velika Nedelja 2019",129,"Podgorci – Velika Nedelja 2019",1385,null,null,"Absorbcija na aktivno oglje",null,2,"Beltinci"]
["BOHINJSKA BISTRICA",null,null,"197 - Ormož – Hardek 2019",197,"Ormož – Hardek 2019",3696,null,null,"Rastlinska greda",null,148,"Benedikt"]
["BOROVNICA",null,null,"210 - Ivanjkovci 2019",210,"Ivanjkovci 2019",184,null,null,"Drugi način dodatnega čiščenja",null,149,"Bistrica ob Sotli"]
["BOVEC",null,null,"370 - Središče ob Dravi 2019",370,"Središče ob Dravi 2019",1979,null,null,null,null,3,"Bled"]
["BRESTANICA",null,null,"455 - Cezanjevci 2019",455,"Cezanjevci 2019",175,null,null,null,null,150,"Bloke"]
["BREŽICE",null,null,"458 - Šalinci 2019",458,"Šalinci 2019",395,null,null,null,null,4,"Bohinj"]
["BROD",null,null,"482 - Krapje 2019",482,"Krapje 2019",130,null,null,null,null,5,"Borovnica"]
["CELJE",null,null,"493 - Ljutomer 2019",493,"Ljutomer 2019",6927,null,null,null,null,6,"Bovec"]
["CERKNICA",null,null,"501 - Podgradje 2019",501,"Podgradje 2019",162,null,null,null,null,151,"Braslovče"]
["CERKNO",null,null,"507 - Cven 2019",507,"Cven 2019",662,null,null,null,null,7,"Brda"]
["ČRENŠOVCI",null,null,"518 - Mota 2019",518,"Mota 2019",345,null,null,null,null,8,"Brezovica"]
["ČRNA NA KOROŠKEM",null,null,"535 - Razkrižje 2019",535,"Razkrižje 2019",951,null,null,null,null,9,"Brežice"]
["ČRNUČE",null,null,"538 - Lucija 2019",538,"Lucija 2019",26569,null,null,null,null,152,"Cankova"]
["DIVAČA",null,null,"540 - Seča 2019",540,"Seča 2019",1394,null,null,null,null,11,"Celje"]
["DOBRNA",null,null,"554 - Sečovlje 2019",554,"Sečovlje 2019",588,null,null,null,null,12,"Cerklje na Gorenjskem"]
["DOBROVNIK",null,null,"575 - Dragonja spodnji del 2019",575,"Dragonja spodnji del 2019",261,null,null,null,null,13,"Cerknica"]
["DOBROVO (VINSKA KLET)",null,null,"597 - Sveti Peter 2019",597,"Sveti Peter 2019",312,null,null,null,null,14,"Cerkno"]
["DOL PRI LJUBLJANI",null,null,"598 - Padna 2019",598,"Padna 2019",171,null,null,null,null,153,"Cerkvenjak"]
["DOLENJSKE TOPLICE",null,null,"603 - Nova vas nad Dragonjo 2019",603,"Nova vas nad Dragonjo 2019",173,null,null,null,null,196,"Cirkulane"]
["DOMŽALE-KAMNIK",null,null,"643 - Sveti Jurij ob Ščavnici 2019",643,"Sveti Jurij ob Ščavnici 2019",357,null,null,null,null,15,"Črenšovci"]
["DORNAVA",null,null,"678 - Vučja vas 2019",678,"Vučja vas 2019",173,null,null,null,null,16,"Črna na Koroškem"]
["DRAVOGRAD",null,null,"702 - Stara Nova vas 2019",702,"Stara Nova vas 2019",2376,null,null,null,null,17,"Črnomelj"]
["FORMIN",null,null,"704 - Lukavci 2019",704,"Lukavci 2019",321,null,null,null,null,18,"Destrnik"]
["GLOBOVNICA (LENART-STARA)",null,null,"705 - Banovci 2019",705,"Banovci 2019",236,null,null,null,null,19,"Divača"]
["GORENJA VAS",null,null,"706 - Veržej 2019",706,"Veržej 2019",984,null,null,null,null,154,"Dobje pri Planini"]
["GORIŠNICA",null,null,"945 - Prešnica 2019",945,"Prešnica 2019",194,null,null,null,null,20,"Dobrepolje"]
["GORNJA RADGONA",null,null,"953 - Tublje pri Hrpeljah 2019",953,"Tublje pri Hrpeljah 2019",159,null,null,null,null,155,"Dobrna"]
["GROSUPLJE",null,null,"955 - Kozina 2019",955,"Kozina 2019",2099,null,null,null,null,21,"Dobrova - Polhov Gradec"]
["HRASTNIK",null,null,"962 - Rodik 2019",962,"Rodik 2019",348,null,null,null,null,156,"Dobrovnik"]
["IDRIJA",null,null,"965 - Dane pri Divači 2019",965,"Dane pri Divači 2019",74,null,null,null,null,22,"Dol pri Ljubljani"]
["IG",null,null,"967 - Kačiče – Pared 2019",967,"Kačiče – Pared 2019",107,null,null,null,null,157,"Dolenjske Toplice"]
["ILIRSKA BISTRICA",null,null,"968 - Dolnje Ležeče 2019",968,"Dolnje Ležeče 2019",258,null,null,null,null,23,"Domžale"]
["IVANČNA GORICA",null,null,"969 - Divača 2019",969,"Divača 2019",1715,null,null,null,null,24,"Dornava"]
["JESENICE",null,null,"970 - Senadole 2019",970,"Senadole 2019",64,null,null,null,null,25,"Dravograd"]
["KANAL",null,null,"990 - Slivje 2019",990,"Slivje 2019",109,null,null,null,null,26,"Duplek"]
["KIDRIČEVO",null,null,"993 - Markovščina 2019",993,"Markovščina 2019",102,null,null,null,null,27,"Gorenja vas - Poljane"]
["KOBARID",null,null,"994 - Gradišče pri Materiji 2019",994,"Gradišče pri Materiji 2019",127,null,null,null,null,28,"Gorišnica"]
["KOČEVJE",null,null,"995 - Javorje 2019",995,"Javorje 2019",99,null,null,null,null,207,"Gorje"]
["KOMEN",null,null,"997 - Obrov 2019",997,"Obrov 2019",205,null,null,null,null,29,"Gornja Radgona"]
["KOPER",null,null,"1005 - Škoflje 2019",1005,"Škoflje 2019",127,null,null,null,null,30,"Gornji Grad"]
["KOSTANJEVICA NA KRKI",null,null,"1013 - Vremski Britof 2019",1013,"Vremski Britof 2019",98,null,null,null,null,31,"Gornji Petrovci"]
["KOZINA",null,null,"1015 - Gornje Vreme 2019",1015,"Gornje Vreme 2019",78,null,null,null,null,158,"Grad"]
["KRANJ",null,null,"1016 - Barka 2019",1016,"Barka 2019",109,null,null,null,null,32,"Grosuplje"]
["KROPA",null,null,"1019 - Laže 2019",1019,"Laže 2019",90,null,null,null,null,159,"Hajdina"]
["LAŠKO (STRENSKO)",null,null,"1020 - Senožeče 2019",1020,"Senožeče 2019",817,null,null,null,null,160,"Hoče-Slivnica"]
["LENDAVA",null,null,"1024 - Opatje Selo 2019",1024,"Opatje Selo 2019",471,null,null,null,null,161,"Hodoš"]
["LITIJA",null,null,"1025 - Lokvica 2019",1025,"Lokvica 2019",91,null,null,null,null,162,"Horjul"]
["LJUBLJANA (ZALOG)",null,null,"1031 - Sela na Krasu 2019",1031,"Sela na Krasu 2019",158,null,null,null,null,34,"Hrastnik"]
["LJUTOMER",null,null,"1033 - Miren 2019",1033,"Miren 2019",2150,null,null,null,null,35,"Hrpelje-Kozina"]
["LOGATEC",null,null,"1034 - Brestovica pri Komnu 2019",1034,"Brestovica pri Komnu 2019",109,null,null,null,null,36,"Idrija"]
["LOVRENC NA POHORJU",null,null,"1036 - Bilje 2019",1036,"Bilje 2019",1305,null,null,null,null,37,"Ig"]
["LUKAČEVCI",null,null,"1038 - Kostanjevica na Krasu 2019",1038,"Kostanjevica na Krasu 2019",284,null,null,null,null,38,"Ilirska Bistrica"]
["LUKOVICA",null,null,"1042 - Vojščica 2019",1042,"Vojščica 2019",222,null,null,null,null,39,"Ivančna Gorica"]
["MARIBOR",null,null,"1044 - Temnica 2019",1044,"Temnica 2019",175,null,null,null,null,40,"Izola"]
["MARKOVCI",null,null,"1050 - Prelože pri Lokvi 2019",1050,"Prelože pri Lokvi 2019",91,null,null,null,null,41,"Jesenice"]
["MELINCI (BELTINCI)",null,null,"1051 - Lokev 2019",1051,"Lokev 2019",778,null,null,null,null,163,"Jezersko"]
["METLIKA",null,null,"1052 - Sežana 2019",1052,"Sežana 2019",6059,null,null,null,null,42,"Juršinci"]
["MEŽICA",null,null,"1057 - Orlek 2019",1057,"Orlek 2019",199,null,null,null,null,43,"Kamnik"]
["MIRNA",null,null,"1063 - Dane pri Sežani 2019",1063,"Dane pri Sežani 2019",444,null,null,null,null,44,"Kanal ob Soči"]
["MISLINJA",null,null,"1064 - Šmarje pri Sežani 2019",1064,"Šmarje pri Sežani 2019",282,null,null,null,null,45,"Kidričevo"]
["MOZIRJE",null,null,"1065 - Povir 2019",1065,"Povir 2019",327,null,null,null,null,46,"Kobarid"]
["MURSKA SOBOTA",null,null,"1070 - Merče 2019",1070,"Merče 2019",88,null,null,null,null,47,"Kobilje"]
["MURSKI ČRNCI",null,null,"1071 - Gorenje pri Divači 2019",1071,"Gorenje pri Divači 2019",131,null,null,null,null,48,"Kočevje"]
["MUTA - VUZENICA",null,null,"1073 - Štorje 2019",1073,"Štorje 2019",344,null,null,null,null,49,"Komen"]
["NOVA GORICA",null,null,"1074 - Žirje 2019",1074,"Žirje 2019",98,null,null,null,null,164,"Komenda"]
["NOVO MESTO (LOČNA)",null,null,"1078 - Gabrovica pri Komnu 2019",1078,"Gabrovica pri Komnu 2019",124,null,null,null,null,50,"Koper"]
["OBREŽJE",null,null,"1079 - Pliskovica 2019",1079,"Pliskovica 2019",241,null,null,null,null,197,"Kostanjevica na Krki"]
["ORMOŽ",null,null,"1080 - Veliki Dol 2019",1080,"Veliki Dol 2019",134,null,null,null,null,165,"Kostel"]
["PALOMA SLADKOGORSKA",null,null,"1081 - Volčji Grad 2019",1081,"Volčji Grad 2019",86,null,null,null,null,51,"Kozje"]
["PIRAN",null,null,"1083 - Gorjansko 2019",1083,"Gorjansko 2019",287,null,null,null,null,52,"Kranj"]
["PIVKA",null,null,"1093 - Komen 2019",1093,"Komen 2019",664,null,null,null,null,53,"Kranjska Gora"]
["PODPEČ-PRESERJE",null,null,"1094 - Sveto 2019",1094,"Sveto 2019",146,null,null,null,null,166,"Križevci pri Ljutomeru"]
["POSTOJNA",null,null,"1100 - Škrbina 2019",1100,"Škrbina 2019",150,null,null,null,null,54,"Krško"]
["PRAGERSKO",null,null,"1108 - Dutovlje 2019",1108,"Dutovlje 2019",362,null,null,null,null,55,"Kungota"]
["PREDDVOR",null,null,"1114 - Šepulje 2019",1114,"Šepulje 2019",1557,null,null,null,null,56,"Kuzma"]
["PREVALJE",null,null,"1115 - Tomaj 2019",1115,"Tomaj 2019",235,null,null,null,null,57,"Laško"]
["PRVAČINA-DORNBERK",null,null,"1117 - Kopriva 2019",1117,"Kopriva 2019",207,null,null,null,null,58,"Lenart"]
["PTUJ",null,null,"1121 - Avber 2019",1121,"Avber 2019",102,null,null,null,null,59,"Lendava"]
["PUCONCI",null,null,"1122 - Ponikve – Križ 2019",1122,"Ponikve – Križ 2019",145,null,null,null,null,60,"Litija"]
["RAČE",null,null,"1128 - Kazlje 2019",1128,"Kazlje 2019",98,null,null,null,null,61,"Ljubljana"]
["RADEČE",null,null,"1143 - Štanjel 2019",1143,"Štanjel 2019",364,null,null,null,null,62,"Ljubno"]
["RADENCI",null,null,"1144 - Hruševica 2019",1144,"Hruševica 2019",160,null,null,null,null,63,"Ljutomer"]
["RADLJE OB DRAVI",null,null,"1146 - Tupelče 2019",1146,"Tupelče 2019",246,null,null,null,null,64,"Logatec"]
["RADOVLJICA",null,null,"1150 - Kobdilj 2019",1150,"Kobdilj 2019",158,null,null,null,null,208,"Log-Dragomer"]
["RAKEK",null,null,"1152 - Trpčane 2019",1152,"Trpčane 2019",136,null,null,null,null,65,"Loška dolina"]
["RAVNE NA KOROŠKEM",null,null,"1156 - Hrušica – Podgrad 2019",1156,"Hrušica – Podgrad 2019",264,null,null,null,null,66,"Loški Potok"]
["RAZKRIŽJE",null,null,"1160 - Huje 2019",1160,"Huje 2019",92,null,null,null,null,167,"Lovrenc na Pohorju"]
["RETEČE",null,null,"1167 - Račice 2019",1167,"Račice 2019",172,null,null,null,null,67,"Luče"]
["RIBNICA",null,null,"1168 - Podgrad – Obrov 2019",1168,"Podgrad – Obrov 2019",671,null,null,null,null,68,"Lukovica"]
["ROGAŠKA SLATINA",null,null,"1172 - Sabonje 2019",1172,"Sabonje 2019",75,null,null,null,null,69,"Majšperk"]
["ROGLA",null,null,"1173 - Jelšane 2019",1173,"Jelšane 2019",349,null,null,null,null,198,"Makole"]
["SEČOVLJE",null,null,"1174 - Novokračine 2019",1174,"Novokračine 2019",179,null,null,null,null,70,"Maribor"]
["SELNICA OB DRAVI",null,null,"1175 - Dolenje pri Jelšanah 2019",1175,"Dolenje pri Jelšanah 2019",199,null,null,null,null,168,"Markovci"]
["SEMIČ",null,null,"1181 - Gornji Zemon 2019",1181,"Gornji Zemon 2019",96,null,null,null,null,71,"Medvode"]
["ŠENTJERNEJ",null,null,"1184 - Zarečica 2019",1184,"Zarečica 2019",126,null,null,null,null,72,"Mengeš"]
["ŠENTJUR",null,null,"1186 - Podbeže 2019",1186,"Podbeže 2019",97,null,null,null,null,73,"Metlika"]
["SEVNICA",null,null,"1188 - Harije 2019",1188,"Harije 2019",298,null,null,null,null,74,"Mežica"]
["SEŽANA",null,null,"1196 - Pregarje 2019",1196,"Pregarje 2019",183,null,null,null,null,169,"Miklavž na Dravskem polju"]
["ŠKOFJA LOKA",null,null,"1197 - Topolc 2019",1197,"Topolc 2019",331,null,null,null,null,75,"Miren-Kostanjevica"]
["ŠKOFJA VAS",null,null,"1199 - Zarečje 2019",1199,"Zarečje 2019",162,null,null,null,null,212,"Mirna"]
["SLOVENJ GRADEC",null,null,"1205 - Smrje 2019",1205,"Smrje 2019",118,null,null,null,null,170,"Mirna Peč"]
["SLOVENSKA BISTRICA",null,null,"1206 - Prem 2019",1206,"Prem 2019",152,null,null,null,null,76,"Mislinja"]
["SLOVENSKE KONJICE",null,null,"1207 - Dolnji Zemon 2019",1207,"Dolnji Zemon 2019",254,null,null,null,null,199,"Mokronog-Trebelno"]
["ŠMARJE PRI JELŠAH",null,null,"1208 - Dolnji Zemon – Zemonska vaga 2019",1208,"Dolnji Zemon – Zemonska vaga 2019",243,null,null,null,null,77,"Moravče"]
["ŠMARJEŠKE TOPLICE",null,null,"1210 - Ilirska Bistrica 2019",1210,"Ilirska Bistrica 2019",5176,null,null,null,null,78,"Moravske Toplice"]
["ŠOŠTANJ (ŠALEŠKE DOLINE)",null,null,"1214 - Velika Bukovica 2019",1214,"Velika Bukovica 2019",227,null,null,null,null,79,"Mozirje"]
["SPODNJA IDRIJA",null,null,"1215 - Jablanica 2019",1215,"Jablanica 2019",158,null,null,null,null,80,"Murska Sobota"]
["SREDIŠČE OB DRAVI",null,null,"1216 - Vrbovo – Vrbica 2019",1216,"Vrbovo – Vrbica 2019",501,null,null,null,null,81,"Muta"]
["STARI TRG (LOŽ)",null,null,"1217 - Šembije 2019",1217,"Šembije 2019",251,null,null,null,null,82,"Naklo"]
["STRAŽA (SELA PRI STRAŽI)",null,null,"1220 - Neverke 2019",1220,"Neverke 2019",459,null,null,null,null,83,"Nazarje"]
["TABRE (KRANJSKA GORA)",null,null,"1221 - Ostrožno Brdo 2019",1221,"Ostrožno Brdo 2019",88,null,null,null,null,84,"Nova Gorica"]
["TERME ČATEŽ",null,null,"1223 - Gornja Košana 2019",1223,"Gornja Košana 2019",154,null,null,null,null,85,"Novo mesto"]
["TOLMIN",null,null,"1237 - Kal 2019",1237,"Kal 2019",325,null,null,null,null,86,"Odranci"]
["TRBOJE",null,null,"1239 - Nova sušica 2019",1239,"Nova sušica 2019",106,null,null,null,null,171,"Oplotnica"]
["TRBOVLJE",null,null,"1242 - Parje 2019",1242,"Parje 2019",129,null,null,null,null,87,"Ormož"]
["TREBNJE",null,null,"1243 - Narin 2019",1243,"Narin 2019",232,null,null,null,null,88,"Osilnica"]
["TRŽIČ",null,null,"1247 - Bač 2019",1247,"Bač 2019",516,null,null,null,null,89,"Pesnica"]
["TURNIŠČE",null,null,"1248 - Knežak 2019",1248,"Knežak 2019",424,null,null,null,null,90,"Piran"]
["VELIKA POLANA",null,null,"1249 - Koritnice 2019",1249,"Koritnice 2019",144,null,null,null,null,91,"Pivka"]
["VIDEM PRI PTUJU",null,null,"1250 - Drskovče 2019",1250,"Drskovče 2019",113,null,null,null,null,92,"Podčetrtek"]
["VIPAP",null,null,"1251 - Zagorje 2019",1251,"Zagorje 2019",406,null,null,null,null,172,"Podlehnik"]
["VIPAVA",null,null,"1252 - Jurišče 2019",1252,"Jurišče 2019",167,null,null,null,null,93,"Podvelka"]
["VIPAVA (AGROIND)",null,null,"1254 - Klenik 2019",1254,"Klenik 2019",181,null,null,null,null,200,"Poljčane"]
["VNANJE GORICE",null,null,"1258 - Pivka 2019",1258,"Pivka 2019",2684,null,null,null,null,173,"Polzela"]
["VOJNA VAS (ČRNOMELJ)",null,null,"1259 - Selce 2019",1259,"Selce 2019",243,null,null,null,null,94,"Postojna"]
["VRHNIKA (TOJNICE)",null,null,"1261 - Palčje 2019",1261,"Palčje 2019",215,null,null,null,null,174,"Prebold"]
["ZAGORJE OB SAVI",null,null,"1262 - Trnje – Pivka 2019",1262,"Trnje – Pivka 2019",163,null,null,null,null,95,"Preddvor"]
["ŽALEC (KASAZE)",null,null,"1264 - Sušak 2019",1264,"Sušak 2019",99,null,null,null,null,175,"Prevalje"]
["ŽELEZNIKI",null,null,"1265 - Zabiče – Podgraje 2019",1265,"Zabiče – Podgraje 2019",615,null,null,null,null,96,"Ptuj"]
["ŽIRI",null,null,"1266 - Kuteževo 2019",1266,"Kuteževo 2019",204,null,null,null,null,97,"Puconci"]
["ZREČE",null,null,"1276 - Male Žablje 2019",1276,"Male Žablje 2019",493,null,null,null,null,98,"Rače-Fram"]
["ŽUŽEMBERK",null,null,"1277 - Podraga 2019",1277,"Podraga 2019",373,null,null,null,null,99,"Radeče"]
[null,null,null,"1280 - Poreče 2019",1280,"Poreče 2019",729,null,null,null,null,100,"Radenci"]
[null,null,null,"1281 - Orehovica – Podbreg 2019",1281,"Orehovica – Podbreg 2019",177,null,null,null,null,101,"Radlje ob Dravi"]
[null,null,null,"1282 - Ustje 2019",1282,"Ustje 2019",322,null,null,null,null,102,"Radovljica"]
[null,null,null,"1283 - Gaberje 2019",1283,"Gaberje 2019",181,null,null,null,null,103,"Ravne na Koroškem"]
[null,null,null,"1284 - Zavino 2019",1284,"Zavino 2019",100,null,null,null,null,176,"Razkrižje"]
[null,null,null,"1287 - Brje 2019",1287,"Brje 2019",177,null,null,null,null,209,"Rečica ob Savinji"]
[null,null,null,"1292 - Tevče 2019",1292,"Tevče 2019",151,null,null,null,null,201,"Renče-Vogrsko"]
[null,null,null,"1297 - Šmarje – Vrtovče 2019",1297,"Šmarje – Vrtovče 2019",143,null,null,null,null,104,"Ribnica"]
[null,null,null,"1298 - Velike Žablje 2019",1298,"Velike Žablje 2019",345,null,null,null,null,177,"Ribnica na Pohorju"]
[null,null,null,"1300 - Lože 2019",1300,"Lože 2019",231,null,null,null,null,106,"Rogaška Slatina"]
[null,null,null,"1301 - Manče 2019",1301,"Manče 2019",153,null,null,null,null,105,"Rogašovci"]
[null,null,null,"1302 - Slap pri Vipavi 2019",1302,"Slap pri Vipavi 2019",426,null,null,null,null,107,"Rogatec"]
[null,null,null,"1303 - Goče 2019",1303,"Goče 2019",187,null,null,null,null,108,"Ruše"]
[null,null,null,"1307 - Vipava 2019",1307,"Vipava 2019",2787,null,null,null,null,178,"Selnica ob Dravi"]
[null,null,null,"1314 - Dolenje 2019",1314,"Dolenje 2019",66,null,null,null,null,109,"Semič"]
[null,null,null,"1315 - Planina – Marci 2019",1315,"Planina – Marci 2019",385,null,null,null,null,110,"Sevnica"]
[null,null,null,"1317 - Planina – Britih 2019",1317,"Planina – Britih 2019",79,null,null,null,null,111,"Sežana"]
[null,null,null,"1318 - Sanabor 2019",1318,"Sanabor 2019",84,null,null,null,null,112,"Slovenj Gradec"]
[null,null,null,"1319 - Vrhpolje 2019",1319,"Vrhpolje 2019",645,null,null,null,null,113,"Slovenska Bistrica"]
[null,null,null,"1321 - Budanje 2019",1321,"Budanje 2019",1272,null,null,null,null,114,"Slovenske Konjice"]
[null,null,null,"1324 - Selo 2019",1324,"Selo 2019",882,null,null,null,null,179,"Sodražica"]
[null,null,null,"1326 - Batuje 2019",1326,"Batuje 2019",345,null,null,null,null,180,"Solčava"]
[null,null,null,"1332 - Črniče 2019",1332,"Črniče 2019",445,null,null,null,null,202,"Središče ob Dravi"]
[null,null,null,"1334 - Ajdovščina 2019",1334,"Ajdovščina 2019",10506,null,null,null,null,115,"Starše"]
[null,null,null,"1335 - Lokavec – Čohi 2019",1335,"Lokavec – Čohi 2019",284,null,null,null,null,203,"Straža"]
[null,null,null,"1337 - Skrilje 2019",1337,"Skrilje 2019",288,null,null,null,null,181,"Sveta Ana"]
[null,null,null,"1339 - Dobravlje – Pikči 2019",1339,"Dobravlje – Pikči 2019",428,null,null,null,null,204,"Sveta Trojica v Slovenskih goricah"]
[null,null,null,"1342 - Kamnje 2019",1342,"Kamnje 2019",213,null,null,null,null,182,"Sveti Andraž v Slovenskih goricah"]
[null,null,null,"1344 - Vrtovin – Potoče 2019",1344,"Vrtovin – Potoče 2019",203,null,null,null,null,116,"Sveti Jurij ob Ščavnici"]
[null,null,null,"1345 - Vrtovin 2019",1345,"Vrtovin 2019",322,null,null,null,null,210,"Sveti Jurij v Slovenskih goricah"]
[null,null,null,"1348 - Plače 2019",1348,"Plače 2019",262,null,null,null,null,205,"Sveti Tomaž"]
[null,null,null,"1349 - Lokavec 2019",1349,"Lokavec 2019",832,null,null,null,null,33,"Šalovci"]
[null,null,null,"1352 - Cesta v občini Ajdovščina 2019",1352,"Cesta v občini Ajdovščina 2019",505,null,null,null,null,183,"Šempeter-Vrtojba"]
[null,null,null,"1354 - Stomaž 2019",1354,"Stomaž 2019",219,null,null,null,null,117,"Šenčur"]
[null,null,null,"1360 - Dolga Poljana 2019",1360,"Dolga Poljana 2019",353,null,null,null,null,118,"Šentilj"]
[null,null,null,"1364 - Lokavec – Gorenje 2019",1364,"Lokavec – Gorenje 2019",74,null,null,null,null,119,"Šentjernej"]
[null,null,null,"1409 - Col 2019",1409,"Col 2019",535,null,null,null,null,120,"Šentjur"]
[null,null,null,"1410 - Žagolič 2019",1410,"Žagolič 2019",124,null,null,null,null,211,"Šentrupert"]
[null,null,null,"1411 - Prestranek 2019",1411,"Prestranek 2019",1621,null,null,null,null,121,"Škocjan"]
[null,null,null,"1416 - Slavina 2019",1416,"Slavina 2019",235,null,null,null,null,122,"Škofja Loka"]
[null,null,null,"1418 - Veliko Ubeljsko 2019",1418,"Veliko Ubeljsko 2019",101,null,null,null,null,123,"Škofljica"]
[null,null,null,"1419 - Razdrto 2019",1419,"Razdrto 2019",183,null,null,null,null,124,"Šmarje pri Jelšah"]
[null,null,null,"1423 - Hruševje 2019",1423,"Hruševje 2019",374,null,null,null,null,206,"Šmarješke Toplice"]
[null,null,null,"1429 - Šmihel pod Nanosom 2019",1429,"Šmihel pod Nanosom 2019",199,null,null,null,null,125,"Šmartno ob Paki"]
[null,null,null,"1431 - Višnje 2019",1431,"Višnje 2019",111,null,null,null,null,194,"Šmartno pri Litiji"]
[null,null,null,"1435 - Podkraj 2019",1435,"Podkraj 2019",326,null,null,null,null,126,"Šoštanj"]
[null,null,null,"1445 - Orehek 2019",1445,"Orehek 2019",224,null,null,null,null,127,"Štore"]
[null,null,null,"1447 - Hrašče 2019",1447,"Hrašče 2019",398,null,null,null,null,184,"Tabor"]
[null,null,null,"1448 - Goriče 2019",1448,"Goriče 2019",90,null,null,null,null,10,"Tišina"]
[null,null,null,"1449 - Postojna 2019",1449,"Postojna 2019",11378,null,null,null,null,128,"Tolmin"]
[null,null,null,"1455 - Hrenovice 2019",1455,"Hrenovice 2019",109,null,null,null,null,129,"Trbovlje"]
[null,null,null,"1461 - Zagon 2019",1461,"Zagon 2019",169,null,null,null,null,130,"Trebnje"]
[null,null,null,"1468 - Belsko 2019",1468,"Belsko 2019",232,null,null,null,null,185,"Trnovska vas"]
[null,null,null,"1470 - Bukovje 2019",1470,"Bukovje 2019",195,null,null,null,null,186,"Trzin"]
[null,null,null,"1473 - Strmca 2019",1473,"Strmca 2019",90,null,null,null,null,131,"Tržič"]
[null,null,null,"1474 - Studeno 2019",1474,"Studeno 2019",298,null,null,null,null,132,"Turnišče"]
[null,null,null,"1478 - Planina 2019",1478,"Planina 2019",753,null,null,null,null,133,"Velenje"]
[null,null,null,"1492 - Šempeter pri Gorici 2019",1492,"Šempeter pri Gorici 2019",1933,null,null,null,null,187,"Velika Polana"]
[null,null,null,"1515 - Nova Gorica 2019",1515,"Nova Gorica 2019",33081,null,null,null,null,134,"Velike Lašče"]
[null,null,null,"1518 - Renčne zahod 2019",1518,"Renčne zahod 2019",1237,null,null,null,null,188,"Veržej"]
[null,null,null,"1535 - Grgar 2019",1535,"Grgar 2019",702,null,null,null,null,135,"Videm"]
[null,null,null,"1536 - Renče vzhod 2019",1536,"Renče vzhod 2019",469,null,null,null,null,136,"Vipava"]
[null,null,null,"1543 - Grgar – Zagorje 2019",1543,"Grgar – Zagorje 2019",65,null,null,null,null,137,"Vitanje"]
[null,null,null,"1547 - Banjšice 2019",1547,"Banjšice 2019",71,null,null,null,null,138,"Vodice"]
[null,null,null,"1560 - Branik 2019",1560,"Branik 2019",796,null,null,null,null,139,"Vojnik"]
[null,null,null,"1561 - Preserje 2019",1561,"Preserje 2019",340,null,null,null,null,189,"Vransko"]
[null,null,null,"1566 - Spodnja Branica 2019",1566,"Spodnja Branica 2019",135,null,null,null,null,140,"Vrhnika"]
[null,null,null,"1574 - Gradišče nad Prvačino 2019",1574,"Gradišče nad Prvačino 2019",290,null,null,null,null,141,"Vuzenica"]
[null,null,null,"1578 - Saksid 2019",1578,"Saksid 2019",134,null,null,null,null,142,"Zagorje ob Savi"]
[null,null,null,"1582 - Zalošče 2019",1582,"Zalošče 2019",440,null,null,null,null,143,"Zavrč"]
[null,null,null,"1585 - Dornberk 2019",1585,"Dornberk 2019",1290,null,null,null,null,144,"Zreče"]
[null,null,null,"1586 - Prvačina 2019",1586,"Prvačina 2019",1292,null,null,null,null,190,"Žalec"]
[null,null,null,"1590 - Preserje – Vrh 2019",1590,"Preserje – Vrh 2019",157,null,null,null,null,146,"Železniki"]
[null,null,null,"1596 - Šempas 2019",1596,"Šempas 2019",1149,null,null,null,null,191,"Žetale"]
[null,null,null,"1614 - Ravnica 2019",1614,"Ravnica 2019",159,null,null,null,null,147,"Žiri"]
[null,null,null,"1676 - Čepovan 2019",1676,"Čepovan 2019",163,null,null,null,null,192,"Žirovnica"]
[null,null,null,"1783 - Spodnja Kanomlja 2019",1783,"Spodnja Kanomlja 2019",81,null,null,null,null,193,"Žužemberk"]
[null,null,null,"1795 - Laze v občini Logatec 2019",1795,"Laze v občini Logatec 2019",422]
[null,null,null,"1812 - Črni Vrh 2019",1812,"Črni Vrh 2019",352]
[null,null,null,"1827 - Idrija 2019",1827,"Idrija 2019",6953]
[null,null,null,"1848 - Godovič 2019",1848,"Godovič 2019",630]
[null,null,null,"1867 - Logatec 2019",1867,"Logatec 2019",11928]
[null,null,null,"1878 - Hotedršica 2019",1878,"Hotedršica 2019",583]
[null,null,null,"1962 - Rovte 2019",1962,"Rovte 2019",618]
[null,null,null,"2016 - Fojana 2019",2016,"Fojana 2019",133]
[null,null,null,"2017 - Hruševlje 2019",2017,"Hruševlje 2019",77]
[null,null,null,"2031 - Plešivo 2019",2031,"Plešivo 2019",288]
[null,null,null,"2047 - Dobrovo 2019",2047,"Dobrovo 2019",1057]
[null,null,null,"2049 - Vipolže 2019",2049,"Vipolže 2019",267]
[null,null,null,"2051 - Višnjevik 2019",2051,"Višnjevik 2019",117]
[null,null,null,"2055 - Vedrijan 2019",2055,"Vedrijan 2019",124]
[null,null,null,"2067 - Kozana 2019",2067,"Kozana 2019",221]
[null,null,null,"2073 - Šmartno 2019",2073,"Šmartno 2019",330]
[null,null,null,"2089 - Gonjače 2019",2089,"Gonjače 2019",148]
[null,null,null,"2099 - Snežatno 2019",2099,"Snežatno 2019",270]
[null,null,null,"2133 - Plave 2019",2133,"Plave 2019",1879]
[null,null,null,"2143 - Morsko 2019",2143,"Morsko 2019",197]
[null,null,null,"2146 - Kanal 2019",2146,"Kanal 2019",1431]
[null,null,null,"2149 - Kamno 2019",2149,"Kamno 2019",242]
[null,null,null,"2151 - Bodrež 2019",2151,"Bodrež 2019",86]
[null,null,null,"2165 - Ročinj 2019",2165,"Ročinj 2019",323]
[null,null,null,"2166 - Volarje 2019",2166,"Volarje 2019",271]
[null,null,null,"2170 - Avče 2019",2170,"Avče 2019",205]
[null,null,null,"2195 - Kal nad Kanalom 2019",2195,"Kal nad Kanalom 2019",116]
[null,null,null,"2231 - Idrija pri Bači 2019",2231,"Idrija pri Bači 2019",175]
[null,null,null,"2309 - Slap ob Idrijci 2019",2309,"Slap ob Idrijci 2019",198]
[null,null,null,"2331 - Modrejce 2019",2331,"Modrejce 2019",118]
[null,null,null,"2332 - Most na Soči 2019",2332,"Most na Soči 2019",508]
[null,null,null,"2340 - Čiginj 2019",2340,"Čiginj 2019",129]
[null,null,null,"2341 - Volče 2019",2341,"Volče 2019",548]
[null,null,null,"2354 - Prapetno 2019",2354,"Prapetno 2019",154]
[null,null,null,"2356 - Modrej 2019",2356,"Modrej 2019",329]
[null,null,null,"2359 - Tolmin 2019",2359,"Tolmin 2019",5267]
[null,null,null,"2360 - Zatolmin 2019",2360,"Zatolmin 2019",361]
[null,null,null,"2361 - Dolje 2019",2361,"Dolje 2019",160]
[null,null,null,"2381 - Kneža 2019",2381,"Kneža 2019",173]
[null,null,null,"2386 - Podmelec 2019",2386,"Podmelec 2019",70]
[null,null,null,"2396 - Grahovo ob Bači 2019",2396,"Grahovo ob Bači 2019",94]
[null,null,null,"2417 - Podbrdo 2019",2417,"Podbrdo 2019",598]
[null,null,null,"2431 - Labinje 2019",2431,"Labinje 2019",1520]
[null,null,null,"2440 - Šebrelje 2019",2440,"Šebrelje 2019",244]
[null,null,null,"2478 - Ravne pri Cerknem 2019",2478,"Ravne pri Cerknem 2019",122]
[null,null,null,"2497 - Otalež 2019",2497,"Otalež 2019",132]
[null,null,null,"2504 - Planina pri Cerknem 2019",2504,"Planina pri Cerknem 2019",151]
[null,null,null,"2536 - Žiri 2019",2536,"Žiri 2019",4669]
[null,null,null,"2554 - Selo – Dobračeva 2019",2554,"Selo – Dobračeva 2019",233]
[null,null,null,"2582 - Sovodenj 2019",2582,"Sovodenj 2019",169]
[null,null,null,"2593 - Hotavlje 2019",2593,"Hotavlje 2019",567]
[null,null,null,"2596 - Trebija 2019",2596,"Trebija 2019",210]
[null,null,null,"2668 - Lučine 2019",2668,"Lučine 2019",215]
[null,null,null,"2685 - Srednja vas – Poljane 2019",2685,"Srednja vas – Poljane 2019",78]
[null,null,null,"2691 - Dolenja Dobrava 2019",2691,"Dolenja Dobrava 2019",419]
[null,null,null,"2696 - Gorenja vas 2019",2696,"Gorenja vas 2019",1392]
[null,null,null,"2730 - Poljane nad Škofjo Loko 2019",2730,"Poljane nad Škofjo Loko 2019",946]
[null,null,null,"2764 - Zali Log 2019",2764,"Zali Log 2019",171]
[null,null,null,"2795 - Murave – Javorje 2019",2795,"Murave – Javorje 2019",246]
[null,null,null,"2815 - Dolenja vas – Železniki 2019",2815,"Dolenja vas – Železniki 2019",501]
[null,null,null,"2817 - Dražgoše vzhod 2019",2817,"Dražgoše vzhod 2019",154]
[null,null,null,"2818 - Železniki 2019",2818,"Železniki 2019",3865]
[null,null,null,"2824 - Selca 2019",2824,"Selca 2019",697]
[null,null,null,"2836 - Rudno 2019",2836,"Rudno 2019",197]
[null,null,null,"2837 - Dražgoše zahod 2019",2837,"Dražgoše zahod 2019",97]
[null,null,null,"2842 - Breginj 2019",2842,"Breginj 2019",190]
[null,null,null,"2844 - Sedlo 2019",2844,"Sedlo 2019",77]
[null,null,null,"2850 - Žaga 2019",2850,"Žaga 2019",289]
[null,null,null,"2856 - Srpenica 2019",2856,"Srpenica 2019",193]
[null,null,null,"2859 - Kred 2019",2859,"Kred 2019",153]
[null,null,null,"2865 - Staro Selo 2019",2865,"Staro Selo 2019",254]
[null,null,null,"2870 - Čezsoča 2019",2870,"Čezsoča 2019",343]
[null,null,null,"2871 - Sužid 2019",2871,"Sužid 2019",135]
[null,null,null,"2872 - Trnovo ob Soči 2019",2872,"Trnovo ob Soči 2019",143]
[null,null,null,"2873 - Bovec 2019",2873,"Bovec 2019",2087]
[null,null,null,"2874 - Svino 2019",2874,"Svino 2019",102]
[null,null,null,"2883 - Kal – Koritnica 2019",2883,"Kal – Koritnica 2019",144]
[null,null,null,"2884 - Kobarid 2019",2884,"Kobarid 2019",1460]
[null,null,null,"2887 - Mlinsko 2019",2887,"Mlinsko 2019",80]
[null,null,null,"2891 - Idrsko 2019",2891,"Idrsko 2019",342]
[null,null,null,"2894 - Magozd 2019",2894,"Magozd 2019",79]
[null,null,null,"2895 - Livek 2019",2895,"Livek 2019",118]
[null,null,null,"2902 - Ladra 2019",2902,"Ladra 2019",177]
[null,null,null,"2903 - Drežniške Ravne 2019",2903,"Drežniške Ravne 2019",96]
[null,null,null,"2907 - Smast 2019",2907,"Smast 2019",177]
[null,null,null,"2911 - Drežnica 2019",2911,"Drežnica 2019",248]
[null,null,null,"2922 - Vrsno 2019",2922,"Vrsno 2019",136]
[null,null,null,"2982 - Rateče 2019",2982,"Rateče 2019",668]
[null,null,null,"2986 - Podkoren 2019",2986,"Podkoren 2019",367]
[null,null,null,"2993 - Kranjska Gora 2019",2993,"Kranjska Gora 2019",1566]
[null,null,null,"3003 - Belca 2019",3003,"Belca 2019",84]
[null,null,null,"3011 - Mojstrana 2019",3011,"Mojstrana 2019",1791]
[null,null,null,"3064 - Gornja Radgona 2019",3064,"Gornja Radgona 2019",6971]
[null,null,null,"3095 - Rihtarovci 2019",3095,"Rihtarovci 2019",5984]
[null,null,null,"3114 - Žepovci 2019",3114,"Žepovci 2019",262]
[null,null,null,"3115 - Črnci 2019",3115,"Črnci 2019",259]
[null,null,null,"3117 - Apače – Segovci 2019",3117,"Apače – Segovci 2019",770]
[null,null,null,"3168 - Negova 2019",3168,"Negova 2019",125]
[null,null,null,"3342 - Lutverci – Podgrad 2019",3342,"Lutverci – Podgrad 2019",374]
[null,null,null,"3351 - Lomanoše 2019",3351,"Lomanoše 2019",188]
[null,null,null,"3391 - Stara Fužina 2019",3391,"Stara Fužina 2019",599]
[null,null,null,"3402 - Savica 2019",3402,"Savica 2019",87]
[null,null,null,"3403 - Kamnje – Polje 2019",3403,"Kamnje – Polje 2019",438]
[null,null,null,"3409 - Nemški Rovt 2019",3409,"Nemški Rovt 2019",118]
[null,null,null,"3414 - Bohinjska Bistrica 2019",3414,"Bohinjska Bistrica 2019",1974]
[null,null,null,"3425 - Srednja vas v Bohinju 2019",3425,"Srednja vas v Bohinju 2019",466]
[null,null,null,"3426 - Studor v Bohinju 2019",3426,"Studor v Bohinju 2019",129]
[null,null,null,"3432 - Jereka 2019",3432,"Jereka 2019",155]
[null,null,null,"3436 - Bohinjska Češnjica 2019",3436,"Bohinjska Češnjica 2019",381]
[null,null,null,"3454 - Nomenj 2019",3454,"Nomenj 2019",129]
[null,null,null,"3470 - Hrušica 2019",3470,"Hrušica 2019",1736]
[null,null,null,"3475 - Zasip 2019",3475,"Zasip 2019",4806]
[null,null,null,"3485 - Bohinjska Bela 2019",3485,"Bohinjska Bela 2019",472]
[null,null,null,"3486 - Podklanec 2019",3486,"Podklanec 2019",119]
[null,null,null,"3488 - Obrne 2019",3488,"Obrne 2019",58]
[null,null,null,"3490 - Selo pri Bledu 2019",3490,"Selo pri Bledu 2019",228]
[null,null,null,"3495 - Podhom 2019",3495,"Podhom 2019",5033]
[null,null,null,"3519 - Blejska dobrava 2019",3519,"Blejska dobrava 2019",1208]
[null,null,null,"3522 - Kočna 2019",3522,"Kočna 2019",235]
[null,null,null,"3524 - Spodnje Gorje 2019",3524,"Spodnje Gorje 2019",61]
[null,null,null,"3532 - Ribno 2019",3532,"Ribno 2019",689]
[null,null,null,"3536 - Koritno 2019",3536,"Koritno 2019",244]
[null,null,null,"3539 - Potoki 2019",3539,"Potoki 2019",111]
[null,null,null,"3546 - Prihodi 2019",3546,"Prihodi 2019",72]
[null,null,null,"3549 - Plavški Rovt 2019",3549,"Plavški Rovt 2019",90]
[null,null,null,"3556 - Jesenice 2019",3556,"Jesenice 2019",22021]
[null,null,null,"3567 - Pance 2019",3567,"Pance 2019",110]
[null,null,null,"3583 - Gabrje pri Jančah 2019",3583,"Gabrje pri Jančah 2019",109]
[null,null,null,"3614 - Podmolnik – v Karlovce 2019",3614,"Podmolnik – v Karlovce 2019",141]
[null,null,null,"3615 - Podlipoglav 2019",3615,"Podlipoglav 2019",181]
[null,null,null,"3617 - Črna vas 2019",3617,"Črna vas 2019",1000]
[null,null,null,"3621 - Ižanska cesta jug 2019",3621,"Ižanska cesta jug 2019",699]
[null,null,null,"3637 - Gameljne 2019",3637,"Gameljne 2019",1953]
[null,null,null,"3640 - Ljubljana – Kozarje 2019",3640,"Ljubljana – Kozarje 2019",189]
[null,null,null,"3641 - Ljubljana – Cesta v Gorice 2019",3641,"Ljubljana – Cesta v Gorice 2019",323]
[null,null,null,"3659 - Medno 2019",3659,"Medno 2019",90]
[null,null,null,"3660 - Stanežiče 2019",3660,"Stanežiče 2019",854]
[null,null,null,"3668 - Podmolnik 2019",3668,"Podmolnik 2019",156]
[null,null,null,"3670 - Rakova Jelša jug 2019",3670,"Rakova Jelša jug 2019",590]
[null,null,null,"3690 - Pot v Podgorje 2019",3690,"Pot v Podgorje 2019",70]
[null,null,null,"3691 - Češnjica 2019",3691,"Češnjica 2019",87]
[null,null,null,"3694 - Besnica 2019",3694,"Besnica 2019",114]
[null,null,null,"3700 - Podgrad 2019",3700,"Podgrad 2019",219]
[null,null,null,"3718 - Rašica – Gameljne 2019",3718,"Rašica – Gameljne 2019",179]
[null,null,null,"3719 - Češnjica pri Kropi 2019",3719,"Češnjica pri Kropi 2019",77]
[null,null,null,"3727 - Spodnji Otok 2019",3727,"Spodnji Otok 2019",120]
[null,null,null,"3737 - Kamna Gorica 2019",3737,"Kamna Gorica 2019",574]
[null,null,null,"3746 - Zgornji Otok 2019",3746,"Zgornji Otok 2019",68]
[null,null,null,"3747 - Gorica – Radovljica 2019",3747,"Gorica – Radovljica 2019",98]
[null,null,null,"3748 - Vrbnje 2019",3748,"Vrbnje 2019",392]
[null,null,null,"3753 - Radovljica 2019",3753,"Radovljica 2019",10970]
[null,null,null,"3754 - Zgornja Lipnica 2019",3754,"Zgornja Lipnica 2019",143]
[null,null,null,"3756 - Dobro Polje 2019",3756,"Dobro Polje 2019",118]
[null,null,null,"3757 - Podnart 2019",3757,"Podnart 2019",362]
[null,null,null,"3758 - Zaloše 2019",3758,"Zaloše 2019",97]
[null,null,null,"3760 - Ljubno 2019",3760,"Ljubno 2019",497]
[null,null,null,"3764 - Posavec 2019",3764,"Posavec 2019",413]
[null,null,null,"3766 - Otoče 2019",3766,"Otoče 2019",200]
[null,null,null,"3770 - Srednja Dobrava 2019",3770,"Srednja Dobrava 2019",1191]
[null,null,null,"3775 - Brezje 2019",3775,"Brezje 2019",506]
[null,null,null,"3776 - Črnivec 2019",3776,"Črnivec 2019",265]
[null,null,null,"3777 - Mošnje 2019",3777,"Mošnje 2019",476]
[null,null,null,"3778 - Vrba na Gorenjskem 2019",3778,"Vrba na Gorenjskem 2019",212]
[null,null,null,"3779 - Studenčice 2019",3779,"Studenčice 2019",122]
[null,null,null,"3784 - Dvorska vas – Radovljica 2019",3784,"Dvorska vas – Radovljica 2019",205]
[null,null,null,"3785 - Zgoša 2019",3785,"Zgoša 2019",2590]
[null,null,null,"3787 - Hlebce 2019",3787,"Hlebce 2019",312]
[null,null,null,"3792 - Moste 2019",3792,"Moste 2019",70]
[null,null,null,"3793 - Breg 2019",3793,"Breg 2019",699]
[null,null,null,"3798 - Srednja vas 2019",3798,"Srednja vas 2019",55]
[null,null,null,"3804 - Strahinj 2019",3804,"Strahinj 2019",732]
[null,null,null,"3805 - Naklo 2019",3805,"Naklo 2019",2842]
[null,null,null,"3806 - Tržič 2019",3806,"Tržič 2019",12531]
[null,null,null,"3807 - Brezje pri Tržiču 2019",3807,"Brezje pri Tržiču 2019",396]
[null,null,null,"3809 - Duplje 2019",3809,"Duplje 2019",1106]
[null,null,null,"3812 - Bistrica 2019",3812,"Bistrica 2019",1056]
[null,null,null,"3816 - Leše – Tržič 2019",3816,"Leše – Tržič 2019",242]
[null,null,null,"3820 - Zvirče 2019",3820,"Zvirče 2019",432]
[null,null,null,"3831 - Podljubelj 2019",3831,"Podljubelj 2019",680]
[null,null,null,"3844 - Spodnje Vetrno 2019",3844,"Spodnje Vetrno 2019",296]
[null,null,null,"3850 - Lom 2019",3850,"Lom 2019",459]
[null,null,null,"3855 - Jelendol 2019",3855,"Jelendol 2019",121]
[null,null,null,"3859 - Tatinec 2019",3859,"Tatinec 2019",67]
[null,null,null,"3860 - Spodnja Besnica 2019",3860,"Spodnja Besnica 2019",197]
[null,null,null,"3867 - Podblica 2019",3867,"Podblica 2019",120]
[null,null,null,"3880 - Zgornja Besnica 2019",3880,"Zgornja Besnica 2019",454]
[null,null,null,"3885 - Mavčiče 2019",3885,"Mavčiče 2019",1162]
[null,null,null,"3889 - Podreča 2019",3889,"Podreča 2019",932]
[null,null,null,"3890 - Spodnja Besnica – Pešnica 2019",3890,"Spodnja Besnica – Pešnica 2019",849]
[null,null,null,"3905 - Suha pri Predosljah 2019",3905,"Suha pri Predosljah 2019",259]
[null,null,null,"3907 - Srakovlje 2019",3907,"Srakovlje 2019",85]
[null,null,null,"3910 - Bobovek 2019",3910,"Bobovek 2019",167]
[null,null,null,"3913 - Srednja vas – Goriče 2019",3913,"Srednja vas – Goriče 2019",428]
[null,null,null,"3915 - Tenetiše 2019",3915,"Tenetiše 2019",385]
[null,null,null,"3922 - Pangršica 2019",3922,"Pangršica 2019",86]
[null,null,null,"3923 - Trstenik 2019",3923,"Trstenik 2019",334]
[null,null,null,"3924 - Čadovlje 2019",3924,"Čadovlje 2019",114]
[null,null,null,"3930 - Golnik 2019",3930,"Golnik 2019",1311]
[null,null,null,"3935 - Pšenična polica 2019",3935,"Pšenična polica 2019",124]
[null,null,null,"3938 - Voglje 2019",3938,"Voglje 2019",696]
[null,null,null,"3939 - Trboje 2019",3939,"Trboje 2019",800]
[null,null,null,"3940 - Voklo 2019",3940,"Voklo 2019",466]
[null,null,null,"3943 - Cerklje 2019",3943,"Cerklje 2019",2778]
[null,null,null,"3944 - Šenčur 2019",3944,"Šenčur 2019",4114]
[null,null,null,"3946 - Spodnji Brnik – Vopovlje 2019",3946,"Spodnji Brnik – Vopovlje 2019",1386]
[null,null,null,"3949 - Praprotna polica 2019",3949,"Praprotna polica 2019",241]
[null,null,null,"3954 - Luže 2019",3954,"Luže 2019",317]
[null,null,null,"3956 - Olševek 2019",3956,"Olševek 2019",373]
[null,null,null,"3959 - Velesovo 2019",3959,"Velesovo 2019",407]
[null,null,null,"3961 - Adergas – Trata 2019",3961,"Adergas – Trata 2019",400]
[null,null,null,"3962 - Češnjevek 2019",3962,"Češnjevek 2019",161]
[null,null,null,"3966 - Lahovče 2019",3966,"Lahovče 2019",570]
[null,null,null,"3969 - Poženik 2019",3969,"Poženik 2019",513]
[null,null,null,"3973 - Zalog pri Cerkljah 2019",3973,"Zalog pri Cerkljah 2019",448]
[null,null,null,"3977 - Šenturška Gora 2019",3977,"Šenturška Gora 2019",140]
[null,null,null,"3981 - Pšata – Poženik 2019",3981,"Pšata – Poženik 2019",120]
[null,null,null,"3994 - Zgornje Jezersko 2019",3994,"Zgornje Jezersko 2019",380]
[null,null,null,"3995 - Zgornja Bela 2019",3995,"Zgornja Bela 2019",862]
[null,null,null,"3996 - Bašelj 2019",3996,"Bašelj 2019",410]
[null,null,null,"4001 - Potoče 2019",4001,"Potoče 2019",324]
[null,null,null,"4004 - Breg ob Kokri 2019",4004,"Breg ob Kokri 2019",142]
[null,null,null,"4005 - Nova vas – Mače 2019",4005,"Nova vas – Mače 2019",142]
[null,null,null,"4046 - Skaručna 2019",4046,"Skaručna 2019",404]
[null,null,null,"4052 - Vodice 2019",4052,"Vodice 2019",1811]
[null,null,null,"4056 - Polje pri Vodicah 2019",4056,"Polje pri Vodicah 2019",335]
[null,null,null,"4058 - Zapoge 2019",4058,"Zapoge 2019",279]
[null,null,null,"4059 - Repnje 2019",4059,"Repnje 2019",240]
[null,null,null,"4066 - Selo pri Vodicah 2019",4066,"Selo pri Vodicah 2019",272]
[null,null,null,"4068 - Bukovica pri Vodicah 2019",4068,"Bukovica pri Vodicah 2019",1070]
[null,null,null,"4079 - Komenda 2019",4079,"Komenda 2019",9057]
[null,null,null,"4080 - Nasovče 2019",4080,"Nasovče 2019",508]
[null,null,null,"4083 - Klanec 2019",4083,"Klanec 2019",299]
[null,null,null,"4084 - Križ 2019",4084,"Križ 2019",1063]
[null,null,null,"4086 - Brezje pri Dobu 2019",4086,"Brezje pri Dobu 2019",310]
[null,null,null,"4093 - Želodnik 2019",4093,"Želodnik 2019",1836]
[null,null,null,"4094 - Dragomelj 2019",4094,"Dragomelj 2019",1257]
[null,null,null,"4101 - Pšata 2019",4101,"Pšata 2019",701]
[null,null,null,"4104 - Mala Loka 2019",4104,"Mala Loka 2019",229]
[null,null,null,"4110 - Gorjuša 2019",4110,"Gorjuša 2019",109]
[null,null,null,"4115 - Domžale 2019",4115,"Domžale 2019",34315]
[null,null,null,"4119 - Krtina 2019",4119,"Krtina 2019",808]
[null,null,null,"4129 - Turnše 2019",4129,"Turnše 2019",296]
[null,null,null,"4130 - Češenik 2019",4130,"Češenik 2019",131]
[null,null,null,"4131 - Žiče 2019",4131,"Žiče 2019",57]
[null,null,null,"4140 - Vinje 2019",4140,"Vinje 2019",455]
[null,null,null,"4142 - Dolsko 2019",4142,"Dolsko 2019",924]
[null,null,null,"4151 - Laze pri Dolskem 2019",4151,"Laze pri Dolskem 2019",163]
[null,null,null,"4156 - Zagorica pri Dolskem 2019",4156,"Zagorica pri Dolskem 2019",85]
[null,null,null,"4160 - Senožeti 2019",4160,"Senožeti 2019",908]
[null,null,null,"4162 - Zaboršt pri Dolu 2019",4162,"Zaboršt pri Dolu 2019",2131]
[null,null,null,"4164 - Brinje 2019",4164,"Brinje 2019",685]
[null,null,null,"4167 - Podgora pri Dolskem 2019",4167,"Podgora pri Dolskem 2019",315]
[null,null,null,"4168 - Kleče pri Dolu 2019",4168,"Kleče pri Dolu 2019",118]
[null,null,null,"4171 - Vrba 2019",4171,"Vrba 2019",1940]
[null,null,null,"4172 - Rafolče 2019",4172,"Rafolče 2019",455]
[null,null,null,"4174 - Imovica 2019",4174,"Imovica 2019",105]
[null,null,null,"4175 - Goričica pri Moravčah 2019",4175,"Goričica pri Moravčah 2019",318]
[null,null,null,"4182 - Spodnje Prapreče 2019",4182,"Spodnje Prapreče 2019",221]
[null,null,null,"4186 - Stegne 2019",4186,"Stegne 2019",132]
[null,null,null,"4194 - Zgornje Prapreče 2019",4194,"Zgornje Prapreče 2019",262]
[null,null,null,"4201 - Vrhpolje pri Moravčah 2019",4201,"Vrhpolje pri Moravčah 2019",276]
[null,null,null,"4205 - Trnjava 2019",4205,"Trnjava 2019",177]
[null,null,null,"4218 - Gorica – Moravče 2019",4218,"Gorica – Moravče 2019",119]
[null,null,null,"4231 - Koreno 2019",4231,"Koreno 2019",68]
[null,null,null,"4235 - Češnjice pri Moravčah 2019",4235,"Češnjice pri Moravčah 2019",205]
[null,null,null,"4236 - Soteska pri Moravčah 2019",4236,"Soteska pri Moravčah 2019",103]
[null,null,null,"4239 - Moravče 2019",4239,"Moravče 2019",1081]
[null,null,null,"4240 - Krašnja 2019",4240,"Krašnja 2019",445]
[null,null,null,"4303 - Zgornje Koseze 2019",4303,"Zgornje Koseze 2019",113]
[null,null,null,"4313 - Peče 2019",4313,"Peče 2019",207]
[null,null,null,"4353 - Čentiba 2019",4353,"Čentiba 2019",537]
[null,null,null,"4354 - Kapca 2019",4354,"Kapca 2019",457]
[null,null,null,"4355 - Hotiza – Lozič 2019",4355,"Hotiza – Lozič 2019",212]
[null,null,null,"4359 - Kot 2019",4359,"Kot 2019",117]
[null,null,null,"4360 - Hotiza 2019",4360,"Hotiza 2019",600]
[null,null,null,"4363 - Kolonija Petišovci 2019",4363,"Kolonija Petišovci 2019",243]
[null,null,null,"4364 - Lakoš – Gaberje 2019",4364,"Lakoš – Gaberje 2019",1260]
[null,null,null,"4367 - Trimlini 2019",4367,"Trimlini 2019",320]
[null,null,null,"4368 - Petišovci 2019",4368,"Petišovci 2019",657]
[null,null,null,"4373 - Pince 2019",4373,"Pince 2019",199]
[null,null,null,"4381 - Radmožanci 2019",4381,"Radmožanci 2019",239]
[null,null,null,"4382 - Kamovci 2019",4382,"Kamovci 2019",104]
[null,null,null,"4386 - Lendava – Dolga vas 2019",4386,"Lendava – Dolga vas 2019",5695]
[null,null,null,"4387 - Mostje 2019",4387,"Mostje 2019",110]
[null,null,null,"4388 - Mostje pri Banuti 2019",4388,"Mostje pri Banuti 2019",255]
[null,null,null,"4390 - Genterovci 2019",4390,"Genterovci 2019",194]
[null,null,null,"4399 - Poreber 2019",4399,"Poreber 2019",622]
[null,null,null,"4413 - Srednja vas pri Kamniku 2019",4413,"Srednja vas pri Kamniku 2019",435]
[null,null,null,"4418 - Velika Lašna 2019",4418,"Velika Lašna 2019",79]
[null,null,null,"4469 - Šmartno v Tuhinju 2019",4469,"Šmartno v Tuhinju 2019",385]
[null,null,null,"4476 - Pšajnovica 2019",4476,"Pšajnovica 2019",63]
[null,null,null,"4498 - Zgornji Tuhinj – Laze v Tuhinju 2019",4498,"Zgornji Tuhinj – Laze v Tuhinju 2019",584]
[null,null,null,"4505 - Zgornji Tuhinj 2019",4505,"Zgornji Tuhinj 2019",96]
[null,null,null,"4517 - Golice 2019",4517,"Golice 2019",124]
[null,null,null,"4524 - Češnjice v Tuhinju 2019",4524,"Češnjice v Tuhinju 2019",102]
[null,null,null,"4527 - Okrog pri Motniku 2019",4527,"Okrog pri Motniku 2019",70]
[null,null,null,"4544 - Motnik 2019",4544,"Motnik 2019",207]
[null,null,null,"4553 - Volčji Potok 2019",4553,"Volčji Potok 2019",180]
[null,null,null,"4613 - Zgornje Stranje 2019",4613,"Zgornje Stranje 2019",2335]
[null,null,null,"4621 - Potok v Črni 2019",4621,"Potok v Črni 2019",140]
[null,null,null,"4623 - Žaga – Kamnik 2019",4623,"Žaga – Kamnik 2019",79]
[null,null,null,"4764 - Dol 2019",4764,"Dol 2019",87]
[null,null,null,"4770 - Senica 2019",4770,"Senica 2019",698]
[null,null,null,"4776 - Golo Brdo 2019",4776,"Golo Brdo 2019",320]
[null,null,null,"4784 - Žlebe 2019",4784,"Žlebe 2019",106]
[null,null,null,"4785 - Seničica 2019",4785,"Seničica 2019",144]
[null,null,null,"4789 - Zavrh pod Šmarno goro 2019",4789,"Zavrh pod Šmarno goro 2019",203]
[null,null,null,"4798 - Valburga 2019",4798,"Valburga 2019",1525]
[null,null,null,"4803 - Zbilje 2019",4803,"Zbilje 2019",690]
[null,null,null,"4823 - Vrhnika – Sinja Gorica 2019",4823,"Vrhnika – Sinja Gorica 2019",13123]
[null,null,null,"4828 - Žažar 2019",4828,"Žažar 2019",153]
[null,null,null,"4836 - Podlipa 2019",4836,"Podlipa 2019",298]
[null,null,null,"4840 - Velika Ligojna 2019",4840,"Velika Ligojna 2019",465]
[null,null,null,"4857 - Zabočevo 2019",4857,"Zabočevo 2019",100]
[null,null,null,"4865 - Borovnica jug 2019",4865,"Borovnica jug 2019",74]
[null,null,null,"4867 - Niževec 2019",4867,"Niževec 2019",122]
[null,null,null,"4871 - Dol pri Borovnici 2019",4871,"Dol pri Borovnici 2019",116]
[null,null,null,"4876 - Blatna Brezovica 2019",4876,"Blatna Brezovica 2019",356]
[null,null,null,"4879 - Drenov Grič 2019",4879,"Drenov Grič 2019",800]
[null,null,null,"4886 - Bevke 2019",4886,"Bevke 2019",903]
[null,null,null,"4887 - Log pri Brezovici 2019",4887,"Log pri Brezovici 2019",2260]
[null,null,null,"4908 - Kurja vas 2019",4908,"Kurja vas 2019",59]
[null,null,null,"4911 - Šentjošt nad Horjulom 2019",4911,"Šentjošt nad Horjulom 2019",255]
[null,null,null,"4918 - Horjul 2019",4918,"Horjul 2019",1661]
[null,null,null,"4925 - Vrzdenec 2019",4925,"Vrzdenec 2019",375]
[null,null,null,"4966 - Brezje pri Dobrovi 2019",4966,"Brezje pri Dobrovi 2019",397]
[null,null,null,"4968 - Podolnica 2019",4968,"Podolnica 2019",221]
[null,null,null,"4971 - Zaklanec 2019",4971,"Zaklanec 2019",165]
[null,null,null,"4987 - Dvor pri Polhovem Gradcu 2019",4987,"Dvor pri Polhovem Gradcu 2019",162]
[null,null,null,"4989 - Dolenja vas pri Polhovem Gradcu 2019",4989,"Dolenja vas pri Polhovem Gradcu 2019",109]
[null,null,null,"4999 - Polhov Gradec – Srednja vas 2019",4999,"Polhov Gradec – Srednja vas 2019",1215]
[null,null,null,"5012 - Hruševo in Gabrje 2019",5012,"Hruševo in Gabrje 2019",839]
[null,null,null,"5016 - Stranska vas – Dobrova 2019",5016,"Stranska vas – Dobrova 2019",162]
[null,null,null,"5025 - Grosuplje 2019",5025,"Grosuplje 2019",10965]
[null,null,null,"5031 - Malo Mlačevo 2019",5031,"Malo Mlačevo 2019",182]
[null,null,null,"5034 - Mala Stara vas 2019",5034,"Mala Stara vas 2019",96]
[null,null,null,"5038 - Velika Stara vas 2019",5038,"Velika Stara vas 2019",150]
[null,null,null,"5042 - Spodnje Blato 2019",5042,"Spodnje Blato 2019",179]
[null,null,null,"5045 - Veliko Mlačevo 2019",5045,"Veliko Mlačevo 2019",396]
[null,null,null,"5046 - Gatina 2019",5046,"Gatina 2019",125]
[null,null,null,"5051 - Zagradec pri Grosupljem 2019",5051,"Zagradec pri Grosupljem 2019",357]
[null,null,null,"5054 - Velika Račna 2019",5054,"Velika Račna 2019",228]
[null,null,null,"5057 - Peč 2019",5057,"Peč 2019",103]
[null,null,null,"5062 - Čušperk 2019",5062,"Čušperk 2019",222]
[null,null,null,"5068 - Polica 2019",5068,"Polica 2019",602]
[null,null,null,"5070 - Žalna 2019",5070,"Žalna 2019",274]
[null,null,null,"5077 - Velika Loka – Višnja Gora 2019",5077,"Velika Loka – Višnja Gora 2019",199]
[null,null,null,"5082 - Luče 2019",5082,"Luče 2019",218]
[null,null,null,"5107 - Vino 2019",5107,"Vino 2019",105]
[null,null,null,"5112 - Bičje 2019",5112,"Bičje 2019",78]
[null,null,null,"5114 - Pece 2019",5114,"Pece 2019",111]
[null,null,null,"5116 - Ponova vas 2019",5116,"Ponova vas 2019",1153]
[null,null,null,"5118 - Spodnja Slivnica 2019",5118,"Spodnja Slivnica 2019",564]
[null,null,null,"5127 - Podgorica pri Šmarju 2019",5127,"Podgorica pri Šmarju 2019",85]
[null,null,null,"5129 - Cikava 2019",5129,"Cikava 2019",485]
[null,null,null,"5134 - Zgornja Slivnica 2019",5134,"Zgornja Slivnica 2019",90]
[null,null,null,"5146 - Strahomer 2019",5146,"Strahomer 2019",457]
[null,null,null,"5148 - Prevalje pod Krimom 2019",5148,"Prevalje pod Krimom 2019",1518]
[null,null,null,"5155 - Podpeč 2019",5155,"Podpeč 2019",1448]
[null,null,null,"5163 - Iška Loka – Matena 2019",5163,"Iška Loka – Matena 2019",681]
[null,null,null,"5167 - Tomišelj 2019",5167,"Tomišelj 2019",444]
[null,null,null,"5172 - Golo 2019",5172,"Golo 2019",369]
[null,null,null,"5173 - Škrilje 2019",5173,"Škrilje 2019",383]
[null,null,null,"5174 - Golo pri Selniku 2019",5174,"Golo pri Selniku 2019",222]
[null,null,null,"5190 - Iška vas 2019",5190,"Iška vas 2019",649]
[null,null,null,"5193 - Smrjene 2019",5193,"Smrjene 2019",99]
[null,null,null,"5201 - Želimlje 2019",5201,"Želimlje 2019",283]
[null,null,null,"5207 - Kot – Ig 2019",5207,"Kot – Ig 2019",136]
[null,null,null,"5208 - Ig 2019",5208,"Ig 2019",2795]
[null,null,null,"5209 - Podblato 2019",5209,"Podblato 2019",117]
[null,null,null,"5212 - Pijava Gorica 2019",5212,"Pijava Gorica 2019",802]
[null,null,null,"5215 - Lavrica pod Strahom 2019",5215,"Lavrica pod Strahom 2019",158]
[null,null,null,"5216 - Babnogoriška 2019",5216,"Babnogoriška 2019",131]
[null,null,null,"5219 - Orle 2019",5219,"Orle 2019",201]
[null,null,null,"5229 - Zapotok 2019",5229,"Zapotok 2019",175]
[null,null,null,"5238 - Vrh 2019",5238,"Vrh 2019",124]
[null,null,null,"5239 - Iga vas – Siga 2019",5239,"Iga vas – Siga 2019",68]
[null,null,null,"5240 - Viševek 2019",5240,"Viševek 2019",119]
[null,null,null,"5241 - Nadlesk 2019",5241,"Nadlesk 2019",196]
[null,null,null,"5243 - Šmarata 2019",5243,"Šmarata 2019",97]
[null,null,null,"5244 - Kozarišče 2019",5244,"Kozarišče 2019",262]
[null,null,null,"5248 - Pudob 2019",5248,"Pudob 2019",158]
[null,null,null,"5250 - Dane 2019",5250,"Dane 2019",85]
[null,null,null,"5260 - Podcerkev 2019",5260,"Podcerkev 2019",142]
[null,null,null,"5262 - Stari Trg pri Ložu 2019",5262,"Stari Trg pri Ložu 2019",2142]
[null,null,null,"5263 - Markovec 2019",5263,"Markovec 2019",213]
[null,null,null,"5264 - Babno polje 2019",5264,"Babno polje 2019",152]
[null,null,null,"5268 - Vrhnika pri Ložu 2019",5268,"Vrhnika pri Ložu 2019",102]
[null,null,null,"5276 - Ivanje Selo 2019",5276,"Ivanje Selo 2019",226]
[null,null,null,"5283 - Rakek 2019",5283,"Rakek 2019",3067]
[null,null,null,"5284 - Dolenje Jezero 2019",5284,"Dolenje Jezero 2019",260]
[null,null,null,"5285 - Martinjak 2019",5285,"Martinjak 2019",329]
[null,null,null,"5286 - Cerknica 2019",5286,"Cerknica 2019",4703]
[null,null,null,"5290 - Zelše 2019",5290,"Zelše 2019",108]
[null,null,null,"5298 - Žerovnica 2019",5298,"Žerovnica 2019",171]
[null,null,null,"5299 - Lipsenj 2019",5299,"Lipsenj 2019",107]
[null,null,null,"5300 - Grahovo 2019",5300,"Grahovo 2019",511]
[null,null,null,"5318 - Velike Bloke 2019",5318,"Velike Bloke 2019",229]
[null,null,null,"5320 - Begunje pri Cerknici 2019",5320,"Begunje pri Cerknici 2019",928]
[null,null,null,"5363 - Ravne na Blokah 2019",5363,"Ravne na Blokah 2019",70]
[null,null,null,"5367 - Nova vas 2019",5367,"Nova vas 2019",387]
[null,null,null,"5371 - Studenec na Blokah 2019",5371,"Studenec na Blokah 2019",68]
[null,null,null,"5404 - Sodražica 2019",5404,"Sodražica 2019",1013]
[null,null,null,"5407 - Žimarice 2019",5407,"Žimarice 2019",232]
[null,null,null,"5417 - Dvorska vas 2019",5417,"Dvorska vas 2019",106]
[null,null,null,"5466 - Male Lašče 2019",5466,"Male Lašče 2019",235]
[null,null,null,"5468 - Velike Lašče 2019",5468,"Velike Lašče 2019",602]
[null,null,null,"5503 - Rašica 2019",5503,"Rašica 2019",235]
[null,null,null,"5533 - Jurjevica 2019",5533,"Jurjevica 2019",192]
[null,null,null,"5537 - Žlebič 2019",5537,"Žlebič 2019",342]
[null,null,null,"5539 - Osilnica 2019",5539,"Osilnica 2019",185]
[null,null,null,"5542 - Breže 2019",5542,"Breže 2019",149]
[null,null,null,"5543 - Sajevec 2019",5543,"Sajevec 2019",95]
[null,null,null,"5546 - Bukovica pri Ribnici 2019",5546,"Bukovica pri Ribnici 2019",111]
[null,null,null,"5560 - Ribnica 2019",5560,"Ribnica 2019",6672]
[null,null,null,"5565 - Nemška vas 2019",5565,"Nemška vas 2019",284]
[null,null,null,"5571 - Grčarice 2019",5571,"Grčarice 2019",162]
[null,null,null,"5572 - Prigorica 2019",5572,"Prigorica 2019",1399]
[null,null,null,"5573 - Rakitnica 2019",5573,"Rakitnica 2019",188]
[null,null,null,"5574 - Otavice 2019",5574,"Otavice 2019",89]
[null,null,null,"5579 - Lipovec 2019",5579,"Lipovec 2019",165]
[null,null,null,"5588 - Kočevska Reka 2019",5588,"Kočevska Reka 2019",255]
[null,null,null,"5592 - Dolnje Ložine 2019",5592,"Dolnje Ložine 2019",174]
[null,null,null,"5600 - Slovenska vas 2019",5600,"Slovenska vas 2019",244]
[null,null,null,"5601 - Koblarji 2019",5601,"Koblarji 2019",327]
[null,null,null,"5607 - Stara Cerkev 2019",5607,"Stara Cerkev 2019",454]
[null,null,null,"5609 - Novi Lazi 2019",5609,"Novi Lazi 2019",151]
[null,null,null,"5613 - Mlaka pri Kočevju 2019",5613,"Mlaka pri Kočevju 2019",299]
[null,null,null,"5620 - Gorenje – Kočevje 2019",5620,"Gorenje – Kočevje 2019",321]
[null,null,null,"5627 - Morava 2019",5627,"Morava 2019",123]
[null,null,null,"5628 - Kočevje 2019",5628,"Kočevje 2019",17524]
[null,null,null,"5630 - Štalcerji 2019",5630,"Štalcerji 2019",155]
[null,null,null,"5631 - Vas 2019",5631,"Vas 2019",115]
[null,null,null,"5633 - Klinja vas 2019",5633,"Klinja vas 2019",248]
[null,null,null,"5640 - Cvišlerji 2019",5640,"Cvišlerji 2019",152]
[null,null,null,"5653 - Črni Potok pri Kočevju 2019",5653,"Črni Potok pri Kočevju 2019",173]
[null,null,null,"5667 - Mozelj 2019",5667,"Mozelj 2019",193]
[null,null,null,"5683 - Predgrad 2019",5683,"Predgrad 2019",105]
[null,null,null,"5698 - Podpreska 2019",5698,"Podpreska 2019",96]
[null,null,null,"5700 - Hrib – Loški Potok 2019",5700,"Hrib – Loški Potok 2019",1378]
[null,null,null,"5702 - Mali Log 2019",5702,"Mali Log 2019",161]
[null,null,null,"5737 - Učakovci 2019",5737,"Učakovci 2019",114]
[null,null,null,"5741 - Vinica 2019",5741,"Vinica 2019",553]
[null,null,null,"5761 - Dragatuš 2019",5761,"Dragatuš 2019",267]
[null,null,null,"5763 - Obrh pri Dragatušu 2019",5763,"Obrh pri Dragatušu 2019",111]
[null,null,null,"5765 - Tanča Gora 2019",5765,"Tanča Gora 2019",154]
[null,null,null,"5770 - Belčji Vrh 2019",5770,"Belčji Vrh 2019",83]
[null,null,null,"5796 - Kvasica 2019",5796,"Kvasica 2019",76]
[null,null,null,"5799 - Dragovanja vas 2019",5799,"Dragovanja vas 2019",112]
[null,null,null,"5806 - Dobliče 2019",5806,"Dobliče 2019",188]
[null,null,null,"5809 - Lokve 2019",5809,"Lokve 2019",407]
[null,null,null,"5810 - Brezov gaj 2019",5810,"Brezov gaj 2019",139]
[null,null,null,"5836 - Tribuče 2019",5836,"Tribuče 2019",151]
[null,null,null,"5838 - Črnomelj 2019",5838,"Črnomelj 2019",6904]
[null,null,null,"5844 - Vranoviči 2019",5844,"Vranoviči 2019",117]
[null,null,null,"5859 - Griblje 2019",5859,"Griblje 2019",318]
[null,null,null,"5866 - Preloka 2019",5866,"Preloka 2019",89]
[null,null,null,"5877 - Marindol 2019",5877,"Marindol 2019",81]
[null,null,null,"5889 - Suhor 2019",5889,"Suhor 2019",286]
[null,null,null,"5901 - Podturn pri Dolenjskih Toplicah 2019",5901,"Podturn pri Dolenjskih Toplicah 2019",268]
[null,null,null,"5911 - Kočevske Poljane 2019",5911,"Kočevske Poljane 2019",89]
[null,null,null,"5925 - Črmošnjice 2019",5925,"Črmošnjice 2019",149]
[null,null,null,"5926 - Vrtača pri Semiču 2019",5926,"Vrtača pri Semiču 2019",1246]
[null,null,null,"5947 - Gradac 2019",5947,"Gradac 2019",488]
[null,null,null,"5975 - Gorenje Sušice 2019",5975,"Gorenje Sušice 2019",86]
[null,null,null,"5991 - Krasinec 2019",5991,"Krasinec 2019",218]
[null,null,null,"5995 - Primostek 2019",5995,"Primostek 2019",176]
[null,null,null,"5997 - Podzemelj – Zemelj 2019",5997,"Podzemelj – Zemelj 2019",224]
[null,null,null,"6007 - Grabrovec 2019",6007,"Grabrovec 2019",121]
[null,null,null,"6008 - Bušinja vas 2019",6008,"Bušinja vas 2019",275]
[null,null,null,"6015 - Podhosta 2019",6015,"Podhosta 2019",586]
[null,null,null,"6020 - Dolenjske Toplice 2019",6020,"Dolenjske Toplice 2019",1464]
[null,null,null,"6021 - Gorenje Gradišče 2019",6021,"Gorenje Gradišče 2019",83]
[null,null,null,"6023 - Sela pri Dolenjskih Toplicah 2019",6023,"Sela pri Dolenjskih Toplicah 2019",278]
[null,null,null,"6033 - Slamna vas 2019",6033,"Slamna vas 2019",129]
[null,null,null,"6039 - Metlika 2019",6039,"Metlika 2019",4535]
[null,null,null,"6042 - Drašiči 2019",6042,"Drašiči 2019",186]
[null,null,null,"6043 - Božakovo 2019",6043,"Božakovo 2019",160]
[null,null,null,"6052 - Radovica 2019",6052,"Radovica 2019",307]
[null,null,null,"6057 - Uršna Sela 2019",6057,"Uršna Sela 2019",279]
[null,null,null,"6067 - Vinja vas 2019",6067,"Vinja vas 2019",118]
[null,null,null,"6069 - Podgrad – Koroška vas 2019",6069,"Podgrad – Koroška vas 2019",133]
[null,null,null,"6071 - Pristava 2019",6071,"Pristava 2019",108]
[null,null,null,"6072 - Veliki Cerovec 2019",6072,"Veliki Cerovec 2019",129]
[null,null,null,"6074 - Vavta vas 2019",6074,"Vavta vas 2019",2996]
[null,null,null,"6079 - Pogance 2019",6079,"Pogance 2019",76]
[null,null,null,"6082 - Veliki Podljuben 2019",6082,"Veliki Podljuben 2019",74]
[null,null,null,"6083 - Vrh pri Ljubnu 2019",6083,"Vrh pri Ljubnu 2019",79]
[null,null,null,"6092 - Jama 2019",6092,"Jama 2019",193]
[null,null,null,"6093 - Stranska vas 2019",6093,"Stranska vas 2019",228]
[null,null,null,"6098 - Ruperčvrh 2019",6098,"Ruperčvrh 2019",158]
[null,null,null,"6100 - Birčna vas 2019",6100,"Birčna vas 2019",375]
[null,null,null,"6103 - Češča vas 2019",6103,"Češča vas 2019",352]
[null,null,null,"6105 - Prečna 2019",6105,"Prečna 2019",384]
[null,null,null,"6115 - Novo mesto 2019",6115,"Novo mesto 2019",41039]
[null,null,null,"6122 - Verdun 2019",6122,"Verdun 2019",637]
[null,null,null,"6125 - Gornja Težka Voda 2019",6125,"Gornja Težka Voda 2019",103]
[null,null,null,"6128 - Dolnja Težka voda 2019",6128,"Dolnja Težka voda 2019",616]
[null,null,null,"6129 - Koroška vas 2019",6129,"Koroška vas 2019",134]
[null,null,null,"6130 - Jurna vas 2019",6130,"Jurna vas 2019",128]
[null,null,null,"6133 - Gabrje 2019",6133,"Gabrje 2019",653]
[null,null,null,"6141 - Vrhe 2019",6141,"Vrhe 2019",352]
[null,null,null,"6142 - Zajčji Vrh pri Stopičah 2019",6142,"Zajčji Vrh pri Stopičah 2019",94]
[null,null,null,"6143 - Veliki Orehek 2019",6143,"Veliki Orehek 2019",90]
[null,null,null,"6145 - Potov Vrh 2019",6145,"Potov Vrh 2019",152]
[null,null,null,"6146 - Veliki Slatnik 2019",6146,"Veliki Slatnik 2019",136]
[null,null,null,"6149 - Smolenja vas 2019",6149,"Smolenja vas 2019",1471]
[null,null,null,"6156 - Velike Brusnice 2019",6156,"Velike Brusnice 2019",524]
[null,null,null,"6160 - Velika Hrušica 2019",6160,"Velika Hrušica 2019",84]
[null,null,null,"6164 - Hudo 2019",6164,"Hudo 2019",70]
[null,null,null,"6178 - Gorenje Kamence 2019",6178,"Gorenje Kamence 2019",122]
[null,null,null,"6184 - Ždinja vas 2019",6184,"Ždinja vas 2019",286]
[null,null,null,"6185 - Dolenje Kamenje 2019",6185,"Dolenje Kamenje 2019",94]
[null,null,null,"6187 - Gorenje Karteljevo 2019",6187,"Gorenje Karteljevo 2019",249]
[null,null,null,"6189 - Gumberk 2019",6189,"Gumberk 2019",97]
[null,null,null,"6192 - Dolenja vas – Otočec 2019",6192,"Dolenja vas – Otočec 2019",99]
[null,null,null,"6194 - Otočec 2019",6194,"Otočec 2019",845]
[null,null,null,"6195 - Petelinjek 2019",6195,"Petelinjek 2019",225]
[null,null,null,"6198 - Otočec – Dolenja vas 2019",6198,"Otočec – Dolenja vas 2019",125]
[null,null,null,"6208 - Lutrško Selo 2019",6208,"Lutrško Selo 2019",173]
[null,null,null,"6209 - Sela pri Ratežu 2019",6209,"Sela pri Ratežu 2019",439]
[null,null,null,"6213 - Žaloviče 2019",6213,"Žaloviče 2019",132]
[null,null,null,"6227 - Dolenje Kronovo 2019",6227,"Dolenje Kronovo 2019",128]
[null,null,null,"6230 - Šmarješke Toplice 2019",6230,"Šmarješke Toplice 2019",562]
[null,null,null,"6235 - Šmarjeta 2019",6235,"Šmarjeta 2019",670]
[null,null,null,"6240 - Vinica pri Šmarjeti 2019",6240,"Vinica pri Šmarjeti 2019",112]
[null,null,null,"6263 - Srednja Bistrica 2019",6263,"Srednja Bistrica 2019",1304]
[null,null,null,"6264 - Dolnja Bistrica 2019",6264,"Dolnja Bistrica 2019",524]
[null,null,null,"6265 - Žižki 2019",6265,"Žižki 2019",1755]
[null,null,null,"6268 - Mala Polana – Brezovica 2019",6268,"Mala Polana – Brezovica 2019",248]
[null,null,null,"6270 - Velika Polana 2019",6270,"Velika Polana 2019",952]
[null,null,null,"6272 - Trnje 2019",6272,"Trnje 2019",592]
[null,null,null,"6273 - Mala Polana 2019",6273,"Mala Polana 2019",166]
[null,null,null,"6278 - Predstruge 2019",6278,"Predstruge 2019",336]
[null,null,null,"6279 - Podpeč – Videm 2019",6279,"Podpeč – Videm 2019",135]
[null,null,null,"6280 - Cesta v občini Dobrepolje 2019",6280,"Cesta v občini Dobrepolje 2019",266]
[null,null,null,"6284 - Podgora 2019",6284,"Podgora 2019",110]
[null,null,null,"6285 - Zdenska vas 2019",6285,"Zdenska vas 2019",224]
[null,null,null,"6286 - Bruhanja vas 2019",6286,"Bruhanja vas 2019",130]
[null,null,null,"6288 - Zagorica 2019",6288,"Zagorica 2019",199]
[null,null,null,"6289 - Kompolje 2019",6289,"Kompolje 2019",411]
[null,null,null,"6305 - Prevole 2019",6305,"Prevole 2019",97]
[null,null,null,"6308 - Visejec 2019",6308,"Visejec 2019",76]
[null,null,null,"6310 - Šmihel pri Žužemberku 2019",6310,"Šmihel pri Žužemberku 2019",261]
[null,null,null,"6323 - Lopata 2019",6323,"Lopata 2019",95]
[null,null,null,"6329 - Budganja vas 2019",6329,"Budganja vas 2019",88]
[null,null,null,"6339 - Žužemberk 2019",6339,"Žužemberk 2019",1244]
[null,null,null,"6342 - Reber 2019",6342,"Reber 2019",67]
[null,null,null,"6345 - Zalisec 2019",6345,"Zalisec 2019",59]
[null,null,null,"6354 - Trebča vas 2019",6354,"Trebča vas 2019",73]
[null,null,null,"6355 - Sadinja vas pri Dvoru 2019",6355,"Sadinja vas pri Dvoru 2019",378]
[null,null,null,"6357 - Dvor 2019",6357,"Dvor 2019",601]
[null,null,null,"6358 - Podgozd 2019",6358,"Podgozd 2019",83]
[null,null,null,"6365 - Hrastje pri Mirni Peči 2019",6365,"Hrastje pri Mirni Peči 2019",68]
[null,null,null,"6367 - Gornja Mirna Peč 2019",6367,"Gornja Mirna Peč 2019",482]
[null,null,null,"6371 - Veliki Lipovec 2019",6371,"Veliki Lipovec 2019",100]
[null,null,null,"6381 - Srednji Lipovec 2019",6381,"Srednji Lipovec 2019",76]
[null,null,null,"6384 - Goriška vas 2019",6384,"Goriška vas 2019",82]
[null,null,null,"6393 - Mirna Peč 2019",6393,"Mirna Peč 2019",414]
[null,null,null,"6395 - Biška vas 2019",6395,"Biška vas 2019",134]
[null,null,null,"6404 - Gorenji Globodol 2019",6404,"Gorenji Globodol 2019",110]
[null,null,null,"6405 - Šranga 2019",6405,"Šranga 2019",155]
[null,null,null,"6406 - Jablan 2019",6406,"Jablan 2019",158]
[null,null,null,"6416 - Veliki Kal 2019",6416,"Veliki Kal 2019",160]
[null,null,null,"6417 - Šentjurij na Dolenjskem 2019",6417,"Šentjurij na Dolenjskem 2019",74]
[null,null,null,"6426 - Ponikve 2019",6426,"Ponikve 2019",580]
[null,null,null,"6427 - Spodnje Brezovo 2019",6427,"Spodnje Brezovo 2019",154]
[null,null,null,"6434 - Višnja Gora 2019",6434,"Višnja Gora 2019",1078]
[null,null,null,"6438 - Dedni Dol 2019",6438,"Dedni Dol 2019",88]
[null,null,null,"6475 - Velika Dobrava 2019",6475,"Velika Dobrava 2019",96]
[null,null,null,"6482 - Spodnja Draga 2019",6482,"Spodnja Draga 2019",132]
[null,null,null,"6488 - Krka 2019",6488,"Krka 2019",245]
[null,null,null,"6500 - Veliko Črnelo 2019",6500,"Veliko Črnelo 2019",84]
[null,null,null,"6511 - Muljava 2019",6511,"Muljava 2019",393]
[null,null,null,"6512 - Ivančna Gorica 2019",6512,"Ivančna Gorica 2019",3375]
[null,null,null,"6519 - Stična 2019",6519,"Stična 2019",1360]
[null,null,null,"6531 - Metnaj 2019",6531,"Metnaj 2019",117]
[null,null,null,"6545 - Mekinje nad Stično 2019",6545,"Mekinje nad Stično 2019",218]
[null,null,null,"6547 - Ambrus 2019",6547,"Ambrus 2019",244]
[null,null,null,"6572 - Zagradec 2019",6572,"Zagradec 2019",277]
[null,null,null,"6580 - Šentvid pri Stični 2019",6580,"Šentvid pri Stični 2019",1431]
[null,null,null,"6581 - Glogovica 2019",6581,"Glogovica 2019",100]
[null,null,null,"6602 - Brezov dol 2019",6602,"Brezov dol 2019",162]
[null,null,null,"6609 - Češnjice pri Zagradcu 2019",6609,"Češnjice pri Zagradcu 2019",80]
[null,null,null,"6622 - Hrastov Dol 2019",6622,"Hrastov Dol 2019",102]
[null,null,null,"6624 - Dob pri Šentvidu 2019",6624,"Dob pri Šentvidu 2019",170]
[null,null,null,"6680 - Zagorica pri Velikem Gabru 2019",6680,"Zagorica pri Velikem Gabru 2019",253]
[null,null,null,"6694 - Veliki Gaber 2019",6694,"Veliki Gaber 2019",456]
[null,null,null,"6701 - Žubina 2019",6701,"Žubina 2019",114]
[null,null,null,"6749 - Velika Loka 2019",6749,"Velika Loka 2019",202]
[null,null,null,"6753 - Preska pri Dobrniču 2019",6753,"Preska pri Dobrniču 2019",63]
[null,null,null,"6761 - Škovec 2019",6761,"Škovec 2019",89]
[null,null,null,"6787 - Vrbovec 2019",6787,"Vrbovec 2019",94]
[null,null,null,"6794 - Slovenska vas – Mirna 2019",6794,"Slovenska vas – Mirna 2019",102]
[null,null,null,"6799 - Trebnje zahod 2019",6799,"Trebnje zahod 2019",670]
[null,null,null,"6808 - Grm 2019",6808,"Grm 2019",231]
[null,null,null,"6810 - Trebnje 2019",6810,"Trebnje 2019",4397]
[null,null,null,"6817 - Repče 2019",6817,"Repče 2019",99]
[null,null,null,"6824 - Jezero 2019",6824,"Jezero 2019",93]
[null,null,null,"6839 - Blato 2019",6839,"Blato 2019",99]
[null,null,null,"6841 - Račje Selo 2019",6841,"Račje Selo 2019",98]
[null,null,null,"6894 - Mirna 2019",6894,"Mirna 2019",1417]
[null,null,null,"6953 - Češnjice pri Trebelnem 2019",6953,"Češnjice pri Trebelnem 2019",79]
[null,null,null,"6989 - Pugled pri Mokronogu 2019",6989,"Pugled pri Mokronogu 2019",688]
[null,null,null,"7020 - Šentrupert 2019",7020,"Šentrupert 2019",369]
[null,null,null,"7024 - Hrastovica 2019",7024,"Hrastovica 2019",86]
[null,null,null,"7055 - Jevnica 2019",7055,"Jevnica 2019",784]
[null,null,null,"7077 - Kresnice 2019",7077,"Kresnice 2019",814]
[null,null,null,"7121 - Zavrstnik 2019",7121,"Zavrstnik 2019",198]
[null,null,null,"7124 - Zgornji Hotič 2019",7124,"Zgornji Hotič 2019",304]
[null,null,null,"7133 - Zgornji Log 2019",7133,"Zgornji Log 2019",153]
[null,null,null,"7134 - Spodnji Hotič 2019",7134,"Spodnji Hotič 2019",210]
[null,null,null,"7140 - Vintarjevec 2019",7140,"Vintarjevec 2019",121]
[null,null,null,"7143 - Grmače 2019",7143,"Grmače 2019",89]
[null,null,null,"7152 - Vače – Klenik 2019",7152,"Vače – Klenik 2019",353]
[null,null,null,"7164 - Smrekarica 2019",7164,"Smrekarica 2019",93]
[null,null,null,"7185 - Gradiške Laze 2019",7185,"Gradiške Laze 2019",152]
[null,null,null,"7187 - Dvor pri Bogenšperku 2019",7187,"Dvor pri Bogenšperku 2019",231]
[null,null,null,"7201 - Zgornja Jablanica 2019",7201,"Zgornja Jablanica 2019",82]
[null,null,null,"7214 - Selšek 2019",7214,"Selšek 2019",81]
[null,null,null,"7224 - Sava 2019",7224,"Sava 2019",246]
[null,null,null,"7231 - Spodnji Log 2019",7231,"Spodnji Log 2019",178]
[null,null,null,"7232 - Cerovica 2019",7232,"Cerovica 2019",149]
[null,null,null,"7352 - Gabrovka 2019",7352,"Gabrovka 2019",172]
[null,null,null,"7422 - Mlinše 2019",7422,"Mlinše 2019",219]
[null,null,null,"7463 - Izlake 2019",7463,"Izlake 2019",1477]
[null,null,null,"7468 - Valvazorjeva 2019",7468,"Valvazorjeva 2019",83]
[null,null,null,"7492 - Šentlambert 2019",7492,"Šentlambert 2019",78]
[null,null,null,"7503 - Čemšenik 2019",7503,"Čemšenik 2019",151]
[null,null,null,"7514 - Loke pri Zagorju 2019",7514,"Loke pri Zagorju 2019",2096]
[null,null,null,"7525 - Jesenovo 2019",7525,"Jesenovo 2019",112]
[null,null,null,"7526 - Čolnišče 2019",7526,"Čolnišče 2019",193]
[null,null,null,"7540 - Trbovlje 2019",7540,"Trbovlje 2019",16523]
[null,null,null,"7543 - Rove 2019",7543,"Rove 2019",114]
[null,null,null,"7603 - Škofja Riža 2019",7603,"Škofja Riža 2019",68]
[null,null,null,"7619 - Potoška vas 2019",7619,"Potoška vas 2019",120]
[null,null,null,"7622 - Zagorje ob Savi 2019",7622,"Zagorje ob Savi 2019",7997]
[null,null,null,"7708 - Gornji Grad 2019",7708,"Gornji Grad 2019",855]
[null,null,null,"7724 - Otok 2019",7724,"Otok 2019",305]
[null,null,null,"7737 - Volog 2019",7737,"Volog 2019",116]
[null,null,null,"7773 - Potok 2019",7773,"Potok 2019",109]
[null,null,null,"7783 - Kokarje 2019",7783,"Kokarje 2019",136]
[null,null,null,"7790 - Prihova 2019",7790,"Prihova 2019",2788]
[null,null,null,"7801 - Tešova 2019",7801,"Tešova 2019",67]
[null,null,null,"7835 - Prebold 2019",7835,"Prebold 2019",2620]
[null,null,null,"7857 - Prekopa 2019",7857,"Prekopa 2019",178]
[null,null,null,"7863 - Trnava 2019",7863,"Trnava 2019",441]
[null,null,null,"7864 - Gomilsko 2019",7864,"Gomilsko 2019",301]
[null,null,null,"7870 - Tabor 2019",7870,"Tabor 2019",731]
[null,null,null,"7883 - Pondor 2019",7883,"Pondor 2019",91]
[null,null,null,"7896 - Grajska vas 2019",7896,"Grajska vas 2019",278]
[null,null,null,"7901 - Braslovče 2019",7901,"Braslovče 2019",883]
[null,null,null,"7904 - Kamenče 2019",7904,"Kamenče 2019",187]
[null,null,null,"7933 - Šešče pri Preboldu 2019",7933,"Šešče pri Preboldu 2019",378]
[null,null,null,"7935 - Sveti Lovrenc 2019",7935,"Sveti Lovrenc 2019",313]
[null,null,null,"7995 - Ljubno ob Savinji 2019",7995,"Ljubno ob Savinji 2019",1166]
[null,null,null,"8013 - Radmirje 2019",8013,"Radmirje 2019",556]
[null,null,null,"8027 - Podpeca 2019",8027,"Podpeca 2019",2360]
[null,null,null,"8029 - Mežica 2019",8029,"Mežica 2019",3310]
[null,null,null,"8051 - Okonina 2019",8051,"Okonina 2019",164]
[null,null,null,"8063 - Žerjav 2019",8063,"Žerjav 2019",299]
[null,null,null,"8066 - Šentanel 2019",8066,"Šentanel 2019",138]
[null,null,null,"8102 - Leše 2019",8102,"Leše 2019",478]
[null,null,null,"8126 - Rečica ob Savinji 2019",8126,"Rečica ob Savinji 2019",623]
[null,null,null,"8136 - Prevalje 2019",8136,"Prevalje 2019",5360]
[null,null,null,"8140 - Radegunda 2019",8140,"Radegunda 2019",116]
[null,null,null,"8186 - Mozirje 2019",8186,"Mozirje 2019",2918]
[null,null,null,"8203 - Ravne na Koroškem 2019",8203,"Ravne na Koroškem 2019",8792]
[null,null,null,"8224 - Brdinje jug 2019",8224,"Brdinje jug 2019",116]
[null,null,null,"8225 - Brdinje sever 2019",8225,"Brdinje sever 2019",351]
[null,null,null,"8235 - Polzela 2019",8235,"Polzela 2019",10243]
[null,null,null,"8326 - Kotlje 2019",8326,"Kotlje 2019",1138]
[null,null,null,"8329 - Dobrije 2019",8329,"Dobrije 2019",196]
[null,null,null,"8360 - Hrastnik – Center 2019",8360,"Hrastnik – Center 2019",8368]
[null,null,null,"8373 - Zidani Most 2019",8373,"Zidani Most 2019",158]
[null,null,null,"8413 - Radeče 2019",8413,"Radeče 2019",2522]
[null,null,null,"8419 - Jagnjenica 2019",8419,"Jagnjenica 2019",335]
[null,null,null,"8422 - Vrhovo 2019",8422,"Vrhovo 2019",256]
[null,null,null,"8436 - Zidani Most – Vila 2019",8436,"Zidani Most – Vila 2019",152]
[null,null,null,"8476 - Dol pri Hrastniku 2019",8476,"Dol pri Hrastniku 2019",1716]
[null,null,null,"8494 - Spodnje Brdce – Brezno 2019",8494,"Spodnje Brdce – Brezno 2019",341]
[null,null,null,"8550 - Laško 2019",8550,"Laško 2019",8136]
[null,null,null,"8564 - Rimske Toplice 2019",8564,"Rimske Toplice 2019",872]
[null,null,null,"8603 - Boben 2019",8603,"Boben 2019",191]
[null,null,null,"8605 - Spodnja Rečica – Huda Jama 2019",8605,"Spodnja Rečica – Huda Jama 2019",162]
[null,null,null,"8753 - Jurklošter 2019",8753,"Jurklošter 2019",75]
[null,null,null,"8846 - Planina pri Sevnici 2019",8846,"Planina pri Sevnici 2019",455]
[null,null,null,"9101 - Šentjur 2019",9101,"Šentjur 2019",7681]
[null,null,null,"9121 - Proseniško 2019",9121,"Proseniško 2019",404]
[null,null,null,"9146 - Lokarje 2019",9146,"Lokarje 2019",67]
[null,null,null,"9147 - Dole 2019",9147,"Dole 2019",248]
[null,null,null,"9179 - Gorica pri Slivnici 2019",9179,"Gorica pri Slivnici 2019",417]
[null,null,null,"9227 - Grobelno – del 2019",9227,"Grobelno – del 2019",410]
[null,null,null,"9239 - Loka pri Žusmu 2019",9239,"Loka pri Žusmu 2019",178]
[null,null,null,"9242 - Hotunje – Ponikva 2019",9242,"Hotunje – Ponikva 2019",612]
[null,null,null,"9356 - Železno 2019",9356,"Železno 2019",577]
[null,null,null,"9361 - Kasaze 2019",9361,"Kasaze 2019",1129]
[null,null,null,"9362 - Zabukovica 2019",9362,"Zabukovica 2019",2108]
[null,null,null,"9416 - Spodnja Košnica 2019",9416,"Spodnja Košnica 2019",459]
[null,null,null,"9420 - Petrovče 2019",9420,"Petrovče 2019",2158]
[null,null,null,"9425 - Zgornje Roje 2019",9425,"Zgornje Roje 2019",146]
[null,null,null,"9429 - Žalec 2019",9429,"Žalec 2019",8636]
[null,null,null,"9445 - Spodnje Grušovlje 2019",9445,"Spodnje Grušovlje 2019",108]
[null,null,null,"9447 - Zgornje Grušovlje 2019",9447,"Zgornje Grušovlje 2019",195]
[null,null,null,"9467 - Podlog v Savinjski dolini 2019",9467,"Podlog v Savinjski dolini 2019",334]
[null,null,null,"9471 - Levec 2019",9471,"Levec 2019",523]
[null,null,null,"9498 - Gmajna 2019",9498,"Gmajna 2019",4436]
[null,null,null,"9622 - Dokležovje 2019",9622,"Dokležovje 2019",925]
[null,null,null,"9626 - Bratonci 2019",9626,"Bratonci 2019",781]
[null,null,null,"9628 - Ižakovci 2019",9628,"Ižakovci 2019",745]
[null,null,null,"9631 - Lipovci 2019",9631,"Lipovci 2019",1063]
[null,null,null,"9633 - Beltinci 2019",9633,"Beltinci 2019",2926]
[null,null,null,"9634 - Melinci 2019",9634,"Melinci 2019",815]
[null,null,null,"9635 - Gančani 2019",9635,"Gančani 2019",992]
[null,null,null,"9637 - Gančani – Hrašica 2019",9637,"Gančani – Hrašica 2019",61]
[null,null,null,"9638 - Odranci 2019",9638,"Odranci 2019",2020]
[null,null,null,"9639 - Lipa 2019",9639,"Lipa 2019",626]
[null,null,null,"9640 - Renkovci 2019",9640,"Renkovci 2019",642]
[null,null,null,"9641 - Kobilje 2019",9641,"Kobilje 2019",608]
[null,null,null,"9642 - Nedelica 2019",9642,"Nedelica 2019",516]
[null,null,null,"9644 - Gomilica 2019",9644,"Gomilica 2019",580]
[null,null,null,"9647 - Dobrovnik 2019",9647,"Dobrovnik 2019",932]
[null,null,null,"9648 - Turnišče 2019",9648,"Turnišče 2019",1619]
[null,null,null,"9650 - Žitkovci 2019",9650,"Žitkovci 2019",121]
[null,null,null,"9654 - Strehovci 2019",9654,"Strehovci 2019",184]
[null,null,null,"9736 - Ivenca 2019",9736,"Ivenca 2019",138]
[null,null,null,"9800 - Vešenik 2019",9800,"Vešenik 2019",9065]
[null,null,null,"9808 - Jankova 2019",9808,"Jankova 2019",85]
[null,null,null,"9885 - Mlače 2019",9885,"Mlače 2019",155]
[null,null,null,"9887 - Konjiška vas 2019",9887,"Konjiška vas 2019",182]
[null,null,null,"9913 - Loče 2019",9913,"Loče 2019",854]
[null,null,null,"9928 - Žiče – Draža vas 2019",9928,"Žiče – Draža vas 2019",458]
[null,null,null,"9933 - Tepanjski Vrh 2019",9933,"Tepanjski Vrh 2019",230]
[null,null,null,"9951 - Draža vas 2019",9951,"Draža vas 2019",1249]
[null,null,null,"9965 - Zbelovo 2019",9965,"Zbelovo 2019",282]
[null,null,null,"10259 - Vitanje 2019",10259,"Vitanje 2019",822]
[null,null,null,"10308 - Stranice 2019",10308,"Stranice 2019",499]
[null,null,null,"10333 - Zlakova 2019",10333,"Zlakova 2019",81]
[null,null,null,"10345 - Zreče 2019",10345,"Zreče 2019",3251]
[null,null,null,"10391 - Gorenje pri Zrečah 2019",10391,"Gorenje pri Zrečah 2019",79]
[null,null,null,"10408 - Pobrež 2019",10408,"Pobrež 2019",120]
[null,null,null,"10488 - Gornji Dolič 2019",10488,"Gornji Dolič 2019",135]
[null,null,null,"10503 - Šmartno pri Slovenj Gradcu 2019",10503,"Šmartno pri Slovenj Gradcu 2019",139]
[null,null,null,"10504 - Podgorje pri Slovenj Gradcu 2019",10504,"Podgorje pri Slovenj Gradcu 2019",397]
[null,null,null,"10533 - Žabja vas 2019",10533,"Žabja vas 2019",135]
[null,null,null,"10572 - Slovenj Gradec 2019",10572,"Slovenj Gradec 2019",12534]
[null,null,null,"10586 - Sele – Vrhe 2019",10586,"Sele – Vrhe 2019",119]
[null,null,null,"10648 - Mislinjska Dobrava 2019",10648,"Mislinjska Dobrava 2019",69]
[null,null,null,"10654 - Turiška vas 2019",10654,"Turiška vas 2019",443]
[null,null,null,"10657 - Tomaška vas 2019",10657,"Tomaška vas 2019",252]
[null,null,null,"10672 - Mala Mislinja 2019",10672,"Mala Mislinja 2019",70]
[null,null,null,"10704 - Šentilj – Mislinja 2019",10704,"Šentilj – Mislinja 2019",2241]
[null,null,null,"10770 - Libeliška Gora 2019",10770,"Libeliška Gora 2019",239]
[null,null,null,"10808 - Pameče 2019",10808,"Pameče 2019",138]
[null,null,null,"10838 - Ribnica na Pohorju 2019",10838,"Ribnica na Pohorju 2019",327]
[null,null,null,"10850 - Zgornji Lehen na Pohorju 2019",10850,"Zgornji Lehen na Pohorju 2019",380]
[null,null,null,"10872 - Vič 2019",10872,"Vič 2019",5389]
[null,null,null,"10875 - Koroški Selovec 2019",10875,"Koroški Selovec 2019",54]
[null,null,null,"10876 - Črneče 2019",10876,"Črneče 2019",429]
[null,null,null,"10956 - Gortina 2019",10956,"Gortina 2019",453]
[null,null,null,"10970 - Vuzenica 2019",10970,"Vuzenica 2019",165]
[null,null,null,"10979 - Vuhred 2019",10979,"Vuhred 2019",912]
[null,null,null,"10988 - Dobrava 2019",10988,"Dobrava 2019",186]
[null,null,null,"10991 - Zgornja Vižinga 2019",10991,"Zgornja Vižinga 2019",3763]
[null,null,null,"11010 - Zgornji Kozji Vrh 2019",11010,"Zgornji Kozji Vrh 2019",349]
[null,null,null,"11071 - Dolenje Mokro Polje 2019",11071,"Dolenje Mokro Polje 2019",166]
[null,null,null,"11126 - Šentjanž 2019",11126,"Šentjanž 2019",319]
[null,null,null,"11141 - Krmelj 2019",11141,"Krmelj 2019",673]
[null,null,null,"11158 - Tržišče 2019",11158,"Tržišče 2019",199]
[null,null,null,"11221 - Loka – Šentjernej 2019",11221,"Loka – Šentjernej 2019",98]
[null,null,null,"11222 - Gorenja Stara vas 2019",11222,"Gorenja Stara vas 2019",113]
[null,null,null,"11226 - Gorenje Gradišče pri Šentjerneju 2019",11226,"Gorenje Gradišče pri Šentjerneju 2019",198]
[null,null,null,"11232 - Dolenji Maharovec 2019",11232,"Dolenji Maharovec 2019",144]
[null,null,null,"11240 - Grmovlje 2019",11240,"Grmovlje 2019",117]
[null,null,null,"11241 - Dobruška vas 2019",11241,"Dobruška vas 2019",103]
[null,null,null,"11243 - Hrastulje 2019",11243,"Hrastulje 2019",640]
[null,null,null,"11277 - Lukovec 2019",11277,"Lukovec 2019",85]
[null,null,null,"11282 - Konjsko 2019",11282,"Konjsko 2019",67]
[null,null,null,"11332 - Orehovo 2019",11332,"Orehovo 2019",121]
[null,null,null,"11351 - Šmarčna – Breg 2019",11351,"Šmarčna – Breg 2019",88]
[null,null,null,"11363 - Loka – Račica 2019",11363,"Loka – Račica 2019",466]
[null,null,null,"11420 - Gorenje Vrhpolje 2019",11420,"Gorenje Vrhpolje 2019",354]
[null,null,null,"11424 - Šentjernej 2019",11424,"Šentjernej 2019",2763]
[null,null,null,"11428 - Dolenja Stara vas 2019",11428,"Dolenja Stara vas 2019",185]
[null,null,null,"11429 - Šmarje 2019",11429,"Šmarje 2019",292]
[null,null,null,"11452 - Groblje pri Prekopi 2019",11452,"Groblje pri Prekopi 2019",237]
[null,null,null,"11486 - Dobruška vas – poslovna cona 2019",11486,"Dobruška vas – poslovna cona 2019",261]
[null,null,null,"11509 - Sevnica 2019",11509,"Sevnica 2019",6510]
[null,null,null,"11535 - Dolnje Brezovo 2019",11535,"Dolnje Brezovo 2019",158]
[null,null,null,"11546 - Log 2019",11546,"Log 2019",294]
[null,null,null,"11558 - Arto 2019",11558,"Arto 2019",85]
[null,null,null,"11560 - Blanca 2019",11560,"Blanca 2019",188]
[null,null,null,"11677 - Veliko Mraševo 2019",11677,"Veliko Mraševo 2019",277]
[null,null,null,"11678 - Kalce – Naklo 2019",11678,"Kalce – Naklo 2019",176]
[null,null,null,"11696 - Ostrog 2019",11696,"Ostrog 2019",507]
[null,null,null,"11699 - Črneča vas 2019",11699,"Črneča vas 2019",131]
[null,null,null,"11709 - Kostanjevica na Krki 2019",11709,"Kostanjevica na Krki 2019",836]
[null,null,null,"11726 - Malo Mraševo 2019",11726,"Malo Mraševo 2019",110]
[null,null,null,"11737 - Šutna 2019",11737,"Šutna 2019",119]
[null,null,null,"11738 - Dobrava ob Krki 2019",11738,"Dobrava ob Krki 2019",94]
[null,null,null,"11745 - Podbočje 2019",11745,"Podbočje 2019",382]
[null,null,null,"11800 - Raka 2019",11800,"Raka 2019",295]
[null,null,null,"11831 - Veliki Podlog 2019",11831,"Veliki Podlog 2019",296]
[null,null,null,"11832 - Pristava pri Leskovcu 2019",11832,"Pristava pri Leskovcu 2019",110]
[null,null,null,"11833 - Mali Podlog 2019",11833,"Mali Podlog 2019",107]
[null,null,null,"11834 - Gržeča vas 2019",11834,"Gržeča vas 2019",105]
[null,null,null,"11836 - Gorica zgornji del 2019",11836,"Gorica zgornji del 2019",161]
[null,null,null,"11838 - Jelše 2019",11838,"Jelše 2019",151]
[null,null,null,"11841 - Velika vas pri Krškem 2019",11841,"Velika vas pri Krškem 2019",417]
[null,null,null,"11862 - Brege 2019",11862,"Brege 2019",251]
[null,null,null,"11866 - Drnovo 2019",11866,"Drnovo 2019",348]
[null,null,null,"11870 - Krško desni breg – Leskovec 2019",11870,"Krško desni breg – Leskovec 2019",8355]
[null,null,null,"11875 - Vihre 2019",11875,"Vihre 2019",161]
[null,null,null,"11876 - Mrtvice 2019",11876,"Mrtvice 2019",235]
[null,null,null,"11879 - Dolenja vas – Krško 2019",11879,"Dolenja vas – Krško 2019",658]
[null,null,null,"12067 - Senovo – Brestanica 2019",12067,"Senovo – Brestanica 2019",3856]
[null,null,null,"12146 - Žejno 2019",12146,"Žejno 2019",157]
[null,null,null,"12153 - Trebež 2019",12153,"Trebež 2019",208]
[null,null,null,"12154 - Hrastje pri Cerkljah 2019",12154,"Hrastje pri Cerkljah 2019",145]
[null,null,null,"12155 - Gorenje Skopice 2019",12155,"Gorenje Skopice 2019",427]
[null,null,null,"12156 - Račja vas 2019",12156,"Račja vas 2019",276]
[null,null,null,"12157 - Župeča vas 2019",12157,"Župeča vas 2019",455]
[null,null,null,"12158 - Zasap 2019",12158,"Zasap 2019",261]
[null,null,null,"12161 - Gornji Lenart 2019",12161,"Gornji Lenart 2019",7316]
[null,null,null,"12164 - Velike Malence 2019",12164,"Velike Malence 2019",800]
[null,null,null,"12188 - Artiče 2019",12188,"Artiče 2019",263]
[null,null,null,"12248 - Obrežje 2019",12248,"Obrežje 2019",1169]
[null,null,null,"12253 - Velika Dolina 2019",12253,"Velika Dolina 2019",217]
[null,null,null,"12272 - Mostec 2019",12272,"Mostec 2019",262]
[null,null,null,"12275 - Dvorce 2019",12275,"Dvorce 2019",98]
[null,null,null,"12277 - Čatež ob Savi 2019",12277,"Čatež ob Savi 2019",349]
[null,null,null,"12278 - Veliki Obrež 2019",12278,"Veliki Obrež 2019",1695]
[null,null,null,"12279 - Loče – Brežice 2019",12279,"Loče – Brežice 2019",213]
[null,null,null,"12467 - Sveta Ema 2019",12467,"Sveta Ema 2019",96]
[null,null,null,"12468 - Podčetrtek 2019",12468,"Podčetrtek 2019",396]
[null,null,null,"12469 - Imeno 2019",12469,"Imeno 2019",358]
[null,null,null,"12504 - Kozje 2019",12504,"Kozje 2019",550]
[null,null,null,"12781 - Bistrica ob Sotli 2019",12781,"Bistrica ob Sotli 2019",268]
[null,null,null,"12964 - Šentvid pri Grobelnem 2019",12964,"Šentvid pri Grobelnem 2019",97]
[null,null,null,"13056 - Sodisinci – Gederovci 2019",13056,"Sodisinci – Gederovci 2019",727]
[null,null,null,"13059 - Vanca vas – Rankovci 2019",13059,"Vanca vas – Rankovci 2019",1101]
[null,null,null,"13061 - Petanjci – Tišina – Tropovci – Gradišče 2019",13061,"Petanjci – Tišina – Tropovci – Gradišče 2019",2038]
[null,null,null,"13065 - Murski Črnci 2019",13065,"Murski Črnci 2019",485]
[null,null,null,"13068 - Satahovci 2019",13068,"Satahovci 2019",339]
[null,null,null,"13070 - Polana 2019",13070,"Polana 2019",223]
[null,null,null,"13072 - Krog 2019",13072,"Krog 2019",1297]
[null,null,null,"13073 - Veščica 2019",13073,"Veščica 2019",2161]
[null,null,null,"13074 - Bakovci 2019",13074,"Bakovci 2019",1687]
[null,null,null,"13077 - Markišavci 2019",13077,"Markišavci 2019",217]
[null,null,null,"13080 - Murska sobota 2019",13080,"Murska sobota 2019",14192]
[null,null,null,"13086 - Rakičan – Jezera 2019",13086,"Rakičan – Jezera 2019",132]
[null,null,null,"13094 - Sebeborci 2019",13094,"Sebeborci 2019",396]
[null,null,null,"13097 - Rakičan 2019",13097,"Rakičan 2019",1374]
[null,null,null,"13111 - Noršinci – Mlajtinci 2019",13111,"Noršinci – Mlajtinci 2019",520]
[null,null,null,"13115 - Moravske Toplice 2019",13115,"Moravske Toplice 2019",814]
[null,null,null,"13135 - Tešanovci 2019",13135,"Tešanovci 2019",406]
[null,null,null,"13140 - Ivanci 2019",13140,"Ivanci 2019",266]
[null,null,null,"13176 - Filovci 2019",13176,"Filovci 2019",411]
[null,null,null,"13186 - Čikečka vas 2019",13186,"Čikečka vas 2019",87]
[null,null,null,"13265 - Rjavica – Cvetlični hrib 2019",13265,"Rjavica – Cvetlični hrib 2019",7803]
[null,null,null,"13277 - Spodnje Sečovo 2019",13277,"Spodnje Sečovo 2019",281]
[null,null,null,"13361 - Poljčane 2019",13361,"Poljčane 2019",1921]
[null,null,null,"13420 - Kebelj 2019",13420,"Kebelj 2019",152]
[null,null,null,"13427 - Veliko Tinje 2019",13427,"Veliko Tinje 2019",124]
[null,null,null,"13493 - Lovrenc 2019",13493,"Lovrenc 2019",2204]
[null,null,null,"13569 - Šmartno na Pohorju 2019",13569,"Šmartno na Pohorju 2019",125]
[null,null,null,"13582 - Zgornja Polskava 2019",13582,"Zgornja Polskava 2019",3263]
[null,null,null,"13608 - Zgornji Boč 2019",13608,"Zgornji Boč 2019",253]
[null,null,null,"13627 - Janževa Gora 2019",13627,"Janževa Gora 2019",1696]
[null,null,null,"13652 - Ruše 2019",13652,"Ruše 2019",5700]
[null,null,null,"13656 - Zgornja Selnica 2019",13656,"Zgornja Selnica 2019",796]
[null,null,null,"13695 - Makole 2019",13695,"Makole 2019",261]
[null,null,null,"13783 - Leskovec 2019",13783,"Leskovec 2019",345]
[null,null,null,"13784 - Črešnjevec 2019",13784,"Črešnjevec 2019",437]
[null,null,null,"13792 - Pragersko 2019",13792,"Pragersko 2019",1989]
[null,null,null,"13799 - Brezno 2019",13799,"Brezno 2019",327]
[null,null,null,"13807 - Podvelka 2019",13807,"Podvelka 2019",484]
[null,null,null,"13819 - Ožbalt 2019",13819,"Ožbalt 2019",211]
[null,null,null,"13933 - Sveti Jurij – Donačka gora 2019",13933,"Sveti Jurij – Donačka gora 2019",79]
[null,null,null,"13943 - Rogatec 2019",13943,"Rogatec 2019",1589]
[null,null,null,"14037 - Starošince 2019",14037,"Starošince 2019",230]
[null,null,null,"14038 - Kungota pri Ptuju 2019",14038,"Kungota pri Ptuju 2019",509]
[null,null,null,"14039 - Gerečja vas 2019",14039,"Gerečja vas 2019",520]
[null,null,null,"14045 - Sestrže 2019",14045,"Sestrže 2019",129]
[null,null,null,"14122 - Koritno – Breg 2019",14122,"Koritno – Breg 2019",429]
[null,null,null,"14167 - Župečja vas 2019",14167,"Župečja vas 2019",1579]
[null,null,null,"14170 - Spodnje Jablane 2019",14170,"Spodnje Jablane 2019",1517]
[null,null,null,"14402 - Apače 2019",14402,"Apače 2019",2952]
[null,null,null,"14405 - Trnovec 2019",14405,"Trnovec 2019",232]
[null,null,null,"14407 - Videm pri Ptuju 2019",14407,"Videm pri Ptuju 2019",1509]
[null,null,null,"14419 - Zgornja Pristava 2019",14419,"Zgornja Pristava 2019",1061]
[null,null,null,"14425 - Zgornja Hajdina 2019",14425,"Zgornja Hajdina 2019",301]
[null,null,null,"14491 - Zgornja Gorica 2019",14491,"Zgornja Gorica 2019",355]
[null,null,null,"14495 - Dvorjane 2019",14495,"Dvorjane 2019",690]
[null,null,null,"14514 - Hoče 2019",14514,"Hoče 2019",4434]
[null,null,null,"14522 - Hotinja vas 2019",14522,"Hotinja vas 2019",76]
[null,null,null,"14523 - Skoke 2019",14523,"Skoke 2019",1977]
[null,null,null,"14526 - Brunšvik 2019",14526,"Brunšvik 2019",487]
[null,null,null,"14527 - Trniče 2019",14527,"Trniče 2019",1583]
[null,null,null,"14528 - Zlatoličje 2019",14528,"Zlatoličje 2019",785]
[null,null,null,"14531 - Rošnja 2019",14531,"Rošnja 2019",734]
[null,null,null,"14533 - Dravski Dvor 2019",14533,"Dravski Dvor 2019",672]
[null,null,null,"14534 - Vurberk 2019",14534,"Vurberk 2019",235]
[null,null,null,"14537 - Starše 2019",14537,"Starše 2019",876]
[null,null,null,"14544 - Bohova 2019",14544,"Bohova 2019",338]
[null,null,null,"14552 - Zgornje Hoče 2019",14552,"Zgornje Hoče 2019",358]
[null,null,null,"14557 - Rogoza 2019",14557,"Rogoza 2019",1675]
[null,null,null,"14574 - Zimica 2019",14574,"Zimica 2019",120]
[null,null,null,"14607 - Pivola – Razvanje 2019",14607,"Pivola – Razvanje 2019",1179]
[null,null,null,"14752 - Svečina 2019",14752,"Svečina 2019",66]
[null,null,null,"14765 - Spodnje Dobrenje 2019",14765,"Spodnje Dobrenje 2019",954]
[null,null,null,"14814 - Zgornja Kungota 2019",14814,"Zgornja Kungota 2019",934]
[null,null,null,"14830 - Sobetinci 2019",14830,"Sobetinci 2019",181]
[null,null,null,"14837 - Zagojiči 2019",14837,"Zagojiči 2019",182]
[null,null,null,"14860 - Cirkulane 2019",14860,"Cirkulane 2019",319]
[null,null,null,"14870 - Stojnci 2019",14870,"Stojnci 2019",2952]
[null,null,null,"14884 - Zamušani 2019",14884,"Zamušani 2019",1743]
[null,null,null,"14936 - Hrastovec – Goričak 2019",14936,"Hrastovec – Goričak 2019",152]
[null,null,null,"14956 - Borovci 2019",14956,"Borovci 2019",549]
[null,null,null,"14968 - Juršinci 2019",14968,"Juršinci 2019",222]
[null,null,null,"15046 - Sodnice – Suha veja 2019",15046,"Sodnice – Suha veja 2019",254]
[null,null,null,"15054 - Trnovski Vrh 2019",15054,"Trnovski Vrh 2019",558]
[null,null,null,"15057 - Grajena 2019",15057,"Grajena 2019",221]
[null,null,null,"15065 - Ptuj 2019",15065,"Ptuj 2019",25455]
[null,null,null,"15120 - Pacinje 2019",15120,"Pacinje 2019",162]
[null,null,null,"15125 - Mezgovci ob Pesnici 2019",15125,"Mezgovci ob Pesnici 2019",1642]
[null,null,null,"15189 - Cerkvenjak 2019",15189,"Cerkvenjak 2019",399]
[null,null,null,"15236 - Trnovska vas 2019",15236,"Trnovska vas 2019",270]
[null,null,null,"15257 - Spodnja Voličina 2019",15257,"Spodnja Voličina 2019",431]
[null,null,null,"15318 - Močna 2019",15318,"Močna 2019",164]
[null,null,null,"15333 - Hrastovec v Slovenskih goricah 2019",15333,"Hrastovec v Slovenskih goricah 2019",122]
[null,null,null,"15355 - Jurovski Dol 2019",15355,"Jurovski Dol 2019",252]
[null,null,null,"15392 - Lormanje 2019",15392,"Lormanje 2019",150]
[null,null,null,"15408 - Zgornji Žerjavci 2019",15408,"Zgornji Žerjavci 2019",143]
[null,null,null,"15476 - Sladki vrh 2019",15476,"Sladki vrh 2019",774]
[null,null,null,"15483 - Jerenina 2019",15483,"Jerenina 2019",245]
[null,null,null,"15543 - Pernica 2019",15543,"Pernica 2019",369]
[null,null,null,"15623 - Štrihovec 2019",15623,"Štrihovec 2019",112]
[null,null,null,"15760 - Vranji Vrh 2019",15760,"Vranji Vrh 2019",118]
[null,null,null,"15844 - Cankova 2019",15844,"Cankova 2019",496]
[null,null,null,"15879 - Sveti Jurij 2019",15879,"Sveti Jurij 2019",497]
[null,null,null,"15900 - Ropoča 2019",15900,"Ropoča 2019",133]
[null,null,null,"15908 - Sotina zgornji del 2019",15908,"Sotina zgornji del 2019",58]
[null,null,null,"15914 - Sotina spodnji del 2019",15914,"Sotina spodnji del 2019",193]
[null,null,null,"15926 - Motovilci 2019",15926,"Motovilci 2019",242]
[null,null,null,"15942 - Vadarci 2019",15942,"Vadarci 2019",62]
[null,null,null,"15983 - Kuzma 2019",15983,"Kuzma 2019",238]
[null,null,null,"16018 - Zenkovci 2019",16018,"Zenkovci 2019",111]
[null,null,null,"16037 - Lemerje 2019",16037,"Lemerje 2019",223]
[null,null,null,"16075 - Dolič 2019",16075,"Dolič 2019",72]
[null,null,null,"16102 - Predanovci 2019",16102,"Predanovci 2019",208]
[null,null,null,"16129 - Gorica v občini Puconci 2019",16129,"Gorica v občini Puconci 2019",287]
[null,null,null,"16148 - Puconci 2019",16148,"Puconci 2019",674]
[null,null,null,"16226 - Dolina 2019",16226,"Dolina 2019",105]
[null,null,null,"16258 - Gornji Petrovci 2019",16258,"Gornji Petrovci 2019",157]
[null,null,null,"16351 - Šalovci 2019",16351,"Šalovci 2019",221]
[null,null,null,"16373 - Muta 2019",16373,"Muta 2019",4476]
[null,null,null,"16374 - Šentilj v Slovenskih goricah 2019",16374,"Šentilj v Slovenskih goricah 2019",2534]
[null,null,null,"16376 - Ceršak 2019",16376,"Ceršak 2019",547]
[null,null,null,"16392 - Gradišče nad Pijavo Gorico 2019",16392,"Gradišče nad Pijavo Gorico 2019",1540]
[null,null,null,"16394 - Šmarje pri Jelšah 2019",16394,"Šmarje pri Jelšah 2019",2174]
[null,null,null,"16402 - Mestinje 2019",16402,"Mestinje 2019",286]
[null,null,null,"16412 - Vransko 2019",16412,"Vransko 2019",931]
[null,null,null,"16421 - Oplotnica 2019",16421,"Oplotnica 2019",1752]
[null,null,null,"16422 - Podlehnik 2019",16422,"Podlehnik 2019",281]
[null,null,null,"16432 - Pesnica pri Mariboru 2019",16432,"Pesnica pri Mariboru 2019",866]
[null,null,null,"16446 - Zgornja Senarska 2019",16446,"Zgornja Senarska 2019",788]
[null,null,null,"16449 - Lenart v Slovenskih goricah 2019",16449,"Lenart v Slovenskih goricah 2019",3532]
[null,null,null,"16452 - Voličina 2019",16452,"Voličina 2019",173]
[null,null,null,"16454 - Zavrh 2019",16454,"Zavrh 2019",543]
[null,null,null,"16458 - Zgornji in Spodnji Duplek 2019",16458,"Zgornji in Spodnji Duplek 2019",3608]
[null,null,null,"16466 - Borovnica 2019",16466,"Borovnica 2019",3926]
[null,null,null,"16473 - Razori in Draževnik 2019",16473,"Razori in Draževnik 2019",986]
[null,null,null,"16481 - Ljubljana 2019",16481,"Ljubljana 2019",416808]
[null,null,null,"16485 - Šentjakob 2019",16485,"Šentjakob 2019",1916]
[null,null,null,"16491 - Fram – Morje 2019",16491,"Fram – Morje 2019",2144]
[null,null,null,"16494 - Rače 2019",16494,"Rače 2019",4540]
[null,null,null,"16495 - Benedikt 2019",16495,"Benedikt 2019",1197]
[null,null,null,"16497 - Žirovnica 2019",16497,"Žirovnica 2019",3681]
[null,null,null,"16501 - Videm 2019",16501,"Videm 2019",655]
[null,null,null,"16502 - Mala vas 2019",16502,"Mala vas 2019",128]
[null,null,null,"16508 - Spodnja Idrija 2019",16508,"Spodnja Idrija 2019",1592]
[null,null,null,"16513 - Luče – Raduha 2019",16513,"Luče – Raduha 2019",520]
[null,null,null,"16519 - Miklavž na Dravskem polju 2019",16519,"Miklavž na Dravskem polju 2019",4790]
[null,null,null,"16520 - Bistrica ob Dravi – Log 2019",16520,"Bistrica ob Dravi – Log 2019",1581]
[null,null,null,"20002 - Kamnik 2019",20002,"Kamnik 2019",22500]
[null,null,null,"20004 - Mengeš 2019",20004,"Mengeš 2019",16286]
[null,null,null,"20007 - Litija – Šmartno 2019",20007,"Litija – Šmartno 2019",9335]
[null,null,null,"20008 - Kostanjevec – Visole 2019",20008,"Kostanjevec – Visole 2019",248]
[null,null,null,"20009 - Slovenska Bistrica 2019",20009,"Slovenska Bistrica 2019",9979]
[null,null,null,"20010 - Majšperk 2019",20010,"Majšperk 2019",446]
[null,null,null,"20015 - Ranhol 2019",20015,"Ranhol 2019",89]
[null,null,null,"20018 - Koper 2019",20018,"Koper 2019",37231]
[null,null,null,"20020 - Ankaran – Hrvatini 2019",20020,"Ankaran – Hrvatini 2019",6534]
[null,null,null,"20022 - Škofije 2019",20022,"Škofije 2019",2576]
[null,null,null,"20027 - Bertoki 2019",20027,"Bertoki 2019",3075]
[null,null,null,"20028 - Dekani 2019",20028,"Dekani 2019",1457]
[null,null,null,"20030 - Sveti Anton 2019",20030,"Sveti Anton 2019",3112]
[null,null,null,"20032 - Kubed 2019",20032,"Kubed 2019",188]
[null,null,null,"20033 - Bezovica 2019",20033,"Bezovica 2019",67]
[null,null,null,"20037 - Zazid 2019",20037,"Zazid 2019",82]
[null,null,null,"20039 - Poletiči 2019",20039,"Poletiči 2019",344]
[null,null,null,"20045 - Šmarje – Dolenja Brezovica 2019",20045,"Šmarje – Dolenja Brezovica 2019",872]
[null,null,null,"20050 - Marezige 2019",20050,"Marezige 2019",795]
[null,null,null,"20057 - Cerej – Premančan 2019",20057,"Cerej – Premančan 2019",113]
[null,null,null,"20071 - Robanci 2019",20071,"Robanci 2019",105]
[null,null,null,"20083 - Elerji 2019",20083,"Elerji 2019",179]
[null,null,null,"20102 - Plavje – Badiha 2019",20102,"Plavje – Badiha 2019",454]
[null,null,null,"20103 - Osp 2019",20103,"Osp 2019",189]
[null,null,null,"20129 - Tinjan 2019",20129,"Tinjan 2019",86]
[null,null,null,"20135 - Gabrovica 2019",20135,"Gabrovica 2019",116]
[null,null,null,"20144 - Na Vardi 2019",20144,"Na Vardi 2019",1494]
[null,null,null,"20147 - Črni Kal zgornja vas 2019",20147,"Črni Kal zgornja vas 2019",146]
[null,null,null,"20166 - Krnica 2019",20166,"Krnica 2019",75]
[null,null,null,"20178 - Rižana 2019",20178,"Rižana 2019",243]
[null,null,null,"20217 - Loka 2019",20217,"Loka 2019",109]
[null,null,null,"20289 - Gažon 2019",20289,"Gažon 2019",756]
[null,null,null,"20313 - Vanganelska dolina 2019",20313,"Vanganelska dolina 2019",2848]
[null,null,null,"20339 - Paderna 2019",20339,"Paderna 2019",242]
[null,null,null,"20344 - Hrastovlje 2019",20344,"Hrastovlje 2019",146]
[null,null,null,"20351 - Lopar 2019",20351,"Lopar 2019",152]
[null,null,null,"20355 - Čentur 2019",20355,"Čentur 2019",129]
[null,null,null,"20363 - Dol pri Hrastovljah 2019",20363,"Dol pri Hrastovljah 2019",118]
[null,null,null,"20365 - Popetre 2019",20365,"Popetre 2019",171]
[null,null,null,"20368 - Pomjan 2019",20368,"Pomjan 2019",198]
[null,null,null,"20391 - Boršt 2019",20391,"Boršt 2019",217]
[null,null,null,"20398 - Koštabona 2019",20398,"Koštabona 2019",249]
[null,null,null,"20407 - Puče spodnja vas 2019",20407,"Puče spodnja vas 2019",134]
[null,null,null,"20409 - Movraž 2019",20409,"Movraž 2019",144]
[null,null,null,"20425 - Rakitovec 2019",20425,"Rakitovec 2019",76]
[null,null,null,"20430 - Krkavče 2019",20430,"Krkavče 2019",106]
[null,null,null,"20490 - Socka 2019",20490,"Socka 2019",254]
[null,null,null,"20500 - Frankolovo 2019",20500,"Frankolovo 2019",340]
[null,null,null,"20503 - Razdelj 2019",20503,"Razdelj 2019",80]
[null,null,null,"20506 - Nova cerkev 2019",20506,"Nova cerkev 2019",461]
[null,null,null,"20507 - Višnja vas 2019",20507,"Višnja vas 2019",149]
[null,null,null,"20513 - Dobrna 2019",20513,"Dobrna 2019",1689]
[null,null,null,"20529 - Prožinska vas 2019",20529,"Prožinska vas 2019",68]
[null,null,null,"20535 - Slatina v Rožni Dolini 2019",20535,"Slatina v Rožni Dolini 2019",80]
[null,null,null,"20543 - Celje 2019",20543,"Celje 2019",76307]
[null,null,null,"20555 - Bukovščica 2019",20555,"Bukovščica 2019",85]
[null,null,null,"20558 - Ševlje 2019",20558,"Ševlje 2019",176]
[null,null,null,"20559 - Bukovica 2019",20559,"Bukovica 2019",202]
[null,null,null,"20560 - Praprotno 2019",20560,"Praprotno 2019",110]
[null,null,null,"20563 - Pevno 2019",20563,"Pevno 2019",90]
[null,null,null,"20565 - Gabrk 2019",20565,"Gabrk 2019",106]
[null,null,null,"20566 - Brode 2019",20566,"Brode 2019",143]
[null,null,null,"20567 - Draga 2019",20567,"Draga 2019",145]
[null,null,null,"20568 - Na Logu 2019",20568,"Na Logu 2019",69]
[null,null,null,"20570 - Škofja Loka 2019",20570,"Škofja Loka 2019",27127]
[null,null,null,"20573 - Log nad Škofjo Loko 2019",20573,"Log nad Škofjo Loko 2019",141]
[null,null,null,"20575 - Zminec spodnji del 2019",20575,"Zminec spodnji del 2019",112]
[null,null,null,"20576 - Zminec 2019",20576,"Zminec 2019",310]
[null,null,null,"20578 - Bodovlje 2019",20578,"Bodovlje 2019",179]
[null,null,null,"20582 - Pungert 2019",20582,"Pungert 2019",153]
[null,null,null,"20585 - Reteče – Godešič 2019",20585,"Reteče – Godešič 2019",1757]
[null,null,null,"20594 - Kranj 2019",20594,"Kranj 2019",58617]
[null,null,null,"20619 - Škale – Hrastovec 2019",20619,"Škale – Hrastovec 2019",1270]
[null,null,null,"20630 - Paški Kozjak 2019",20630,"Paški Kozjak 2019",86]
[null,null,null,"20674 - Arnače 2019",20674,"Arnače 2019",225]
[null,null,null,"20692 - Bevče – Črnova 2019",20692,"Bevče – Črnova 2019",297]
[null,null,null,"20702 - Vinska Gora 2019",20702,"Vinska Gora 2019",915]
[null,null,null,"20705 - Laze v občini Velenje 2019",20705,"Laze v občini Velenje 2019",288]
[null,null,null,"20709 - Velenje – Šoštanj 2019",20709,"Velenje – Šoštanj 2019",40851]
[null,null,null,"20710 - Paka – Trebeliško 2019",20710,"Paka – Trebeliško 2019",74]
[null,null,null,"20737 - Ravne 2019",20737,"Ravne 2019",392]
[null,null,null,"20788 - Topolšica 2019",20788,"Topolšica 2019",1729]
[null,null,null,"20790 - Gaberke 2019",20790,"Gaberke 2019",634]
[null,null,null,"20792 - Lokovica 2019",20792,"Lokovica 2019",430]
[null,null,null,"20801 - Letuš 2019",20801,"Letuš 2019",759]
[null,null,null,"20808 - Gorenje 2019",20808,"Gorenje 2019",200]
[null,null,null,"20813 - Paška vas 2019",20813,"Paška vas 2019",519]
[null,null,null,"20827 - Šmartno ob Paki 2019",20827,"Šmartno ob Paki 2019",1619]
[null,null,null,"20841 - Zamušani – Osluševci 2019",20841,"Zamušani – Osluševci 2019",458]
[null,null,null,"20847 - Radizel 2019",20847,"Radizel 2019",4659]
[null,null,null,"20900 - Šared 2019",20900,"Šared 2019",473]
[null,null,null,"20901 - Izola Mesto 2019",20901,"Izola Mesto 2019",21485]
[null,null,null,"20902 - Korte 2019",20902,"Korte 2019",783]
[null,null,null,"20905 - Medoši 2019",20905,"Medoši 2019",158]
[null,null,null,"20907 - Cetore 2019",20907,"Cetore 2019",113]
[null,null,null,"20910 - Šmarje – Sap 2019",20910,"Šmarje – Sap 2019",2799]
[null,null,null,"20911 - Škofljica 2019",20911,"Škofljica 2019",6855]
[null,null,null,"30003 - Dragonja – Slami 2019",30003,"Dragonja – Slami 2019",73]
[null,null,null,"30006 - Puče zgornja vas 2019",30006,"Puče zgornja vas 2019",56]
[null,null,null,"30010 - Šalara 2019",30010,"Šalara 2019",136]
[null,null,null,"30011 - Labor 2019",30011,"Labor 2019",72]
[null,null,null,"30027 - Predloka 2019",30027,"Predloka 2019",86]
[null,null,null,"30029 - Škocjan – Pobegi 2019",30029,"Škocjan – Pobegi 2019",64]
[null,null,null,"30035 - Škocjan 2019",30035,"Škocjan 2019",86]
[null,null,null,"30055 - Ocizla 2019",30055,"Ocizla 2019",134]
[null,null,null,"30059 - Dobravlje 2019",30059,"Dobravlje 2019",64]
[null,null,null,"30208 - Rakovica 2019",30208,"Rakovica 2019",76]
[null,null,null,"30215 - Podmolnik – Završje 2019",30215,"Podmolnik – Završje 2019",57]
[null,null,null,"30228 - Depala vas 2019",30228,"Depala vas 2019",62]
[null,null,null,"30322 - Hudeje 2019",30322,"Hudeje 2019",299]
[null,null,null,"30338 - Gazice 2019",30338,"Gazice 2019",71]
[null,null,null,"30372 - Gorica spodnji del 2019",30372,"Gorica spodnji del 2019",237]
[null,null,null,"30627 - Gomilica zahod 2019",30627,"Gomilica zahod 2019",62]
[null,null,null,"30651 - Stopče 2019",30651,"Stopče 2019",271]
[null,null,null,"40000 - Dobrava – Belveder 2019",40000,"Dobrava – Belveder 2019",580]
[null,null,null,"40002 - Iga vas 2019",40002,"Iga vas 2019",149]
[null,null,null,"40003 - Kot pri Ribnici 2019",40003,"Kot pri Ribnici 2019",92]
[null,null,null,"40004 - Vinice 2019",40004,"Vinice 2019",101]
[null,null,null,"40005 - Hrenovice – Dilce 2019",40005,"Hrenovice – Dilce 2019",163]
[null,null,null,"40006 - Veliki Otok 2019",40006,"Veliki Otok 2019",586]
[null,null,null,"40007 - Straža 2019",40007,"Straža 2019",432]
[null,null,null,"40008 - Cerov log 2019",40008,"Cerov log 2019",147]
[null,null,null,"40010 - Oštrc 2019",40010,"Oštrc 2019",99]
[null,null,null,"40011 - Pušče 2019",40011,"Pušče 2019",75]
[null,null,null,"40012 - Sela 2019",40012,"Sela 2019",179]
[null,null,null,"40014 - Jezero – Grm 2019",40014,"Jezero – Grm 2019",124]
[null,null,null,"40015 - Mala Račna 2019",40015,"Mala Račna 2019",132]
[null,null,null,"40016 - Brezovica pri Borovnici 2019",40016,"Brezovica pri Borovnici 2019",85]
[null,null,null,"40017 - Odrga 2019",40017,"Odrga 2019",61]
[null,null,null,"40018 - Vitovlje 2019",40018,"Vitovlje 2019",505]
[null,null,null,"40019 - Boštanj 2019",40019,"Boštanj 2019",79]
[null,null,null,"40020 - Črni Vrh – Trebče 2019",40020,"Črni Vrh – Trebče 2019",124]
[null,null,null,"40021 - Marof 2019",40021,"Marof 2019",133]
[null,null,null,"40022 - Štorovje 2019",40022,"Štorovje 2019",84]
[null,null,null,"40023 - Ozeljan 2019",40023,"Ozeljan 2019",854]
[null,null,null,"40025 - Gumnišče 2019",40025,"Gumnišče 2019",101]
[null,null,null,"40026 - Iška Loka 2019",40026,"Iška Loka 2019",237]
[null,null,null,"40027 - Podmolnik – Mareška Pot 2019",40027,"Podmolnik – Mareška Pot 2019",50]
[null,null,null,"40028 - Šmarčna 2019",40028,"Šmarčna 2019",97]
[null,null,null,"40029 - Šujica 2019",40029,"Šujica 2019",284]
[null,null,null,"40030 - Ihan 2019",40030,"Ihan 2019",204]
[null,null,null,"40031 - Žlebe zahod 2019",40031,"Žlebe zahod 2019",75]
[null,null,null,"40033 - Zgorni Klek 2019",40033,"Zgorni Klek 2019",173]
[null,null,null,"40035 - Dobruša 2019",40035,"Dobruša 2019",98]
[null,null,null,"40037 - Dvor – Šmarje pri Jelšah 2019",40037,"Dvor – Šmarje pri Jelšah 2019",143]
[null,null,null,"40038 - Šmatevž 2019",40038,"Šmatevž 2019",183]
[null,null,null,"40039 - Zgornja Besnica – Nova vas 2019",40039,"Zgornja Besnica – Nova vas 2019",316]
[null,null,null,"40040 - Ovsiše 2019",40040,"Ovsiše 2019",145]
[null,null,null,"40041 - Železno – Pernovo 2019",40041,"Železno – Pernovo 2019",223]
[null,null,null,"40042 - Zgornje Poljčane 2019",40042,"Zgornje Poljčane 2019",619]
[null,null,null,"40043 - Čadramska vas 2019",40043,"Čadramska vas 2019",183]
[null,null,null,"40044 - Oplotnica spodnji del 2019",40044,"Oplotnica spodnji del 2019",74]
[null,null,null,"40045 - Kostanjevec 2019",40045,"Kostanjevec 2019",228]
[null,null,null,"40046 - Bukovec 2019",40046,"Bukovec 2019",96]
[null,null,null,"40047 - Pacinje – Ptuj 2019",40047,"Pacinje – Ptuj 2019",180]
[null,null,null,"40048 - Ptuj – Kicar 2019",40048,"Ptuj – Kicar 2019",141]
[null,null,null,"40049 - Spodnji Velovlek 2019",40049,"Spodnji Velovlek 2019",135]
[null,null,null,"40051 - Dogoše 2019",40051,"Dogoše 2019",553]
[null,null,null,"40052 - Pekre 2019",40052,"Pekre 2019",175]
[null,null,null,"40053 - Metava 2019",40053,"Metava 2019",475]
[null,null,null,"40054 - Črešnjevec ob Dravi 2019",40054,"Črešnjevec ob Dravi 2019",197]
[null,null,null,"40055 - Limbuška Grapa 2019",40055,"Limbuška Grapa 2019",73]
[null,null,null,"40056 - Zrkovci 2019",40056,"Zrkovci 2019",688]
[null,null,null,"40057 - Trčova 2019",40057,"Trčova 2019",165]
[null,null,null,"40058 - Limbuš 2019",40058,"Limbuš 2019",226]
[null,null,null,"40059 - Malečnik 2019",40059,"Malečnik 2019",503]
[null,null,null,"40061 - Kamnica 2019",40061,"Kamnica 2019",141]
[null,null,null,"40065 - Uršna Sela – Mokuta 2019",40065,"Uršna Sela – Mokuta 2019",192]
[null,null,null,"50000 - Stari Trg ob Kolpi 2019",50000,"Stari Trg ob Kolpi 2019",127]
[null,null,null,"50001 - Sveti Anton – Vrtine 2019",50001,"Sveti Anton – Vrtine 2019",63]
[null,null,null,"50002 - Črni Kal spodnja vas 2019",50002,"Črni Kal spodnja vas 2019",116]
[null,null,null,"50003 - Kastelec 2019",50003,"Kastelec 2019",90]
[null,null,null,"50004 - Petrova vas 2019",50004,"Petrova vas 2019",121]
[null,null,null,"50005 - Nadanje Selo 2019",50005,"Nadanje Selo 2019",147]
[null,null,null,"50006 - Babno polje – Bukovica 2019",50006,"Babno polje – Bukovica 2019",132]
[null,null,null,"50007 - Nadanje Selo – Šmihel 2019",50007,"Nadanje Selo – Šmihel 2019",90]
[null,null,null,"50008 - Osojnik 2019",50008,"Osojnik 2019",129]
[null,null,null,"50009 - Bojanja vas 2019",50009,"Bojanja vas 2019",110]
[null,null,null,"50010 - Gorenje Jezero 2019",50010,"Gorenje Jezero 2019",135]
[null,null,null,"50011 - Dolenja vas 2019",50011,"Dolenja vas 2019",147]
[null,null,null,"50012 - Zamostec 2019",50012,"Zamostec 2019",128]
[null,null,null,"50013 - Skopo 2019",50013,"Skopo 2019",149]
[null,null,null,"50014 - Velike Poljane 2019",50014,"Velike Poljane 2019",109]
[null,null,null,"50015 - Mihovo 2019",50015,"Mihovo 2019",99]
[null,null,null,"50016 - Češča vas – Prečna 2019",50016,"Češča vas – Prečna 2019",417]
[null,null,null,"50017 - Mala Slevica 2019",50017,"Mala Slevica 2019",100]
[null,null,null,"50018 - Dolenji Suhadol 2019",50018,"Dolenji Suhadol 2019",173]
[null,null,null,"50019 - Velika Slevica 2019",50019,"Velika Slevica 2019",85]
[null,null,null,"50020 - Orehovica 2019",50020,"Orehovica 2019",241]
[null,null,null,"50021 - Dolenje Vrhpolje 2019",50021,"Dolenje Vrhpolje 2019",128]
[null,null,null,"50022 - Orehovec 2019",50022,"Orehovec 2019",144]
[null,null,null,"50023 - Črešnjice 2019",50023,"Črešnjice 2019",67]
[null,null,null,"50024 - Lipa pri Kalu 2019",50024,"Lipa pri Kalu 2019",102]
[null,null,null,"50025 - Velike Rebrce 2019",50025,"Velike Rebrce 2019",70]
[null,null,null,"50026 - Gabrovka pri Zagradcu 2019",50026,"Gabrovka pri Zagradcu 2019",69]
[null,null,null,"50027 - Velike Lese 2019",50027,"Velike Lese 2019",165]
[null,null,null,"50028 - Gorenja Pirošica 2019",50028,"Gorenja Pirošica 2019",104]
[null,null,null,"50029 - Podbukovje 2019",50029,"Podbukovje 2019",108]
[null,null,null,"50030 - Tomažja vas 2019",50030,"Tomažja vas 2019",119]
[null,null,null,"50031 - Zapotok – Turjak 2019",50031,"Zapotok – Turjak 2019",190]
[null,null,null,"50032 - Mrzlava vas 2019",50032,"Mrzlava vas 2019",123]
[null,null,null,"50033 - Grčarevec 2019",50033,"Grčarevec 2019",149]
[null,null,null,"50034 - Gabrovčec 2019",50034,"Gabrovčec 2019",123]
[null,null,null,"50035 - Visoko 2019",50035,"Visoko 2019",108]
[null,null,null,"50036 - Rakitna 2019",50036,"Rakitna 2019",261]
[null,null,null,"50037 - Vrhtrebnje 2019",50037,"Vrhtrebnje 2019",73]
[null,null,null,"50038 - Dolnja Stara vas 2019",50038,"Dolnja Stara vas 2019",92]
[null,null,null,"50039 - Češnjevek – Trebnje 2019",50039,"Češnjevek – Trebnje 2019",88]
[null,null,null,"50040 - Vrh nad Želimljami 2019",50040,"Vrh nad Želimljami 2019",349]
[null,null,null,"50041 - Sela pri Dobovi 2019",50041,"Sela pri Dobovi 2019",135]
[null,null,null,"50042 - Drnovo zahod 2019",50042,"Drnovo zahod 2019",201]
[null,null,null,"50043 - Podboršt 2019",50043,"Podboršt 2019",141]
[null,null,null,"50044 - Pristavica pri Velikem Gabru 2019",50044,"Pristavica pri Velikem Gabru 2019",135]
[null,null,null,"50045 - Plešivica pri Žalni 2019",50045,"Plešivica pri Žalni 2019",83]
[null,null,null,"50046 - Vrh pri Površju 2019",50046,"Vrh pri Površju 2019",73]
[null,null,null,"50047 - Podgozd – Ig 2019",50047,"Podgozd – Ig 2019",108]
[null,null,null,"50048 - Martinja vas 2019",50048,"Martinja vas 2019",80]
[null,null,null,"50049 - Sarsko 2019",50049,"Sarsko 2019",62]
[null,null,null,"50050 - Kriška vas 2019",50050,"Kriška vas 2019",383]
[null,null,null,"50051 - Zgornji Obrež 2019",50051,"Zgornji Obrež 2019",184]
[null,null,null,"50052 - Šentlovrenc 2019",50052,"Šentlovrenc 2019",172]
[null,null,null,"50053 - Zabrdje 2019",50053,"Zabrdje 2019",129]
[null,null,null,"50054 - Radohova vas 2019",50054,"Radohova vas 2019",121]
[null,null,null,"50055 - Goričica pod Krimom 2019",50055,"Goričica pod Krimom 2019",147]
[null,null,null,"50056 - Jerinov Grič 2019",50056,"Jerinov Grič 2019",375]
[null,null,null,"50057 - Mandrga 2019",50057,"Mandrga 2019",173]
[null,null,null,"50058 - Dečno Selo – Mali Vrh 2019",50058,"Dečno Selo – Mali Vrh 2019",275]
[null,null,null,"50059 - Rovišče pri Studencu 2019",50059,"Rovišče pri Studencu 2019",123]
[null,null,null,"50060 - Župelevec 2019",50060,"Župelevec 2019",54]
[null,null,null,"50061 - Gorenje Blato 2019",50061,"Gorenje Blato 2019",80]
[null,null,null,"50062 - Pleterje 2019",50062,"Pleterje 2019",96]
[null,null,null,"50063 - Vesela Gora 2019",50063,"Vesela Gora 2019",64]
[null,null,null,"50064 - Gora 2019",50064,"Gora 2019",101]
[null,null,null,"50065 - Lipe 2019",50065,"Lipe 2019",160]
[null,null,null,"50066 - Škrljevo 2019",50066,"Škrljevo 2019",84]
[null,null,null,"50067 - Zdole 2019",50067,"Zdole 2019",161]
[null,null,null,"50068 - Kamnje – Vrh 2019",50068,"Kamnje – Vrh 2019",106]
[null,null,null,"50069 - Trnovo 2019",50069,"Trnovo 2019",279]
[null,null,null,"50070 - Gornje Cerovo 2019",50070,"Gornje Cerovo 2019",139]
[null,null,null,"50071 - Mali Lipoglav 2019",50071,"Mali Lipoglav 2019",149]
[null,null,null,"50072 - Moravče pri Gabrovki 2019",50072,"Moravče pri Gabrovki 2019",96]
[null,null,null,"50073 - Podplešivica 2019",50073,"Podplešivica 2019",131]
[null,null,null,"50074 - Sela pri Rudniku 2019",50074,"Sela pri Rudniku 2019",222]
[null,null,null,"50075 - Brezovica na Bizeljskem 2019",50075,"Brezovica na Bizeljskem 2019",68]
[null,null,null,"50076 - Lončarjev Dol 2019",50076,"Lončarjev Dol 2019",89]
[null,null,null,"50077 - Lesno Brdo 2019",50077,"Lesno Brdo 2019",105]
[null,null,null,"50078 - Veliko Trebeljevo 2019",50078,"Veliko Trebeljevo 2019",100]
[null,null,null,"50079 - Velika Kostrevnica 2019",50079,"Velika Kostrevnica 2019",69]
[null,null,null,"50080 - Bračna vsa 2019",50080,"Bračna vsa 2019",288]
[null,null,null,"50081 - Volavlje 2019",50081,"Volavlje 2019",147]
[null,null,null,"50082 - Mala Kostrevnica 2019",50082,"Mala Kostrevnica 2019",66]
[null,null,null,"50083 - Koprivnica 2019",50083,"Koprivnica 2019",88]
[null,null,null,"50084 - Babna Gora – Dolenja vas 2019",50084,"Babna Gora – Dolenja vas 2019",197]
[null,null,null,"50085 - Babna Gora 2019",50085,"Babna Gora 2019",79]
[null,null,null,"50086 - Plužnje 2019",50086,"Plužnje 2019",61]
[null,null,null,"50087 - Jesenje 2019",50087,"Jesenje 2019",84]
[null,null,null,"50089 - Kal pri Jablani 2019",50089,"Kal pri Jablani 2019",98]
[null,null,null,"50090 - Žeje 2019",50090,"Žeje 2019",292]
[null,null,null,"50091 - Brezovica pri Dobu 2019",50091,"Brezovica pri Dobu 2019",75]
[null,null,null,"50092 - Drtija 2019",50092,"Drtija 2019",143]
[null,null,null,"50093 - Pečine 2019",50093,"Pečine 2019",83]
[null,null,null,"50094 - Gorenje Brdo 2019",50094,"Gorenje Brdo 2019",73]
[null,null,null,"50095 - Rača 2019",50095,"Rača 2019",68]
[null,null,null,"50096 - Dobeno 2019",50096,"Dobeno 2019",208]
[null,null,null,"50097 - Ponikve – Most na Soči 2019",50097,"Ponikve – Most na Soči 2019",118]
[null,null,null,"50098 - Prapreče del 2019",50098,"Prapreče del 2019",105]
[null,null,null,"50099 - Udmat 2019",50099,"Udmat 2019",122]
[null,null,null,"50100 - Laznica 2019",50100,"Laznica 2019",89]
[null,null,null,"50101 - Spodnje Loke 2019",50101,"Spodnje Loke 2019",141]
[null,null,null,"50102 - Ljubinj 2019",50102,"Ljubinj 2019",124]
[null,null,null,"50103 - Podgora pri Zlatem Polju 2019",50103,"Podgora pri Zlatem Polju 2019",114]
[null,null,null,"50104 - Javornik 2019",50104,"Javornik 2019",59]
[null,null,null,"50105 - Znojile 2019",50105,"Znojile 2019",144]
[null,null,null,"50106 - Stolnik 2019",50106,"Stolnik 2019",101]
[null,null,null,"50107 - Apno 2019",50107,"Apno 2019",124]
[null,null,null,"50108 - Trnovec pri Dramljah 2019",50108,"Trnovec pri Dramljah 2019",159]
[null,null,null,"50109 - Razgor 2019",50109,"Razgor 2019",116]
[null,null,null,"50110 - Dramlje 2019",50110,"Dramlje 2019",469]
[null,null,null,"50111 - Šentjungert 2019",50111,"Šentjungert 2019",114]
[null,null,null,"50112 - Šmartno ob Dreti 2019",50112,"Šmartno ob Dreti 2019",152]
[null,null,null,"50113 - Velika Pirešica 2019",50113,"Velika Pirešica 2019",132]
[null,null,null,"50114 - Studence 2019",50114,"Studence 2019",140]
[null,null,null,"50115 - Zgornje Gorče 2019",50115,"Zgornje Gorče 2019",106]
[null,null,null,"50116 - Studenice 2019",50116,"Studenice 2019",118]
[null,null,null,"50117 - Male Braslovče 2019",50117,"Male Braslovče 2019",269]
[null,null,null,"50118 - Bočna 2019",50118,"Bočna 2019",80]
[null,null,null,"50119 - Novake 2019",50119,"Novake 2019",64]
[null,null,null,"50120 - Ponikva pri Žalcu 2019",50120,"Ponikva pri Žalcu 2019",105]
[null,null,null,"50121 - Spodnja Lipnica 2019",50121,"Spodnja Lipnica 2019",198]
[null,null,null,"50122 - Zgornje Vetrno 2019",50122,"Zgornje Vetrno 2019",80]
[null,null,null,"50123 - Laporje 2019",50123,"Laporje 2019",351]
[null,null,null,"50124 - Podkraj pri Velenju 2019",50124,"Podkraj pri Velenju 2019",164]
[null,null,null,"50125 - Lokovica zahod 2019",50125,"Lokovica zahod 2019",102]
[null,null,null,"50126 - Vrhloga 2019",50126,"Vrhloga 2019",155]
[null,null,null,"50127 - Malahorna 2019",50127,"Malahorna 2019",121]
[null,null,null,"50128 - Cigonca 2019",50128,"Cigonca 2019",78]
[null,null,null,"50129 - Skorno pri Šoštanju 2019",50129,"Skorno pri Šoštanju 2019",75]
[null,null,null,"50130 - Stari Log 2019",50130,"Stari Log 2019",98]
[null,null,null,"50131 - Zgornja Ložnica 2019",50131,"Zgornja Ložnica 2019",134]
[null,null,null,"50132 - Gladomes 2019",50132,"Gladomes 2019",134]
[null,null,null,"50133 - Lepa Njiva 2019",50133,"Lepa Njiva 2019",78]
[null,null,null,"50134 - Okoška Gora 2019",50134,"Okoška Gora 2019",122]
[null,null,null,"50135 - Osluševci 2019",50135,"Osluševci 2019",434]
[null,null,null,"50136 - Strelci 2019",50136,"Strelci 2019",112]
[null,null,null,"50137 - Mislinja 2019",50137,"Mislinja 2019",156]
[null,null,null,"50138 - Mestni vrh 2019",50138,"Mestni vrh 2019",152]
[null,null,null,"50139 - Javorniški Rovt 2019",50139,"Javorniški Rovt 2019",87]
[null,null,null,"50140 - Brda 2019",50140,"Brda 2019",69]
[null,null,null,"50141 - Srednji Vrh 2019",50141,"Srednji Vrh 2019",700]
[null,null,null,"50142 - Pivola 2019",50142,"Pivola 2019",106]
[null,null,null,"50143 - Radomerščak 2019",50143,"Radomerščak 2019",124]
[null,null,null,"50144 - Selce – Straže 2019",50144,"Selce – Straže 2019",84]
[null,null,null,"50145 - Mala Nedelja 2019",50145,"Mala Nedelja 2019",110]
[null,null,null,"50146 - Pristava – Ljutomer 2019",50146,"Pristava – Ljutomer 2019",247]
[null,null,null,"50147 - Biš 2019",50147,"Biš 2019",270]
[null,null,null,"50148 - Berkovci 2019",50148,"Berkovci 2019",134]
[null,null,null,"50149 - Dobrova pri Dravogradu 2019",50149,"Dobrova pri Dravogradu 2019",101]
[null,null,null,"50150 - Trbonje 2019",50150,"Trbonje 2019",178]
[null,null,null,"50151 - Libeliška Gora – Libeliče 2019",50151,"Libeliška Gora – Libeliče 2019",71]
[null,null,null,"50152 - Gradiška spodnje Dobrenje 2019",50152,"Gradiška spodnje Dobrenje 2019",313]
[null,null,null,"50153 - Hrastje – Mota 2019",50153,"Hrastje – Mota 2019",106]
[null,null,null,"50154 - Kobilščak 2019",50154,"Kobilščak 2019",425]
[null,null,null,"50155 - Mali Dol 2019",50155,"Mali Dol 2019",134]
[null,null,null,"50156 - Turjanci 2019",50156,"Turjanci 2019",122]
[null,null,null,"50157 - Grušena 2019",50157,"Grušena 2019",81]
[null,null,null,"50158 - Spodnja Ščavnica 2019",50158,"Spodnja Ščavnica 2019",56]
[null,null,null,"50159 - Sveta Ana v Slovenskih goricah 2019",50159,"Sveta Ana v Slovenskih goricah 2019",402]
[null,null,null,"50160 - Bogojina 2019",50160,"Bogojina 2019",578]
[null,null,null,"50161 - Selnica ob Muri 2019",50161,"Selnica ob Muri 2019",252]
[null,null,null,"50162 - Drobtinci 2019",50162,"Drobtinci 2019",132]
[null,null,null,"50163 - Vaneča 2019",50163,"Vaneča 2019",167]
[null,null,null,"50164 - Bodonci 2019",50164,"Bodonci 2019",111]
[null,null,null,"50165 - Domanjševci 2019",50165,"Domanjševci 2019",274]
[null,null,null,"50166 - Grad 2019",50166,"Grad 2019",271]
[null,null,null,"50167 - Kotredež 2019",50167,"Kotredež 2019",94]
[null,null,null,"50168 - Vrbovce 2019",50168,"Vrbovce 2019",98]

{"sheet":"Izvajalci_JS","index":16,"n_rows":111,"n_cols":10,"rows_kept":111,"cut":false,"hidden":true,"merged":[]}
["Naziv","Ulica","Št. pošte","pošta","davčna št.","kontaktna os.","tel.","fax","e-mail"]
[]
["AGJ, D.O.O.","POT NA KAMENŠAK 17",2230,"LENART V SLOV. GORICAH",84014598,"","031 663 810","/","agj@triera.net",215]
["ČISTA NARAVA, JAVNO KOMUNALNO PODJETJE D.O.O.","TEŠANOVCI 20",9226,"MORAVSKE TOPLICE",39046923,"Dragica Piv, Števančec Andrej","(02)5381617; (041)803793 (g. Števančec); (031)388510 (g. Šrok)","(02)5381613","racunovodstvo.cn@siol.net",68]
["EKO-PARK D.O.O. LENDAVA","GLAVNA ULICA 109",9220,"LENDAVA",87430401,"Stanko Gjekeš","02 577 62 80","02 577 62 84","stanko.gjerkes@eko-park.si",188]
["GRADNJE STARŠE, JAVNO PODJETJE D.O.O.","STARŠE 93",2205,"STARŠE",17124328,"","02/686 48 00","02/686 48 10","obcina@starse.si",197]
["JAVNO KOMUNALNO PODJETJE BREZOVICA D.O.O.","KAMNIK POD KRIMOM 6",1352,"PRESERJE",22513434,"Gorazd Kompič","(01)3633020","(01)3633021","info@jkp-brezovica.si; damjana@jkp-brezovica.si",102]
["JAVNO KOMUNALNO PODJETJE DRAVOGRAD D.O.O.","MEŽA 143",2370,"DRAVOGRAD",72013257,"Irena Petelin","(02)8721121","(02)8721129","irena.petelin@jkp-dravograd.si",18]
["JAVNO KOMUNALNO PODJETJE GROSUPLJE D.O.O.","CESTA NA KRKO 7",1290,"GROSUPLJE",65119037,"Matija Kastelic","(01)7888932","(01)7888913","matija.kastelic@jkpg.si",8]
["JAVNO KOMUNALNO PODJETJE KOMUNALA KOČEVJE, D.O.O.","TESARSKA ULICA 10",1330,"KOČEVJE",10626271,"Bojana Klepac, Aleš Marolt (obč. Kostel)","(01)8950340; (01)8952395 in (041)556339 (ga. Klepac)","(01)8951697","bojana.klepac@siol.net; ursa.butala@komunala-kocevje.si",12]
["JAVNO KOMUNALNO PODJETJE KOMUNALA RIBNICA D.O.O.","GORIČA VAS 11 A",1310,"RIBNICA",81322496,"Metka Dobovšek Jerbič","(01)8361138; (051)682 405 (g. Zakrajšek)","(01)8361138","metka@komunala-ribnica.si",9]
["JAVNO KOMUNALNO PODJETJE LOG D.O.O.","DOBJA VAS 187",2390,"RAVNE NA KOROŠKEM",23002107,"Ernest Blatnik, Nataša Štern","(02)8223963; (031)613031 (ga. Štern)","(02)8220912","kp-log@siol.net, stnatasa@email.si",23]
["JAVNO KOMUNALNO PODJETJE PRODNIK D.O.O.","SAVSKA CESTA 34",1230,"DOMŽALE",54471656,"Špela Pirnat(do 1.7.10); Sabina Zupan,Stane Grmek","(01)7295430 ali 460; 031 690 609 (ga. Zupan)","(01)7295450","info@jkp-prodnik.si; spela.pirnat@jkp-prodnik.si",2]
["JAVNO KOMUNALNO PODJETJE RADLJE OB DRAVI D.O.O.","MARIBORSKA CESTA 3",2360,"RADLJE OB DRAVI",64562999,"Andrej Podlesnik","(02)8871105; (031)348363 (g. Podlesnik); (041)729146 (g. Mravljak)","(02)8871317","andrej.podlesnik@jkp-radlje.si; info@jkp-radlje.si",14]
["JAVNO KOMUNALNO PODJETJE RAVNE NA KOROŠKEM, D.O.O.","GAČNIKOVA POT 5",2390,"RAVNE NA KOROŠKEM",20356846,"","(02) 82 15 483","/","info@jkpravne.si",213]
["JAVNO KOMUNALNO PODJETJE ŽALEC, D.O.O.","ULICA NADE CILENŠEK 5",3310,"ŽALEC",94086362,"Martina Kostanjšek","03 713 6000","03 713 6796","tina.kostanjsek@jkp-zalec.si",26]
["JAVNO PODJETJE - AZIENDA PUBBLICA MARJETICA KOPER, D.O.O.-S.R.L.","ULICA 15. MAJA 4",6000,"KOPER",32375204,"Nataša Đukić Vasić, univ.dipl.inž.grad.","(05)6633761; (05)6633760 (g. Štrancar)","(05)6633706","goran.strancar@marjeticakoper.si",51]
["JAVNO PODJETJE KANALIZACIJA IN ČISTILNA NAPRAVA RADLJE, D.O.O.","MARIBORSKA CESTA 007",2360,"RADLJE OB DRAVI",67401961,"","(02) 887 96 30 ","(02) 887 96 40","obcina.radlje@radlje.si",209]
["JAVNO PODJETJE KOMUNALA BREŽICE D.O.O.","CESTA PRVIH BORCEV 18",8250,"BREŽICE",21101906,"Dejan Zofič","07/620-92-50","07/620-92-80","info@komunala-brezice.si",199]
["JAVNO PODJETJE KOMUNALA CERKNICA D.O.O. CERKNICA","NOTRANJSKA CESTA 44",1380,"CERKNICA",77038037,"Sašo Modic; Katarina Vavtar Kovač","051275242 (01)7097910; (01)7097913","","saso.modic@komunala-cerknica.si; katarina.vavtar@komunala-cerknica.si; info@komunala-cerknica.si",11]
["JAVNO PODJETJE KOMUNALA ČRNOMELJ D.O.O.","BELOKRANJSKA CESTA 24",8340,"ČRNOMELJ",66111889,"Marija Mušič","(07)3061660; (07)3061666 (ga. Mušič)","(07)3061697","komunala.crnomelj@siol.net; marija.music@komunala-crnomelj.si",57]
["JAVNO PODJETJE KOMUNALA D.O.O. MOZIRJE","PRAPROTNIKOVA ULICA 36",3330,"MOZIRJE",25344650,"Andrej Ermenc","(03)8393650","(03)8393660","andi@komunala-mozirje.si",24]
["JAVNO PODJETJE KOMUNALA D.O.O. SEVNICA","NASELJE HEROJA MAROKA 17",8290,"SEVNICA",90581121,"Mitja Udovč, Urška Jamšek","(07)8164700; (07)8164721 (g. Udovč)","(07)8164711","mitja.udovc@komunala-sevnica.si; urska.jamsek@komunala-sevnica.si",56]
["JAVNO PODJETJE KOMUNALA ILIRSKA BISTRICA, D.O.O.","PREŠERNOVA ULICA 7",6250,"ILIRSKA BISTRICA",37819127,"Darinka Antonič","(05)7110680; (05)7110671","(05)7110672","martina.vrh@kp-ilb.si",49]
["JAVNO PODJETJE KOMUNALA IZOLA, D.O.O. – AZIENDA PUBBLICA KOMUNALA ISOLA, S.R.L.","INDUSTRIJSKA CESTA 8",6310,"IZOLA",70981515,"Dorian Kaligarič","(05)6634935, 031 650 375","(05)6634949","dorian.kaligaric@komunala-izola.si",47]
["JAVNO PODJETJE KOMUNALA RADEČE D.O.O.","TITOVA ULICA 107",1433,"RADEČE",30080070,"Boris Knavs","(03)5680240","(03)5680242","komunala.radece@siol.net",55]
["JAVNO PODJETJE KOMUNALA ŠKOFJA LOKA D.O.O.","KIDRIČEVA CESTA 43 A",4220,"ŠKOFJA LOKA",67105874,"Anže Sodnik","041 750 043","04 50 23 513","anze.sodnik@komunalaskofjaloka.si",219]
["JAVNO PODJETJE KOMUNALA SLOVENJ GRADEC D.O.O.","PAMEČE 177 A",2380,"SLOVENJ GRADEC",53440978,"Jože Dvorjak, inž.","(02)8812020; (02)8812044 ali (031)650427 (g. Dvorjak)","(02)8812040","joze.dvorjak@jkp-sg.si",16]
["JAVNO PODJETJE KOMUNALA TRBOVLJE D.O.O.","SAVINJSKA CESTA 11 A",1420,"TRBOVLJE",40870057,"Gašper Princ","031 322 347; 03  56 53 100","(03)5627592","gasper.princ@komunala-trbovlje.si",1]
["JAVNO PODJETJE KOMUNALA VODICE, D.O.O.","KOPITARJEV TRG 1",1217,"VODICE",85158640,"Miha Brgant","(01)8332500","(01)8332509","sprejemna@jpk-vodice.si",139]
["JAVNO PODJETJE KOMUNALA ZAGORJE, D.O.O.","CESTA ZMAGE 57",1410,"ZAGORJE OB SAVI",82253536,"Blanka Povše"," 03 56 67 700; (03)5667704","(03)5667714","blanka.povse@komunala-zagorje.si",6]
["JAVNO PODJETJE KOMUNALNO PODJETJE VRHNIKA, D.O.O.","POT NA TOJNICE 40",1360,"VRHNIKA",75879611,"Mojca Plečnik, dipl.ing.","(01)7505062; (041)760398","(01)7552013","mojca.plecnik@kpv.si; info@kpv.si",3]
["JAVNO PODJETJE KOMUNALNO STANOVANJSKO PODJETJE LITIJA, D.O.O.","PONOVIŠKA CESTA 15",1270,"LITIJA",84245956,"Milan Klinc, Karmen Potisek","(01)8900010; (01)8900015 (g. Klinc)","(01)8900020","milan.klinc@ksp-litija.si; karmen.potisek@ksp-litija.si",10]
["JAVNO PODJETJE KOVOD POSTOJNA, VODOVOD, KANALIZACIJA, D.O.O.","JERŠICE 3",6230,"POSTOJNA",17322057,"Tomaž Fabčič","(05)7264551","(05)7262211","tomaz.fabcic@kovodpostojna.si",48]
["JAVNO PODJETJE OKOLJE PIRAN D.O.O. - AZIENDA PUBBLICA OKOLJE PIRANO S.R.L.","ARZE 1 B",6330,"PIRAN",73819174,"Danijela Kleva Švagelj","(05)6175044; (041)632926 (ga. Švagelj)","(05)6175015","danijela.svagelj@okoljepiran.si; okolje.piran@siol.net",52]
["JAVNO PODJETJE PRLEKIJA D.O.O.","BABINSKA CESTA 2 A",9240,"LJUTOMER",34813144,"Maja Vogrinec","02 58 58 240","/","info@jp-prlekija.si",186]
["JAVNO PODJETJE VODOVOD KANALIZACIJA SNAGA D.O.O. (LJUBLJANA)","VODOVODNA CESTA 90",1000,"LJUBLJANA",64520463,"Mojca Vrbančič, Marjan Levstek, Cirila Bordon,","5808219; 01-5808-201; 01 5808 211","5808305;01-5808-203","cbordon@vo-ka.si;mlevstek@vo-ka.si",13]
["JEKO, JAVNO KOMUNALNO PODJETJE, D.O.O., JESENICE","CESTA MARŠALA TITA 51",4270,"JESENICE",67496717,"Mateja Košir","(04)5810482 in (041) 887-729 (ga. Košir)","(04)5810420","nusa.jelenc@jeko-in.si; info@jeko-in.si",36]
["JKP ŠENTJUR, JAVNO KOMUNALNO PODJETJE, D.O.O.","CESTA LEONA DOBROTINŠKA 18",3230,"ŠENTJUR",54691877,"Igor Gorjup, dipl.inž.grad.","(03)7471620","(03)7471637","igor.gorjup@jkp-sentjur.si",27]
["JKP, JAVNO KOMUNALNO PODJETJE D.O.O. SLOVENSKE KONJICE","CELJSKA CESTA 3",3210,"SLOVENSKE KONJICE",85452360,"Stanislav Jeršič","(03)7580400; (03)7580420 (g. Jeršič)","(03)7580416","slavko.jersic@jkp-konjice.si; spela.hlacar@jkp-konjice.si; jkp.konjice@siol.net",21]
["JP EDŠ, D.O.O. ŠENTJERNEJ","TRUBARJEVA CESTA 5",8310,"ŠENTJERNEJ",90170296,"Uroš Jerič","051 494 633","/","uros.jeric@jp-eds.si",218]
["JP VARAŠ, PODJETJE ZA KOMUNALNE IN DRUGE STORITVE D.O.O.","ULICA ŠTEFANA KOVAČA 73",9224,"TURNIŠČE",97308285,"","02 572 22 20","(02)573-50-41","obcina@turnisce.si",195]
["KOMUNA, JAVNO KOMUNALNO PODJETJE BELTINCI D.O.O.","MLADINSKA ULICA 2",9231,"BELTINCI",32876858,"","","/","/",193]
["KOMUNALA D.O.O. (IDRIJA)","CARL JAKOBA ULICA 4",5280,"IDRIJA",13286218,"Ana Knap","(05)3727200; (05)3727211; (051)440500 (g. Murovec)","(05)3772237","ana.knap@komunalaidrija.si",45]
["KOMUNALA JAVNO KOMUNALNO PODJETJE D.O.O. GORNJI GRAD","KOCBEKOVA CESTA 23",3342,"GORNJI GRAD",43444954,"Zdenko Purnat","(03)8383010; (051)341733 (g. Zdenko Purnat)","(03)8383011","komunala.gornji-grad@siol.net",29]
["KOMUNALA KRANJ, JAVNO PODJETJE, D.O.O.","ULICA MIRKA VADNOVA 1",4000,"KRANJ",72495421,"Saša Pegam, Blaž Bajželj","(04)2811300; (04)2811354; (04)2811328 (ga. Pegam), 041 343 132","(04)2811301","spegam@komunala-kranj.si; jpk@komunala-kranj.si",40]
["KOMUNALA METLIKA D.O.O.","CESTA XV. BRIGADE 4",8330,"METLIKA",38241528,"Marjan Končar, računovodja","(07)3637200; (07)3637203; (031)367120","(07)3637210","koncar@komunala-metlika.si",58]
["KOMUNALA MEŽICA JAVNO KOMUNALNO PODJETJE D.O.O.","TRG SVOBODE 1",2392,"MEŽICA",73310948,"Franjo Kocen","(02)8279361; (041)643886 (g. Kocen)","(02)8279359","franjo.kocen@mezica.si",109]
["KOMUNALA NOVO MESTO D.O.O.","PODBEVŠKOVA ULICA 12",8000,"NOVO MESTO",13503766,"Jordan Hrvatin, dipl.inž.str.; Andreja Gorše","(07)3932494 (g. Hrvatin direktna); (07)3932495 (ga. Gorše)","(07)3932505","jordan.hrvatin@komunala-nm.si; andreja.gorse@komunala-nm.si",60]
["KOMUNALA ODTOK D.O.O.","TRŽAŠKA CESTA 39",2000,"MARIBOR",65843487,"","02 300 70 61","/","info@odtok.si",214]
["KOMUNALA RADGONA, JAVNO PODJETJE D.O.O.","PARTIZANSKA CESTA 13",9250,"GORNJA RADGONA",69673195,"Tadeja Zupančič"," 02 5644800","02 5644808","tadeja.zupancic@komunala-radgona.si",141]
["KOMUNALA RADOVLJICA, JAVNO PODJETJE ZA KOMUNALNO DEJAVNOST, D.O.O.","LJUBLJANSKA CESTA 27",4240,"RADOVLJICA",98605275,"Darko Lukan","04 5370128, 041 677979","04 5370112","darko.lukan@komunala-radovljica.si",33]
["KOMUNALA SLOVENSKA BISTRICA PODJETJE ZA KOMUNALNE IN DRUGE STORITVE D.O.O.","ULICA POHORSKEGA BATALJONA 12",2310,"SLOVENSKA BISTRICA",32621213,"Jerneja Zorko","(02)8055400; (02)8055419 in (051)337094 (ga. Zorko)","(02)8055410","jerneja.zorko@komunala-slb.si",22]
["KOMUNALA TOLMIN JAVNO PODJETJE D.O.O.","POLJUBINJ 89 H",5220,"TOLMIN",97143499,"Ada Eržen, dipl.inž.grad.","(05)3819300; (05)3819322 (ga. Eržen)","(05)3881025","ada.erzen@komunala-tolmin.si; kp.tolmin@siol.net",41]
["KOMUNALA TREBNJE D.O.O.","GOLIEV TRG 9",8210,"TREBNJE",96907436,"Tone Gričar, Španger Mitja","(07)3481260; (07)3481264 in (051)372871 (g. Gričar); (07)3481266 (ga. Judež)","(07)3481282","investicije@komunala-trebnje.si",54]
["KOMUNALA TRŽIČ D.O.O.","MLAKA 6",4290,"TRŽIČ",45105138,"Tina Božič","(04)5971300","(04)5971320","info@komunala-trzic.si",39]
["KOMUNALA VITANJE, JAVNO PODJETJE D.O.O.","GRAJSKI TRG 6",3205,"VITANJE",85712990,"Gorazd Fric","(03)7525060; (041)668656 (g. Fric)","(03)7520561","komunalavitanje@gmail.com",125]
["KOMUNALA, JAVNO PODJETJE D.O.O. (MURSKA SOBOTA)","KOPALIŠKA ULICA 2",9000,"MURSKA SOBOTA",61364576,"Vasja Bugar, Boštjan Gorza","(02)5213700; (02)5213748 in (051)633588 (g. Bugar); (02)5213756 in (041)800837 (g. Gorza)","(02)5213740","vasjab@komunalams.si; bostjan.gorza@komunalams.si",66]
["KOMUNALA, JAVNO PODJETJE, KRANJSKA GORA, D.O.O.","SPODNJE RUTE 50",4282,"GOZD MARTULJEK",43632319,"Henrika Zupan","(04)5881156","(04)5879309","info@komunala-kg.si",37]
["KOMUNALNO PODJETJE KAMNIK D.O.O.","CANKARJEVA CESTA 11",1241,"KAMNIK",96465883,"Gregor Ulčar","(01)8391731; (041)262623 (g. Ulčar); (041)349478 (g. Klemen)","(01)8391303","gregor.ulcar@kpk-kamnik.si",7]
["KOMUNALNO PODJETJE LOGATEC D.O.O.","TRŽAŠKA CESTA 27",1370,"LOGATEC",88743926,"Špela Ferjančič","(01)7508110","(01)7508111","kp-logatec@siol.net; spela.ferjancic@kp-logatec.si",5]
["KOMUNALNO PODJETJE ORMOŽ D.O.O.","HARDEK 21 C",2270,"ORMOŽ",66338441,"Ludvik Hriberšek","(02)7410640; g. Hriberšek (02)7410647 ali (041)649737","(02)7410650","odpadki@kp-ormoz.si",15]
["KOMUNALNO PODJETJE PTUJ D.D.","PUHOVA ULICA 10",2250,"PTUJ",65735676,"mag. Jernej Šömen","(02)7805460","(02)7805467","jernej.somen@komunala-ptuj.si",19]
["KOMUNALNO PODJETJE VELENJE D.O.O.","KOROŠKA CESTA 37 B",3320,"VELENJE",55713998,"Branko Naveršnik","(03)8961100;(03)8961116 in (041)639318 (g. Naveršnik)","(03)8961127","branko.naversnik@kp-velenje.si",28]
["KOMUNALNO STANOVANJSKA DRUŽBA D.O.O. AJDOVŠČINA","GORIŠKA CESTA 23 B",5270,"AJDOVŠČINA",68647336,"Aleš Bačer","(05)3659700; (05)3659709 (Bačer)","(05)3663142","ksda.investicije@siol.net",42]
["KOSTAK KOMUNALNO IN GRADBENO PODJETJE D.D.","LESKOVŠKA CESTA 2 A",8270,"KRŠKO",82719241,"Željko Horvat, univ.dipl.inž.grad.","(07)4817201, (07)4817232 (g. Horvat)","(07)4817250","zeljko.horvat@kostak.si; kostak@kostak.si",59]
["KRAŠKI VODOVOD SEŽANA, D.O.O.","BAZOVIŠKA CESTA 6",6210,"SEŽANA",89997271,"Peter Švagelj","(05)7311660","(05)7311640","info@kraski-vodovod.si; peter.svagelj@kraski-vodovod.si",164]
["KSP HRASTNIK KOMUNALNO - STANOVANJSKO PODJETJE, D.D.","CESTA 3. JULIJA 7",1430,"HRASTNIK",16477448,"Ernest Gričar,dipl.inž.grad.","(03)5642310; (03)5642315 - g. Gričar","(03)5644000","ernest.gricar@siol.net",4]
["NIGRAD, KOMUNALNO PODJETJE D.O.O.","ZAGREBŠKA CESTA 30",2000,"MARIBOR",71083715,"Dejan Tacer","(02)4500300; (02)4500367 in 041 662 812 (g.Tacer direktna)","(02)4500360","dejan.tacer@nigrad.si",20]
["OBČINA BLOKE - REŽIJSKI OBRAT","NOVA VAS 4 A",1385,"NOVA VAS",47254629,"Stanislav Jakopin","01)7098922 (g. Jakopin);(041)778180 (g. Doles)","(01)7098840","stane.jakopin@bloke.si; obcina.bloke@bloke.si",107]
["OBČINA BOHINJ - REŽIJSKI OBRAT","TRIGLAVSKA CESTA 35",4264,"BOHINJSKA BISTRICA",43302904,"Franci Langus - vodja r.o.; Andrej Sodja","(04)5770151 ali 50; (g. Langus) (041)677980; (g. Brence) (04)5743904 ali (040)294898","(04)5721864","andrej.sodja@obcina.bohinj.si",82]
["OBČINA CERKNO - REŽIJSKI OBRAT","BEVKOVA ULICA 9",5282,"CERKNO",54677696,"Janez Rupnik, Valerija Močnik","(05)3734643","(05)3734649","obcina@cerkno.si; valerija.mocnik@cerkno.si",46]
["OBČINA CERKVENJAK - REŽIJSKI OBRAT","CERKVENJAK 25",2236,"CERKVENJAK",78110475,"","02/729 57 00","/","obcina@cerkvenjak.si",203]
["OBČINA ČRENŠOVCI - REŽIJSKI OBRAT","ULICA PREKMURSKE ČETE 20",9232,"ČRENŠOVCI",23656484,"Stanko Lebar","(02)5735750; (02)5735756","(02)5735758","info@obcina-crensovci.si; stanko@obcina-crensovci.si",63]
["OBČINA ČRNA NA KOROŠKEM - REŽIJSKI OBRAT","CENTER 101",2393,"ČRNA NA KOROŠKEM",44743548,"Nada Vačun","(02)8704816","(02)8704821","obcina@crna.si; mojca.dimnik@crna.si",17]
["OBČINA DESTRNIK - REŽIJSKI OBRAT","VINTAROVCI 50",2253,"DESTRNIK",76286193,"","02 761 92 50","02 761 92 52","obcina.destrnik@destrnik.si",207]
["OBČINA DOBJE - REŽIJSKI OBRAT","DOBJE PRI PLANINI 26",3224,"DOBJE PRI PLANINI",22084665,"Franc Leskovšek","(03)7466030; (03)7466034 (g. Leskovšek)","(03)7466035","obcinadobje@siol.net",116]
["OBČINA DOBROVNIK - REŽIJSKI OBRAT","DOBROVNIK 297",9223,"DOBROVNIK",72637706,"Jernej Kuzmič, Tanja Tkalec (računovodkinja)","(02)5776880","(02)5776887","obcina@dobrovnik.si; tanja.tkalec@dobrovnik.si",80]
["OBČINA DUPLEK - REŽIJSKI OBRAT","CESTA 4. JULIJA 106",2241,"SPODNJI DUPLEK",41316819,"","02 684 09 11","/","obcina.duplek@duplek.si",200]
["OBČINA GORENJA VAS - POLJANE - REŽIJSKI OBRAT","POLJANSKA CESTA 87",4224,"GORENJA VAS",63943026,"Kristina Knific","(04)5183112","(04)5183101","kristina.knific@obcina-gvp.si",38]
["OBČINA GORNJI PETROVCI - REŽIJSKI OBRAT","GORNJI PETROVCI 31 D",9203,"PETROVCI",69366144,"","(02)5569000","(02)5569001","obcinagp@gornji-petrovci.si",212]
["OBČINA GRAD - REŽIJSKI OBRAT","GRAD 172",9264,"GRAD",70454540,"Lidija Krpič","(02)5518884","(02)5518886","lidija.krpic@obcina-grad.si",115]
["OBČINA HODOŠ - REŽIJSKI OBRAT","HODOŠ 52",9205,"HODOŠ",73790141,"Katalin Bunderla","(02)5598021","(02)5598020","obcina-hodos-kozseg@siol.net",78]
["OBČINA IG - REŽIJSKI OBRAT","GOVEKARJEVA CESTA 6",1292,"IG",47731206,"Katja Ivanuš","(01)2802300","(01)2802322","info@obcina-ig.si",179]
["OBČINA KANAL OB SOČI - REŽIJSKI OBRAT","TRG SVOBODE 23",5213,"KANAL",88524671,"Kristina Marinič","(05)3981200; (05)3981208 (ga. Baričevič)","(05)3981223","kristina.marinic@obcina-kanal.si; obcina.kanal@obcina-kanal.si",44]
["OBČINA KOBILJE - REŽIJSKI OBRAT","KOBILJE 35",9227,"KOBILJE",47774720,"Sabina Toplak","(02)5799220","(02)5799220","obcina.kobilje@siol.net",65]
["OBČINA KOMENDA - REŽIJSKI OBRAT","ZAJČEVA CESTA 23",1218,"KOMENDA",22332570,"Bernarda Pavlinič, Slavko Poglajen","(01)7247400; (041)799176 - g. Poglajen","(01)8341323","slavko.poglajen@komenda.si; obcina@komenda.si",126]
["OBČINA KUZMA - REŽIJSKI OBRAT","KUZMA 60 C",9263,"KUZMA",64854302,"Milan Matiš","(02)5558016","(02)5558018","milan.matis@obcina-kuzma.si",117]
["OBČINA LAŠKO - REŽIJSKI OBRAT","MESTNA ULICA 2",3270,"LAŠKO",11734612,"Luka Picej","(03)7338800; (03)7338714 (g. Picej); (041)704118 (g. Picej)","(03)7338740","luka.picej@lasko.si",25]
["OBČINA LENART- REŽIJSKI OBRAT","TRG OSVOBODITVE 7",2230,"LENART V SLOVENSKIH GORICAH",68458509,"Avgust Zavernik","051 315 002","02 720 73 52","avgust.zavernik@lenart.si",85]
["OBČINA LOVRENC NA POHORJU - REŽIJSKI OBRAT","SPODNJI TRG 8",2344,"LOVRENC NA POHORJU",11392657,"Albina Pajtler","(02)6300550; (02)6300557","(02)6300560","albina.pajtler@lovrenc.si",140]
["OBČINA ODRANCI - REŽIJSKI OBRAT","PANONSKA ULICA 33",9233,"ODRANCI",20765762,"Matija Kikel","(02)5773480","(02)5773486","obcina.odranci@siol.net",62]
["OBČINA OSILNICA - REŽIJSKI OBRAT","OSILNICA 11",1337,"OSILNICA",27549887,"Sanja Janeš"," 01-89-41-505   Gsm 041 319 575","(01)8941038","obcina@osilnica.si",75]
["OBČINA RADENCI","RADGONSKA CESTA 9",9252,"RADENCI",53944640,"","02 566 96 10","/","obcina@radenci.si",216]
["OBČINA ROGAŠOVCI - REŽIJSKI OBRAT","ROGAŠOVCI 14 B",9262,"ROGAŠOVCI",61143707,"","02 5588 816","02 5588812","obcina.rogasovci@siol.net",198]
["OBČINA ŠALOVCI - REŽIJSKI OBRAT","ŠALOVCI 162",9204,"ŠALOVCI",83272631,"","02 559 80 50","02 559 80 54","info@salovci.si",211]
["OBČINA SOLČAVA - REŽIJSKI OBRAT","SOLČAVA 16",3335,"SOLČAVA",78412447,"Rudi Jezernik","(03)8392750; (03)8392755","(03)8392750; (03)8392755","obcina.solcava@siol.net",178]
["OBČINA SVETA ANA - REŽIJSKI OBRAT","SV. ANA V SLOV. GORICAH 17",2233,"SVETA ANA V SLOVENSKIH GORICAH",59385081,"","02/7295880","/","obcina@sv-ana.si",204]
["OBČINA SVETA TROJICA V SLOVENSKIH GORICAH - REŽIJSKI OBRAT","MARIBORSKA CESTA 1",2235,"SVETA TROJICA V SLOVENSKIH GORICAH",58878734,"župan: Valentin Južnič","01/8948-006","01/8948-007","",194]
["OBČINA SVETI JURIJ V SLOVENSKIH GORICAH - REŽIJSKI OBRAT","JUROVSKI DOL 70 B",2223,"JUROVSKI DOL",58481435,"","02 729 52 50","02 729 52 55","obcina@obcinajurij.si",206]
["OBČINA TIŠINA - REŽIJSKI OBRAT","TIŠINA 4",9251,"TIŠINA",43730361,"Klaudija Šadl Jug, Dušan Hauko","(02)5391710","(02)5391711","obcina@tisina.si; rezijski.obrat@tisina.si",73]
["OBČINA VELIKA POLANA - REŽIJSKI OBRAT","VELIKA POLANA 111",9225,"VELIKA POLANA",35407727,"Metka Horvat, Lidija Vučko Bukovec (na porodniški)","(02)5776750; (02)5776755 (ga. Bukovec)","(02)5776752","obcina@velika-polana.si; finance@velika-polana.si",124]
["OBČINA ŽELEZNIKI - REŽIJSKI OBRAT","ČEŠNJICA 48",4228,"ŽELEZNIKI",59920327,"Saša Lazar","(04)5000022 (Lazar); (04)5000018 (Tušek)","(04)5000020","sasa.lazar@obcina.zelezniki.si; cirila.tusek@obcina.zelezniki.si",81]
["OBČINA ŽIRI - REŽIJSKI OBRAT","LOŠKA CESTA 1",4226,"ŽIRI",69533768,"Andrej Poljanšek, Franci Kranjc","(04)5050700; (041)639609 (g. Kranjc)","(04)5105444","andrej.poljansek@obcina.ziri.si; franci.kranjc@obcina.ziri.si",35]
["OBČINA ZREČE - REŽIJSKI OBRAT","CESTA NA ROGLO 13 B",3214,"ZREČE",35536519,"Gregor Kovačič","(03)7571700; (03) 7571713 in (051)311150 (g. Kovačič)","(03)5762498","gregor.kovacic@zrece.si; info@zrece.si",74]
["OKP JAVNO PODJETJE ZA KOMUNALNE STORITVE ROGAŠKA SLATINA D.O.O.","CELJSKA CESTA 12",3250,"ROGAŠKA SLATINA",43438806,"Tone Krivec, Marjeta Stefanovski","(03)8121401 (g. Krivec), (03)8121411 (ga. Stefanovski)","(03)8121415","okp.rogaska.slatina@siol.net, stefanovski.marjeta@okp.si",32]
["PÜNGRAD JAVNO KOMUNALNO PODJETJE D.O.O.","BODONCI 127 A",9265,"BODONCI",71583475,"Anton Lang","(02)5496026","(02)5496027","pungrad@siol.net",114]
["VODOVODI IN KANALIZACIJA NOVA GORICA D.D.","CESTA 25. JUNIJA 1 B",5000,"NOVA GORICA",91503027,"Mitja Gorjan","(05)3391100; (05)3391107 (g. Gorjan) - 113 tajnica","(05)3391128","mitja@vik-ng.si: vikng@vik-ng.si",43]
["VODOVOD-KANALIZACIJA JAVNO PODJETJE D.O.O. (CELJE)","LAVA 2 A",3000,"CELJE",45804109,"Tanja Čerič","(03)4250300","(03)4250310","tanja.ceric@vo-ka-celje.si",31]
["VZDRŽEVANJE IN GRADNJE, JAVNO PODJETJE KIDRIČEVO","ULICA BORISA KRAIGHERJA 25",2325,"KIDRIČEVO",26675714,""," (02) 799 06 25","/","vzdrzevanje@kidricevo.si",201]
["WTE WASSERTECHNIK GMBH PODRUŽNICA KRANJSKA GORA","NASELJE SLAVKA ČERNETA 034",4280,"KRANJSKA GORA",57713596,"Robert Bizjak","(04)5885070; (041)721561 (g. Bizjak)","(04)5885071","info@wte.si",108]

{"sheet":"sifrant","index":17,"n_rows":1625,"n_cols":9,"rows_kept":1625,"cut":false,"hidden":true,"merged":[]}
["ID","Naziv",null,null,null,null,null,"Šifra","Opis"]
[0,"",null,"obratovalnem monitoringu"]
[800,"ALS",null,"prvih meritvah",null,null,null,"01","Kmetijska proizvodnja in lov ter z njima povezane storitve"]
[60,"Bioinstitut d.o.o.",null,null,null,null,null,"011","Pridelovanje netrajnih rastlin"]
[3,"Cinkarna Celje, d.d.",null,null,null,null,null,"0111","Pridelovanje žit (razen riža), stročnic in oljnic"]
[4,"EKO Ekoinženiring d.o.o.",null,null,null,null,null,"01110","Pridelovanje žit (razen riža), stročnic in oljnic"]
[5,"Eurofins ERICo Slovenija d.o.o.",null,null,null,null,null,"0112","Pridelovanje riža"]
[61,"Euroinspekt Croatiakontrola d.o.o.",null,null,null,null,null,"01120","Pridelovanje riža"]
[7,"GORENJE d.o.o.",null,null,null,null,null,"0113","Pridelovanje zelenjadnic in melon, korenovk in gomoljnic"]
[10,"IKEMA d.o.o.",null,null,null,null,null,"01130","Pridelovanje zelenjadnic in melon, korenovk in gomoljnic"]
[17,"JP  Vodovod-Kanalizacija Ljubljana d.o.o",null,null,null,null,null,"0114","Pridelovanje sladkornega trsa"]
[24,"Komunalno podjetje Ptuj d.d.",null,null,null,null,null,"01140","Pridelovanje sladkornega trsa"]
[23,"Nigrad d.d.",null,null,null,null,null,"0115","Pridelovanje tobaka"]
[5901,"NLZOH Celje",null,null,null,null,null,"01150","Pridelovanje tobaka"]
[5902,"NLZOH Koper",null,null,null,null,null,"0116","Pridelovanje rastlin za vlakna"]
[5903,"NLZOH Kranj",null,null,null,null,null,"01160","Pridelovanje rastlin za vlakna"]
[5904,"NLZOH Maribor",null,null,null,null,null,"0119","Pridelovanje cvetja in drugih enoletnih rastlin"]
[5905,"NLZOH Nova Gorica",null,null,null,null,null,"01190","Pridelovanje cvetja in drugih enoletnih rastlin"]
[5906,"NLZOH Novo mesto",null,null,null,null,null,"012","Gojenje trajnih nasadov"]
[56,"Regionalni tehnološki center Zasavje d.o.o.",null,null,null,null,null,"0121","Vinogradništvo"]
[39,"SIJ Acroni d.o.o.",null,null,null,null,null,"01210","Vinogradništvo"]
[100,"TAB-IPM  d.o.o.",null,null,null,null,null,"0122","Gojenje tropskega in subtropskega sadja"]
[57,"Talum Inštitut d.o.o.",null,null,null,null,null,"01220","Gojenje tropskega in subtropskega sadja"]
[9,"VIPAP Videm Krško, d.d.",null,null,null,null,null,"0123","Gojenje citrusov"]
[null,null,null,null,null,null,null,"01230","Gojenje citrusov"]
[null,null,null,null,null,null,null,"0124","Gojenje pečkatega in koščičastega sadja"]
[null,null,null,null,null,null,null,"01240","Gojenje pečkatega in koščičastega sadja"]
[null,null,null,null,null,null,null,"0125","Gojenje drugih sadnih dreves in grmovnic"]
[null,null,null,null,null,null,null,"01250","Gojenje drugih sadnih dreves in grmovnic"]
[null,null,null,null,null,null,null,"0126","Pridelovanje oljnih sadežev"]
[null,null,null,null,null,null,null,"01260","Pridelovanje oljnih sadežev"]
[null,null,null,null,null,null,null,"0127","Gojenje rastlin za izdelavo napitkov"]
[null,null,null,null,null,null,null,"01270","Gojenje rastlin za izdelavo napitkov"]
[null,null,null,null,null,null,null,"0128","Gojenje začimbnih, aromatskih in zdravilnih rastlin"]
[null,null,null,null,null,null,null,"01280","Gojenje začimbnih, aromatskih in zdravilnih rastlin"]
[null,null,null,null,null,null,null,"0129","Gojenje drugih trajnih nasadov"]
[null,null,null,null,null,null,null,"01290","Gojenje drugih trajnih nasadov"]
[null,null,null,null,null,null,null,"013","Razmnoževanje rastlin"]
[null,null,null,null,null,null,null,"0130","Razmnoževanje rastlin"]
[null,null,null,null,null,null,null,"01300","Razmnoževanje rastlin"]
[null,null,null,null,null,null,null,"014","Živinoreja"]
[null,null,null,null,null,null,null,"0141","Prireja mleka"]
[null,null,null,null,null,null,null,"01410","Prireja mleka"]
[null,null,null,null,null,null,null,"0142","Druga govedoreja"]
[null,null,null,null,null,null,null,"01420","Druga govedoreja"]
[null,null,null,null,null,null,null,"0143","Konjereja"]
[null,null,null,null,null,null,null,"01430","Konjereja"]
[null,null,null,null,null,null,null,"0144","Reja kamel"]
[null,null,null,null,null,null,null,"01440","Reja kamel"]
[null,null,null,null,null,null,null,"0145","Reja drobnice"]
[null,null,null,null,null,null,null,"01450","Reja drobnice"]
[null,null,null,null,null,null,null,"0146","Prašičereja"]
[null,null,null,null,null,null,null,"01460","Prašičereja"]
[null,null,null,null,null,null,null,"0147","Reja perutnine"]
[null,null,null,null,null,null,null,"01470","Reja perutnine"]
[null,null,null,null,null,null,null,"0149","Reja drugih živali"]
[null,null,null,null,null,null,null,"01490","Reja drugih živali"]
[null,null,null,null,null,null,null,"015","Mešano kmetijstvo"]
[null,null,null,null,null,null,null,"0150","Mešano kmetijstvo"]
[null,null,null,null,null,null,null,"01500","Mešano kmetijstvo"]
[null,null,null,null,null,null,null,"016","Storitve za kmetijsko proizvodnjo, priprava pridelkov"]
[null,null,null,null,null,null,null,"0161","Storitve za rastlinsko pridelavo"]
[null,null,null,null,null,null,null,"01610","Storitve za rastlinsko pridelavo"]
[null,null,null,null,null,null,null,"0162","Storitve za živinorejo, razen veterinarskih"]
[null,null,null,null,null,null,null,"01620","Storitve za živinorejo, razen veterinarskih"]
[null,null,null,null,null,null,null,"0163","Priprava pridelkov"]
[null,null,null,null,null,null,null,"01630","Priprava pridelkov"]
[null,null,null,null,null,null,null,"0164","Obdelava semen"]
[null,null,null,null,null,null,null,"01640","Obdelava semen"]
[null,null,null,null,null,null,null,"017","Lovstvo"]
[null,null,null,null,null,null,null,"0170","Lovstvo"]
[null,null,null,null,null,null,null,"01700","Lovstvo"]
[null,null,null,null,null,null,null,"02","Gozdarstvo"]
[null,null,null,null,null,null,null,"021","Gojenje gozdov in druge gozdarske dejavnosti"]
[null,null,null,null,null,null,null,"0210","Gojenje gozdov in druge gozdarske dejavnosti"]
[null,null,null,null,null,null,null,"02100","Gojenje gozdov in druge gozdarske dejavnosti"]
[null,null,null,null,null,null,null,"022","Sečnja"]
[null,null,null,null,null,null,null,"0220","Sečnja"]
[null,null,null,null,null,null,null,"02200","Sečnja"]
[null,null,null,null,null,null,null,"023","Nabiranje gozdnih dobrin, razen lesa"]
[null,null,null,null,null,null,null,"0230","Nabiranje gozdnih dobrin, razen lesa"]
[null,null,null,null,null,null,null,"02300","Nabiranje gozdnih dobrin, razen lesa"]
[null,null,null,null,null,null,null,"024","Storitve za gozdarstvo"]
[null,null,null,null,null,null,null,"0240","Storitve za gozdarstvo"]
[null,null,null,null,null,null,null,"02400","Storitve za gozdarstvo"]
[null,null,null,null,null,null,null,"03","Ribištvo in gojenje vodnih organizmov"]
[null,null,null,null,null,null,null,"031","Ribištvo"]
[null,null,null,null,null,null,null,"0311","Morsko ribištvo"]
[null,null,null,null,null,null,null,"03110","Morsko ribištvo"]
[null,null,null,null,null,null,null,"0312","Sladkovodno ribištvo"]
[null,null,null,null,null,null,null,"03120","Sladkovodno ribištvo"]
[null,null,null,null,null,null,null,"032","Gojenje vodnih organizmov"]
[null,null,null,null,null,null,null,"0321","Gojenje morskih organizmov"]
[null,null,null,null,null,null,null,"03210","Gojenje morskih organizmov"]
[null,null,null,null,null,null,null,"0322","Gojenje sladkovodnih organizmov"]
[null,null,null,null,null,null,null,"03220","Gojenje sladkovodnih organizmov"]
[null,null,null,null,null,null,null,"05","Pridobivanje premoga"]
[null,null,null,null,null,null,null,"051","Pridobivanje črnega premoga"]
[null,null,null,null,null,null,null,"0510","Pridobivanje črnega premoga"]
[null,null,null,null,null,null,null,"05100","Pridobivanje črnega premoga"]
[null,null,null,null,null,null,null,"052","Pridobivanje rjavega premoga in lignita"]
[null,null,null,null,null,null,null,"0520","Pridobivanje rjavega premoga in lignita"]
[null,null,null,null,null,null,null,"05200","Pridobivanje rjavega premoga in lignita"]
[null,null,null,null,null,null,null,"06","Pridobivanje surove nafte in zemeljskega plina"]
[null,null,null,null,null,null,null,"061","Pridobivanje surove nafte"]
[null,null,null,null,null,null,null,"0610","Pridobivanje surove nafte"]
[null,null,null,null,null,null,null,"06100","Pridobivanje surove nafte"]
[null,null,null,null,null,null,null,"062","Pridobivanje zemeljskega plina"]
[null,null,null,null,null,null,null,"0620","Pridobivanje zemeljskega plina"]
[null,null,null,null,null,null,null,"06200","Pridobivanje zemeljskega plina"]
[null,null,null,null,null,null,null,"07","Pridobivanje rud"]
[null,null,null,null,null,null,null,"071","Pridobivanje železove rude"]
[null,null,null,null,null,null,null,"0710","Pridobivanje železove rude"]
[null,null,null,null,null,null,null,"07100","Pridobivanje železove rude"]
[null,null,null,null,null,null,null,"072","Pridobivanje rud neželeznih kovin"]
[null,null,null,null,null,null,null,"0721","Pridobivanje uranove in torijeve rude"]
[null,null,null,null,null,null,null,"07210","Pridobivanje uranove in torijeve rude"]
[null,null,null,null,null,null,null,"0729","Pridobivanje rud drugih neželeznih kovin"]
[null,null,null,null,null,null,null,"07290","Pridobivanje rud drugih neželeznih kovin"]
[null,null,null,null,null,null,null,"08","Pridobivanje rudnin in kamnin"]
[null,null,null,null,null,null,null,"081","Pridobivanje kamna, peska in gline"]
[null,null,null,null,null,null,null,"0811","Pridobivanje kamna"]
[null,null,null,null,null,null,null,"08110","Pridobivanje kamna"]
[null,null,null,null,null,null,null,"0812","Pridobivanje gramoza, peska, gline"]
[null,null,null,null,null,null,null,"08120","Pridobivanje gramoza, peska, gline"]
[null,null,null,null,null,null,null,"089","Pridobivanje drugih rudnin in kamnin"]
[null,null,null,null,null,null,null,"0891","Pridobivanje mineralov za kemikalije in gnojila"]
[null,null,null,null,null,null,null,"08910","Pridobivanje mineralov za kemikalije in gnojila"]
[null,null,null,null,null,null,null,"0892","Pridobivanje šote"]
[null,null,null,null,null,null,null,"08920","Pridobivanje šote"]
[null,null,null,null,null,null,null,"0893","Pridobivanje soli"]
[null,null,null,null,null,null,null,"08930","Pridobivanje soli"]
[null,null,null,null,null,null,null,"0899","Drugo pridobivanje rudnin in kamnin"]
[null,null,null,null,null,null,null,"08990","Drugo pridobivanje rudnin in kamnin"]
[null,null,null,null,null,null,null,"09","Storitve za rudarstvo"]
[null,null,null,null,null,null,null,"091","Storitve za pridobivanje nafte in zemeljskega plina"]
[null,null,null,null,null,null,null,"0910","Storitve za pridobivanje nafte in zemeljskega plina"]
[null,null,null,null,null,null,null,"09100","Storitve za pridobivanje nafte in zemeljskega plina"]
[null,null,null,null,null,null,null,"099","Storitve za drugo rudarjenje"]
[null,null,null,null,null,null,null,"0990","Storitve za drugo rudarjenje"]
[null,null,null,null,null,null,null,"09900","Storitve za drugo rudarjenje"]
[null,null,null,null,null,null,null,"10","Proizvodnja živil"]
[null,null,null,null,null,null,null,"101","Proizvodnja mesa in mesnih izdelkov"]
[null,null,null,null,null,null,null,"1011","Proizvodnja mesa, razen perutninskega"]
[null,null,null,null,null,null,null,"10110","Proizvodnja mesa, razen perutninskega"]
[null,null,null,null,null,null,null,"1012","Proizvodnja perutninskega mesa"]
[null,null,null,null,null,null,null,"10120","Proizvodnja perutninskega mesa"]
[null,null,null,null,null,null,null,"1013","Proizvodnja mesnih izdelkov"]
[null,null,null,null,null,null,null,"10130","Proizvodnja mesnih izdelkov"]
[null,null,null,null,null,null,null,"102","Predelava in konzerviranje rib, rakov in mehkužcev"]
[null,null,null,null,null,null,null,"1020","Predelava in konzerviranje rib, rakov in mehkužcev"]
[null,null,null,null,null,null,null,"10200","Predelava in konzerviranje rib, rakov in mehkužcev"]
[null,null,null,null,null,null,null,"103","Predelava in konzerviranje sadja in zelenjave"]
[null,null,null,null,null,null,null,"1031","Predelava in konzerviranje krompirja"]
[null,null,null,null,null,null,null,"10310","Predelava in konzerviranje krompirja"]
[null,null,null,null,null,null,null,"1032","Proizvodnja sadnih in zelenjavnih sokov"]
[null,null,null,null,null,null,null,"10320","Proizvodnja sadnih in zelenjavnih sokov"]
[null,null,null,null,null,null,null,"1039","Druga predelava in konzerviranje sadja in zelenjave"]
[null,null,null,null,null,null,null,"10390","Druga predelava in konzerviranje sadja in zelenjave"]
[null,null,null,null,null,null,null,"104","Proizvodnja rastlinskih in živalskih olj in maščob"]
[null,null,null,null,null,null,null,"1041","Proizvodnja olja in maščob"]
[null,null,null,null,null,null,null,"10410","Proizvodnja olja in maščob"]
[null,null,null,null,null,null,null,"1042","Proizvodnja margarine in podobnih jedilnih maščob"]
[null,null,null,null,null,null,null,"10420","Proizvodnja margarine in podobnih jedilnih maščob"]
[null,null,null,null,null,null,null,"105","Predelava mleka"]
[null,null,null,null,null,null,null,"1051","Mlekarstvo in sirarstvo"]
[null,null,null,null,null,null,null,"10510","Mlekarstvo in sirarstvo"]
[null,null,null,null,null,null,null,"1052","Proizvodnja sladoleda"]
[null,null,null,null,null,null,null,"10520","Proizvodnja sladoleda"]
[null,null,null,null,null,null,null,"106","Mlinarstvo, proizvodnja škroba in škrobnih izdelkov"]
[null,null,null,null,null,null,null,"1061","Mlinarstvo"]
[null,null,null,null,null,null,null,"10610","Mlinarstvo"]
[null,null,null,null,null,null,null,"1062","Proizvodnja škroba in škrobnih izdelkov"]
[null,null,null,null,null,null,null,"10620","Proizvodnja škroba in škrobnih izdelkov"]
[null,null,null,null,null,null,null,"107","Proizvodnja pekarskih izdelkov in testenin"]
[null,null,null,null,null,null,null,"1071","Proizvodnja kruha, svežega peciva in slaščic"]
[null,null,null,null,null,null,null,"10710","Proizvodnja kruha, svežega peciva in slaščic"]
[null,null,null,null,null,null,null,"1072","Proizvodnja prepečenca in piškotov; proizvodnja trajnega peciva in slaščic"]
[null,null,null,null,null,null,null,"10720","Proizvodnja prepečenca in piškotov; proizvodnja trajnega peciva in slaščic"]
[null,null,null,null,null,null,null,"1073","Proizvodnja testenin"]
[null,null,null,null,null,null,null,"10730","Proizvodnja testenin"]
[null,null,null,null,null,null,null,"108","Proizvodnja drugih prehrambenih izdelkov"]
[null,null,null,null,null,null,null,"1081","Proizvodnja sladkorja"]
[null,null,null,null,null,null,null,"10810","Proizvodnja sladkorja"]
[null,null,null,null,null,null,null,"1082","Proizvodnja kakava, čokolade in sladkornih izdelkov"]
[null,null,null,null,null,null,null,"10820","Proizvodnja kakava, čokolade in sladkornih izdelkov"]
[null,null,null,null,null,null,null,"1083","Predelava čaja in kave"]
[null,null,null,null,null,null,null,"10830","Predelava čaja in kave"]
[null,null,null,null,null,null,null,"1084","Proizvodnja začimb, dišav in drugih dodatkov"]
[null,null,null,null,null,null,null,"10840","Proizvodnja začimb, dišav in drugih dodatkov"]
[null,null,null,null,null,null,null,"1085","Proizvodnja pripravljenih jedi in obrokov"]
[null,null,null,null,null,null,null,"10850","Proizvodnja pripravljenih jedi in obrokov"]
[null,null,null,null,null,null,null,"1086","Proizvodnja homogeniziranih in dietetičnih živil"]
[null,null,null,null,null,null,null,"10860","Proizvodnja homogeniziranih in dietetičnih živil"]
[null,null,null,null,null,null,null,"1089","Proizvodnja drugih prehrambenih izdelkov, drugje nerazvrščenih"]
[null,null,null,null,null,null,null,"10890","Proizvodnja drugih prehrambenih izdelkov, drugje nerazvrščenih"]
[null,null,null,null,null,null,null,"109","Proizvodnja krmil in hrane za hišne živali"]
[null,null,null,null,null,null,null,"1091","Proizvodnja krmil"]
[null,null,null,null,null,null,null,"10910","Proizvodnja krmil"]
[null,null,null,null,null,null,null,"1092","Proizvodnja hrane za hišne živali"]
[null,null,null,null,null,null,null,"10920","Proizvodnja hrane za hišne živali"]
[null,null,null,null,null,null,null,"11","Proizvodnja pijač"]
[null,null,null,null,null,null,null,"110","Proizvodnja pijač"]
[null,null,null,null,null,null,null,"1101","Proizvodnja žganih pijač"]
[null,null,null,null,null,null,null,"11010","Proizvodnja žganih pijač"]
[null,null,null,null,null,null,null,"1102","Proizvodnja vina iz grozdja"]
[null,null,null,null,null,null,null,"11020","Proizvodnja vina iz grozdja"]
[null,null,null,null,null,null,null,"1103","Proizvodnja sadnih vin in podobnih fermentiranih pijač"]
[null,null,null,null,null,null,null,"11030","Proizvodnja sadnih vin in podobnih fermentiranih pijač"]
[null,null,null,null,null,null,null,"1104","Proizvodnja aromatiziranih vin iz grozdja"]
[null,null,null,null,null,null,null,"11040","Proizvodnja aromatiziranih vin iz grozdja"]
[null,null,null,null,null,null,null,"1105","Proizvodnja piva"]
[null,null,null,null,null,null,null,"11050","Proizvodnja piva"]
[null,null,null,null,null,null,null,"1106","Proizvodnja slada"]
[null,null,null,null,null,null,null,"11060","Proizvodnja slada"]
[null,null,null,null,null,null,null,"1107","Proizvodnja brezalkoholnih pijač, mineralnih in drugih stekleničenih vod"]
[null,null,null,null,null,null,null,"11070","Proizvodnja brezalkoholnih pijač, mineralnih in drugih stekleničenih vod"]
[null,null,null,null,null,null,null,"12","Proizvodnja tobačnih izdelkov"]
[null,null,null,null,null,null,null,"120","Proizvodnja tobačnih izdelkov"]
[null,null,null,null,null,null,null,"1200","Proizvodnja tobačnih izdelkov"]
[null,null,null,null,null,null,null,"12000","Proizvodnja tobačnih izdelkov"]
[null,null,null,null,null,null,null,"13","Proizvodnja tekstilij"]
[null,null,null,null,null,null,null,"131","Priprava in predenje tekstilnih vlaken"]
[null,null,null,null,null,null,null,"1310","Priprava in predenje tekstilnih vlaken"]
[null,null,null,null,null,null,null,"13100","Priprava in predenje tekstilnih vlaken"]
[null,null,null,null,null,null,null,"132","Tkanje tekstilij"]
[null,null,null,null,null,null,null,"1320","Tkanje tekstilij"]
[null,null,null,null,null,null,null,"13200","Tkanje tekstilij"]
[null,null,null,null,null,null,null,"133","Dodelava tekstilij"]
[null,null,null,null,null,null,null,"1330","Dodelava tekstilij"]
[null,null,null,null,null,null,null,"13300","Dodelava tekstilij"]
[null,null,null,null,null,null,null,"139","Proizvodnja drugih tekstilij"]
[null,null,null,null,null,null,null,"1391","Proizvodnja pletenih in kvačkanih materialov"]
[null,null,null,null,null,null,null,"13910","Proizvodnja pletenih in kvačkanih materialov"]
[null,null,null,null,null,null,null,"1392","Proizvodnja končnih tekstilnih izdelkov, razen oblačil"]
[null,null,null,null,null,null,null,"13920","Proizvodnja končnih tekstilnih izdelkov, razen oblačil"]
[null,null,null,null,null,null,null,"1393","Proizvodnja preprog"]
[null,null,null,null,null,null,null,"13930","Proizvodnja preprog"]
[null,null,null,null,null,null,null,"1394","Proizvodnja vrvi, vrvic in mrež"]
[null,null,null,null,null,null,null,"13940","Proizvodnja vrvi, vrvic in mrež"]
[null,null,null,null,null,null,null,"1395","Proizvodnja netkanih tekstilij in izdelkov iz njih, razen oblačil"]
[null,null,null,null,null,null,null,"13950","Proizvodnja netkanih tekstilij in izdelkov iz njih, razen oblačil"]
[null,null,null,null,null,null,null,"1396","Proizvodnja tehničnega in industrijskega tekstila"]
[null,null,null,null,null,null,null,"13960","Proizvodnja tehničnega in industrijskega tekstila"]
[null,null,null,null,null,null,null,"1399","Proizvodnja drugje nerazvrščenih tekstilij"]
[null,null,null,null,null,null,null,"13990","Proizvodnja drugje nerazvrščenih tekstilij"]
[null,null,null,null,null,null,null,"14","Proizvodnja oblačil"]
[null,null,null,null,null,null,null,"141","Proizvodnja oblačil, razen krznenih"]
[null,null,null,null,null,null,null,"1411","Proizvodnja usnjenih oblačil"]
[null,null,null,null,null,null,null,"14110","Proizvodnja usnjenih oblačil"]
[null,null,null,null,null,null,null,"1412","Proizvodnja delovnih oblačil"]
[null,null,null,null,null,null,null,"14120","Proizvodnja delovnih oblačil"]
[null,null,null,null,null,null,null,"1413","Proizvodnja drugih vrhnjih oblačil"]
[null,null,null,null,null,null,null,"14130","Proizvodnja drugih vrhnjih oblačil"]
[null,null,null,null,null,null,null,"1414","Proizvodnja spodnjega perila"]
[null,null,null,null,null,null,null,"14140","Proizvodnja spodnjega perila"]
[null,null,null,null,null,null,null,"1419","Proizvodnja drugih oblačil, pokrival ter dodatkov"]
[null,null,null,null,null,null,null,"14190","Proizvodnja drugih oblačil, pokrival ter dodatkov"]
[null,null,null,null,null,null,null,"142","Proizvodnja krznenih izdelkov"]
[null,null,null,null,null,null,null,"1420","Proizvodnja krznenih izdelkov"]
[null,null,null,null,null,null,null,"14200","Proizvodnja krznenih izdelkov"]
[null,null,null,null,null,null,null,"143","Proizvodnja pletenih in kvačkanih oblačil"]
[null,null,null,null,null,null,null,"1431","Proizvodnja nogavic"]
[null,null,null,null,null,null,null,"14310","Proizvodnja nogavic"]
[null,null,null,null,null,null,null,"1439","Proizvodnja drugih pletenih in kvačkanih oblačil"]
[null,null,null,null,null,null,null,"14390","Proizvodnja drugih pletenih in kvačkanih oblačil"]
[null,null,null,null,null,null,null,"15","Proizvodnja usnja, usnjenih in sorodnih izdelkov"]
[null,null,null,null,null,null,null,"151","Strojenje in dodelava usnja in krzna; proizvodnja potovalne galanterije in sedlarskih izdelkov"]
[null,null,null,null,null,null,null,"1511","Strojenje in dodelava usnja in krzna"]
[null,null,null,null,null,null,null,"15110","Strojenje in dodelava usnja in krzna"]
[null,null,null,null,null,null,null,"1512","Proizvodnja potovalne galanterije, sedlarskih in jermenarskih izdelkov"]
[null,null,null,null,null,null,null,"15120","Proizvodnja potovalne galanterije, sedlarskih in jermenarskih izdelkov"]
[null,null,null,null,null,null,null,"152","Proizvodnja obutve"]
[null,null,null,null,null,null,null,"1520","Proizvodnja obutve"]
[null,null,null,null,null,null,null,"15200","Proizvodnja obutve"]
[null,null,null,null,null,null,null,"16","Obdelava in predelava lesa; proizvodnja izdelkov iz lesa, plute, slame in protja, razen pohištva"]
[null,null,null,null,null,null,null,"161","Žaganje, skobljanje in impregniranje lesa"]
[null,null,null,null,null,null,null,"1610","Žaganje, skobljanje in impregniranje lesa"]
[null,null,null,null,null,null,null,"16100","Žaganje, skobljanje in impregniranje lesa"]
[null,null,null,null,null,null,null,"162","Proizvodnja lesenih, plutovinastih, pletarskih izdelkov"]
[null,null,null,null,null,null,null,"1621","Proizvodnja furnirja in plošč na osnovi lesa"]
[null,null,null,null,null,null,null,"16210","Proizvodnja furnirja in plošč na osnovi lesa"]
[null,null,null,null,null,null,null,"1622","Proizvodnja sestavljenega parketa"]
[null,null,null,null,null,null,null,"16220","Proizvodnja sestavljenega parketa"]
[null,null,null,null,null,null,null,"1623","Stavbno mizarstvo in tesarstvo"]
[null,null,null,null,null,null,null,"16230","Stavbno mizarstvo in tesarstvo"]
[null,null,null,null,null,null,null,"1624","Proizvodnja lesene embalaže"]
[null,null,null,null,null,null,null,"16240","Proizvodnja lesene embalaže"]
[null,null,null,null,null,null,null,"1629","Proizvodnja drugih izdelkov iz lesa, plute, slame in protja"]
[null,null,null,null,null,null,null,"16290","Proizvodnja drugih izdelkov iz lesa, plute, slame in protja"]
[null,null,null,null,null,null,null,"17","Proizvodnja papirja in izdelkov iz papirja"]
[null,null,null,null,null,null,null,"171","Proizvodnja vlaknin, papirja in kartona"]
[null,null,null,null,null,null,null,"1711","Proizvodnja vlaknin"]
[null,null,null,null,null,null,null,"17110","Proizvodnja vlaknin"]
[null,null,null,null,null,null,null,"1712","Proizvodnja papirja in kartona"]
[null,null,null,null,null,null,null,"17120","Proizvodnja papirja in kartona"]
[null,null,null,null,null,null,null,"172","Proizvodnja izdelkov iz papirja in kartona"]
[null,null,null,null,null,null,null,"1721","Proizvodnja valovitega papirja in kartona ter papirne in kartonske embalaže"]
[null,null,null,null,null,null,null,"17210","Proizvodnja valovitega papirja in kartona ter papirne in kartonske embalaže"]
[null,null,null,null,null,null,null,"1722","Proizvodnja gospodinjskih, higienskih in toaletnih potrebščin iz papirja"]
[null,null,null,null,null,null,null,"17220","Proizvodnja gospodinjskih, higienskih in toaletnih potrebščin iz papirja"]
[null,null,null,null,null,null,null,"1723","Proizvodnja pisarniških potrebščin iz papirja"]
[null,null,null,null,null,null,null,"17230","Proizvodnja pisarniških potrebščin iz papirja"]
[null,null,null,null,null,null,null,"1724","Proizvodnja tapet"]
[null,null,null,null,null,null,null,"17240","Proizvodnja tapet"]
[null,null,null,null,null,null,null,"1729","Proizvodnja drugih izdelkov iz papirja in kartona"]
[null,null,null,null,null,null,null,"17290","Proizvodnja drugih izdelkov iz papirja in kartona"]
[null,null,null,null,null,null,null,"18","Tiskarstvo in razmnoževanje posnetih nosilcev zapisa"]
[null,null,null,null,null,null,null,"181","Tiskarstvo in z njim povezane storitve"]
[null,null,null,null,null,null,null,"1811","Tiskanje časopisov"]
[null,null,null,null,null,null,null,"18110","Tiskanje časopisov"]
[null,null,null,null,null,null,null,"1812","Drugo tiskanje"]
[null,null,null,null,null,null,null,"18120","Drugo tiskanje"]
[null,null,null,null,null,null,null,"1813","Priprava za tisk in objavo"]
[null,null,null,null,null,null,null,"18130","Priprava za tisk in objavo"]
[null,null,null,null,null,null,null,"1814","Knjigoveštvo in sorodne dejavnosti"]
[null,null,null,null,null,null,null,"18140","Knjigoveštvo in sorodne dejavnosti"]
[null,null,null,null,null,null,null,"182","Razmnoževanje posnetih nosilcev zapisa"]
[null,null,null,null,null,null,null,"1820","Razmnoževanje posnetih nosilcev zapisa"]
[null,null,null,null,null,null,null,"18200","Razmnoževanje posnetih nosilcev zapisa"]
[null,null,null,null,null,null,null,"19","Proizvodnja koksa in naftnih derivatov"]
[null,null,null,null,null,null,null,"191","Proizvodnja koksa"]
[null,null,null,null,null,null,null,"1910","Proizvodnja koksa"]
[null,null,null,null,null,null,null,"19100","Proizvodnja koksa"]
[null,null,null,null,null,null,null,"192","Proizvodnja naftnih derivatov"]
[null,null,null,null,null,null,null,"1920","Proizvodnja naftnih derivatov"]
[null,null,null,null,null,null,null,"19200","Proizvodnja naftnih derivatov"]
[null,null,null,null,null,null,null,"20","Proizvodnja kemikalij, kemičnih izdelkov"]
[null,null,null,null,null,null,null,"201","Proizvodnja osnovnih kemikalij, gnojil in dušikovih spojin, plastičnih mas in sintetičnega kavčuka v primarni obliki"]
[null,null,null,null,null,null,null,"2011","Proizvodnja tehničnih plinov"]
[null,null,null,null,null,null,null,"20110","Proizvodnja tehničnih plinov"]
[null,null,null,null,null,null,null,"2012","Proizvodnja barvil in pigmentov"]
[null,null,null,null,null,null,null,"20120","Proizvodnja barvil in pigmentov"]
[null,null,null,null,null,null,null,"2013","Proizvodnja drugih anorganskih osnovnih kemikalij"]
[null,null,null,null,null,null,null,"20130","Proizvodnja drugih anorganskih osnovnih kemikalij"]
[null,null,null,null,null,null,null,"2014","Proizvodnja drugih organskih osnovnih kemikalij"]
[null,null,null,null,null,null,null,"20140","Proizvodnja drugih organskih osnovnih kemikalij"]
[null,null,null,null,null,null,null,"2015","Proizvodnja gnojil in dušikovih spojin"]
[null,null,null,null,null,null,null,"20150","Proizvodnja gnojil in dušikovih spojin"]
[null,null,null,null,null,null,null,"2016","Proizvodnja plastičnih mas v primarni obliki"]
[null,null,null,null,null,null,null,"20160","Proizvodnja plastičnih mas v primarni obliki"]
[null,null,null,null,null,null,null,"2017","Proizvodnja sintetičnega kavčuka v primarni obliki"]
[null,null,null,null,null,null,null,"20170","Proizvodnja sintetičnega kavčuka v primarni obliki"]
[null,null,null,null,null,null,null,"202","Proizvodnja razkužil, pesticidov in drugih agrokemičnih izdelkov"]
[null,null,null,null,null,null,null,"2020","Proizvodnja razkužil, pesticidov in drugih agrokemičnih izdelkov"]
[null,null,null,null,null,null,null,"20200","Proizvodnja razkužil, pesticidov in drugih agrokemičnih izdelkov"]
[null,null,null,null,null,null,null,"203","Proizvodnja barv, lakov in podobnih premazov, tiskarskih barv in kitov"]
[null,null,null,null,null,null,null,"2030","Proizvodnja barv, lakov in podobnih premazov, tiskarskih barv in kitov"]
[null,null,null,null,null,null,null,"20300","Proizvodnja barv, lakov in podobnih premazov, tiskarskih barv in kitov"]
[null,null,null,null,null,null,null,"204","Proizvodnja mil in pralnih sredstev, čistilnih in polirnih sredstev, parfumov in toaletnih sredstev"]
[null,null,null,null,null,null,null,"2041","Proizvodnja mil in pralnih sredstev, čistilnih in polirnih sredstev"]
[null,null,null,null,null,null,null,"20410","Proizvodnja mil in pralnih sredstev, čistilnih in polirnih sredstev"]
[null,null,null,null,null,null,null,"2042","Proizvodnja parfumov in toaletnih sredstev"]
[null,null,null,null,null,null,null,"20420","Proizvodnja parfumov in toaletnih sredstev"]
[null,null,null,null,null,null,null,"205","Proizvodnja razstreliv, lepil, eteričnih olj in drugih kemičnih izdelkov"]
[null,null,null,null,null,null,null,"2051","Proizvodnja razstreliv"]
[null,null,null,null,null,null,null,"20510","Proizvodnja razstreliv"]
[null,null,null,null,null,null,null,"2052","Proizvodnja sredstev za lepljenje"]
[null,null,null,null,null,null,null,"20520","Proizvodnja sredstev za lepljenje"]
[null,null,null,null,null,null,null,"2053","Proizvodnja eteričnih olj"]
[null,null,null,null,null,null,null,"20530","Proizvodnja eteričnih olj"]
[null,null,null,null,null,null,null,"2059","Proizvodnja drugih kemičnih izdelkov"]
[null,null,null,null,null,null,null,"20590","Proizvodnja drugih kemičnih izdelkov"]
[null,null,null,null,null,null,null,"206","Proizvodnja umetnih vlaken"]
[null,null,null,null,null,null,null,"2060","Proizvodnja umetnih vlaken"]
[null,null,null,null,null,null,null,"20600","Proizvodnja umetnih vlaken"]
[null,null,null,null,null,null,null,"21","Proizvodnja farmacevtskih surovin in preparatov"]
[null,null,null,null,null,null,null,"211","Proizvodnja farmacevtskih surovin"]
[null,null,null,null,null,null,null,"2110","Proizvodnja farmacevtskih surovin"]
[null,null,null,null,null,null,null,"21100","Proizvodnja farmacevtskih surovin"]
[null,null,null,null,null,null,null,"212","Proizvodnja farmacevtskih preparatov"]
[null,null,null,null,null,null,null,"2120","Proizvodnja farmacevtskih preparatov"]
[null,null,null,null,null,null,null,"21200","Proizvodnja farmacevtskih preparatov"]
[null,null,null,null,null,null,null,"22","Proizvodnja izdelkov iz gume in plastičnih mas"]
[null,null,null,null,null,null,null,"221","Proizvodnja izdelkov iz gume"]
[null,null,null,null,null,null,null,"2211","Proizvodnja in obnavljanje gumijastih plaščev in zračnic za vozila"]
[null,null,null,null,null,null,null,"22110","Proizvodnja in obnavljanje gumijastih plaščev in zračnic za vozila"]
[null,null,null,null,null,null,null,"2219","Proizvodnja drugih izdelkov iz gume"]
[null,null,null,null,null,null,null,"22190","Proizvodnja drugih izdelkov iz gume"]
[null,null,null,null,null,null,null,"222","Proizvodnja plastičnih izdelkov"]
[null,null,null,null,null,null,null,"2221","Proizvodnja plošč, folij, cevi in profilov iz plastičnih mas"]
[null,null,null,null,null,null,null,"22210","Proizvodnja plošč, folij, cevi in profilov iz plastičnih mas"]
[null,null,null,null,null,null,null,"2222","Proizvodnja embalaže iz plastičnih mas"]
[null,null,null,null,null,null,null,"22220","Proizvodnja embalaže iz plastičnih mas"]
[null,null,null,null,null,null,null,"2223","Proizvodnja izdelkov iz plastičnih mas za gradbeništvo"]
[null,null,null,null,null,null,null,"22230","Proizvodnja izdelkov iz plastičnih mas za gradbeništvo"]
[null,null,null,null,null,null,null,"2229","Proizvodnja drugih izdelkov iz plastičnih mas"]
[null,null,null,null,null,null,null,"22290","Proizvodnja drugih izdelkov iz plastičnih mas"]
[null,null,null,null,null,null,null,"23","Proizvodnja nekovinskih mineralnih izdelkov"]
[null,null,null,null,null,null,null,"231","Proizvodnja stekla in steklenih izdelkov"]
[null,null,null,null,null,null,null,"2311","Proizvodnja ravnega stekla"]
[null,null,null,null,null,null,null,"23110","Proizvodnja ravnega stekla"]
[null,null,null,null,null,null,null,"2312","Oblikovanje in obdelava ravnega stekla"]
[null,null,null,null,null,null,null,"23120","Oblikovanje in obdelava ravnega stekla"]
[null,null,null,null,null,null,null,"2313","Proizvodnja votlega stekla"]
[null,null,null,null,null,null,null,"23130","Proizvodnja votlega stekla"]
[null,null,null,null,null,null,null,"2314","Proizvodnja steklenih vlaken"]
[null,null,null,null,null,null,null,"23140","Proizvodnja steklenih vlaken"]
[null,null,null,null,null,null,null,"2319","Proizvodnja in oblikovanje drugih vrst stekla ter tehničnih steklenih izdelkov"]
[null,null,null,null,null,null,null,"23190","Proizvodnja in oblikovanje drugih vrst stekla ter tehničnih steklenih izdelkov"]
[null,null,null,null,null,null,null,"232","Proizvodnja ognjevzdržne keramike"]
[null,null,null,null,null,null,null,"2320","Proizvodnja ognjevzdržne keramike"]
[null,null,null,null,null,null,null,"23200","Proizvodnja ognjevzdržne keramike"]
[null,null,null,null,null,null,null,"233","Proizvodnja neognjevzdržne gradbene keramike"]
[null,null,null,null,null,null,null,"2331","Proizvodnja keramičnih ploščic in oblog"]
[null,null,null,null,null,null,null,"23310","Proizvodnja keramičnih ploščic in oblog"]
[null,null,null,null,null,null,null,"2332","Proizvodnja strešnikov, opeke in drugih gradbenih izdelkov iz žgane gline"]
[null,null,null,null,null,null,null,"23320","Proizvodnja strešnikov, opeke in drugih gradbenih izdelkov iz žgane gline"]
[null,null,null,null,null,null,null,"234","Proizvodnja drugih izdelkov iz keramike in porcelana"]
[null,null,null,null,null,null,null,"2341","Proizvodnja gospodinjske in okrasne keramike"]
[null,null,null,null,null,null,null,"23410","Proizvodnja gospodinjske in okrasne keramike"]
[null,null,null,null,null,null,null,"2342","Proizvodnja sanitarne keramike"]
[null,null,null,null,null,null,null,"23420","Proizvodnja sanitarne keramike"]
[null,null,null,null,null,null,null,"2343","Proizvodnja izolatorjev in izolacijskih elementov iz keramike"]
[null,null,null,null,null,null,null,"23430","Proizvodnja izolatorjev in izolacijskih elementov iz keramike"]
[null,null,null,null,null,null,null,"2344","Proizvodnja druge tehnične keramike"]
[null,null,null,null,null,null,null,"23440","Proizvodnja druge tehnične keramike"]
[null,null,null,null,null,null,null,"2349","Proizvodnja drugih keramičnih izdelkov"]
[null,null,null,null,null,null,null,"23490","Proizvodnja drugih keramičnih izdelkov"]
[null,null,null,null,null,null,null,"235","Proizvodnja cementa, apna, mavca"]
[null,null,null,null,null,null,null,"2351","Proizvodnja cementa"]
[null,null,null,null,null,null,null,"23510","Proizvodnja cementa"]
[null,null,null,null,null,null,null,"2352","Proizvodnja apna in mavca"]
[null,null,null,null,null,null,null,"23520","Proizvodnja apna in mavca"]
[null,null,null,null,null,null,null,"236","Proizvodnja izdelkov iz betona, cementa, mavca"]
[null,null,null,null,null,null,null,"2361","Proizvodnja betonskih izdelkov za gradbeništvo"]
[null,null,null,null,null,null,null,"23610","Proizvodnja betonskih izdelkov za gradbeništvo"]
[null,null,null,null,null,null,null,"2362","Proizvodnja izdelkov iz mavca za gradbeništvo"]
[null,null,null,null,null,null,null,"23620","Proizvodnja izdelkov iz mavca za gradbeništvo"]
[null,null,null,null,null,null,null,"2363","Proizvodnja sveže betonske mešanice"]
[null,null,null,null,null,null,null,"23630","Proizvodnja sveže betonske mešanice"]
[null,null,null,null,null,null,null,"2364","Proizvodnja malte"]
[null,null,null,null,null,null,null,"23640","Proizvodnja malte"]
[null,null,null,null,null,null,null,"2365","Proizvodnja izdelkov iz vlaknatega cementa"]
[null,null,null,null,null,null,null,"23650","Proizvodnja izdelkov iz vlaknatega cementa"]
[null,null,null,null,null,null,null,"2369","Proizvodnja drugih izdelkov iz betona, cementa, mavca"]
[null,null,null,null,null,null,null,"23690","Proizvodnja drugih izdelkov iz betona, cementa, mavca"]
[null,null,null,null,null,null,null,"237","Obdelava naravnega kamna"]
[null,null,null,null,null,null,null,"2370","Obdelava naravnega kamna"]
[null,null,null,null,null,null,null,"23700","Obdelava naravnega kamna"]
[null,null,null,null,null,null,null,"239","Proizvodnja brusilnih sredstev in drugih nekovinskih mineralnih izdelkov"]
[null,null,null,null,null,null,null,"2391","Proizvodnja brusilnih sredstev"]
[null,null,null,null,null,null,null,"23910","Proizvodnja brusilnih sredstev"]
[null,null,null,null,null,null,null,"2399","Proizvodnja drugih nekovinskih mineralnih izdelkov"]
[null,null,null,null,null,null,null,"23990","Proizvodnja drugih nekovinskih mineralnih izdelkov"]
[null,null,null,null,null,null,null,"24","Proizvodnja kovin"]
[null,null,null,null,null,null,null,"241","Proizvodnja surovega železa, jekla, ferozlitin"]
[null,null,null,null,null,null,null,"2410","Proizvodnja surovega železa, jekla, ferozlitin"]
[null,null,null,null,null,null,null,"24100","Proizvodnja surovega železa, jekla, ferozlitin"]
[null,null,null,null,null,null,null,"242","Proizvodnja jeklenih cevi, votlih profilov in fitingov"]
[null,null,null,null,null,null,null,"2420","Proizvodnja jeklenih cevi, votlih profilov in fitingov"]
[null,null,null,null,null,null,null,"24200","Proizvodnja jeklenih cevi, votlih profilov in fitingov"]
[null,null,null,null,null,null,null,"243","Druga primarna predelava železa in jekla"]
[null,null,null,null,null,null,null,"2431","Hladno vlečenje profilov"]
[null,null,null,null,null,null,null,"24310","Hladno vlečenje profilov"]
[null,null,null,null,null,null,null,"2432","Hladno valjanje traku"]
[null,null,null,null,null,null,null,"24320","Hladno valjanje traku"]
[null,null,null,null,null,null,null,"2433","Hladno oblikovanje profilov in pregibanje"]
[null,null,null,null,null,null,null,"24330","Hladno oblikovanje profilov in pregibanje"]
[null,null,null,null,null,null,null,"2434","Hladno vlečenje žice"]
[null,null,null,null,null,null,null,"24340","Hladno vlečenje žice"]
[null,null,null,null,null,null,null,"244","Proizvodnja plemenitih in drugih neželeznih kovin"]
[null,null,null,null,null,null,null,"2441","Proizvodnja plemenitih kovin"]
[null,null,null,null,null,null,null,"24410","Proizvodnja plemenitih kovin"]
[null,null,null,null,null,null,null,"2442","Proizvodnja aluminija"]
[null,null,null,null,null,null,null,"24420","Proizvodnja aluminija"]
[null,null,null,null,null,null,null,"2443","Proizvodnja svinca, cinka in kositra"]
[null,null,null,null,null,null,null,"24430","Proizvodnja svinca, cinka in kositra"]
[null,null,null,null,null,null,null,"2444","Proizvodnja bakra"]
[null,null,null,null,null,null,null,"24440","Proizvodnja bakra"]
[null,null,null,null,null,null,null,"2445","Proizvodnja drugih neželeznih kovin"]
[null,null,null,null,null,null,null,"24450","Proizvodnja drugih neželeznih kovin"]
[null,null,null,null,null,null,null,"2446","Proizvodnja jedrskega goriva"]
[null,null,null,null,null,null,null,"24460","Proizvodnja jedrskega goriva"]
[null,null,null,null,null,null,null,"245","Livarstvo"]
[null,null,null,null,null,null,null,"2451","Litje železa"]
[null,null,null,null,null,null,null,"24510","Litje železa"]
[null,null,null,null,null,null,null,"2452","Litje jekla"]
[null,null,null,null,null,null,null,"24520","Litje jekla"]
[null,null,null,null,null,null,null,"2453","Litje lahkih kovin"]
[null,null,null,null,null,null,null,"24530","Litje lahkih kovin"]
[null,null,null,null,null,null,null,"2454","Litje drugih neželeznih kovin"]
[null,null,null,null,null,null,null,"24540","Litje drugih neželeznih kovin"]
[null,null,null,null,null,null,null,"25","Proizvodnja kovinskih izdelkov, razen strojev in naprav"]
[null,null,null,null,null,null,null,"251","Proizvodnja gradbenih kovinskih izdelkov"]
[null,null,null,null,null,null,null,"2511","Proizvodnja kovinskih konstrukcij in njihovih delov"]
[null,null,null,null,null,null,null,"25110","Proizvodnja kovinskih konstrukcij in njihovih delov"]
[null,null,null,null,null,null,null,"2512","Proizvodnja kovinskega stavbnega pohištva"]
[null,null,null,null,null,null,null,"25120","Proizvodnja kovinskega stavbnega pohištva"]
[null,null,null,null,null,null,null,"252","Proizvodnja kotlov za centralno ogrevanje, kovinskih rezervoarjev in cistern"]
[null,null,null,null,null,null,null,"2521","Proizvodnja radiatorjev in kotlov za centralno ogrevanje"]
[null,null,null,null,null,null,null,"25210","Proizvodnja radiatorjev in kotlov za centralno ogrevanje"]
[null,null,null,null,null,null,null,"2529","Proizvodnja drugih kovinskih rezervoarjev in cistern"]
[null,null,null,null,null,null,null,"25290","Proizvodnja drugih kovinskih rezervoarjev in cistern"]
[null,null,null,null,null,null,null,"253","Proizvodnja parnih kotlov, razen kotlov za centralno ogrevanje"]
[null,null,null,null,null,null,null,"2530","Proizvodnja parnih kotlov, razen kotlov za centralno ogrevanje"]
[null,null,null,null,null,null,null,"25300","Proizvodnja parnih kotlov, razen kotlov za centralno ogrevanje"]
[null,null,null,null,null,null,null,"254","Proizvodnja orožja in streliva"]
[null,null,null,null,null,null,null,"2540","Proizvodnja orožja in streliva"]
[null,null,null,null,null,null,null,"25400","Proizvodnja orožja in streliva"]
[null,null,null,null,null,null,null,"255","Kovanje, stiskanje, vtiskovanje in valjanje kovin; prašna metalurgija"]
[null,null,null,null,null,null,null,"2550","Kovanje, stiskanje, vtiskovanje in valjanje kovin; prašna metalurgija"]
[null,null,null,null,null,null,null,"25500","Kovanje, stiskanje, vtiskovanje in valjanje kovin; prašna metalurgija"]
[null,null,null,null,null,null,null,"256","Površinska obdelava in prekrivanje kovin; mehanska obdelava kovin"]
[null,null,null,null,null,null,null,"2561","Površinska obdelava in prekrivanje kovin"]
[null,null,null,null,null,null,null,"25611","Prekrivanje kovin s kovino"]
[null,null,null,null,null,null,null,"25619","Druga površinska in toplotna obdelava kovin"]
[null,null,null,null,null,null,null,"2562","Mehanska obdelava kovin"]
[null,null,null,null,null,null,null,"25620","Mehanska obdelava kovin"]
[null,null,null,null,null,null,null,"257","Proizvodnja jedilnega pribora, ključavnic, okovja, orodja"]
[null,null,null,null,null,null,null,"2571","Proizvodnja rezil in jedilnega pribora"]
[null,null,null,null,null,null,null,"25710","Proizvodnja rezil in jedilnega pribora"]
[null,null,null,null,null,null,null,"2572","Proizvodnja ključavnic, okovja"]
[null,null,null,null,null,null,null,"25720","Proizvodnja ključavnic, okovja"]
[null,null,null,null,null,null,null,"2573","Proizvodnja orodja"]
[null,null,null,null,null,null,null,"25731","Proizvodnja ročnega orodja"]
[null,null,null,null,null,null,null,"25732","Proizvodnja orodja za stroje"]
[null,null,null,null,null,null,null,"259","Proizvodnja drugih kovinskih izdelkov"]
[null,null,null,null,null,null,null,"2591","Proizvodnja jeklenih bobnov, sodov in podobnih posod"]
[null,null,null,null,null,null,null,"25910","Proizvodnja jeklenih bobnov, sodov in podobnih posod"]
[null,null,null,null,null,null,null,"2592","Proizvodnja lahke kovinske embalaže"]
[null,null,null,null,null,null,null,"25920","Proizvodnja lahke kovinske embalaže"]
[null,null,null,null,null,null,null,"2593","Proizvodnja izdelkov iz žice, verig in vzmeti"]
[null,null,null,null,null,null,null,"25930","Proizvodnja izdelkov iz žice, verig in vzmeti"]
[null,null,null,null,null,null,null,"2594","Proizvodnja vijačnega materiala, vezi"]
[null,null,null,null,null,null,null,"25940","Proizvodnja vijačnega materiala, vezi"]
[null,null,null,null,null,null,null,"2599","Proizvodnja drugje nerazvrščenih kovinskih izdelkov"]
[null,null,null,null,null,null,null,"25990","Proizvodnja drugje nerazvrščenih kovinskih izdelkov"]
[null,null,null,null,null,null,null,"26","Proizvodnja računalnikov elektronskih in optičnih izdelkov"]
[null,null,null,null,null,null,null,"261","Proizvodnja elektronskih komponent in plošč"]
[null,null,null,null,null,null,null,"2611","Proizvodnja elektronskih komponent"]
[null,null,null,null,null,null,null,"26110","Proizvodnja elektronskih komponent"]
[null,null,null,null,null,null,null,"2612","Proizvodnja elektronskih plošč"]
[null,null,null,null,null,null,null,"26120","Proizvodnja elektronskih plošč"]
[null,null,null,null,null,null,null,"262","Proizvodnja računalnikov in perifernih naprav"]
[null,null,null,null,null,null,null,"2620","Proizvodnja računalnikov in perifernih naprav"]
[null,null,null,null,null,null,null,"26200","Proizvodnja računalnikov in perifernih naprav"]
[null,null,null,null,null,null,null,"263","Proizvodnja komunikacijskih naprav"]
[null,null,null,null,null,null,null,"2630","Proizvodnja komunikacijskih naprav"]
[null,null,null,null,null,null,null,"26300","Proizvodnja komunikacijskih naprav"]
[null,null,null,null,null,null,null,"264","Proizvodnja elektronskih naprav za široko rabo"]
[null,null,null,null,null,null,null,"2640","Proizvodnja elektronskih naprav za široko rabo"]
[null,null,null,null,null,null,null,"26400","Proizvodnja elektronskih naprav za široko rabo"]
[null,null,null,null,null,null,null,"265","Proizvodnja merilnih, preizkuševalnih, navigacijskih instrumentov in naprav; proizvodnja ur"]
[null,null,null,null,null,null,null,"2651","Proizvodnja merilnih, preizkuševalnih in navigacijskih instrumentov in naprav"]
[null,null,null,null,null,null,null,"26510","Proizvodnja merilnih, preizkuševalnih in navigacijskih instrumentov in naprav"]
[null,null,null,null,null,null,null,"2652","Proizvodnja ur"]
[null,null,null,null,null,null,null,"26520","Proizvodnja ur"]
[null,null,null,null,null,null,null,"266","Proizvodnja sevalnih, elektromedicinskih in elektroterapevtskih naprav"]
[null,null,null,null,null,null,null,"2660","Proizvodnja sevalnih, elektromedicinskih in elektroterapevtskih naprav"]
[null,null,null,null,null,null,null,"26600","Proizvodnja sevalnih, elektromedicinskih in elektroterapevtskih naprav"]
[null,null,null,null,null,null,null,"267","Proizvodnja optičnih instrumentov in fotografske opreme"]
[null,null,null,null,null,null,null,"2670","Proizvodnja optičnih instrumentov in fotografske opreme"]
[null,null,null,null,null,null,null,"26700","Proizvodnja optičnih instrumentov in fotografske opreme"]
[null,null,null,null,null,null,null,"268","Proizvodnja magnetnih in optičnih nosilcev zapisa"]
[null,null,null,null,null,null,null,"2680","Proizvodnja magnetnih in optičnih nosilcev zapisa"]
[null,null,null,null,null,null,null,"26800","Proizvodnja magnetnih in optičnih nosilcev zapisa"]
[null,null,null,null,null,null,null,"27","Proizvodnja električnih naprav"]
[null,null,null,null,null,null,null,"271","Proizvodnja elektromotorjev, generatorjev, transformatorjev ter naprav za distribucijo in krmiljenje elektrike"]
[null,null,null,null,null,null,null,"2711","Proizvodnja elektromotorjev, generatorjev in transformatorjev"]
[null,null,null,null,null,null,null,"27110","Proizvodnja elektromotorjev, generatorjev in transformatorjev"]
[null,null,null,null,null,null,null,"2712","Proizvodnja naprav za distribucijo in krmiljenje elektrike"]
[null,null,null,null,null,null,null,"27120","Proizvodnja naprav za distribucijo in krmiljenje elektrike"]
[null,null,null,null,null,null,null,"272","Proizvodnja baterij in akumulatorjev"]
[null,null,null,null,null,null,null,"2720","Proizvodnja baterij in akumulatorjev"]
[null,null,null,null,null,null,null,"27200","Proizvodnja baterij in akumulatorjev"]
[null,null,null,null,null,null,null,"273","Proizvodnja oplaščenih vodnikov in naprav za ožičenje"]
[null,null,null,null,null,null,null,"2731","Proizvodnja kablov iz optičnih vlaken"]
[null,null,null,null,null,null,null,"27310","Proizvodnja kablov iz optičnih vlaken"]
[null,null,null,null,null,null,null,"2732","Proizvodnja drugih električnih kablov in žic"]
[null,null,null,null,null,null,null,"27320","Proizvodnja drugih električnih kablov in žic"]
[null,null,null,null,null,null,null,"2733","Proizvodnja vtičnic, stikal in drugih naprav za ožičenje"]
[null,null,null,null,null,null,null,"27330","Proizvodnja vtičnic, stikal in drugih naprav za ožičenje"]
[null,null,null,null,null,null,null,"274","Proizvodnja naprav in opreme za razsvetljavo"]
[null,null,null,null,null,null,null,"2740","Proizvodnja naprav in opreme za razsvetljavo"]
[null,null,null,null,null,null,null,"27400","Proizvodnja naprav in opreme za razsvetljavo"]
[null,null,null,null,null,null,null,"275","Proizvodnja gospodinjskih naprav"]
[null,null,null,null,null,null,null,"2751","Proizvodnja električnih gospodinjskih naprav"]
[null,null,null,null,null,null,null,"27510","Proizvodnja električnih gospodinjskih naprav"]
[null,null,null,null,null,null,null,"2752","Proizvodnja neelektričnih gospodinjskih naprav"]
[null,null,null,null,null,null,null,"27520","Proizvodnja neelektričnih gospodinjskih naprav"]
[null,null,null,null,null,null,null,"279","Proizvodnja drugih električnih naprav"]
[null,null,null,null,null,null,null,"2790","Proizvodnja drugih električnih naprav"]
[null,null,null,null,null,null,null,"27900","Proizvodnja drugih električnih naprav"]
[null,null,null,null,null,null,null,"28","Proizvodnja drugih strojev in naprav"]
[null,null,null,null,null,null,null,"281","Proizvodnja strojev za splošne namene"]
[null,null,null,null,null,null,null,"2811","Proizvodnja motorjev in turbin, razen za letala in motorna vozila"]
[null,null,null,null,null,null,null,"28110","Proizvodnja motorjev in turbin, razen za letala in motorna vozila"]
[null,null,null,null,null,null,null,"2812","Proizvodnja naprav za fluidno tehniko"]
[null,null,null,null,null,null,null,"28120","Proizvodnja naprav za fluidno tehniko"]
[null,null,null,null,null,null,null,"2813","Proizvodnja črpalk in kompresorjev"]
[null,null,null,null,null,null,null,"28130","Proizvodnja črpalk in kompresorjev"]
[null,null,null,null,null,null,null,"2814","Proizvodnja pip in ventilov"]
[null,null,null,null,null,null,null,"28140","Proizvodnja pip in ventilov"]
[null,null,null,null,null,null,null,"2815","Proizvodnja ležajev, zobnikov in elementov za mehanski prenos energije"]
[null,null,null,null,null,null,null,"28150","Proizvodnja ležajev, zobnikov in elementov za mehanski prenos energije"]
[null,null,null,null,null,null,null,"282","Proizvodnja drugih naprav za splošne namene"]
[null,null,null,null,null,null,null,"2821","Proizvodnja peči in gorilnikov"]
[null,null,null,null,null,null,null,"28210","Proizvodnja peči in gorilnikov"]
[null,null,null,null,null,null,null,"2822","Proizvodnja dvigalnih in transportnih naprav"]
[null,null,null,null,null,null,null,"28220","Proizvodnja dvigalnih in transportnih naprav"]
[null,null,null,null,null,null,null,"2823","Proizvodnja pisarniških strojev in naprav (razen računalnikov in perifernih naprav)"]
[null,null,null,null,null,null,null,"28230","Proizvodnja pisarniških strojev in naprav (razen računalnikov in perifernih naprav)"]
[null,null,null,null,null,null,null,"2824","Proizvodnja ročnih strojev in naprav"]
[null,null,null,null,null,null,null,"28240","Proizvodnja ročnih strojev in naprav"]
[null,null,null,null,null,null,null,"2825","Proizvodnja hladilnih in prezračevalnih naprav, razen za gospodinjstva"]
[null,null,null,null,null,null,null,"28250","Proizvodnja hladilnih in prezračevalnih naprav, razen za gospodinjstva"]
[null,null,null,null,null,null,null,"2829","Proizvodnja drugih strojev in naprav za splošne namene"]
[null,null,null,null,null,null,null,"28290","Proizvodnja drugih strojev in naprav za splošne namene"]
[null,null,null,null,null,null,null,"283","Proizvodnja kmetijskih in gozdarskih strojev"]
[null,null,null,null,null,null,null,"2830","Proizvodnja kmetijskih in gozdarskih strojev"]
[null,null,null,null,null,null,null,"28300","Proizvodnja kmetijskih in gozdarskih strojev"]
[null,null,null,null,null,null,null,"284","Proizvodnja obdelovalnih strojev"]
[null,null,null,null,null,null,null,"2841","Proizvodnja strojev za oblikovanje in obdelavo kovin"]
[null,null,null,null,null,null,null,"28410","Proizvodnja strojev za oblikovanje in obdelavo kovin"]
[null,null,null,null,null,null,null,"2849","Proizvodnja drugih obdelovalnih strojev"]
[null,null,null,null,null,null,null,"28490","Proizvodnja drugih obdelovalnih strojev"]
[null,null,null,null,null,null,null,"289","Proizvodnja drugih strojev za posebne namene"]
[null,null,null,null,null,null,null,"2891","Proizvodnja metalurških strojev"]
[null,null,null,null,null,null,null,"28910","Proizvodnja metalurških strojev"]
[null,null,null,null,null,null,null,"2892","Proizvodnja rudarskih in gradbenih strojev"]
[null,null,null,null,null,null,null,"28920","Proizvodnja rudarskih in gradbenih strojev"]
[null,null,null,null,null,null,null,"2893","Proizvodnja strojev za živilsko in tobačno industrijo"]
[null,null,null,null,null,null,null,"28930","Proizvodnja strojev za živilsko in tobačno industrijo"]
[null,null,null,null,null,null,null,"2894","Proizvodnja strojev za tekstilno, oblačilno in usnjarsko industrijo"]
[null,null,null,null,null,null,null,"28940","Proizvodnja strojev za tekstilno, oblačilno in usnjarsko industrijo"]
[null,null,null,null,null,null,null,"2895","Proizvodnja strojev za industrijo papirja in kartona"]
[null,null,null,null,null,null,null,"28950","Proizvodnja strojev za industrijo papirja in kartona"]
[null,null,null,null,null,null,null,"2896","Proizvodnja strojev za plastiko in gumo"]
[null,null,null,null,null,null,null,"28960","Proizvodnja strojev za plastiko in gumo"]
[null,null,null,null,null,null,null,"2899","Proizvodnja strojev za druge posebne namene"]
[null,null,null,null,null,null,null,"28990","Proizvodnja strojev za druge posebne namene"]
[null,null,null,null,null,null,null,"29","Proizvodnja motornih vozil, prikolic in polprikolic"]
[null,null,null,null,null,null,null,"291","Proizvodnja motornih vozil"]
[null,null,null,null,null,null,null,"2910","Proizvodnja motornih vozil"]
[null,null,null,null,null,null,null,"29100","Proizvodnja motornih vozil"]
[null,null,null,null,null,null,null,"292","Proizvodnja karoserij za vozila; proizvodnja prikolic, polprikolic"]
[null,null,null,null,null,null,null,"2920","Proizvodnja karoserij za vozila; proizvodnja prikolic, polprikolic"]
[null,null,null,null,null,null,null,"29200","Proizvodnja karoserij za vozila; proizvodnja prikolic, polprikolic"]
[null,null,null,null,null,null,null,"293","Proizvodnja delov in opreme za motorna vozila"]
[null,null,null,null,null,null,null,"2931","Proizvodnja električne in elektronske opreme za motorna vozila"]
[null,null,null,null,null,null,null,"29310","Proizvodnja električne in elektronske opreme za motorna vozila"]
[null,null,null,null,null,null,null,"2932","Proizvodnja drugih delov in opreme za motorna vozila"]
[null,null,null,null,null,null,null,"29320","Proizvodnja drugih delov in opreme za motorna vozila"]
[null,null,null,null,null,null,null,"30","Proizvodnja drugih vozil in plovil"]
[null,null,null,null,null,null,null,"301","Gradnja ladij in čolnov"]
[null,null,null,null,null,null,null,"3011","Gradnja ladij in plavajočih konstrukcij"]
[null,null,null,null,null,null,null,"30110","Gradnja ladij in plavajočih konstrukcij"]
[null,null,null,null,null,null,null,"3012","Proizvodnja čolnov za razvedrilo in šport"]
[null,null,null,null,null,null,null,"30120","Proizvodnja čolnov za razvedrilo in šport"]
[null,null,null,null,null,null,null,"302","Proizvodnja železniških in drugih tirnih vozil"]
[null,null,null,null,null,null,null,"3020","Proizvodnja železniških in drugih tirnih vozil"]
[null,null,null,null,null,null,null,"30200","Proizvodnja železniških in drugih tirnih vozil"]
[null,null,null,null,null,null,null,"303","Proizvodnja zračnih in vesoljskih plovil"]
[null,null,null,null,null,null,null,"3030","Proizvodnja zračnih in vesoljskih plovil"]
[null,null,null,null,null,null,null,"30300","Proizvodnja zračnih in vesoljskih plovil"]
[null,null,null,null,null,null,null,"304","Proizvodnja bojnih vozil"]
[null,null,null,null,null,null,null,"3040","Proizvodnja bojnih vozil"]
[null,null,null,null,null,null,null,"30400","Proizvodnja bojnih vozil"]
[null,null,null,null,null,null,null,"309","Proizvodnja drugih vozil"]
[null,null,null,null,null,null,null,"3091","Proizvodnja motornih koles"]
[null,null,null,null,null,null,null,"30910","Proizvodnja motornih koles"]
[null,null,null,null,null,null,null,"3092","Proizvodnja koles in invalidskih vozičkov"]
[null,null,null,null,null,null,null,"30920","Proizvodnja koles in invalidskih vozičkov"]
[null,null,null,null,null,null,null,"3099","Proizvodnja vprežnih in drugih vozil"]
[null,null,null,null,null,null,null,"30990","Proizvodnja vprežnih in drugih vozil"]
[null,null,null,null,null,null,null,"31","Proizvodnja pohištva"]
[null,null,null,null,null,null,null,"310","Proizvodnja pohištva"]
[null,null,null,null,null,null,null,"3101","Proizvodnja pohištva za poslovne in prodajne prostore"]
[null,null,null,null,null,null,null,"31010","Proizvodnja pohištva za poslovne in prodajne prostore"]
[null,null,null,null,null,null,null,"3102","Proizvodnja kuhinjskega pohištva"]
[null,null,null,null,null,null,null,"31020","Proizvodnja kuhinjskega pohištva"]
[null,null,null,null,null,null,null,"3103","Proizvodnja žimnic"]
[null,null,null,null,null,null,null,"31030","Proizvodnja žimnic"]
[null,null,null,null,null,null,null,"3109","Proizvodnja drugega pohištva"]
[null,null,null,null,null,null,null,"31090","Proizvodnja drugega pohištva"]
[null,null,null,null,null,null,null,"32","Druge raznovrstne predelovalne dejavnosti"]
[null,null,null,null,null,null,null,"321","Proizvodnja nakita, bižuterije in podobnih izdelkov"]
[null,null,null,null,null,null,null,"3211","Kovanje kovancev"]
[null,null,null,null,null,null,null,"32110","Kovanje kovancev"]
[null,null,null,null,null,null,null,"3212","Proizvodnja nakita in podobnih izdelkov"]
[null,null,null,null,null,null,null,"32120","Proizvodnja nakita in podobnih izdelkov"]
[null,null,null,null,null,null,null,"3213","Proizvodnja bižuterije"]
[null,null,null,null,null,null,null,"32130","Proizvodnja bižuterije"]
[null,null,null,null,null,null,null,"322","Proizvodnja glasbil"]
[null,null,null,null,null,null,null,"3220","Proizvodnja glasbil"]
[null,null,null,null,null,null,null,"32200","Proizvodnja glasbil"]
[null,null,null,null,null,null,null,"323","Proizvodnja športne opreme"]
[null,null,null,null,null,null,null,"3230","Proizvodnja športne opreme"]
[null,null,null,null,null,null,null,"32300","Proizvodnja športne opreme"]
[null,null,null,null,null,null,null,"324","Proizvodnja igrač in rekvizitov za igre in zabavo"]
[null,null,null,null,null,null,null,"3240","Proizvodnja igrač in rekvizitov za igre in zabavo"]
[null,null,null,null,null,null,null,"32400","Proizvodnja igrač in rekvizitov za igre in zabavo"]
[null,null,null,null,null,null,null,"325","Proizvodnja medicinskih instrumentov, naprav in pripomočkov"]
[null,null,null,null,null,null,null,"3250","Proizvodnja medicinskih instrumentov, naprav in pripomočkov"]
[null,null,null,null,null,null,null,"32500","Proizvodnja medicinskih instrumentov, naprav in pripomočkov"]
[null,null,null,null,null,null,null,"329","Druge predelovalne dejavnosti"]
[null,null,null,null,null,null,null,"3291","Proizvodnja metel in krtač"]
[null,null,null,null,null,null,null,"32910","Proizvodnja metel in krtač"]
[null,null,null,null,null,null,null,"3299","Drugje nerazvrščene predelovalne dejavnosti"]
[null,null,null,null,null,null,null,"32990","Drugje nerazvrščene predelovalne dejavnosti"]
[null,null,null,null,null,null,null,"33","Popravila in montaža strojev in naprav"]
[null,null,null,null,null,null,null,"331","Popravila kovinskih izdelkov, strojev in naprav"]
[null,null,null,null,null,null,null,"3311","Popravila kovinskih izdelkov"]
[null,null,null,null,null,null,null,"33110","Popravila kovinskih izdelkov"]
[null,null,null,null,null,null,null,"3312","Popravila strojev in naprav"]
[null,null,null,null,null,null,null,"33120","Popravila strojev in naprav"]
[null,null,null,null,null,null,null,"3313","Popravila elektronskih in optičnih naprav"]
[null,null,null,null,null,null,null,"33130","Popravila elektronskih in optičnih naprav"]
[null,null,null,null,null,null,null,"3314","Popravila električnih naprav"]
[null,null,null,null,null,null,null,"33140","Popravila električnih naprav"]
[null,null,null,null,null,null,null,"3315","Popravila in vzdrževanje ladij in čolnov"]
[null,null,null,null,null,null,null,"33150","Popravila in vzdrževanje ladij in čolnov"]
[null,null,null,null,null,null,null,"3316","Popravila in vzdrževanje zračnih in vesoljskih plovil"]
[null,null,null,null,null,null,null,"33160","Popravila in vzdrževanje zračnih in vesoljskih plovil"]
[null,null,null,null,null,null,null,"3317","Popravila in vzdrževanje drugih prevoznih sredstev"]
[null,null,null,null,null,null,null,"33170","Popravila in vzdrževanje drugih prevoznih sredstev"]
[null,null,null,null,null,null,null,"3319","Popravila drugih naprav"]
[null,null,null,null,null,null,null,"33190","Popravila drugih naprav"]
[null,null,null,null,null,null,null,"332","Montaža industrijskih strojev in naprav"]
[null,null,null,null,null,null,null,"3320","Montaža industrijskih strojev in naprav"]
[null,null,null,null,null,null,null,"33200","Montaža industrijskih strojev in naprav"]
[null,null,null,null,null,null,null,"35","Oskrba z električno energijo, plinom in paro"]
[null,null,null,null,null,null,null,"351","Oskrba z električno energijo"]
[null,null,null,null,null,null,null,"3511","Proizvodnja električne energije"]
[null,null,null,null,null,null,null,"35111","Proizvodnja električne energije v hidroelektrarnah"]
[null,null,null,null,null,null,null,"35112","Proizvodnja električne energije v termoelektrarnah, jedrskih elektrarnah"]
[null,null,null,null,null,null,null,"35119","Druga proizvodnja električne energije"]
[null,null,null,null,null,null,null,"3512","Prenos električne energije"]
[null,null,null,null,null,null,null,"35120","Prenos električne energije"]
[null,null,null,null,null,null,null,"3513","Distribucija električne energije"]
[null,null,null,null,null,null,null,"35130","Distribucija električne energije"]
[null,null,null,null,null,null,null,"3514","Trgovanje z električno energijo"]
[null,null,null,null,null,null,null,"35140","Trgovanje z električno energijo"]
[null,null,null,null,null,null,null,"352","Oskrba s plinastimi gorivi"]
[null,null,null,null,null,null,null,"3521","Proizvodnja plina"]
[null,null,null,null,null,null,null,"35210","Proizvodnja plina"]
[null,null,null,null,null,null,null,"3522","Distribucija plinastih goriv po plinovodni mreži"]
[null,null,null,null,null,null,null,"35220","Distribucija plinastih goriv po plinovodni mreži"]
[null,null,null,null,null,null,null,"3523","Trgovanje s plinastimi gorivi po plinovodni mreži"]
[null,null,null,null,null,null,null,"35230","Trgovanje s plinastimi gorivi po plinovodni mreži"]
[null,null,null,null,null,null,null,"353","Oskrba s paro in vročo vodo"]
[null,null,null,null,null,null,null,"3530","Oskrba s paro in vročo vodo"]
[null,null,null,null,null,null,null,"35300","Oskrba s paro in vročo vodo"]
[null,null,null,null,null,null,null,"36","Zbiranje, prečiščevanje in distribucija vode"]
[null,null,null,null,null,null,null,"360","Zbiranje, prečiščevanje in distribucija vode"]
[null,null,null,null,null,null,null,"3600","Zbiranje, prečiščevanje in distribucija vode"]
[null,null,null,null,null,null,null,"36000","Zbiranje, prečiščevanje in distribucija vode"]
[null,null,null,null,null,null,null,"37","Ravnanje z odplakami"]
[null,null,null,null,null,null,null,"370","Ravnanje z odplakami"]
[null,null,null,null,null,null,null,"3700","Ravnanje z odplakami"]
[null,null,null,null,null,null,null,"37000","Ravnanje z odplakami"]
[null,null,null,null,null,null,null,"38","Zbiranje in odvoz odpadkov ter ravnanje z njimi; pridobivanje sekundarnih surovin"]
[null,null,null,null,null,null,null,"381","Zbiranje in odvoz odpadkov"]
[null,null,null,null,null,null,null,"3811","Zbiranje in odvoz nenevarnih odpadkov"]
[null,null,null,null,null,null,null,"38110","Zbiranje in odvoz nenevarnih odpadkov"]
[null,null,null,null,null,null,null,"3812","Zbiranje in odvoz nevarnih odpadkov"]
[null,null,null,null,null,null,null,"38120","Zbiranje in odvoz nevarnih odpadkov"]
[null,null,null,null,null,null,null,"382","Ravnanje z odpadki"]
[null,null,null,null,null,null,null,"3821","Ravnanje z nenevarnimi odpadki"]
[null,null,null,null,null,null,null,"38210","Ravnanje z nenevarnimi odpadki"]
[null,null,null,null,null,null,null,"3822","Ravnanje z nevarnimi odpadki"]
[null,null,null,null,null,null,null,"38220","Ravnanje z nevarnimi odpadki"]
[null,null,null,null,null,null,null,"383","Pridobivanje sekundarnih surovin"]
[null,null,null,null,null,null,null,"3831","Demontaža odpadnih naprav"]
[null,null,null,null,null,null,null,"38310","Demontaža odpadnih naprav"]
[null,null,null,null,null,null,null,"3832","Pridobivanje sekundarnih surovin iz ostankov in odpadkov"]
[null,null,null,null,null,null,null,"38320","Pridobivanje sekundarnih surovin iz ostankov in odpadkov"]
[null,null,null,null,null,null,null,"39","Saniranje okolja in drugo ravnanje z odpadki"]
[null,null,null,null,null,null,null,"390","Saniranje okolja in drugo ravnanje z odpadki"]
[null,null,null,null,null,null,null,"3900","Saniranje okolja in drugo ravnanje z odpadki"]
[null,null,null,null,null,null,null,"39000","Saniranje okolja in drugo ravnanje z odpadki"]
[null,null,null,null,null,null,null,"41","Gradnja stavb"]
[null,null,null,null,null,null,null,"411","Organizacija izvedbe stavbnih projektov"]
[null,null,null,null,null,null,null,"4110","Organizacija izvedbe stavbnih projektov"]
[null,null,null,null,null,null,null,"41100","Organizacija izvedbe stavbnih projektov"]
[null,null,null,null,null,null,null,"412","Gradnja stanovanjskih in nestanovanjskih stavb"]
[null,null,null,null,null,null,null,"4120","Gradnja stanovanjskih in nestanovanjskih stavb"]
[null,null,null,null,null,null,null,"41200","Gradnja stanovanjskih in nestanovanjskih stavb"]
[null,null,null,null,null,null,null,"42","Gradnja inženirskih objektov"]
[null,null,null,null,null,null,null,"421","Gradnja cest in železnic"]
[null,null,null,null,null,null,null,"4211","Gradnja cest"]
[null,null,null,null,null,null,null,"42110","Gradnja cest"]
[null,null,null,null,null,null,null,"4212","Gradnja železnic in podzemnih železnic"]
[null,null,null,null,null,null,null,"42120","Gradnja železnic in podzemnih železnic"]
[null,null,null,null,null,null,null,"4213","Gradnja mostov in predorov"]
[null,null,null,null,null,null,null,"42130","Gradnja mostov in predorov"]
[null,null,null,null,null,null,null,"422","Gradnja objektov oskrbne infrastrukture"]
[null,null,null,null,null,null,null,"4221","Gradnja objektov oskrbne infrastrukture za tekočine in pline"]
[null,null,null,null,null,null,null,"42210","Gradnja objektov oskrbne infrastrukture za tekočine in pline"]
[null,null,null,null,null,null,null,"4222","Gradnja objektov oskrbne infrastrukture za elektriko in telekomunikacije"]
[null,null,null,null,null,null,null,"42220","Gradnja objektov oskrbne infrastrukture za elektriko in telekomunikacije"]
[null,null,null,null,null,null,null,"429","Gradnja drugih inženirskih objektov"]
[null,null,null,null,null,null,null,"4291","Gradnja vodnih objektov"]
[null,null,null,null,null,null,null,"42910","Gradnja vodnih objektov"]
[null,null,null,null,null,null,null,"4299","Gradnja drugih objektov nizke gradnje"]
[null,null,null,null,null,null,null,"42990","Gradnja drugih objektov nizke gradnje"]
[null,null,null,null,null,null,null,"43","Specializirana gradbena dela"]
[null,null,null,null,null,null,null,"431","Pripravljalna dela na gradbišču"]
[null,null,null,null,null,null,null,"4311","Rušenje objektov"]
[null,null,null,null,null,null,null,"43110","Rušenje objektov"]
[null,null,null,null,null,null,null,"4312","Zemeljska pripravljalna dela"]
[null,null,null,null,null,null,null,"43120","Zemeljska pripravljalna dela"]
[null,null,null,null,null,null,null,"4313","Testno vrtanje in sondiranje"]
[null,null,null,null,null,null,null,"43130","Testno vrtanje in sondiranje"]
[null,null,null,null,null,null,null,"432","Inštaliranje pri gradnjah"]
[null,null,null,null,null,null,null,"4321","Inštaliranje električnih napeljav in naprav"]
[null,null,null,null,null,null,null,"43210","Inštaliranje električnih napeljav in naprav"]
[null,null,null,null,null,null,null,"4322","Inštaliranje vodovodnih, plinskih in ogrevalnih napeljav in naprav"]
[null,null,null,null,null,null,null,"43220","Inštaliranje vodovodnih, plinskih in ogrevalnih napeljav in naprav"]
[null,null,null,null,null,null,null,"4329","Drugo inštaliranje pri gradnjah"]
[null,null,null,null,null,null,null,"43290","Drugo inštaliranje pri gradnjah"]
[null,null,null,null,null,null,null,"433","Zaključna gradbena dela"]
[null,null,null,null,null,null,null,"4331","Fasaderska in štukaterska dela"]
[null,null,null,null,null,null,null,"43310","Fasaderska in štukaterska dela"]
[null,null,null,null,null,null,null,"4332","Vgrajevanje stavbnega pohištva"]
[null,null,null,null,null,null,null,"43320","Vgrajevanje stavbnega pohištva"]
[null,null,null,null,null,null,null,"4333","Oblaganje tal in sten"]
[null,null,null,null,null,null,null,"43330","Oblaganje tal in sten"]
[null,null,null,null,null,null,null,"4334","Steklarska in pleskarska dela"]
[null,null,null,null,null,null,null,"43341","Steklarska dela"]
[null,null,null,null,null,null,null,"43342","Pleskarska dela"]
[null,null,null,null,null,null,null,"4339","Druga zaključna gradbena dela"]
[null,null,null,null,null,null,null,"43390","Druga zaključna gradbena dela"]
[null,null,null,null,null,null,null,"439","Krovstvo in druga specializirana gradbena dela"]
[null,null,null,null,null,null,null,"4391","Postavljanje ostrešij in krovska dela"]
[null,null,null,null,null,null,null,"43910","Postavljanje ostrešij in krovska dela"]
[null,null,null,null,null,null,null,"4399","Druga specializirana gradbena dela"]
[null,null,null,null,null,null,null,"43990","Druga specializirana gradbena dela"]
[null,null,null,null,null,null,null,"45","Trgovina z motornimi vozili in popravila motornih vozil"]
[null,null,null,null,null,null,null,"451","Trgovina z motornimi vozili"]
[null,null,null,null,null,null,null,"4511","Trgovina z avtomobili in lahkimi motornimi vozili"]
[null,null,null,null,null,null,null,"45110","Trgovina z avtomobili in lahkimi motornimi vozili"]
[null,null,null,null,null,null,null,"4519","Trgovina z drugimi motornimi vozili"]
[null,null,null,null,null,null,null,"45190","Trgovina z drugimi motornimi vozili"]
[null,null,null,null,null,null,null,"452","Vzdrževanje in popravila motornih vozil"]
[null,null,null,null,null,null,null,"4520","Vzdrževanje in popravila motornih vozil"]
[null,null,null,null,null,null,null,"45200","Vzdrževanje in popravila motornih vozil"]
[null,null,null,null,null,null,null,"453","Trgovina z rezervnimi deli in opremo za motorna vozila"]
[null,null,null,null,null,null,null,"4531","Trgovina na debelo z rezervnimi deli in opremo za motorna vozila"]
[null,null,null,null,null,null,null,"45310","Trgovina na debelo z rezervnimi deli in opremo za motorna vozila"]
[null,null,null,null,null,null,null,"4532","Trgovina na drobno z rezervnimi deli in opremo za motorna vozila"]
[null,null,null,null,null,null,null,"45320","Trgovina na drobno z rezervnimi deli in opremo za motorna vozila"]
[null,null,null,null,null,null,null,"454","Trgovina, vzdrževanje in popravila motornih koles; trgovina z njihovimi deli in opremo"]
[null,null,null,null,null,null,null,"4540","Trgovina, vzdrževanje in popravila motornih koles; trgovina z njihovimi deli in opremo"]
[null,null,null,null,null,null,null,"45400","Trgovina, vzdrževanje in popravila motornih koles; trgovina z njihovimi deli in opremo"]
[null,null,null,null,null,null,null,"46","Posredništvo in trgovina na debelo, razen z motornimi vozili"]
[null,null,null,null,null,null,null,"461","Posredništvo"]
[null,null,null,null,null,null,null,"4611","Posredništvo pri prodaji kmetijskih surovin, živih živali, tekstilnih surovin, polizdelkov"]
[null,null,null,null,null,null,null,"46110","Posredništvo pri prodaji kmetijskih surovin, živih živali, tekstilnih surovin, polizdelkov"]
[null,null,null,null,null,null,null,"4612","Posredništvo pri prodaji goriv, rud, kovin, tehničnih kemikalij"]
[null,null,null,null,null,null,null,"46120","Posredništvo pri prodaji goriv, rud, kovin, tehničnih kemikalij"]
[null,null,null,null,null,null,null,"4613","Posredništvo pri prodaji lesa in gradbenega materiala"]
[null,null,null,null,null,null,null,"46130","Posredništvo pri prodaji lesa in gradbenega materiala"]
[null,null,null,null,null,null,null,"4614","Posredništvo pri prodaji strojev, industrijske opreme, ladij, letal"]
[null,null,null,null,null,null,null,"46140","Posredništvo pri prodaji strojev, industrijske opreme, ladij, letal"]
[null,null,null,null,null,null,null,"4615","Posredništvo pri prodaji pohištva, predmetov in naprav za gospodinjstvo in železnine"]
[null,null,null,null,null,null,null,"46150","Posredništvo pri prodaji pohištva, predmetov in naprav za gospodinjstvo in železnine"]
[null,null,null,null,null,null,null,"4616","Posredništvo pri prodaji tekstila, oblačil, krzna, obutve, usnjenih izdelkov"]
[null,null,null,null,null,null,null,"46160","Posredništvo pri prodaji tekstila, oblačil, krzna, obutve, usnjenih izdelkov"]
[null,null,null,null,null,null,null,"4617","Posredništvo pri prodaji živil, pijač, tobačnih izdelkov"]
[null,null,null,null,null,null,null,"46170","Posredništvo pri prodaji živil, pijač, tobačnih izdelkov"]
[null,null,null,null,null,null,null,"4618","Specializirano posredništvo pri prodaji drugih določenih izdelkov"]
[null,null,null,null,null,null,null,"46180","Specializirano posredništvo pri prodaji drugih določenih izdelkov"]
[null,null,null,null,null,null,null,"4619","Nespecializirano posredništvo pri prodaji raznovrstnih izdelkov"]
[null,null,null,null,null,null,null,"46190","Nespecializirano posredništvo pri prodaji raznovrstnih izdelkov"]
[null,null,null,null,null,null,null,"462","Trgovina na debelo s kmetijskimi surovinami in živimi živalmi"]
[null,null,null,null,null,null,null,"4621","Trgovina na debelo z žiti, tobakom, semeni in krmo"]
[null,null,null,null,null,null,null,"46210","Trgovina na debelo z žiti, tobakom, semeni in krmo"]
[null,null,null,null,null,null,null,"4622","Trgovina na debelo s cvetjem in rastlinami"]
[null,null,null,null,null,null,null,"46220","Trgovina na debelo s cvetjem in rastlinami"]
[null,null,null,null,null,null,null,"4623","Trgovina na debelo z živimi živalmi"]
[null,null,null,null,null,null,null,"46230","Trgovina na debelo z živimi živalmi"]
[null,null,null,null,null,null,null,"4624","Trgovina na debelo s kožami, usnjem"]
[null,null,null,null,null,null,null,"46240","Trgovina na debelo s kožami, usnjem"]
[null,null,null,null,null,null,null,"463","Trgovina na debelo z živili, pijačami, tobačnimi izdelki"]
[null,null,null,null,null,null,null,"4631","Trgovina na debelo s sadjem in zelenjavo"]
[null,null,null,null,null,null,null,"46310","Trgovina na debelo s sadjem in zelenjavo"]
[null,null,null,null,null,null,null,"4632","Trgovina na debelo z mesom in mesnimi izdelki"]
[null,null,null,null,null,null,null,"46320","Trgovina na debelo z mesom in mesnimi izdelki"]
[null,null,null,null,null,null,null,"4633","Trgovina na debelo z mlekom, mlečnimi izdelki, jajci, jedilnimi olji in maščobami"]
[null,null,null,null,null,null,null,"46330","Trgovina na debelo z mlekom, mlečnimi izdelki, jajci, jedilnimi olji in maščobami"]
[null,null,null,null,null,null,null,"4634","Trgovina na debelo s pijačami"]
[null,null,null,null,null,null,null,"46340","Trgovina na debelo s pijačami"]
[null,null,null,null,null,null,null,"4635","Trgovina na debelo s tobačnimi izdelki"]
[null,null,null,null,null,null,null,"46350","Trgovina na debelo s tobačnimi izdelki"]
[null,null,null,null,null,null,null,"4636","Trgovina na debelo s sladkorjem, čokolado, sladkornimi izdelki"]
[null,null,null,null,null,null,null,"46360","Trgovina na debelo s sladkorjem, čokolado, sladkornimi izdelki"]
[null,null,null,null,null,null,null,"4637","Trgovina na debelo s kavo, čajem, kakavom, začimbami"]
[null,null,null,null,null,null,null,"46370","Trgovina na debelo s kavo, čajem, kakavom, začimbami"]
[null,null,null,null,null,null,null,"4638","Trgovina na debelo z drugimi živili, tudi z ribami, raki, mehkužci"]
[null,null,null,null,null,null,null,"46380","Trgovina na debelo z drugimi živili, tudi z ribami, raki, mehkužci"]
[null,null,null,null,null,null,null,"4639","Nespecializirana trgovina na debelo z živili, pijačami, tobačnimi izdelki"]
[null,null,null,null,null,null,null,"46390","Nespecializirana trgovina na debelo z živili, pijačami, tobačnimi izdelki"]
[null,null,null,null,null,null,null,"464","Trgovina na debelo z izdelki za široko rabo"]
[null,null,null,null,null,null,null,"4641","Trgovina na debelo s tekstilom"]
[null,null,null,null,null,null,null,"46410","Trgovina na debelo s tekstilom"]
[null,null,null,null,null,null,null,"4642","Trgovina na debelo z oblačili in obutvijo"]
[null,null,null,null,null,null,null,"46420","Trgovina na debelo z oblačili in obutvijo"]
[null,null,null,null,null,null,null,"4643","Trgovina na debelo z električnimi gospodinjskimi napravami"]
[null,null,null,null,null,null,null,"46430","Trgovina na debelo z električnimi gospodinjskimi napravami"]
[null,null,null,null,null,null,null,"4644","Trgovina na debelo s porcelanom, steklenino, čistili"]
[null,null,null,null,null,null,null,"46440","Trgovina na debelo s porcelanom, steklenino, čistili"]
[null,null,null,null,null,null,null,"4645","Trgovina na debelo s parfumi in kozmetiko"]
[null,null,null,null,null,null,null,"46450","Trgovina na debelo s parfumi in kozmetiko"]
[null,null,null,null,null,null,null,"4646","Trgovina na debelo s farmacevtskimi izdelki ter medicinskimi potrebščinami in materiali"]
[null,null,null,null,null,null,null,"46460","Trgovina na debelo s farmacevtskimi izdelki ter medicinskimi potrebščinami in materiali"]
[null,null,null,null,null,null,null,"4647","Trgovina na debelo s pohištvom, preprogami in svetili"]
[null,null,null,null,null,null,null,"46470","Trgovina na debelo s pohištvom, preprogami in svetili"]
[null,null,null,null,null,null,null,"4648","Trgovina na debelo z urami in nakitom"]
[null,null,null,null,null,null,null,"46480","Trgovina na debelo z urami in nakitom"]
[null,null,null,null,null,null,null,"4649","Trgovina na debelo z drugimi izdelki široke porabe"]
[null,null,null,null,null,null,null,"46490","Trgovina na debelo z drugimi izdelki široke porabe"]
[null,null,null,null,null,null,null,"465","Trgovina na debelo z napravami za informacijsko-komunikacijsko tehnologijo"]
[null,null,null,null,null,null,null,"4651","Trgovina na debelo z računalniškimi napravami"]
[null,null,null,null,null,null,null,"46510","Trgovina na debelo z računalniškimi napravami"]
[null,null,null,null,null,null,null,"4652","Trgovina na debelo z elektronskimi in telekomunikacijskimi napravami in deli"]
[null,null,null,null,null,null,null,"46520","Trgovina na debelo z elektronskimi in telekomunikacijskimi napravami in deli"]
[null,null,null,null,null,null,null,"466","Trgovina na debelo s stroji, napravami, opremo"]
[null,null,null,null,null,null,null,"4661","Trgovina na debelo s kmetijskimi stroji, priključki, opremo"]
[null,null,null,null,null,null,null,"46610","Trgovina na debelo s kmetijskimi stroji, priključki, opremo"]
[null,null,null,null,null,null,null,"4662","Trgovina na debelo z obdelovalnimi stroji"]
[null,null,null,null,null,null,null,"46620","Trgovina na debelo z obdelovalnimi stroji"]
[null,null,null,null,null,null,null,"4663","Trgovina na debelo z rudarskimi in gradbenimi stroji"]
[null,null,null,null,null,null,null,"46630","Trgovina na debelo z rudarskimi in gradbenimi stroji"]
[null,null,null,null,null,null,null,"4664","Trgovina na debelo s stroji za tekstilno industrijo"]
[null,null,null,null,null,null,null,"46640","Trgovina na debelo s stroji za tekstilno industrijo"]
[null,null,null,null,null,null,null,"4665","Trgovina na debelo s pisarniškim pohištvom"]
[null,null,null,null,null,null,null,"46650","Trgovina na debelo s pisarniškim pohištvom"]
[null,null,null,null,null,null,null,"4666","Trgovina na debelo s pisarniškimi stroji in opremo"]
[null,null,null,null,null,null,null,"46660","Trgovina na debelo s pisarniškimi stroji in opremo"]
[null,null,null,null,null,null,null,"4669","Trgovina na debelo z drugimi napravami in opremo"]
[null,null,null,null,null,null,null,"46690","Trgovina na debelo z drugimi napravami in opremo"]
[null,null,null,null,null,null,null,"467","Druga specializirana trgovina na debelo"]
[null,null,null,null,null,null,null,"4671","Trgovina na debelo s trdimi, tekočimi in plinastimi gorivi"]
[null,null,null,null,null,null,null,"46710","Trgovina na debelo s trdimi, tekočimi in plinastimi gorivi"]
[null,null,null,null,null,null,null,"4672","Trgovina na debelo s kovinami in rudami"]
[null,null,null,null,null,null,null,"46720","Trgovina na debelo s kovinami in rudami"]
[null,null,null,null,null,null,null,"4673","Trgovina na debelo z lesom, gradbenim materialom in sanitarno opremo"]
[null,null,null,null,null,null,null,"46730","Trgovina na debelo z lesom, gradbenim materialom in sanitarno opremo"]
[null,null,null,null,null,null,null,"4674","Trgovina na debelo s kovinskimi proizvodi, inštalacijskim materialom, napravami za ogrevanje"]
[null,null,null,null,null,null,null,"46740","Trgovina na debelo s kovinskimi proizvodi, inštalacijskim materialom, napravami za ogrevanje"]
[null,null,null,null,null,null,null,"4675","Trgovina na debelo s kemičnimi izdelki"]
[null,null,null,null,null,null,null,"46750","Trgovina na debelo s kemičnimi izdelki"]
[null,null,null,null,null,null,null,"4676","Trgovina na debelo z drugimi polizdelki"]
[null,null,null,null,null,null,null,"46760","Trgovina na debelo z drugimi polizdelki"]
[null,null,null,null,null,null,null,"4677","Trgovina na debelo z ostanki in odpadki"]
[null,null,null,null,null,null,null,"46770","Trgovina na debelo z ostanki in odpadki"]
[null,null,null,null,null,null,null,"469","Nespecializirana trgovina na debelo"]
[null,null,null,null,null,null,null,"4690","Nespecializirana trgovina na debelo"]
[null,null,null,null,null,null,null,"46900","Nespecializirana trgovina na debelo"]
[null,null,null,null,null,null,null,"47","Trgovina na drobno, razen z motornimi vozili"]
[null,null,null,null,null,null,null,"471","Trgovina na drobno v nespecializiranih prodajalnah"]
[null,null,null,null,null,null,null,"4711","Trgovina na drobno v nespecializiranih prodajalnah, pretežno z živili"]
[null,null,null,null,null,null,null,"47110","Trgovina na drobno v nespecializiranih prodajalnah, pretežno z živili"]
[null,null,null,null,null,null,null,"4719","Druga trgovina na drobno v nespecializiranih prodajalnah"]
[null,null,null,null,null,null,null,"47190","Druga trgovina na drobno v nespecializiranih prodajalnah"]
[null,null,null,null,null,null,null,"472","Trgovina na drobno v specializiranih prodajalnah z živili, pijačami in tobačnimi izdelki"]
[null,null,null,null,null,null,null,"4721","Trgovina na drobno v specializiranih prodajalnah s sadjem in zelenjavo"]
[null,null,null,null,null,null,null,"47210","Trgovina na drobno v specializiranih prodajalnah s sadjem in zelenjavo"]
[null,null,null,null,null,null,null,"4722","Trgovina na drobno v specializiranih prodajalnah z mesom in mesnimi izdelki"]
[null,null,null,null,null,null,null,"47220","Trgovina na drobno v specializiranih prodajalnah z mesom in mesnimi izdelki"]
[null,null,null,null,null,null,null,"4723","Trgovina na drobno v specializiranih prodajalnah z ribami, raki, mehkužci"]
[null,null,null,null,null,null,null,"47230","Trgovina na drobno v specializiranih prodajalnah z ribami, raki, mehkužci"]
[null,null,null,null,null,null,null,"4724","Trgovina na drobno v specializiranih prodajalnah s kruhom, pecivom, testeninami, sladkornimi izdelki"]
[null,null,null,null,null,null,null,"47240","Trgovina na drobno v specializiranih prodajalnah s kruhom, pecivom, testeninami, sladkornimi izdelki"]
[null,null,null,null,null,null,null,"4725","Trgovina na drobno v specializiranih prodajalnah s pijačami"]
[null,null,null,null,null,null,null,"47250","Trgovina na drobno v specializiranih prodajalnah s pijačami"]
[null,null,null,null,null,null,null,"4726","Trgovina na drobno v specializiranih prodajalnah s tobačnimi izdelki"]
[null,null,null,null,null,null,null,"47260","Trgovina na drobno v specializiranih prodajalnah s tobačnimi izdelki"]
[null,null,null,null,null,null,null,"4729","Druga trgovina na drobno v specializiranih prodajalnah z živili"]
[null,null,null,null,null,null,null,"47290","Druga trgovina na drobno v specializiranih prodajalnah z živili"]
[null,null,null,null,null,null,null,"473","Trgovina na drobno v specializiranih prodajalnah z motornimi gorivi"]
[null,null,null,null,null,null,null,"4730","Trgovina na drobno v specializiranih prodajalnah z motornimi gorivi"]
[null,null,null,null,null,null,null,"47301","Trgovina na drobno z lastnimi motornimi gorivi"]
[null,null,null,null,null,null,null,"47302","Posredništvo pri prodaji motornih goriv na drobno"]
[null,null,null,null,null,null,null,"474","Trgovina na drobno v specializiranih prodajalnah z računalniškimi, komunikacijskimi, avdio in video napravami"]
[null,null,null,null,null,null,null,"4741","Trgovina na drobno v specializiranih prodajalnah z računalniškimi napravami in programi"]
[null,null,null,null,null,null,null,"47410","Trgovina na drobno v specializiranih prodajalnah z računalniškimi napravami in programi"]
[null,null,null,null,null,null,null,"4742","Trgovina na drobno v specializiranih prodajalnah s telekomunikacijskimi napravami"]
[null,null,null,null,null,null,null,"47420","Trgovina na drobno v specializiranih prodajalnah s telekomunikacijskimi napravami"]
[null,null,null,null,null,null,null,"4743","Trgovina na drobno v specializiranih prodajalnah z avdio in video napravami"]
[null,null,null,null,null,null,null,"47430","Trgovina na drobno v specializiranih prodajalnah z avdio in video napravami"]
[null,null,null,null,null,null,null,"475","Trgovina na drobno v specializiranih prodajalnah z drugo gospodinjsko opremo"]
[null,null,null,null,null,null,null,"4751","Trgovina na drobno v specializiranih prodajalnah s tekstilom"]
[null,null,null,null,null,null,null,"47510","Trgovina na drobno v specializiranih prodajalnah s tekstilom"]
[null,null,null,null,null,null,null,"4752","Trgovina na drobno v specializiranih prodajalnah z gradbenim materialom, kovinskimi izdelki, barvami in steklom"]
[null,null,null,null,null,null,null,"47520","Trgovina na drobno v specializiranih prodajalnah z gradbenim materialom, kovinskimi izdelki, barvami in steklom"]
[null,null,null,null,null,null,null,"4753","Trgovina na drobno v specializiranih prodajalnah s preprogami, talnimi in stenskimi oblogami"]
[null,null,null,null,null,null,null,"47530","Trgovina na drobno v specializiranih prodajalnah s preprogami, talnimi in stenskimi oblogami"]
[null,null,null,null,null,null,null,"4754","Trgovina na drobno v specializiranih prodajalnah z električnimi gospodinjskimi napravami"]
[null,null,null,null,null,null,null,"47540","Trgovina na drobno v specializiranih prodajalnah z električnimi gospodinjskimi napravami"]
[null,null,null,null,null,null,null,"4759","Trgovina na drobno v specializiranih prodajalnah s pohištvom, svetili in drugje nerazvrščenimi predmeti za gospodinjstvo"]
[null,null,null,null,null,null,null,"47590","Trgovina na drobno v specializiranih prodajalnah s pohištvom, svetili in drugje nerazvrščenimi predmeti za gospodinjstvo"]
[null,null,null,null,null,null,null,"476","Trgovina na drobno v specializiranih prodajalnah z izdelki za kulturo, šport in zabavo"]
[null,null,null,null,null,null,null,"4761","Trgovina na drobno v specializiranih prodajalnah s knjigami"]
[null,null,null,null,null,null,null,"47610","Trgovina na drobno v specializiranih prodajalnah s knjigami"]
[null,null,null,null,null,null,null,"4762","Trgovina na drobno v specializiranih prodajalnah s časopisi, revijami, papirjem, pisalnimi potrebščinami"]
[null,null,null,null,null,null,null,"47621","Trgovina na drobno v specializiranih prodajalnah s časopisi in revijami"]
[null,null,null,null,null,null,null,"47622","Trgovina na drobno v specializiranih prodajalnah s papirjem in pisalnimi potrebščinami"]
[null,null,null,null,null,null,null,"4763","Trgovina na drobno v specializiranih prodajalnah z glasbenimi in video zapisi"]
[null,null,null,null,null,null,null,"47630","Trgovina na drobno v specializiranih prodajalnah z glasbenimi in video zapisi"]
[null,null,null,null,null,null,null,"4764","Trgovina na drobno v specializiranih prodajalnah s športno opremo"]
[null,null,null,null,null,null,null,"47640","Trgovina na drobno v specializiranih prodajalnah s športno opremo"]
[null,null,null,null,null,null,null,"4765","Trgovina na drobno v specializiranih prodajalnah z igračami in rekviziti za igre in zabavo"]
[null,null,null,null,null,null,null,"47650","Trgovina na drobno v specializiranih prodajalnah z igračami in rekviziti za igre in zabavo"]
[null,null,null,null,null,null,null,"477","Trgovina na drobno v specializiranih prodajalnah z drugimi izdelki"]
[null,null,null,null,null,null,null,"4771","Trgovina na drobno v specializiranih prodajalnah z oblačili"]
[null,null,null,null,null,null,null,"47710","Trgovina na drobno v specializiranih prodajalnah z oblačili"]
[null,null,null,null,null,null,null,"4772","Trgovina na drobno v specializiranih prodajalnah z obutvijo in usnjenimi izdelki"]
[null,null,null,null,null,null,null,"47720","Trgovina na drobno v specializiranih prodajalnah z obutvijo in usnjenimi izdelki"]
[null,null,null,null,null,null,null,"4773","Trgovina na drobno v specializiranih prodajalnah s farmacevtskimi izdelki"]
[null,null,null,null,null,null,null,"47730","Trgovina na drobno v specializiranih prodajalnah s farmacevtskimi izdelki"]
[null,null,null,null,null,null,null,"4774","Trgovina na drobno v specializiranih prodajalnah z medicinskimi in ortopedskimi pripomočki"]
[null,null,null,null,null,null,null,"47740","Trgovina na drobno v specializiranih prodajalnah z medicinskimi in ortopedskimi pripomočki"]
[null,null,null,null,null,null,null,"4775","Trgovina na drobno v specializiranih prodajalnah s kozmetičnimi in toaletnimi izdelki"]
[null,null,null,null,null,null,null,"47750","Trgovina na drobno v specializiranih prodajalnah s kozmetičnimi in toaletnimi izdelki"]
[null,null,null,null,null,null,null,"4776","Trgovina na drobno v specializiranih prodajalnah s cvetjem, rastlinami, gnojili, hišnimi živalmi in hrano za živali"]
[null,null,null,null,null,null,null,"47761","Trgovina na drobno v cvetličarnah"]
[null,null,null,null,null,null,null,"47762","Trgovina na drobno v specializiranih prodajalnah z vrtnarsko opremo in hišnimi živalmi"]
[null,null,null,null,null,null,null,"4777","Trgovina na drobno v specializiranih prodajalnah z urami in nakitom"]
[null,null,null,null,null,null,null,"47770","Trgovina na drobno v specializiranih prodajalnah z urami in nakitom"]
[null,null,null,null,null,null,null,"4778","Druga trgovina na drobno v specializiranih prodajalnah z novim blagom"]
[null,null,null,null,null,null,null,"47781","Trgovina na drobno v specializiranih prodajalnah z očali"]
[null,null,null,null,null,null,null,"47782","Trgovina na drobno v specializiranih prodajalnah z umetniškimi izdelki"]
[null,null,null,null,null,null,null,"47789","Druga trgovina na drobno v drugih specializiranih prodajalnah"]
[null,null,null,null,null,null,null,"4779","Trgovina na drobno v prodajalnah z rabljenim blagom"]
[null,null,null,null,null,null,null,"47790","Trgovina na drobno v prodajalnah z rabljenim blagom"]
[null,null,null,null,null,null,null,"478","Trgovina na drobno na stojnicah in tržnicah"]
[null,null,null,null,null,null,null,"4781","Trgovina na drobno na stojnicah in tržnicah z živili, pijačami in tobačnimi izdelki"]
[null,null,null,null,null,null,null,"47810","Trgovina na drobno na stojnicah in tržnicah z živili, pijačami in tobačnimi izdelki"]
[null,null,null,null,null,null,null,"4782","Trgovina na drobno na stojnicah in tržnicah s tekstilijami in obutvijo"]
[null,null,null,null,null,null,null,"47820","Trgovina na drobno na stojnicah in tržnicah s tekstilijami in obutvijo"]
[null,null,null,null,null,null,null,"4789","Trgovina na drobno na stojnicah in tržnicah z drugim blagom"]
[null,null,null,null,null,null,null,"47890","Trgovina na drobno na stojnicah in tržnicah z drugim blagom"]
[null,null,null,null,null,null,null,"479","Trgovina na drobno zunaj prodajaln, stojnic in tržnic"]
[null,null,null,null,null,null,null,"4791","Trgovina na drobno po pošti ali po internetu"]
[null,null,null,null,null,null,null,"47910","Trgovina na drobno po pošti ali po internetu"]
[null,null,null,null,null,null,null,"4799","Druga trgovina na drobno zunaj prodajaln, stojnic in tržnic"]
[null,null,null,null,null,null,null,"47990","Druga trgovina na drobno zunaj prodajaln, stojnic in tržnic"]
[null,null,null,null,null,null,null,"49","Kopenski promet; cevovodni transport"]
[null,null,null,null,null,null,null,"491","Železniški potniški promet"]
[null,null,null,null,null,null,null,"4910","Železniški potniški promet"]
[null,null,null,null,null,null,null,"49100","Železniški potniški promet"]
[null,null,null,null,null,null,null,"492","Železniški tovorni promet"]
[null,null,null,null,null,null,null,"4920","Železniški tovorni promet"]
[null,null,null,null,null,null,null,"49200","Železniški tovorni promet"]
[null,null,null,null,null,null,null,"493","Drug kopenski potniški promet"]
[null,null,null,null,null,null,null,"4931","Mestni in primestni kopenski potniški promet"]
[null,null,null,null,null,null,null,"49310","Mestni in primestni kopenski potniški promet"]
[null,null,null,null,null,null,null,"4932","Obratovanje taksijev"]
[null,null,null,null,null,null,null,"49320","Obratovanje taksijev"]
[null,null,null,null,null,null,null,"4939","Drug kopenski potniški promet"]
[null,null,null,null,null,null,null,"49391","Medkrajevni in drug cestni potniški promet"]
[null,null,null,null,null,null,null,"49392","Obratovanje žičnic"]
[null,null,null,null,null,null,null,"494","Cestni tovorni promet ter selitvena dejavnost"]
[null,null,null,null,null,null,null,"4941","Cestni tovorni promet"]
[null,null,null,null,null,null,null,"49410","Cestni tovorni promet"]
[null,null,null,null,null,null,null,"4942","Selitvena dejavnost"]
[null,null,null,null,null,null,null,"49420","Selitvena dejavnost"]
[null,null,null,null,null,null,null,"495","Cevovodni transport"]
[null,null,null,null,null,null,null,"4950","Cevovodni transport"]
[null,null,null,null,null,null,null,"49500","Cevovodni transport"]
[null,null,null,null,null,null,null,"50","Vodni promet"]
[null,null,null,null,null,null,null,"501","Pomorski potniški promet"]
[null,null,null,null,null,null,null,"5010","Pomorski potniški promet"]
[null,null,null,null,null,null,null,"50100","Pomorski potniški promet"]
[null,null,null,null,null,null,null,"502","Pomorski tovorni promet"]
[null,null,null,null,null,null,null,"5020","Pomorski tovorni promet"]
[null,null,null,null,null,null,null,"50200","Pomorski tovorni promet"]
[null,null,null,null,null,null,null,"503","Potniški promet po celinskih vodah"]
[null,null,null,null,null,null,null,"5030","Potniški promet po celinskih vodah"]
[null,null,null,null,null,null,null,"50300","Potniški promet po celinskih vodah"]
[null,null,null,null,null,null,null,"504","Tovorni promet po celinskih vodah"]
[null,null,null,null,null,null,null,"5040","Tovorni promet po celinskih vodah"]
[null,null,null,null,null,null,null,"50400","Tovorni promet po celinskih vodah"]
[null,null,null,null,null,null,null,"51","Zračni promet"]
[null,null,null,null,null,null,null,"511","Potniški zračni promet"]
[null,null,null,null,null,null,null,"5110","Potniški zračni promet"]
[null,null,null,null,null,null,null,"51100","Potniški zračni promet"]
[null,null,null,null,null,null,null,"512","Tovorni zračni in vesoljski promet"]
[null,null,null,null,null,null,null,"5121","Tovorni zračni promet"]
[null,null,null,null,null,null,null,"51210","Tovorni zračni promet"]
[null,null,null,null,null,null,null,"5122","Vesoljski promet"]
[null,null,null,null,null,null,null,"51220","Vesoljski promet"]
[null,null,null,null,null,null,null,"52","Skladiščenje in spremljajoče prometne dejavnosti"]
[null,null,null,null,null,null,null,"521","Skladiščenje"]
[null,null,null,null,null,null,null,"5210","Skladiščenje"]
[null,null,null,null,null,null,null,"52100","Skladiščenje"]
[null,null,null,null,null,null,null,"522","Spremljajoče prometne dejavnosti"]
[null,null,null,null,null,null,null,"5221","Spremljajoče storitvene dejavnosti v kopenskem prometu"]
[null,null,null,null,null,null,null,"52210","Spremljajoče storitvene dejavnosti v kopenskem prometu"]
[null,null,null,null,null,null,null,"5222","Spremljajoče storitvene dejavnosti v vodnem prometu"]
[null,null,null,null,null,null,null,"52220","Spremljajoče storitvene dejavnosti v vodnem prometu"]
[null,null,null,null,null,null,null,"5223","Spremljajoče storitvene dejavnosti v zračnem prometu"]
[null,null,null,null,null,null,null,"52230","Spremljajoče storitvene dejavnosti v zračnem prometu"]
[null,null,null,null,null,null,null,"5224","Pretovarjanje"]
[null,null,null,null,null,null,null,"52240","Pretovarjanje"]
[null,null,null,null,null,null,null,"5229","Špedicija in druge spremljajoče prometne dejavnosti"]
[null,null,null,null,null,null,null,"52290","Špedicija in druge spremljajoče prometne dejavnosti"]
[null,null,null,null,null,null,null,"53","Poštna in kurirska dejavnost"]
[null,null,null,null,null,null,null,"531","Izvajanje univerzalne poštne storitve"]
[null,null,null,null,null,null,null,"5310","Izvajanje univerzalne poštne storitve"]
[null,null,null,null,null,null,null,"53100","Izvajanje univerzalne poštne storitve"]
[null,null,null,null,null,null,null,"532","Druga poštna in kurirska dejavnost"]
[null,null,null,null,null,null,null,"5320","Druga poštna in kurirska dejavnost"]
[null,null,null,null,null,null,null,"53200","Druga poštna in kurirska dejavnost"]
[null,null,null,null,null,null,null,"55","Gostinske nastanitvene dejavnosti"]
[null,null,null,null,null,null,null,"551","Dejavnost hotelov in podobnih nastanitvenih obratov"]
[null,null,null,null,null,null,null,"5510","Dejavnost hotelov in podobnih nastanitvenih obratov"]
[null,null,null,null,null,null,null,"55100","Dejavnost hotelov in podobnih nastanitvenih obratov"]
[null,null,null,null,null,null,null,"552","Dejavnost počitniških domov in podobnih nastanitvenih obratov za kratkotrajno bivanje"]
[null,null,null,null,null,null,null,"5520","Dejavnost počitniških domov in podobnih nastanitvenih obratov za kratkotrajno bivanje"]
[null,null,null,null,null,null,null,"55201","Počitniški domovi in letovišča"]
[null,null,null,null,null,null,null,"55202","Turistične kmetije s sobami"]
[null,null,null,null,null,null,null,"55203","Oddajanje zasebnih sob gostom"]
[null,null,null,null,null,null,null,"55204","Planinski domovi in mladinska prenočišča"]
[null,null,null,null,null,null,null,"55209","Druge nastanitve za krajši čas"]
[null,null,null,null,null,null,null,"553","Dejavnost avtokampov, taborov"]
[null,null,null,null,null,null,null,"5530","Dejavnost avtokampov, taborov"]
[null,null,null,null,null,null,null,"55300","Dejavnost avtokampov, taborov"]
[null,null,null,null,null,null,null,"559","Dejavnost dijaških in študentskih domov ter druge nastanitve"]
[null,null,null,null,null,null,null,"5590","Dejavnost dijaških in študentskih domov ter druge nastanitve"]
[null,null,null,null,null,null,null,"55900","Dejavnost dijaških in študentskih domov ter druge nastanitve"]
[null,null,null,null,null,null,null,"56","Dejavnost strežbe jedi in pijač"]
[null,null,null,null,null,null,null,"561","Dejavnost restavracij in druga strežba jedi"]
[null,null,null,null,null,null,null,"5610","Dejavnost restavracij in druga strežba jedi"]
[null,null,null,null,null,null,null,"56101","Restavracije in gostilne"]
[null,null,null,null,null,null,null,"56102","Okrepčevalnice in podobni obrati"]
[null,null,null,null,null,null,null,"56103","Slaščičarne in kavarne"]
[null,null,null,null,null,null,null,"56104","Začasni gostinski obrati"]
[null,null,null,null,null,null,null,"56105","Turistične kmetije brez sob"]
[null,null,null,null,null,null,null,"562","Priložnostna priprava in dostava jedi ter druga oskrba z jedmi"]
[null,null,null,null,null,null,null,"5621","Priložnostna priprava in dostava jedi"]
[null,null,null,null,null,null,null,"56210","Priložnostna priprava in dostava jedi"]
[null,null,null,null,null,null,null,"5629","Druga oskrba z jedmi"]
[null,null,null,null,null,null,null,"56290","Druga oskrba z jedmi"]
[null,null,null,null,null,null,null,"563","Strežba pijač"]
[null,null,null,null,null,null,null,"5630","Strežba pijač"]
[null,null,null,null,null,null,null,"56300","Strežba pijač"]
[null,null,null,null,null,null,null,"58","Založništvo"]
[null,null,null,null,null,null,null,"581","Izdajanje knjig, periodike in drugo založništvo"]
[null,null,null,null,null,null,null,"5811","Izdajanje knjig"]
[null,null,null,null,null,null,null,"58110","Izdajanje knjig"]
[null,null,null,null,null,null,null,"5812","Izdajanje imenikov in adresarjev"]
[null,null,null,null,null,null,null,"58120","Izdajanje imenikov in adresarjev"]
[null,null,null,null,null,null,null,"5813","Izdajanje časopisov"]
[null,null,null,null,null,null,null,"58130","Izdajanje časopisov"]
[null,null,null,null,null,null,null,"5814","Izdajanje revij in druge periodike"]
[null,null,null,null,null,null,null,"58140","Izdajanje revij in druge periodike"]
[null,null,null,null,null,null,null,"5819","Drugo založništvo"]
[null,null,null,null,null,null,null,"58190","Drugo založništvo"]
[null,null,null,null,null,null,null,"582","Izdajanje programja"]
[null,null,null,null,null,null,null,"5821","Izdajanje računalniških iger"]
[null,null,null,null,null,null,null,"58210","Izdajanje računalniških iger"]
[null,null,null,null,null,null,null,"5829","Drugo izdajanje programja"]
[null,null,null,null,null,null,null,"58290","Drugo izdajanje programja"]
[null,null,null,null,null,null,null,"59","Dejavnosti v zvezi s filmi, video- in zvočnimi zapisi"]
[null,null,null,null,null,null,null,"591","Filmska in video dejavnost"]
[null,null,null,null,null,null,null,"5911","Produkcija filmov, video filmov, televizijskih oddaj"]
[null,null,null,null,null,null,null,"59110","Produkcija filmov, video filmov, televizijskih oddaj"]
[null,null,null,null,null,null,null,"5912","Post produkcijske dejavnosti pri izdelavi filmov, video filmov, televizijskih oddaj"]
[null,null,null,null,null,null,null,"59120","Post produkcijske dejavnosti pri izdelavi filmov, video filmov, televizijskih oddaj"]
[null,null,null,null,null,null,null,"5913","Distribucija filmov, video filmov, televizijskih oddaj"]
[null,null,null,null,null,null,null,"59130","Distribucija filmov, video filmov, televizijskih oddaj"]
[null,null,null,null,null,null,null,"5914","Kinematografska dejavnost"]
[null,null,null,null,null,null,null,"59140","Kinematografska dejavnost"]
[null,null,null,null,null,null,null,"592","Snemanje in izdajanje zvočnih zapisov in muzikalij"]
[null,null,null,null,null,null,null,"5920","Snemanje in izdajanje zvočnih zapisov in muzikalij"]
[null,null,null,null,null,null,null,"59200","Snemanje in izdajanje zvočnih zapisov in muzikalij"]
[null,null,null,null,null,null,null,"60","Radijska in televizijska dejavnost"]
[null,null,null,null,null,null,null,"601","Radijska dejavnost"]
[null,null,null,null,null,null,null,"6010","Radijska dejavnost"]
[null,null,null,null,null,null,null,"60100","Radijska dejavnost"]
[null,null,null,null,null,null,null,"602","Televizijska dejavnost"]
[null,null,null,null,null,null,null,"6020","Televizijska dejavnost"]
[null,null,null,null,null,null,null,"60200","Televizijska dejavnost"]
[null,null,null,null,null,null,null,"61","Telekomunikacijske dejavnosti"]
[null,null,null,null,null,null,null,"611","Telekomunikacijske dejavnosti po vodih"]
[null,null,null,null,null,null,null,"6110","Telekomunikacijske dejavnosti po vodih"]
[null,null,null,null,null,null,null,"61100","Telekomunikacijske dejavnosti po vodih"]
[null,null,null,null,null,null,null,"612","Brezžične telekomunikacijske dejavnosti"]
[null,null,null,null,null,null,null,"6120","Brezžične telekomunikacijske dejavnosti"]
[null,null,null,null,null,null,null,"61200","Brezžične telekomunikacijske dejavnosti"]
[null,null,null,null,null,null,null,"613","Satelitske telekomunikacijske dejavnosti"]
[null,null,null,null,null,null,null,"6130","Satelitske telekomunikacijske dejavnosti"]
[null,null,null,null,null,null,null,"61300","Satelitske telekomunikacijske dejavnosti"]
[null,null,null,null,null,null,null,"619","Druge telekomunikacijske dejavnosti"]
[null,null,null,null,null,null,null,"6190","Druge telekomunikacijske dejavnosti"]
[null,null,null,null,null,null,null,"61900","Druge telekomunikacijske dejavnosti"]
[null,null,null,null,null,null,null,"62","Računalniško programiranje, svetovanje in druge s tem povezane dejavnosti"]
[null,null,null,null,null,null,null,"620","Računalniško programiranje, svetovanje in druge s tem povezane dejavnosti"]
[null,null,null,null,null,null,null,"6201","Računalniško programiranje"]
[null,null,null,null,null,null,null,"62010","Računalniško programiranje"]
[null,null,null,null,null,null,null,"6202","Svetovanje o računalniških napravah in programih"]
[null,null,null,null,null,null,null,"62020","Svetovanje o računalniških napravah in programih"]
[null,null,null,null,null,null,null,"6203","Upravljanje računalniških naprav in sistemov"]
[null,null,null,null,null,null,null,"62030","Upravljanje računalniških naprav in sistemov"]
[null,null,null,null,null,null,null,"6209","Druge z informacijsko tehnologijo in računalniškimi storitvami povezane dejavnosti"]
[null,null,null,null,null,null,null,"62090","Druge z informacijsko tehnologijo in računalniškimi storitvami povezane dejavnosti"]
[null,null,null,null,null,null,null,"63","Druge informacijske dejavnosti"]
[null,null,null,null,null,null,null,"631","Obdelava podatkov in s tem povezane dejavnosti; obratovanje spletnih portalov"]
[null,null,null,null,null,null,null,"6311","Obdelava podatkov in s tem povezane dejavnosti"]
[null,null,null,null,null,null,null,"63110","Obdelava podatkov in s tem povezane dejavnosti"]
[null,null,null,null,null,null,null,"6312","Obratovanje spletnih portalov"]
[null,null,null,null,null,null,null,"63120","Obratovanje spletnih portalov"]
[null,null,null,null,null,null,null,"639","Dejavnosti tiskovnih agencij, drugo informiranje"]
[null,null,null,null,null,null,null,"6391","Dejavnost tiskovnih agencij"]
[null,null,null,null,null,null,null,"63910","Dejavnost tiskovnih agencij"]
[null,null,null,null,null,null,null,"6399","Drugo informiranje"]
[null,null,null,null,null,null,null,"63990","Drugo informiranje"]
[null,null,null,null,null,null,null,"64","Dejavnosti finančnih storitev, razen zavarovalništva in dejavnosti pokojninskih skladov"]
[null,null,null,null,null,null,null,"641","Denarno posredništvo"]
[null,null,null,null,null,null,null,"6411","Centralno bančništvo"]
[null,null,null,null,null,null,null,"64110","Centralno bančništvo"]
[null,null,null,null,null,null,null,"6419","Drugo denarno posredništvo"]
[null,null,null,null,null,null,null,"64190","Drugo denarno posredništvo"]
[null,null,null,null,null,null,null,"642","Dejavnost holdingov"]
[null,null,null,null,null,null,null,"6420","Dejavnost holdingov"]
[null,null,null,null,null,null,null,"64200","Dejavnost holdingov"]
[null,null,null,null,null,null,null,"643","Dejavnost skrbniških in drugih skladov ter podobnih finančnih subjektov"]
[null,null,null,null,null,null,null,"6430","Dejavnost skrbniških in drugih skladov ter podobnih finančnih subjektov"]
[null,null,null,null,null,null,null,"64300","Dejavnost skrbniških in drugih skladov ter podobnih finančnih subjektov"]
[null,null,null,null,null,null,null,"649","Dejavnosti finančnih storitev, razen zavarovalništva in dejavnosti pokojninskih skladov"]
[null,null,null,null,null,null,null,"6491","Dejavnost finančnega zakupa"]
[null,null,null,null,null,null,null,"64910","Dejavnost finančnega zakupa"]
[null,null,null,null,null,null,null,"6492","Drugo kreditiranje"]
[null,null,null,null,null,null,null,"64920","Drugo kreditiranje"]
[null,null,null,null,null,null,null,"6499","Drugje nerazvrščene dejavnosti finančnih storitev, razen zavarovalništva in dejavnosti pokojninskih skladov"]
[null,null,null,null,null,null,null,"64990","Drugje nerazvrščene dejavnosti finančnih storitev, razen zavarovalništva in dejavnosti pokojninskih skladov"]
[null,null,null,null,null,null,null,"65","Dejavnosti zavarovanja, pozavarovanja in pokojninskih skladov, razen obvezne socialne varnosti"]
[null,null,null,null,null,null,null,"651","Dejavnost zavarovanja"]
[null,null,null,null,null,null,null,"6511","Dejavnost življenjskega zavarovanja"]
[null,null,null,null,null,null,null,"65110","Dejavnost življenjskega zavarovanja"]
[null,null,null,null,null,null,null,"6512","Dejavnost zavarovanja, razen življenjskega"]
[null,null,null,null,null,null,null,"65120","Dejavnost zavarovanja, razen življenjskega"]
[null,null,null,null,null,null,null,"652","Dejavnost pozavarovanja"]
[null,null,null,null,null,null,null,"6520","Dejavnost pozavarovanja"]
[null,null,null,null,null,null,null,"65200","Dejavnost pozavarovanja"]
[null,null,null,null,null,null,null,"653","Dejavnost pokojninskih skladov"]
[null,null,null,null,null,null,null,"6530","Dejavnost pokojninskih skladov"]
[null,null,null,null,null,null,null,"65300","Dejavnost pokojninskih skladov"]
[null,null,null,null,null,null,null,"66","Pomožne dejavnosti za finančne in zavarovalniške storitve"]
[null,null,null,null,null,null,null,"661","Pomožne dejavnosti za finančne storitve, razen za zavarovalništvo in pokojninske sklade"]
[null,null,null,null,null,null,null,"6611","Upravljanje finančnih trgov"]
[null,null,null,null,null,null,null,"66110","Upravljanje finančnih trgov"]
[null,null,null,null,null,null,null,"6612","Posredništvo pri trgovanju z vrednostnimi papirji in borznim blagom"]
[null,null,null,null,null,null,null,"66120","Posredništvo pri trgovanju z vrednostnimi papirji in borznim blagom"]
[null,null,null,null,null,null,null,"6619","Druge pomožne dejavnosti za finančne storitve, razen za zavarovalništvo in pokojninske sklade"]
[null,null,null,null,null,null,null,"66190","Druge pomožne dejavnosti za finančne storitve, razen za zavarovalništvo in pokojninske sklade"]
[null,null,null,null,null,null,null,"662","Pomožne dejavnosti za zavarovalništvo in pokojninske sklade"]
[null,null,null,null,null,null,null,"6621","Vrednotenje tveganja in škode"]
[null,null,null,null,null,null,null,"66210","Vrednotenje tveganja in škode"]
[null,null,null,null,null,null,null,"6622","Dejavnost zavarovalniških agentov"]
[null,null,null,null,null,null,null,"66220","Dejavnost zavarovalniških agentov"]
[null,null,null,null,null,null,null,"6629","Druge pomožne dejavnosti za zavarovalništvo in pokojninske sklade"]
[null,null,null,null,null,null,null,"66290","Druge pomožne dejavnosti za zavarovalništvo in pokojninske sklade"]
[null,null,null,null,null,null,null,"663","Upravljanje finančnih skladov"]
[null,null,null,null,null,null,null,"6630","Upravljanje finančnih skladov"]
[null,null,null,null,null,null,null,"66300","Upravljanje finančnih skladov"]
[null,null,null,null,null,null,null,"68","Poslovanje z nepremičninami"]
[null,null,null,null,null,null,null,"681","Trgovanje z lastnimi nepremičninami"]
[null,null,null,null,null,null,null,"6810","Trgovanje z lastnimi nepremičninami"]
[null,null,null,null,null,null,null,"68100","Trgovina z lastnimi nepremičninami"]
[null,null,null,null,null,null,null,"682","Oddajanje in obratovanje lastnih ali najetih nepremičnin"]
[null,null,null,null,null,null,null,"6820","Oddajanje in obratovanje lastnih ali najetih nepremičnin"]
[null,null,null,null,null,null,null,"68200","Oddajanje in obratovanje lastnih ali najetih nepremičnin"]
[null,null,null,null,null,null,null,"683","Poslovanje z nepremičninami za plačilo ali po pogodbi"]
[null,null,null,null,null,null,null,"6831","Posredništvo v prometu z nepremičninami"]
[null,null,null,null,null,null,null,"68310","Posredništvo v prometu z nepremičninami"]
[null,null,null,null,null,null,null,"6832","Upravljanje nepremičnin za plačilo ali po pogodbi"]
[null,null,null,null,null,null,null,"68320","Upravljanje nepremičnin za plačilo ali po pogodbi"]
[null,null,null,null,null,null,null,"69","Pravne in računovodske dejavnosti"]
[null,null,null,null,null,null,null,"691","Pravne dejavnosti"]
[null,null,null,null,null,null,null,"6910","Pravne dejavnosti"]
[null,null,null,null,null,null,null,"69101","Odvetništvo"]
[null,null,null,null,null,null,null,"69102","Notariat"]
[null,null,null,null,null,null,null,"69103","Druge pravne dejavnosti"]
[null,null,null,null,null,null,null,"692","Računovodske, knjigovodske in revizijske dejavnosti; davčno svetovanje"]
[null,null,null,null,null,null,null,"6920","Računovodske, knjigovodske in revizijske dejavnosti; davčno svetovanje"]
[null,null,null,null,null,null,null,"69200","Računovodske, knjigovodske in revizijske dejavnosti; davčno svetovanje"]
[null,null,null,null,null,null,null,"70","Dejavnost uprav podjetij; podjetniško in poslovno svetovanje"]
[null,null,null,null,null,null,null,"701","Dejavnost uprav podjetij"]
[null,null,null,null,null,null,null,"7010","Dejavnost uprav podjetij"]
[null,null,null,null,null,null,null,"70100","Dejavnost uprav podjetij"]
[null,null,null,null,null,null,null,"702","Podjetniško in poslovno svetovanje"]
[null,null,null,null,null,null,null,"7021","Dejavnost stikov z javnostjo"]
[null,null,null,null,null,null,null,"70210","Dejavnost stikov z javnostjo"]
[null,null,null,null,null,null,null,"7022","Drugo podjetniško in poslovno svetovanje"]
[null,null,null,null,null,null,null,"70220","Drugo podjetniško in poslovno svetovanje"]
[null,null,null,null,null,null,null,"71","Arhitekturno in tehnično projektiranje; tehnično preizkušanje in analiziranje"]
[null,null,null,null,null,null,null,"711","Arhitekturno in tehnično projektiranje in s tem povezano svetovanje"]
[null,null,null,null,null,null,null,"7111","Arhitekturna in urbanistična dejavnost"]
[null,null,null,null,null,null,null,"71111","Arhitekturno projektiranje"]
[null,null,null,null,null,null,null,"71112","Krajinsko arhitekturno, urbanistično in drugo projektiranje"]
[null,null,null,null,null,null,null,"7112","Tehnično projektiranje in s tem povezano svetovanje"]
[null,null,null,null,null,null,null,"71121","Geofizikalne meritve, kartiranje"]
[null,null,null,null,null,null,null,"71129","Drugo tehnično projektiranje in svetovanje"]
[null,null,null,null,null,null,null,"712","Tehnično preizkušanje in analiziranje"]
[null,null,null,null,null,null,null,"7120","Tehnično preizkušanje in analiziranje"]
[null,null,null,null,null,null,null,"71200","Tehnično preizkušanje in analiziranje"]
[null,null,null,null,null,null,null,"72","Znanstvena raziskovalna in razvojna dejavnost"]
[null,null,null,null,null,null,null,"721","Raziskovalna in razvojna dejavnost na področju naravoslovja in tehnologije"]
[null,null,null,null,null,null,null,"7211","Raziskovalna in razvojna dejavnost na področju biotehnologije"]
[null,null,null,null,null,null,null,"72110","Raziskovalna in razvojna dejavnost na področju biotehnologije"]
[null,null,null,null,null,null,null,"7219","Raziskovalna in razvojna dejavnost na drugih področjih naravoslovja in tehnologije"]
[null,null,null,null,null,null,null,"72190","Raziskovalna in razvojna dejavnost na drugih področjih naravoslovja in tehnologije"]
[null,null,null,null,null,null,null,"722","Raziskovalna in razvojna dejavnost na področju družboslovja in humanistike"]
[null,null,null,null,null,null,null,"7220","Raziskovalna in razvojna dejavnost na področju družboslovja in humanistike"]
[null,null,null,null,null,null,null,"72200","Raziskovalna in razvojna dejavnost na področju družboslovja in humanistike"]
[null,null,null,null,null,null,null,"73","Oglaševanje in raziskovanje trga"]
[null,null,null,null,null,null,null,"731","Oglaševanje"]
[null,null,null,null,null,null,null,"7311","Dejavnost oglaševalskih agencij"]
[null,null,null,null,null,null,null,"73110","Dejavnost oglaševalskih agencij"]
[null,null,null,null,null,null,null,"7312","Posredovanje oglaševalskega prostora"]
[null,null,null,null,null,null,null,"73120","Posredovanje oglaševalskega prostora"]
[null,null,null,null,null,null,null,"732","Raziskovanje trga in javnega mnenja"]
[null,null,null,null,null,null,null,"7320","Raziskovanje trga in javnega mnenja"]
[null,null,null,null,null,null,null,"73200","Raziskovanje trga in javnega mnenja"]
[null,null,null,null,null,null,null,"74","Druge strokovne in tehnične dejavnosti"]
[null,null,null,null,null,null,null,"741","Oblikovanje, aranžerstvo, dekoraterstvo"]
[null,null,null,null,null,null,null,"7410","Oblikovanje, aranžerstvo, dekoraterstvo"]
[null,null,null,null,null,null,null,"74100","Oblikovanje, aranžerstvo, dekoraterstvo"]
[null,null,null,null,null,null,null,"742","Fotografska dejavnost"]
[null,null,null,null,null,null,null,"7420","Fotografska dejavnost"]
[null,null,null,null,null,null,null,"74200","Fotografska dejavnost"]
[null,null,null,null,null,null,null,"743","Prevajanje in tolmačenje"]
[null,null,null,null,null,null,null,"7430","Prevajanje in tolmačenje"]
[null,null,null,null,null,null,null,"74300","Prevajanje in tolmačenje"]
[null,null,null,null,null,null,null,"749","Drugje nerazvrščene strokovne in tehnične dejavnosti"]
[null,null,null,null,null,null,null,"7490","Drugje nerazvrščene strokovne in tehnične dejavnosti"]
[null,null,null,null,null,null,null,"74900","Drugje nerazvrščene strokovne in tehnične dejavnosti"]
[null,null,null,null,null,null,null,"75","Veterinarstvo"]
[null,null,null,null,null,null,null,"750","Veterinarstvo"]
[null,null,null,null,null,null,null,"7500","Veterinarstvo"]
[null,null,null,null,null,null,null,"75000","Veterinarstvo"]
[null,null,null,null,null,null,null,"77","Dajanje v najem in zakup"]
[null,null,null,null,null,null,null,"771","Dajanje motornih vozil v najem in zakup"]
[null,null,null,null,null,null,null,"7711","Dajanje lahkih motornih vozil v najem in zakup"]
[null,null,null,null,null,null,null,"77110","Dajanje lahkih motornih vozil v najem in zakup"]
[null,null,null,null,null,null,null,"7712","Dajanje tovornjakov v najem in zakup"]
[null,null,null,null,null,null,null,"77120","Dajanje tovornjakov v najem in zakup"]
[null,null,null,null,null,null,null,"772","Dajanje športne opreme in izdelkov za široko rabo v najem in zakup"]
[null,null,null,null,null,null,null,"7721","Dajanje športne opreme v najem in zakup"]
[null,null,null,null,null,null,null,"77210","Dajanje športne opreme v najem in zakup"]
[null,null,null,null,null,null,null,"7722","Dajanje videokaset in plošč v najem"]
[null,null,null,null,null,null,null,"77220","Dajanje videokaset in plošč v najem"]
[null,null,null,null,null,null,null,"7729","Dajanje drugih izdelkov za široko rabo v najem in zakup"]
[null,null,null,null,null,null,null,"77290","Dajanje drugih izdelkov za široko rabo v najem in zakup"]
[null,null,null,null,null,null,null,"773","Dajanje strojev, naprav in drugih opredmetenih sredstev v najem in zakup"]
[null,null,null,null,null,null,null,"7731","Dajanje kmetijskih strojev in opreme v najem in zakup"]
[null,null,null,null,null,null,null,"77310","Dajanje kmetijskih strojev in opreme v najem in zakup"]
[null,null,null,null,null,null,null,"7732","Dajanje gradbenih strojev in opreme v najem in zakup"]
[null,null,null,null,null,null,null,"77320","Dajanje gradbenih strojev in opreme v najem in zakup"]
[null,null,null,null,null,null,null,"7733","Dajanje pisarniške opreme in računalniških naprav v najem in zakup"]
[null,null,null,null,null,null,null,"77330","Dajanje pisarniške opreme in računalniških naprav v najem in zakup"]
[null,null,null,null,null,null,null,"7734","Dajanje vodnih plovil v najem in zakup"]
[null,null,null,null,null,null,null,"77340","Dajanje vodnih plovil v najem in zakup"]
[null,null,null,null,null,null,null,"7735","Dajanje zračnih plovil v najem in zakup"]
[null,null,null,null,null,null,null,"77350","Dajanje zračnih plovil v najem in zakup"]
[null,null,null,null,null,null,null,"7739","Dajanje drugih strojev, naprav in opredmetenih sredstev v najem in zakup"]
[null,null,null,null,null,null,null,"77390","Dajanje drugih strojev, naprav in opredmetenih sredstev v najem in zakup"]
[null,null,null,null,null,null,null,"774","Dajanje pravic uporabe intelektualne lastnine v zakup, razen avtorsko zaščitenih del"]
[null,null,null,null,null,null,null,"7740","Dajanje pravic uporabe intelektualne lastnine v zakup, razen avtorsko zaščitenih del"]
[null,null,null,null,null,null,null,"77400","Dajanje pravic uporabe intelektualne lastnine v zakup, razen avtorsko zaščitenih del"]
[null,null,null,null,null,null,null,"78","Zaposlovalne dejavnosti"]
[null,null,null,null,null,null,null,"781","Dejavnost pri iskanju zaposlitve"]
[null,null,null,null,null,null,null,"7810","Dejavnost pri iskanju zaposlitve"]
[null,null,null,null,null,null,null,"78100","Dejavnost pri iskanju zaposlitve"]
[null,null,null,null,null,null,null,"782","Posredovanje začasne delovne sile"]
[null,null,null,null,null,null,null,"7820","Posredovanje začasne delovne sile"]
[null,null,null,null,null,null,null,"78200","Posredovanje začasne delovne sile"]
[null,null,null,null,null,null,null,"783","Druga oskrba s človeškimi viri"]
[null,null,null,null,null,null,null,"7830","Druga oskrba s človeškimi viri"]
[null,null,null,null,null,null,null,"78300","Druga oskrba s človeškimi viri"]
[null,null,null,null,null,null,null,"79","Dejavnost potovalnih agencij, organizatorjev potovanj in s potovanji povezanih dejavnosti"]
[null,null,null,null,null,null,null,"791","Dejavnost potovalnih agencij in organizatorjev potovanj"]
[null,null,null,null,null,null,null,"7911","Dejavnost potovalnih agencij"]
[null,null,null,null,null,null,null,"79110","Dejavnost potovalnih agencij"]
[null,null,null,null,null,null,null,"7912","Dejavnost organizatorjev potovanj"]
[null,null,null,null,null,null,null,"79120","Dejavnost organizatorjev potovanj"]
[null,null,null,null,null,null,null,"799","Rezervacije in druge s potovanji povezane dejavnosti"]
[null,null,null,null,null,null,null,"7990","Rezervacije in druge s potovanji povezane dejavnosti"]
[null,null,null,null,null,null,null,"79900","Rezervacije in druge s potovanji povezane dejavnosti"]
[null,null,null,null,null,null,null,"80","Varovanje in poizvedovalne dejavnosti"]
[null,null,null,null,null,null,null,"801","Varovanje"]
[null,null,null,null,null,null,null,"8010","Varovanje"]
[null,null,null,null,null,null,null,"80100","Varovanje"]
[null,null,null,null,null,null,null,"802","Nadzorovanje delovanja varovalnih sistemov"]
[null,null,null,null,null,null,null,"8020","Nadzorovanje delovanja varovalnih sistemov"]
[null,null,null,null,null,null,null,"80200","Nadzorovanje delovanja varovalnih sistemov"]
[null,null,null,null,null,null,null,"803","Poizvedovalne dejavnosti"]
[null,null,null,null,null,null,null,"8030","Poizvedovalne dejavnosti"]
[null,null,null,null,null,null,null,"80300","Poizvedovalne dejavnosti"]
[null,null,null,null,null,null,null,"81","Dejavnost oskrbe stavb in okolice"]
[null,null,null,null,null,null,null,"811","Vzdrževanje objektov in hišniška dejavnost"]
[null,null,null,null,null,null,null,"8110","Vzdrževanje objektov in hišniška dejavnost"]
[null,null,null,null,null,null,null,"81100","Vzdrževanje objektov in hišniška dejavnost"]
[null,null,null,null,null,null,null,"812","Čiščenje"]
[null,null,null,null,null,null,null,"8121","Splošno čiščenje stavb"]
[null,null,null,null,null,null,null,"81210","Splošno čiščenje stavb"]
[null,null,null,null,null,null,null,"8122","Drugo čiščenje stavb, industrijskih naprav in opreme"]
[null,null,null,null,null,null,null,"81220","Drugo čiščenje stavb, industrijskih naprav in opreme"]
[null,null,null,null,null,null,null,"8129","Čiščenje cest in drugo čiščenje"]
[null,null,null,null,null,null,null,"81290","Čiščenje cest in drugo čiščenje"]
[null,null,null,null,null,null,null,"813","Urejanje in vzdrževanje zelenih površin in okolice"]
[null,null,null,null,null,null,null,"8130","Urejanje in vzdrževanje zelenih površin in okolice"]
[null,null,null,null,null,null,null,"81300","Urejanje in vzdrževanje zelenih površin in okolice"]
[null,null,null,null,null,null,null,"82","Pisarniške in spremljajoče poslovne storitvene dejavnosti"]
[null,null,null,null,null,null,null,"821","Pisarniške dejavnosti"]
[null,null,null,null,null,null,null,"8211","Nudenje celovitih pisarniških storitev"]
[null,null,null,null,null,null,null,"82110","Nudenje celovitih pisarniških storitev"]
[null,null,null,null,null,null,null,"8219","Fotokopiranje, priprava dokumentov in druge posamične pisarniške dejavnosti"]
[null,null,null,null,null,null,null,"82190","Fotokopiranje, priprava dokumentov in druge posamične pisarniške dejavnosti"]
[null,null,null,null,null,null,null,"822","Dejavnost klicnih centrov"]
[null,null,null,null,null,null,null,"8220","Dejavnost klicnih centrov"]
[null,null,null,null,null,null,null,"82200","Dejavnost klicnih centrov"]
[null,null,null,null,null,null,null,"823","Organiziranje razstav, sejmov, srečanj"]
[null,null,null,null,null,null,null,"8230","Organiziranje razstav, sejmov, srečanj"]
[null,null,null,null,null,null,null,"82300","Organiziranje razstav, sejmov, srečanj"]
[null,null,null,null,null,null,null,"829","Druge spremljajoče dejavnosti za poslovanje"]
[null,null,null,null,null,null,null,"8291","Zbiranje terjatev in ocenjevanje kreditne sposobnosti"]
[null,null,null,null,null,null,null,"82910","Zbiranje terjatev in ocenjevanje kreditne sposobnosti"]
[null,null,null,null,null,null,null,"8292","Pakiranje"]
[null,null,null,null,null,null,null,"82920","Pakiranje"]
[null,null,null,null,null,null,null,"8299","Drugje nerazvrščene spremljajoče dejavnosti za poslovanje"]
[null,null,null,null,null,null,null,"82990","Drugje nerazvrščene spremljajoče dejavnosti za poslovanje"]
[null,null,null,null,null,null,null,"84","Dejavnost javne uprave in obrambe; dejavnost obvezne socialne varnosti"]
[null,null,null,null,null,null,null,"841","Dejavnost državne uprave ter ekonomska in socialna politika skupnosti"]
[null,null,null,null,null,null,null,"8411","Splošna dejavnost javne uprave"]
[null,null,null,null,null,null,null,"84110","Splošna dejavnost javne uprave"]
[null,null,null,null,null,null,null,"8412","Urejanje zdravstva, izobraževanja, kulturnih in drugih socialnih storitev, razen obvezne socialne varnosti"]
[null,null,null,null,null,null,null,"84120","Urejanje zdravstva, izobraževanja, kulturnih in drugih socialnih storitev, razen obvezne socialne varnosti"]
[null,null,null,null,null,null,null,"8413","Urejanje gospodarskih področij za učinkovitejše poslovanje"]
[null,null,null,null,null,null,null,"84130","Urejanje gospodarskih področij za učinkovitejše poslovanje"]
[null,null,null,null,null,null,null,"842","Posebne dejavnosti za celotno družbeno skupnost"]
[null,null,null,null,null,null,null,"8421","Urejanje zunanjih zadev"]
[null,null,null,null,null,null,null,"84210","Urejanje zunanjih zadev"]
[null,null,null,null,null,null,null,"8422","Obramba"]
[null,null,null,null,null,null,null,"84220","Obramba"]
[null,null,null,null,null,null,null,"8423","Sodstvo"]
[null,null,null,null,null,null,null,"84230",""]
[null,null,null,null,null,null,null,"8424","Dejavnosti za javni red in varnost"]
[null,null,null,null,null,null,null,"84240","Dejavnosti za javni red in varnost"]
[null,null,null,null,null,null,null,"8425","Zaščita in reševanje pri požarih in nesrečah"]
[null,null,null,null,null,null,null,"84250","Zaščita in reševanje pri požarih in nesrečah"]
[null,null,null,null,null,null,null,"843","Dejavnost obvezne socialne varnosti"]
[null,null,null,null,null,null,null,"8430","Dejavnost obvezne socialne varnosti"]
[null,null,null,null,null,null,null,"84300","Dejavnost obvezne socialne varnosti"]
[null,null,null,null,null,null,null,"85","Izobraževanje"]
[null,null,null,null,null,null,null,"851","Predšolska vzgoja"]
[null,null,null,null,null,null,null,"8510","Predšolska vzgoja"]
[null,null,null,null,null,null,null,"85100","Predšolska vzgoja"]
[null,null,null,null,null,null,null,"852","Osnovnošolsko izobraževanje"]
[null,null,null,null,null,null,null,"8520","Osnovnošolsko izobraževanje"]
[null,null,null,null,null,null,null,"85200","Osnovnošolsko izobraževanje"]
[null,null,null,null,null,null,null,"853","Srednješolsko izobraževanje"]
[null,null,null,null,null,null,null,"8531","Srednješolsko splošno izobraževanje"]
[null,null,null,null,null,null,null,"85310","Srednješolsko splošno izobraževanje"]
[null,null,null,null,null,null,null,"8532","Srednješolsko poklicno in strokovno izobraževanje"]
[null,null,null,null,null,null,null,"85320","Srednješolsko poklicno in strokovno izobraževanje"]
[null,null,null,null,null,null,null,"854","Posrednješolsko izobraževanje"]
[null,null,null,null,null,null,null,"8541","Posrednješolsko neterciarno izobraževanje"]
[null,null,null,null,null,null,null,"85410","Posrednješolsko neterciarno izobraževanje"]
[null,null,null,null,null,null,null,"8542","Višješolsko in visokošolsko izobraževanje"]
[null,null,null,null,null,null,null,"85421","Višješolsko izobraževanje"]
[null,null,null,null,null,null,null,"85422","Visokošolsko izobraževanje"]
[null,null,null,null,null,null,null,"855","Drugo izobraževanje, izpopolnjevanje in usposabljanje"]
[null,null,null,null,null,null,null,"8551","Izobraževanje, izpopolnjevanje in usposabljanje na področju športa in rekreacije"]
[null,null,null,null,null,null,null,"85510","Izobraževanje, izpopolnjevanje in usposabljanje na področju športa in rekreacije"]
[null,null,null,null,null,null,null,"8552","Izobraževanje, izpopolnjevanje in usposabljanje na področju kulture in umetnosti"]
[null,null,null,null,null,null,null,"85520","Izobraževanje, izpopolnjevanje in usposabljanje na področju kulture in umetnosti"]
[null,null,null,null,null,null,null,"8553","Dejavnost vozniških šol"]
[null,null,null,null,null,null,null,"85530","Dejavnost vozniških šol"]
[null,null,null,null,null,null,null,"8559","Drugje nerazvrščeno izobraževanje, izpopolnjevanje in usposabljanje"]
[null,null,null,null,null,null,null,"85590","Drugje nerazvrščeno izobraževanje, izpopolnjevanje in usposabljanje"]
[null,null,null,null,null,null,null,"856","Pomožne dejavnosti za izobraževanje"]
[null,null,null,null,null,null,null,"8560","Pomožne dejavnosti za izobraževanje"]
[null,null,null,null,null,null,null,"85600","Pomožne dejavnosti za izobraževanje"]
[null,null,null,null,null,null,null,"86","Zdravstvo"]
[null,null,null,null,null,null,null,"861","Bolnišnična zdravstvena dejavnost"]
[null,null,null,null,null,null,null,"8610","Bolnišnična zdravstvena dejavnost"]
[null,null,null,null,null,null,null,"86100","Bolnišnična zdravstvena dejavnost"]
[null,null,null,null,null,null,null,"862","Zunajbolnišnična zdravstvena in zobozdravstvena dejavnost"]
[null,null,null,null,null,null,null,"8621","Splošna zunajbolnišnična zdravstvena dejavnost"]
[null,null,null,null,null,null,null,"86210","Splošna zunajbolnišnična zdravstvena dejavnost"]
[null,null,null,null,null,null,null,"8622","Specialistična zunajbolnišnična zdravstvena dejavnost"]
[null,null,null,null,null,null,null,"86220","Specialistična zunajbolnišnična zdravstvena dejavnost"]
[null,null,null,null,null,null,null,"8623","Zobozdravstvena dejavnost"]
[null,null,null,null,null,null,null,"86230",""]
[null,null,null,null,null,null,null,"869","Druge dejavnosti za zdravje"]
[null,null,null,null,null,null,null,"8690","Druge dejavnosti za zdravje"]
[null,null,null,null,null,null,null,"86901","p."]
[null,null,null,null,null,null,null,"86909","Druge zdravstvene dejavnosti"]
[null,null,null,null,null,null,null,"87","Socialno varstvo z nastanitvijo"]
[null,null,null,null,null,null,null,"871","Dejavnost nastanitvenih ustanov za bolniško nego"]
[null,null,null,null,null,null,null,"8710","Dejavnost nastanitvenih ustanov za bolniško nego"]
[null,null,null,null,null,null,null,"87100","Dejavnost nastanitvenih ustanov za bolniško nego"]
[null,null,null,null,null,null,null,"872","Dejavnost nastanitvenih ustanov za oskrbo duševno prizadetih, duševno obolelih in zasvojenih oseb"]
[null,null,null,null,null,null,null,"8720","Dejavnost nastanitvenih ustanov za oskrbo duševno prizadetih, duševno obolelih in zasvojenih oseb"]
[null,null,null,null,null,null,null,"87200","Dejavnost nastanitvenih ustanov za oskrbo duševno prizadetih, duševno obolelih in zasvojenih oseb"]
[null,null,null,null,null,null,null,"873","Dejavnost nastanitvenih ustanov za oskrbo starejših in invalidnih oseb"]
[null,null,null,null,null,null,null,"8730","Dejavnost nastanitvenih ustanov za oskrbo starejših in invalidnih oseb"]
[null,null,null,null,null,null,null,"87300","Dejavnost nastanitvenih ustanov za oskrbo starejših in invalidnih oseb"]
[null,null,null,null,null,null,null,"879","Drugo socialno varstvo z nastanitvijo"]
[null,null,null,null,null,null,null,"8790","Drugo socialno varstvo z nastanitvijo"]
[null,null,null,null,null,null,null,"87900","Drugo socialno varstvo z nastanitvijo"]
[null,null,null,null,null,null,null,"88","Socialno varstvo brez nastanitve"]
[null,null,null,null,null,null,null,"881","Socialno varstvo brez nastanitve za starejše in invalidne osebe"]
[null,null,null,null,null,null,null,"8810","Socialno varstvo brez nastanitve za starejše in invalidne osebe"]
[null,null,null,null,null,null,null,"88101","Dejavnost invalidskih podjetij"]
[null,null,null,null,null,null,null,"88109","Drugo socialno varstvo brez nastanitve za starejše in invalidne osebe"]
[null,null,null,null,null,null,null,"889","Drugo socialno varstvo brez nastanitve"]
[null,null,null,null,null,null,null,"8891","Dnevno varstvo otrok"]
[null,null,null,null,null,null,null,"88910","Dnevno varstvo otrok"]
[null,null,null,null,null,null,null,"8899","Drugje nerazvrščeno socialno varstvo brez nastanitve"]
[null,null,null,null,null,null,null,"88991","Dejavnost humanitarnih in dobrodelnih organizacij"]
[null,null,null,null,null,null,null,"88999","Drugo drugje nerazvrščeno socialno varstvo brez nastanitve"]
[null,null,null,null,null,null,null,"90","Kulturne in razvedrilne dejavnosti"]
[null,null,null,null,null,null,null,"900","Kulturne in razvedrilne dejavnosti"]
[null,null,null,null,null,null,null,"9001","Umetniško uprizarjanje"]
[null,null,null,null,null,null,null,"90010","Umetniško uprizarjanje"]
[null,null,null,null,null,null,null,"9002","Spremljajoče dejavnosti za umetniško uprizarjanje"]
[null,null,null,null,null,null,null,"90020","Spremljajoče dejavnosti za umetniško uprizarjanje"]
[null,null,null,null,null,null,null,"9003","Umetniško ustvarjanje"]
[null,null,null,null,null,null,null,"90030","Umetniško ustvarjanje"]
[null,null,null,null,null,null,null,"9004","Obratovanje objektov za kulturne prireditve"]
[null,null,null,null,null,null,null,"90040","Obratovanje objektov za kulturne prireditve"]
[null,null,null,null,null,null,null,"91","Dejavnost knjižnic, arhivov, muzejev in druge kulturne dejavnosti"]
[null,null,null,null,null,null,null,"910","Dejavnost knjižnic, arhivov, muzejev in druge kulturne dejavnosti"]
[null,null,null,null,null,null,null,"9101","Dejavnost knjižnic in arhivov"]
[null,null,null,null,null,null,null,"91011","Dejavnost knjižnic"]
[null,null,null,null,null,null,null,"91012","Dejavnost arhivov"]
[null,null,null,null,null,null,null,"9102","Dejavnost muzejev"]
[null,null,null,null,null,null,null,"91020","Dejavnost muzejev"]
[null,null,null,null,null,null,null,"9103","Varstvo kulturne dediščine"]
[null,null,null,null,null,null,null,"91030","Varstvo kulturne dediščine"]
[null,null,null,null,null,null,null,"9104","Dejavnost botaničnih in živalskih vrtov, varstvo naravnih vrednot"]
[null,null,null,null,null,null,null,"91040","Dejavnost botaničnih in živalskih vrtov, varstvo naravnih vrednot"]
[null,null,null,null,null,null,null,"92","Prirejanje iger na srečo"]
[null,null,null,null,null,null,null,"920","Prirejanje iger na srečo"]
[null,null,null,null,null,null,null,"9200","Prirejanje iger na srečo"]
[null,null,null,null,null,null,null,"92001","Dejavnost igralnic"]
[null,null,null,null,null,null,null,"92002","Prirejanje iger na srečo, razen v igralnicah"]
[null,null,null,null,null,null,null,"93","Športne in druge dejavnosti za prosti čas"]
[null,null,null,null,null,null,null,"931","Športne dejavnosti"]
[null,null,null,null,null,null,null,"9311","Obratovanje športnih objektov"]
[null,null,null,null,null,null,null,"93110","Obratovanje športnih objektov"]
[null,null,null,null,null,null,null,"9312","Dejavnost športnih klubov"]
[null,null,null,null,null,null,null,"93120","Dejavnost športnih klubov"]
[null,null,null,null,null,null,null,"9313","Obratovanje fitnes objektov"]
[null,null,null,null,null,null,null,"93130","Obratovanje fitnes objektov"]
[null,null,null,null,null,null,null,"9319","Druge športne dejavnosti"]
[null,null,null,null,null,null,null,"93190","Druge športne dejavnosti"]
[null,null,null,null,null,null,null,"932","Druge dejavnosti za prosti čas"]
[null,null,null,null,null,null,null,"9321","Dejavnost zabaviščnih parkov"]
[null,null,null,null,null,null,null,"93210","Dejavnost zabaviščnih parkov"]
[null,null,null,null,null,null,null,"9329","Drugje nerazvrščene dejavnosti za prosti čas"]
[null,null,null,null,null,null,null,"93291","Dejavnost marin"]
[null,null,null,null,null,null,null,"93292","Dejavnost smučarskih centrov"]
[null,null,null,null,null,null,null,"93299","Druge nerazvrščene dejavnosti za prosti čas"]
[null,null,null,null,null,null,null,"94","Dejavnost članskih organizacij"]
[null,null,null,null,null,null,null,"941","Dejavnost poslovnih, delodajalskih in strokovnih združenj"]
[null,null,null,null,null,null,null,"9411","Dejavnost poslovnih in delodajalskih združenj"]
[null,null,null,null,null,null,null,"94110","Dejavnost poslovnih in delodajalskih združenj"]
[null,null,null,null,null,null,null,"9412","Dejavnost strokovnih združenj"]
[null,null,null,null,null,null,null,"94120","Dejavnost strokovnih združenj"]
[null,null,null,null,null,null,null,"942","Dejavnost sindikatov"]
[null,null,null,null,null,null,null,"9420","Dejavnost sindikatov"]
[null,null,null,null,null,null,null,"94200","Dejavnost sindikatov"]
[null,null,null,null,null,null,null,"949","Dejavnost drugih članskih organizacij"]
[null,null,null,null,null,null,null,"9491","Dejavnost verskih organizacij"]
[null,null,null,null,null,null,null,"94910","Dejavnost verskih organizacij"]
[null,null,null,null,null,null,null,"9492","Dejavnost političnih organizacij"]
[null,null,null,null,null,null,null,"94920","Dejavnost političnih organizacij"]
[null,null,null,null,null,null,null,"9499","Dejavnost drugje nerazvrščenih članskih organizacij"]
[null,null,null,null,null,null,null,"94991","Dejavnost invalidskih organizacij"]
[null,null,null,null,null,null,null,"94999","Dejavnost drugje nerazvrščenih članskih organizacij"]
[null,null,null,null,null,null,null,"95","Popravila računalnikov in izdelkov za široko rabo"]
[null,null,null,null,null,null,null,"951","Popravila in vzdrževanje računalnikov in komunikacijskih naprav"]
[null,null,null,null,null,null,null,"9511","Popravila in vzdrževanje računalnikov in perifernih enot"]
[null,null,null,null,null,null,null,"95110","Popravila in vzdrževanje računalnikov in perifernih enot"]
[null,null,null,null,null,null,null,"9512","Popravila komunikacijskih naprav"]
[null,null,null,null,null,null,null,"95120","Popravila komunikacijskih naprav"]
[null,null,null,null,null,null,null,"952","Popravila izdelkov za široko rabo"]
[null,null,null,null,null,null,null,"9521","Popravila elektronskih naprav za široko rabo"]
[null,null,null,null,null,null,null,"95210","Popravila elektronskih naprav za široko rabo"]
[null,null,null,null,null,null,null,"9522","Popravila gospodinjskih in hišnih naprav in opreme"]
[null,null,null,null,null,null,null,"95220","Popravila gospodinjskih in hišnih naprav in opreme"]
[null,null,null,null,null,null,null,"9523","Popravila obutve in usnjene galanterije"]
[null,null,null,null,null,null,null,"95230","Popravila obutve in usnjene galanterije"]
[null,null,null,null,null,null,null,"9524","Popravila pohištva"]
[null,null,null,null,null,null,null,"95240","Popravila pohištva"]
[null,null,null,null,null,null,null,"9525","Popravila ur in nakita"]
[null,null,null,null,null,null,null,"95250","Popravila ur in nakita"]
[null,null,null,null,null,null,null,"9529","Popravila drugih osebnih ali gospodinjskih izdelkov"]
[null,null,null,null,null,null,null,"95290","Popravila drugih osebnih ali gospodinjskih izdelkov"]
[null,null,null,null,null,null,null,"96","Druge storitvene dejavnosti"]
[null,null,null,null,null,null,null,"960","Druge storitvene dejavnosti"]
[null,null,null,null,null,null,null,"9601","Dejavnost pralnic in kemičnih čistilnic"]
[null,null,null,null,null,null,null,"96010","Dejavnost pralnic in kemičnih čistilnic"]
[null,null,null,null,null,null,null,"9602","Frizerska, kozmetična in pedikerska dejavnost"]
[null,null,null,null,null,null,null,"96021","Frizerska dejavnost"]
[null,null,null,null,null,null,null,"96022","Kozmetična in pedikerska dejavnost"]
[null,null,null,null,null,null,null,"9603","Pogrebna dejavnost"]
[null,null,null,null,null,null,null,"96030","Pogrebna dejavnost"]
[null,null,null,null,null,null,null,"9604","Dejavnosti za nego telesa"]
[null,null,null,null,null,null,null,"96040","Dejavnosti za nego telesa"]
[null,null,null,null,null,null,null,"9609","Druge storitvene dejavnosti, drugje nerazvrščene"]
[null,null,null,null,null,null,null,"96090","Druge storitvene dejavnosti, drugje nerazvrščene"]
[null,null,null,null,null,null,null,"97","Dejavnost gospodinjstev z zaposlenim hišnim osebjem"]
[null,null,null,null,null,null,null,"970","Dejavnost gospodinjstev z zaposlenim hišnim osebjem"]
[null,null,null,null,null,null,null,"9700","Dejavnost gospodinjstev z zaposlenim hišnim osebjem"]
[null,null,null,null,null,null,null,"97000","Dejavnost gospodinjstev z zaposlenim hišnim osebjem"]
[null,null,null,null,null,null,null,"98","Raznovrstna proizvodnja gospodinjstev za lastno rabo"]
[null,null,null,null,null,null,null,"981","Raznovrstna proizvodnja dobrin v gospodinjstvih za lastno rabo"]
[null,null,null,null,null,null,null,"9810","Raznovrstna proizvodnja dobrin v gospodinjstvih za lastno rabo"]
[null,null,null,null,null,null,null,"98100","Raznovrstna proizvodnja dobrin v gospodinjstvih za lastno rabo"]
[null,null,null,null,null,null,null,"982","Raznovrstna proizvodnja storitev v gospodinjstvih za lastno rabo"]
[null,null,null,null,null,null,null,"9820","Raznovrstna proizvodnja storitev v gospodinjstvih za lastno rabo"]
[null,null,null,null,null,null,null,"98200","Raznovrstna proizvodnja storitev v gospodinjstvih za lastno rabo"]
[null,null,null,null,null,null,null,"99","Dejavnost eksteritorialnih organizacij in teles"]
[null,null,null,null,null,null,null,"990","Dejavnost eksteritorialnih organizacij in teles"]
[null,null,null,null,null,null,null,"9900","Dejavnost eksteritorialnih organizacij in teles"]
[null,null,null,null,null,null,null,"99000","Dejavnost eksteritorialnih organizacij in teles"]

{"sheet":"Izvajalci_mon","index":18,"n_rows":28,"n_cols":12,"rows_kept":28,"cut":false,"hidden":true,"merged":[]}
["Naziv","Naselje","Ulica","Hišna številka","Št. pošte","pošta","davčna št.","kontaktna os.","tel.","fax","e-mail","ID_IzvajalcaMonitoringa"]
[]
["ALS","","Na Harfe","336/9",19000,"Praga",0,"","","","",800]
["Bioinstitut d.o.o.","","Rudolfa Steinerja","7",40000,"Čakovec",68643934,"","","","",60]
["CINKARNA Celje, d.d.","","Kidričeva ulica","26",3000,"Celje",15280373,"","","","",3]
["EKO d.o.o.","","Koroška cesta","14",2390,"Ravne na Koroškem",38599996,"","","","",4]
["Eurofins Croatiakontrola d.o.o.","","Karlovačka cesta","4L",10000,"Zagreb",0,"","","","",101]
["Eurofins ERICo Slovenija d.o.o.","Velenje","Koroška cesta","58",3320,"Velenje",63543877,"","","","",5]
["Eurofins Umvelt Ost GmbH","","Loebstedter Strasse","78",7749,"Jena",0,"","","","",801]
["Euroinspekt Croatiakontrola d.o.o.","","Karlovačka cesta","4L",10000,"Zagreb",0,"","","","",61]
["Gorenje d.o.o.","Velenje","Partizanska cesta","12",3503,"Velenje",72615320,"","","","",7]
["IKEMA d.o.o.","","Lovrenc na Dravskem polju","4",2324,"Lovrenc na Dravskem polju",99144620,"","","","",10]
["Javno podjetje Nigrad, d.o.o.","Maribor","Zagrebška cesta","30",2000,"Maribor",71083715,"","","","",23]
["JP VOKA SNAGA d.o.o","Ljubljana","Vodovodna cesta","90",1000,"Ljubljana",64520463,"","","","",17]
["KOMUNALA PTUJ d.d.","","Puhova ulica","10",2250,"Ptuj",65735676,"","","","",24]
["NLZOH","","Prvomajska ulica","1",2000,"Maribor",9651295,"","","","",59]
["NLZOH Celje","","Ipavčeva ulica","18",3000,"Celje",19651295,"","","","",5901]
["NLZOH Koper","","Vojkovo nabrežje","10",6000,"Koper",19651295,"","","","",5902]
["NLZOH Kranj","","Gosposvetska ulica","12",4000,"Kranj",19651295,"","","","",5903]
["NLZOH Ljubljana","","Grablovičeva ulica","44",1000,"Ljubljana",19651295,"","","","",5907]
["NLZOH Maribor","","Prvomajska ulica","1",2000,"Maribor",19651295,"","","","",5904]
["NLZOH Nova Gorica","","Vipavska cesta","13",5000,"Nova Gorica",19651295,"","","","",5905]
["NLZOH Novo mesto","","Dalmatinova ulica","2",8000,"Novo mesto",19651295,"","","","",5906]
["RTCZ d.o.o.","Hrastnik","Naselje Aleša Kaple","9A",1430,"Hrastnik",69351953,"","","","",56]
["SIJ ACRONI d.o.o.","Koroška Bela","Cesta Borisa Kidriča","44",4270,"Jesenice",25840754,"","","","",39]
["TAB-IPM d.o.o.","","Žerjav","79",2393,"Črna na Koroškem",75781166,"","","","",100]
["TALUM INŠTITUT d.o.o.","","Tovarniška cesta","10",2325,"Kidričevo",20310676,"","","","",57]
["VIPAP VIDEM KRŠKO d.d.","","Tovarniška ulica","18",8270,"Krško",23087226,"","","","",9]